Workbook

Sheet Chiffres-clé
C1: Afin d'éditer au format pdf la fiche souhaitée, veuillez sélectionner votre département et votre commune ci-dessous.
B4: Département | D4: Département de Seine-Maritime
B6: Commune | D6: Rouen | W6: =D4 -> Département de Seine-Maritime
W7: =VLOOKUP(W6,Réf!F46:G50,2,0) -> SeineMaritime
W9: Commune
W10: =VLOOKUP(D6,Réf!F141:G2792,2,0) -> 76540 | Y10: Mise à jour fichier | Z10: Février 2024
Y11: Démographie | Z11: 2020
W13: Région
W14: 28 | Y14: Emploi salarié annuel ACOSS | Z14: Au 31 décembre 2022
Y16: DPAE | Z16: Cumul annuel glissant 4e trim. 2023
Y17: Retours à l'emploi | Z17: Cumul annuel glissant 3e trim. 2023
B19: Chiffres-clé | Y19: DEFM | Z19: Au 31 décembre 2023
Y20: DEE / DES | Z20: Cumul annuel glissant 4e trim. 2023
B21: =VLOOKUP(D6,Réf!F141:I2792,4,0) -> Commune de Rouen | Y21: OEE | Z21: Cumul annuel glissant 4e trim. 2023
N22: ="Mise à jour : "&Z10 -> Mise à jour : Février 2024 | Y22: Offres en stock | Z22: Au 31 décembre 2023
B23: Le territoire | N23: [Source : INSEE] | Y23: Entrées en formation | Z23: Cumul annuel glissant au 3e trim. 2023
B26: Population | D26: =Z11 -> 2020 | Y26: Offres diffusées | Z26: Cumul annuel glissant au 4e trim. 2023
Y27: Sortants de formation | Z27: Cumul annuel glissant au 1er trim. 2023
B28: =SUMIFS(export_pop!D:D,export_pop!A:A,W9,export_pop!B:B,W10) -> 114187 | C28: habitants | F28: Normandie
B29: =IF(SUMIFS(export_pop!$E:$E,export_pop!$A:$A,$W$9,export_pop!$B:$B,$W$10)=0,"",(SUMIFS(export_pop!$D:$D,export_pop!$A:$A,$W$9,export_pop!$B:$B,$W$10)/SUMIFS(export_pop!$E:$E,export_pop!$A:$A,$W$9,export_pop!$B:$B,$W$10))^(1/6)-1) -> 0.005306468171 | C29: en moyenne annuelle sur 6 ans | F29: =(SUMIFS(export_pop!$D:$D,export_pop!$A:$A,$W13,export_pop!$B:$B,$W14)/SUMIFS(export_pop!$E:$E,export_pop!$A:$A,$W13,export_pop!$B:$B,$W14))^(1/6)-1 -> -0.0005064399991 | H29: >> Population active occupée | N29: Normandie
H30: =SUMIFS(export_pop!$J:$J,export_pop!$A:$A,$W$9,export_pop!$B:$B,$W$10)/(SUMIFS(export_pop!$J:$J,export_pop!$A:$A,$W$9,export_pop!$B:$B,$W$10)+SUMIFS(export_pop!$K:$K,export_pop!$A:$A,$W$9,export_pop!$B:$B,$W$10)+SUMIFS(export_pop!$L:$L,export_pop!$A:$A,$W$9,export_pop!$B:$B,$W$10)+SUMIFS(export_pop!$M:$M,export_pop!$A:$A,$W$9,export_pop!$B:$B,$W$10)+SUMIFS(export_pop!$N:$N,export_pop!$A:$A,$W$9,export_pop!$B:$B,$W$10)+SUMIFS(export_pop!$O:$O,export_pop!$A:$A,$W$9,export_pop!$B:$B,$W$10)) -> 0.0008477523694 | I30: Agriculteurs exploitants | N30: =SUMIFS(export_pop!$J:$J,export_pop!$A:$A,$W13,export_pop!$B:$B,$W14)/(SUMIFS(export_pop!$J:$J,export_pop!$A:$A,$W13,export_pop!$B:$B,$W14)+SUMIFS(export_pop!$K:$K,export_pop!$A:$A,$W13,export_pop!$B:$B,$W14)+SUMIFS(export_pop!$L:$L,export_pop!$A:$A,$W13,export_pop!$B:$B,$W14)+SUMIFS(export_pop!$M:$M,export_pop!$A:$A,$W13,export_pop!$B:$B,$W14)+SUMIFS(export_pop!$N:$N,export_pop!$A:$A,$W13,export_pop!$B:$B,$W14)+SUMIFS(export_pop!$O:$O,export_pop!$A:$A,$W13,export_pop!$B:$B,$W14)) -> 0.01863342609
B31: =IF(SUMIFS(export_pop!$F:$F,export_pop!$A:$A,$W$9,export_pop!$B:$B,$W$10)=0,"",SUMIFS(export_pop!$D:$D,export_pop!$A:$A,$W$9,export_pop!$B:$B,$W$10)/SUMIFS(export_pop!$F:$F,export_pop!$A:$A,$W$9,export_pop!$B:$B,$W$10)) -> 5437.47619 | C31: habitants au km² | F31: =SUMIFS(export_pop!$D:$D,export_pop!$A:$A,$W13,export_pop!$B:$B,$W14)/SUMIFS(export_pop!$F:$F,export_pop!$A:$A,$W13,export_pop!$B:$B,$W14) -> 111.3630031 | H31: =SUMIFS(export_pop!$K:$K,export_pop!$A:$A,$W$9,export_pop!$B:$B,$W$10)/(SUMIFS(export_pop!$J:$J,export_pop!$A:$A,$W$9,export_pop!$B:$B,$W$10)+SUMIFS(export_pop!$K:$K,export_pop!$A:$A,$W$9,export_pop!$B:$B,$W$10)+SUMIFS(export_pop!$L:$L,export_pop!$A:$A,$W$9,export_pop!$B:$B,$W$10)+SUMIFS(export_pop!$M:$M,export_pop!$A:$A,$W$9,export_pop!$B:$B,$W$10)+SUMIFS(export_pop!$N:$N,export_pop!$A:$A,$W$9,export_pop!$B:$B,$W$10)+SUMIFS(export_pop!$O:$O,export_pop!$A:$A,$W$9,export_pop!$B:$B,$W$10)) -> 0.04262672811 | I31: Artisans, commerçants et chefs d'entreprises | N31: =SUMIFS(export_pop!$K:$K,export_pop!$A:$A,$W13,export_pop!$B:$B,$W14)/(SUMIFS(export_pop!$J:$J,export_pop!$A:$A,$W13,export_pop!$B:$B,$W14)+SUMIFS(export_pop!$K:$K,export_pop!$A:$A,$W13,export_pop!$B:$B,$W14)+SUMIFS(export_pop!$L:$L,export_pop!$A:$A,$W13,export_pop!$B:$B,$W14)+SUMIFS(export_pop!$M:$M,export_pop!$A:$A,$W13,export_pop!$B:$B,$W14)+SUMIFS(export_pop!$N:$N,export_pop!$A:$A,$W13,export_pop!$B:$B,$W14)+SUMIFS(export_pop!$O:$O,export_pop!$A:$A,$W13,export_pop!$B:$B,$W14)) -> 0.06178407427
H32: =SUMIFS(export_pop!$L:$L,export_pop!$A:$A,$W$9,export_pop!$B:$B,$W$10)/(SUMIFS(export_pop!$J:$J,export_pop!$A:$A,$W$9,export_pop!$B:$B,$W$10)+SUMIFS(export_pop!$K:$K,export_pop!$A:$A,$W$9,export_pop!$B:$B,$W$10)+SUMIFS(export_pop!$L:$L,export_pop!$A:$A,$W$9,export_pop!$B:$B,$W$10)+SUMIFS(export_pop!$M:$M,export_pop!$A:$A,$W$9,export_pop!$B:$B,$W$10)+SUMIFS(export_pop!$N:$N,export_pop!$A:$A,$W$9,export_pop!$B:$B,$W$10)+SUMIFS(export_pop!$O:$O,export_pop!$A:$A,$W$9,export_pop!$B:$B,$W$10)) -> 0.1188809669 | I32: Ouvriers | N32: =SUMIFS(export_pop!$L:$L,export_pop!$A:$A,$W13,export_pop!$B:$B,$W14)/(SUMIFS(export_pop!$J:$J,export_pop!$A:$A,$W13,export_pop!$B:$B,$W14)+SUMIFS(export_pop!$K:$K,export_pop!$A:$A,$W13,export_pop!$B:$B,$W14)+SUMIFS(export_pop!$L:$L,export_pop!$A:$A,$W13,export_pop!$B:$B,$W14)+SUMIFS(export_pop!$M:$M,export_pop!$A:$A,$W13,export_pop!$B:$B,$W14)+SUMIFS(export_pop!$N:$N,export_pop!$A:$A,$W13,export_pop!$B:$B,$W14)+SUMIFS(export_pop!$O:$O,export_pop!$A:$A,$W13,export_pop!$B:$B,$W14)) -> 0.24804244
B33: =SUMIFS(export_pop!$G:$G,export_pop!$A:$A,$W$9,export_pop!$B:$B,$W$10)/SUMIFS(export_pop!$D:$D,export_pop!$A:$A,$W$9,export_pop!$B:$B,$W$10) -> 0.4772697417 | C33: Moins de 30 ans | F33: =SUMIFS(export_pop!$G:$G,export_pop!$A:$A,$W13,export_pop!$B:$B,$W14)/SUMIFS(export_pop!$D:$D,export_pop!$A:$A,$W13,export_pop!$B:$B,$W14) -> 0.3437036351 | H33: =SUMIFS(export_pop!$M:$M,export_pop!$A:$A,$W$9,export_pop!$B:$B,$W$10)/(SUMIFS(export_pop!$J:$J,export_pop!$A:$A,$W$9,export_pop!$B:$B,$W$10)+SUMIFS(export_pop!$K:$K,export_pop!$A:$A,$W$9,export_pop!$B:$B,$W$10)+SUMIFS(export_pop!$L:$L,export_pop!$A:$A,$W$9,export_pop!$B:$B,$W$10)+SUMIFS(export_pop!$M:$M,export_pop!$A:$A,$W$9,export_pop!$B:$B,$W$10)+SUMIFS(export_pop!$N:$N,export_pop!$A:$A,$W$9,export_pop!$B:$B,$W$10)+SUMIFS(export_pop!$O:$O,export_pop!$A:$A,$W$9,export_pop!$B:$B,$W$10)) -> 0.2467176767 | I33: Employés | N33: =SUMIFS(export_pop!$M:$M,export_pop!$A:$A,$W13,export_pop!$B:$B,$W14)/(SUMIFS(export_pop!$J:$J,export_pop!$A:$A,$W13,export_pop!$B:$B,$W14)+SUMIFS(export_pop!$K:$K,export_pop!$A:$A,$W13,export_pop!$B:$B,$W14)+SUMIFS(export_pop!$L:$L,export_pop!$A:$A,$W13,export_pop!$B:$B,$W14)+SUMIFS(export_pop!$M:$M,export_pop!$A:$A,$W13,export_pop!$B:$B,$W14)+SUMIFS(export_pop!$N:$N,export_pop!$A:$A,$W13,export_pop!$B:$B,$W14)+SUMIFS(export_pop!$O:$O,export_pop!$A:$A,$W13,export_pop!$B:$B,$W14)) -> 0.2788581986
B34: =SUMIFS(export_pop!$H:$H,export_pop!$A:$A,$W$9,export_pop!$B:$B,$W$10)/SUMIFS(export_pop!$D:$D,export_pop!$A:$A,$W$9,export_pop!$B:$B,$W$10) -> 0.3344776551 | C34: Entre 30 et 59 ans | F34: =SUMIFS(export_pop!$H:$H,export_pop!$A:$A,$W13,export_pop!$B:$B,$W14)/SUMIFS(export_pop!$D:$D,export_pop!$A:$A,$W13,export_pop!$B:$B,$W14) -> 0.3732322324 | H34: =SUMIFS(export_pop!$N:$N,export_pop!$A:$A,$W$9,export_pop!$B:$B,$W$10)/(SUMIFS(export_pop!$J:$J,export_pop!$A:$A,$W$9,export_pop!$B:$B,$W$10)+SUMIFS(export_pop!$K:$K,export_pop!$A:$A,$W$9,export_pop!$B:$B,$W$10)+SUMIFS(export_pop!$L:$L,export_pop!$A:$A,$W$9,export_pop!$B:$B,$W$10)+SUMIFS(export_pop!$M:$M,export_pop!$A:$A,$W$9,export_pop!$B:$B,$W$10)+SUMIFS(export_pop!$N:$N,export_pop!$A:$A,$W$9,export_pop!$B:$B,$W$10)+SUMIFS(export_pop!$O:$O,export_pop!$A:$A,$W$9,export_pop!$B:$B,$W$10)) -> 0.2975176072 | I34: Professions intermédiaires | N34: =SUMIFS(export_pop!$N:$N,export_pop!$A:$A,$W13,export_pop!$B:$B,$W14)/(SUMIFS(export_pop!$J:$J,export_pop!$A:$A,$W13,export_pop!$B:$B,$W14)+SUMIFS(export_pop!$K:$K,export_pop!$A:$A,$W13,export_pop!$B:$B,$W14)+SUMIFS(export_pop!$L:$L,export_pop!$A:$A,$W13,export_pop!$B:$B,$W14)+SUMIFS(export_pop!$M:$M,export_pop!$A:$A,$W13,export_pop!$B:$B,$W14)+SUMIFS(export_pop!$N:$N,export_pop!$A:$A,$W13,export_pop!$B:$B,$W14)+SUMIFS(export_pop!$O:$O,export_pop!$A:$A,$W13,export_pop!$B:$B,$W14)) -> 0.2609837247
B35: =SUMIFS(export_pop!$I:$I,export_pop!$A:$A,$W$9,export_pop!$B:$B,$W$10)/SUMIFS(export_pop!$D:$D,export_pop!$A:$A,$W$9,export_pop!$B:$B,$W$10) -> 0.1882526032 | C35: De 60 ans ou plus | F35: =SUMIFS(export_pop!$I:$I,export_pop!$A:$A,$W13,export_pop!$B:$B,$W14)/SUMIFS(export_pop!$D:$D,export_pop!$A:$A,$W13,export_pop!$B:$B,$W14) -> 0.2830644332 | H35: =SUMIFS(export_pop!$O:$O,export_pop!$A:$A,$W$9,export_pop!$B:$B,$W$10)/(SUMIFS(export_pop!$J:$J,export_pop!$A:$A,$W$9,export_pop!$B:$B,$W$10)+SUMIFS(export_pop!$K:$K,export_pop!$A:$A,$W$9,export_pop!$B:$B,$W$10)+SUMIFS(export_pop!$L:$L,export_pop!$A:$A,$W$9,export_pop!$B:$B,$W$10)+SUMIFS(export_pop!$M:$M,export_pop!$A:$A,$W$9,export_pop!$B:$B,$W$10)+SUMIFS(export_pop!$N:$N,export_pop!$A:$A,$W$9,export_pop!$B:$B,$W$10)+SUMIFS(export_pop!$O:$O,export_pop!$A:$A,$W$9,export_pop!$B:$B,$W$10)) -> 0.2934092688 | I35: Cadres / professions intellectuelles supérieures | N35: =SUMIFS(export_pop!$O:$O,export_pop!$A:$A,$W13,export_pop!$B:$B,$W14)/(SUMIFS(export_pop!$J:$J,export_pop!$A:$A,$W13,export_pop!$B:$B,$W14)+SUMIFS(export_pop!$K:$K,export_pop!$A:$A,$W13,export_pop!$B:$B,$W14)+SUMIFS(export_pop!$L:$L,export_pop!$A:$A,$W13,export_pop!$B:$B,$W14)+SUMIFS(export_pop!$M:$M,export_pop!$A:$A,$W13,export_pop!$B:$B,$W14)+SUMIFS(export_pop!$N:$N,export_pop!$A:$A,$W13,export_pop!$B:$B,$W14)+SUMIFS(export_pop!$O:$O,export_pop!$A:$A,$W13,export_pop!$B:$B,$W14)) -> 0.1316981364
B36: L'activité économique
B39: Emploi salarié du secteur privé | G39: =Z14 -> Au 31 décembre 2022 | N39: [Source : ACOSS]
B41: =SUMIFS(export_emploi!$F:$F,export_emploi!$B:$B,$W$9,export_emploi!$C:$C,$W$10) -> 53934 | C41: =IF(B41<2,"salarié","salariés") -> salariés | E41: Normandie | I41: Nombre de salariés | J41: Proportion | K41: Proportion Normandie | M41: Évolution annuelle | N41: Évol. annuelle Normandie
B42: =IF(SUMIFS(export_emploi!$G:$G,export_emploi!$B:$B,$W$9,export_emploi!$C:$C,$W$10)=0,"",IF(ABS(SUMIFS(export_emploi!$F:$F,export_emploi!$B:$B,$W$9,export_emploi!$C:$C,$W$10)/SUMIFS(export_emploi!$G:$G,export_emploi!$B:$B,$W$9,export_emploi!$C:$C,$W$10)-1)>150%,"",SUMIFS(export_emploi!$F:$F,export_emploi!$B:$B,$W$9,export_emploi!$C:$C,$W$10)/SUMIFS(export_emploi!$G:$G,export_emploi!$B:$B,$W$9,export_emploi!$C:$C,$W$10)-1)) -> 0.01119298048 | C42: =IF(B42="","","en un an") -> en un an | E42: =SUMIFS(export_emploi!$F:$F,export_emploi!$B:$B,$W13,export_emploi!$C:$C,$W14)/SUMIFS(export_emploi!$G:$G,export_emploi!$B:$B,$W13,export_emploi!$C:$C,$W14)-1 -> 0.01203271834 | M42: évol | N42: Normandie
H43: Industrie | I43: =SUMIFS(export_emploi!$F:$F,export_emploi!$B:$B,$W$9,export_emploi!$C:$C,$W$10,export_emploi!$A:$A,2) -> 2896 | J43: =IF(B41=0,"",I43/$B$41) -> 0.05369525717 | K43: =SUMIFS(export_emploi!$F:$F,export_emploi!$B:$B,$W13,export_emploi!$C:$C,$W14,export_emploi!$A:$A,2)/SUMIFS(export_emploi!$F:$F,export_emploi!$B:$B,$W13,export_emploi!$C:$C,$W14) -> 0.2214436414 | M43: =IF(SUMIFS(export_emploi!$G:$G,export_emploi!$B:$B,$W$9,export_emploi!$C:$C,$W$10,export_emploi!$A:$A,2)=0,"",IF(ABS(SUMIFS(export_emploi!$F:$F,export_emploi!$B:$B,$W$9,export_emploi!$C:$C,$W$10,export_emploi!$A:$A,2)/SUMIFS(export_emploi!$G:$G,export_emploi!$B:$B,$W$9,export_emploi!$C:$C,$W$10,export_emploi!$A:$A,2)-1)>150%,"",SUMIFS(export_emploi!$F:$F,export_emploi!$B:$B,$W$9,export_emploi!$C:$C,$W$10,export_emploi!$A:$A,2)/SUMIFS(export_emploi!$G:$G,export_emploi!$B:$B,$W$9,export_emploi!$C:$C,$W$10,export_emploi!$A:$A,2)-1)) -> 0.01864227928 | N43: =SUMIFS(export_emploi!$F:$F,export_emploi!$B:$B,$W13,export_emploi!$C:$C,$W14,export_emploi!$A:$A,2)/SUMIFS(export_emploi!$G:$G,export_emploi!$B:$B,$W13,export_emploi!$C:$C,$W14,export_emploi!$A:$A,2)-1 -> 0.006867800099
B44: =SUMIFS(export_emploi!$D:$D,export_emploi!$B:$B,$W$9,export_emploi!$C:$C,$W$10) -> 4875 | C44: =IF(B44<2,"établissement","établissements") -> établissements | H44: Construction | I44: =SUMIFS(export_emploi!$F:$F,export_emploi!$B:$B,$W$9,export_emploi!$C:$C,$W$10,export_emploi!$A:$A,3) -> 1859 | J44: =IF(B41=0,"",I44/$B$41) -> 0.03446805355 | K44: =SUMIFS(export_emploi!$F:$F,export_emploi!$B:$B,$W13,export_emploi!$C:$C,$W14,export_emploi!$A:$A,3)/SUMIFS(export_emploi!$F:$F,export_emploi!$B:$B,$W13,export_emploi!$C:$C,$W14) -> 0.09212171883 | M44: =IF(SUMIFS(export_emploi!$G:$G,export_emploi!$B:$B,$W$9,export_emploi!$C:$C,$W$10,export_emploi!$A:$A,3)=0,"",IF(ABS(SUMIFS(export_emploi!$F:$F,export_emploi!$B:$B,$W$9,export_emploi!$C:$C,$W$10,export_emploi!$A:$A,3)/SUMIFS(export_emploi!$G:$G,export_emploi!$B:$B,$W$9,export_emploi!$C:$C,$W$10,export_emploi!$A:$A,3)-1)>150%,"",SUMIFS(export_emploi!$F:$F,export_emploi!$B:$B,$W$9,export_emploi!$C:$C,$W$10,export_emploi!$A:$A,3)/SUMIFS(export_emploi!$G:$G,export_emploi!$B:$B,$W$9,export_emploi!$C:$C,$W$10,export_emploi!$A:$A,3)-1)) -> -0.03678756477 | N44: =SUMIFS(export_emploi!$F:$F,export_emploi!$B:$B,$W13,export_emploi!$C:$C,$W14,export_emploi!$A:$A,3)/SUMIFS(export_emploi!$G:$G,export_emploi!$B:$B,$W13,export_emploi!$C:$C,$W14,export_emploi!$A:$A,3)-1 -> 0.0147814583
B45: =IF(SUMIFS(export_emploi!$E:$E,export_emploi!$B:$B,$W$9,export_emploi!$C:$C,$W$10)=0,"",IF(ABS(SUMIFS(export_emploi!$D:$D,export_emploi!$B:$B,$W$9,export_emploi!$C:$C,$W$10)/SUMIFS(export_emploi!$E:$E,export_emploi!$B:$B,$W$9,export_emploi!$C:$C,$W$10)-1)>150%,"",SUMIFS(export_emploi!$D:$D,export_emploi!$B:$B,$W$9,export_emploi!$C:$C,$W$10)/SUMIFS(export_emploi!$E:$E,export_emploi!$B:$B,$W$9,export_emploi!$C:$C,$W$10)-1)) -> 0.01141078838 | C45: =IF(B45="","","en un an") -> en un an | E45: =SUMIFS(export_emploi!$D:$D,export_emploi!$B:$B,$W13,export_emploi!$C:$C,$W14)/SUMIFS(export_emploi!$E:$E,export_emploi!$B:$B,$W13,export_emploi!$C:$C,$W14)-1 -> 0.009995192186 | H45: Commerce | I45: =SUMIFS(export_emploi!$F:$F,export_emploi!$B:$B,$W$9,export_emploi!$C:$C,$W$10,export_emploi!$A:$A,4) -> 6988 | J45: =IF(B41=0,"",I45/$B$41) -> 0.1295657656 | K45: =SUMIFS(export_emploi!$F:$F,export_emploi!$B:$B,$W13,export_emploi!$C:$C,$W14,export_emploi!$A:$A,4)/SUMIFS(export_emploi!$F:$F,export_emploi!$B:$B,$W13,export_emploi!$C:$C,$W14) -> 0.1721747927 | M45: =IF(SUMIFS(export_emploi!$G:$G,export_emploi!$B:$B,$W$9,export_emploi!$C:$C,$W$10,export_emploi!$A:$A,4)=0,"",IF(ABS(SUMIFS(export_emploi!$F:$F,export_emploi!$B:$B,$W$9,export_emploi!$C:$C,$W$10,export_emploi!$A:$A,4)/SUMIFS(export_emploi!$G:$G,export_emploi!$B:$B,$W$9,export_emploi!$C:$C,$W$10,export_emploi!$A:$A,4)-1)>150%,"",SUMIFS(export_emploi!$F:$F,export_emploi!$B:$B,$W$9,export_emploi!$C:$C,$W$10,export_emploi!$A:$A,4)/SUMIFS(export_emploi!$G:$G,export_emploi!$B:$B,$W$9,export_emploi!$C:$C,$W$10,export_emploi!$A:$A,4)-1)) -> -0.01201753146 | N45: =SUMIFS(export_emploi!$F:$F,export_emploi!$B:$B,$W13,export_emploi!$C:$C,$W14,export_emploi!$A:$A,4)/SUMIFS(export_emploi!$G:$G,export_emploi!$B:$B,$W13,export_emploi!$C:$C,$W14,export_emploi!$A:$A,4)-1 -> 0.004710306069
H46: Services | I46: =SUMIFS(export_emploi!$F:$F,export_emploi!$B:$B,$W$9,export_emploi!$C:$C,$W$10,export_emploi!$A:$A,5) -> 42191 | J46: =IF(B41=0,"",I46/$B$41) -> 0.7822709237 | K46: =SUMIFS(export_emploi!$F:$F,export_emploi!$B:$B,$W13,export_emploi!$C:$C,$W14,export_emploi!$A:$A,5)/SUMIFS(export_emploi!$F:$F,export_emploi!$B:$B,$W13,export_emploi!$C:$C,$W14) -> 0.5142598471 | M46: =IF(SUMIFS(export_emploi!$G:$G,export_emploi!$B:$B,$W$9,export_emploi!$C:$C,$W$10,export_emploi!$A:$A,5)=0,"",IF(ABS(SUMIFS(export_emploi!$F:$F,export_emploi!$B:$B,$W$9,export_emploi!$C:$C,$W$10,export_emploi!$A:$A,5)/SUMIFS(export_emploi!$G:$G,export_emploi!$B:$B,$W$9,export_emploi!$C:$C,$W$10,export_emploi!$A:$A,5)-1)>150%,"",SUMIFS(export_emploi!$F:$F,export_emploi!$B:$B,$W$9,export_emploi!$C:$C,$W$10,export_emploi!$A:$A,5)/SUMIFS(export_emploi!$G:$G,export_emploi!$B:$B,$W$9,export_emploi!$C:$C,$W$10,export_emploi!$A:$A,5)-1)) -> 0.01687112868 | N46: =SUMIFS(export_emploi!$F:$F,export_emploi!$B:$B,$W13,export_emploi!$C:$C,$W14,export_emploi!$A:$A,5)/SUMIFS(export_emploi!$G:$G,export_emploi!$B:$B,$W13,export_emploi!$C:$C,$W14,export_emploi!$A:$A,5)-1 -> 0.01626415155
B48: Déclarations préalables à l'embauche (DPAE) | I48: =Z16 -> Cumul annuel glissant 4e trim. 2023 | N48: [Source : ACOSS - MSA]
B50: =SUMIFS(export_dpae!$D:$D,export_dpae!$A:$A,$W$9,export_dpae!$B:$B,$W$10)+SUMIFS(export_dpae!$E:$E,export_dpae!$A:$A,$W$9,export_dpae!$B:$B,$W$10) -> 97960 | C50: DPAE, hors intérim | G50: Normandie | M50: Normandie
B51: =IF((SUMIFS(export_dpae!$M:$M,export_dpae!$A:$A,$W$9,export_dpae!$B:$B,$W$10)+SUMIFS(export_dpae!$N:$N,export_dpae!$A:$A,$W$9,export_dpae!$B:$B,$W$10))=0,"",IF(ABS((SUMIFS(export_dpae!$D:$D,export_dpae!$A:$A,$W$9,export_dpae!$B:$B,$W$10)+SUMIFS(export_dpae!$E:$E,export_dpae!$A:$A,$W$9,export_dpae!$B:$B,$W$10))/(SUMIFS(export_dpae!$M:$M,export_dpae!$A:$A,$W$9,export_dpae!$B:$B,$W$10)+SUMIFS(export_dpae!$N:$N,export_dpae!$A:$A,$W$9,export_dpae!$B:$B,$W$10))-1)>150%,"",(SUMIFS(export_dpae!$D:$D,export_dpae!$A:$A,$W$9,export_dpae!$B:$B,$W$10)+SUMIFS(export_dpae!$E:$E,export_dpae!$A:$A,$W$9,export_dpae!$B:$B,$W$10))/(SUMIFS(export_dpae!$M:$M,export_dpae!$A:$A,$W$9,export_dpae!$B:$B,$W$10)+SUMIFS(export_dpae!$N:$N,export_dpae!$A:$A,$W$9,export_dpae!$B:$B,$W$10))-1)) -> 0.05300497694 | C51: =IF(B51="","","en un an") -> en un an | G51: =(SUMIFS(export_dpae!$D:$D,export_dpae!$A:$A,$W13,export_dpae!$B:$B,$W14)+SUMIFS(export_dpae!$E:$E,export_dpae!$A:$A,$W13,export_dpae!$B:$B,$W14))/(SUMIFS(export_dpae!$M:$M,export_dpae!$A:$A,$W13,export_dpae!$B:$B,$W14)+SUMIFS(export_dpae!$N:$N,export_dpae!$A:$A,$W13,export_dpae!$B:$B,$W14))-1 -> -0.002020082365 | J51: Agriculture | K51: =IF((SUMIFS(export_dpae!$D:$D,export_dpae!$A:$A,$W$9,export_dpae!$B:$B,$W$10)+SUMIFS(export_dpae!$E:$E,export_dpae!$A:$A,$W$9,export_dpae!$B:$B,$W$10))=0,"-",SUMIFS(export_dpae!$H:$H,export_dpae!$A:$A,$W$9,export_dpae!$B:$B,$W$10)/(SUMIFS(export_dpae!$D:$D,export_dpae!$A:$A,$W$9,export_dpae!$B:$B,$W$10)+SUMIFS(export_dpae!$E:$E,export_dpae!$A:$A,$W$9,export_dpae!$B:$B,$W$10))) -> 0.0001224989792 | M51: =SUMIFS(export_dpae!$H:$H,export_dpae!$A:$A,$W13,export_dpae!$B:$B,$W14)/(SUMIFS(export_dpae!$D:$D,export_dpae!$A:$A,$W13,export_dpae!$B:$B,$W14)+SUMIFS(export_dpae!$E:$E,export_dpae!$A:$A,$W13,export_dpae!$B:$B,$W14)) -> 0.02280002878
K52: =IF(SUMIFS(export_dpae!$Q:$Q,export_dpae!$A:$A,$W$9,export_dpae!$B:$B,$W$10)=0,"",IF(ABS(SUMIFS(export_dpae!$H:$H,export_dpae!$A:$A,$W$9,export_dpae!$B:$B,$W$10)/SUMIFS(export_dpae!$Q:$Q,export_dpae!$A:$A,$W$9,export_dpae!$B:$B,$W$10)-1)>150%,"",SUMIFS(export_dpae!$H:$H,export_dpae!$A:$A,$W$9,export_dpae!$B:$B,$W$10)/SUMIFS(export_dpae!$Q:$Q,export_dpae!$A:$A,$W$9,export_dpae!$B:$B,$W$10)-1)) -> -0.2 | M52: =SUMIFS(export_dpae!$H:$H,export_dpae!$A:$A,$W13,export_dpae!$B:$B,$W14)/SUMIFS(export_dpae!$Q:$Q,export_dpae!$A:$A,$W13,export_dpae!$B:$B,$W14)-1 -> -0.001024388322
B54: =IF((SUMIFS(export_dpae!$D:$D,export_dpae!$A:$A,$W$9,export_dpae!$B:$B,$W$10)+SUMIFS(export_dpae!$E:$E,export_dpae!$A:$A,$W$9,export_dpae!$B:$B,$W$10))=0,"-",SUMIFS(export_dpae!$D:$D,export_dpae!$A:$A,$W$9,export_dpae!$B:$B,$W$10)/(SUMIFS(export_dpae!$D:$D,export_dpae!$A:$A,$W$9,export_dpae!$B:$B,$W$10)+SUMIFS(export_dpae!$E:$E,export_dpae!$A:$A,$W$9,export_dpae!$B:$B,$W$10))) -> 0.1829420171 | C54: CDI et CDD de plus de 6 mois | G54: =SUMIFS(export_dpae!$D:$D,export_dpae!$A:$A,$W13,export_dpae!$B:$B,$W14)/(SUMIFS(export_dpae!$D:$D,export_dpae!$A:$A,$W13,export_dpae!$B:$B,$W14)+SUMIFS(export_dpae!$E:$E,export_dpae!$A:$A,$W13,export_dpae!$B:$B,$W14)) -> 0.2323282916 | J54: Industrie | K54: =IF((SUMIFS(export_dpae!$D:$D,export_dpae!$A:$A,$W$9,export_dpae!$B:$B,$W$10)+SUMIFS(export_dpae!$E:$E,export_dpae!$A:$A,$W$9,export_dpae!$B:$B,$W$10))=0,"-",SUMIFS(export_dpae!$I:$I,export_dpae!$A:$A,$W$9,export_dpae!$B:$B,$W$10)/(SUMIFS(export_dpae!$D:$D,export_dpae!$A:$A,$W$9,export_dpae!$B:$B,$W$10)+SUMIFS(export_dpae!$E:$E,export_dpae!$A:$A,$W$9,export_dpae!$B:$B,$W$10))) -> 0.01015720702 | M54: =SUMIFS(export_dpae!$I:$I,export_dpae!$A:$A,$W13,export_dpae!$B:$B,$W14)/(SUMIFS(export_dpae!$D:$D,export_dpae!$A:$A,$W13,export_dpae!$B:$B,$W14)+SUMIFS(export_dpae!$E:$E,export_dpae!$A:$A,$W13,export_dpae!$B:$B,$W14)) -> 0.04384655504
C55: =IF(SUMIFS(export_dpae!$M:$M,export_dpae!$A:$A,$W$9,export_dpae!$B:$B,$W$10)=0,"",IF(ABS(SUMIFS(export_dpae!$D:$D,export_dpae!$A:$A,$W$9,export_dpae!$B:$B,$W$10)/SUMIFS(export_dpae!$M:$M,export_dpae!$A:$A,$W$9,export_dpae!$B:$B,$W$10)-1)>150%,"",SUMIFS(export_dpae!$D:$D,export_dpae!$A:$A,$W$9,export_dpae!$B:$B,$W$10)/SUMIFS(export_dpae!$M:$M,export_dpae!$A:$A,$W$9,export_dpae!$B:$B,$W$10)-1)) -> 0.02399862865 | D55: =IF(C55="","","en un an") -> en un an | G55: =SUMIFS(export_dpae!$D:$D,export_dpae!$A:$A,$W13,export_dpae!$B:$B,$W14)/SUMIFS(export_dpae!$M:$M,export_dpae!$A:$A,$W13,export_dpae!$B:$B,$W14)-1 -> -0.008545991788 | K55: =IF(SUMIFS(export_dpae!$R:$R,export_dpae!$A:$A,$W$9,export_dpae!$B:$B,$W$10)=0,"",IF(ABS(SUMIFS(export_dpae!$I:$I,export_dpae!$A:$A,$W$9,export_dpae!$B:$B,$W$10)/SUMIFS(export_dpae!$R:$R,export_dpae!$A:$A,$W$9,export_dpae!$B:$B,$W$10)-1)>150%,"",SUMIFS(export_dpae!$I:$I,export_dpae!$A:$A,$W$9,export_dpae!$B:$B,$W$10)/SUMIFS(export_dpae!$R:$R,export_dpae!$A:$A,$W$9,export_dpae!$B:$B,$W$10)-1)) -> -0.02737047898 | M55: =SUMIFS(export_dpae!$I:$I,export_dpae!$A:$A,$W13,export_dpae!$B:$B,$W14)/SUMIFS(export_dpae!$R:$R,export_dpae!$A:$A,$W13,export_dpae!$B:$B,$W14)-1 -> -0.03996849774
B57: =IF((SUMIFS(export_dpae!$D:$D,export_dpae!$A:$A,$W$9,export_dpae!$B:$B,$W$10)+SUMIFS(export_dpae!$E:$E,export_dpae!$A:$A,$W$9,export_dpae!$B:$B,$W$10))=0,"-",SUMIFS(export_dpae!$E:$E,export_dpae!$A:$A,$W$9,export_dpae!$B:$B,$W$10)/(SUMIFS(export_dpae!$D:$D,export_dpae!$A:$A,$W$9,export_dpae!$B:$B,$W$10)+SUMIFS(export_dpae!$E:$E,export_dpae!$A:$A,$W$9,export_dpae!$B:$B,$W$10))) -> 0.8170579829 | C57: CDD de 6 mois ou moins | G57: =SUMIFS(export_dpae!$E:$E,export_dpae!$A:$A,$W13,export_dpae!$B:$B,$W14)/(SUMIFS(export_dpae!$D:$D,export_dpae!$A:$A,$W13,export_dpae!$B:$B,$W14)+SUMIFS(export_dpae!$E:$E,export_dpae!$A:$A,$W13,export_dpae!$B:$B,$W14)) -> 0.7676717084 | J57: Construction | K57: =IF((SUMIFS(export_dpae!$D:$D,export_dpae!$A:$A,$W$9,export_dpae!$B:$B,$W$10)+SUMIFS(export_dpae!$E:$E,export_dpae!$A:$A,$W$9,export_dpae!$B:$B,$W$10))=0,"-",SUMIFS(export_dpae!$J:$J,export_dpae!$A:$A,$W$9,export_dpae!$B:$B,$W$10)/(SUMIFS(export_dpae!$D:$D,export_dpae!$A:$A,$W$9,export_dpae!$B:$B,$W$10)+SUMIFS(export_dpae!$E:$E,export_dpae!$A:$A,$W$9,export_dpae!$B:$B,$W$10))) -> 0.01064720294 | M57: =SUMIFS(export_dpae!$J:$J,export_dpae!$A:$A,$W13,export_dpae!$B:$B,$W14)/(SUMIFS(export_dpae!$D:$D,export_dpae!$A:$A,$W13,export_dpae!$B:$B,$W14)+SUMIFS(export_dpae!$E:$E,export_dpae!$A:$A,$W13,export_dpae!$B:$B,$W14)) -> 0.02758034638
C58: =IF(SUMIFS(export_dpae!$N:$N,export_dpae!$A:$A,$W$9,export_dpae!$B:$B,$W$10)=0,"",IF(ABS(SUMIFS(export_dpae!$E:$E,export_dpae!$A:$A,$W$9,export_dpae!$B:$B,$W$10)/SUMIFS(export_dpae!$N:$N,export_dpae!$A:$A,$W$9,export_dpae!$B:$B,$W$10)-1)>150%,"",SUMIFS(export_dpae!$E:$E,export_dpae!$A:$A,$W$9,export_dpae!$B:$B,$W$10)/SUMIFS(export_dpae!$N:$N,export_dpae!$A:$A,$W$9,export_dpae!$B:$B,$W$10)-1)) -> 0.05972619426 | D58: =IF(C58="","","en un an") -> en un an | G58: =SUMIFS(export_dpae!$E:$E,export_dpae!$A:$A,$W13,export_dpae!$B:$B,$W14)/SUMIFS(export_dpae!$N:$N,export_dpae!$A:$A,$W13,export_dpae!$B:$B,$W14)-1 -> -2.81122287e-05 | K58: =IF(SUMIFS(export_dpae!$S:$S,export_dpae!$A:$A,$W$9,export_dpae!$B:$B,$W$10)=0,"",IF(ABS(SUMIFS(export_dpae!$J:$J,export_dpae!$A:$A,$W$9,export_dpae!$B:$B,$W$10)/SUMIFS(export_dpae!$S:$S,export_dpae!$A:$A,$W$9,export_dpae!$B:$B,$W$10)-1)>150%,"",SUMIFS(export_dpae!$J:$J,export_dpae!$A:$A,$W$9,export_dpae!$B:$B,$W$10)/SUMIFS(export_dpae!$S:$S,export_dpae!$A:$A,$W$9,export_dpae!$B:$B,$W$10)-1)) -> -0.136589404 | M58: =SUMIFS(export_dpae!$J:$J,export_dpae!$A:$A,$W13,export_dpae!$B:$B,$W14)/SUMIFS(export_dpae!$S:$S,export_dpae!$A:$A,$W13,export_dpae!$B:$B,$W14)-1 -> -0.06242166723
J60: Commerce | K60: =IF((SUMIFS(export_dpae!$D:$D,export_dpae!$A:$A,$W$9,export_dpae!$B:$B,$W$10)+SUMIFS(export_dpae!$E:$E,export_dpae!$A:$A,$W$9,export_dpae!$B:$B,$W$10))=0,"-",SUMIFS(export_dpae!$K:$K,export_dpae!$A:$A,$W$9,export_dpae!$B:$B,$W$10)/(SUMIFS(export_dpae!$D:$D,export_dpae!$A:$A,$W$9,export_dpae!$B:$B,$W$10)+SUMIFS(export_dpae!$E:$E,export_dpae!$A:$A,$W$9,export_dpae!$B:$B,$W$10))) -> 0.06657819518 | M60: =SUMIFS(export_dpae!$K:$K,export_dpae!$A:$A,$W13,export_dpae!$B:$B,$W14)/(SUMIFS(export_dpae!$D:$D,export_dpae!$A:$A,$W13,export_dpae!$B:$B,$W14)+SUMIFS(export_dpae!$E:$E,export_dpae!$A:$A,$W13,export_dpae!$B:$B,$W14)) -> 0.09943078611
B61: =IF((SUMIFS(export_dpae!$D:$D,export_dpae!$A:$A,$W$9,export_dpae!$B:$B,$W$10)+SUMIFS(export_dpae!$E:$E,export_dpae!$A:$A,$W$9,export_dpae!$B:$B,$W$10))=0,"-",SUMIFS(export_dpae!$F:$F,export_dpae!$A:$A,$W$9,export_dpae!$B:$B,$W$10)/(SUMIFS(export_dpae!$D:$D,export_dpae!$A:$A,$W$9,export_dpae!$B:$B,$W$10)+SUMIFS(export_dpae!$E:$E,export_dpae!$A:$A,$W$9,export_dpae!$B:$B,$W$10))) -> 0.638321764 | C61: bénéficient à un demandeur d'emploi | G61: =SUMIFS(export_dpae!$F:$F,export_dpae!$A:$A,$W13,export_dpae!$B:$B,$W14)/(SUMIFS(export_dpae!$D:$D,export_dpae!$A:$A,$W13,export_dpae!$B:$B,$W14)+SUMIFS(export_dpae!$E:$E,export_dpae!$A:$A,$W13,export_dpae!$B:$B,$W14)) -> 0.5656871032 | K61: =IF(SUMIFS(export_dpae!$T:$T,export_dpae!$A:$A,$W$9,export_dpae!$B:$B,$W$10)=0,"",IF(ABS(SUMIFS(export_dpae!$K:$K,export_dpae!$A:$A,$W$9,export_dpae!$B:$B,$W$10)/SUMIFS(export_dpae!$T:$T,export_dpae!$A:$A,$W$9,export_dpae!$B:$B,$W$10)-1)>150%,"",SUMIFS(export_dpae!$K:$K,export_dpae!$A:$A,$W$9,export_dpae!$B:$B,$W$10)/SUMIFS(export_dpae!$T:$T,export_dpae!$A:$A,$W$9,export_dpae!$B:$B,$W$10)-1)) -> -0.002752293578 | M61: =SUMIFS(export_dpae!$K:$K,export_dpae!$A:$A,$W13,export_dpae!$B:$B,$W14)/SUMIFS(export_dpae!$T:$T,export_dpae!$A:$A,$W13,export_dpae!$B:$B,$W14)-1 -> -0.05297281557
J63: Services | K63: =IF((SUMIFS(export_dpae!$D:$D,export_dpae!$A:$A,$W$9,export_dpae!$B:$B,$W$10)+SUMIFS(export_dpae!$E:$E,export_dpae!$A:$A,$W$9,export_dpae!$B:$B,$W$10))=0,"-",SUMIFS(export_dpae!$L:$L,export_dpae!$A:$A,$W$9,export_dpae!$B:$B,$W$10)/(SUMIFS(export_dpae!$D:$D,export_dpae!$A:$A,$W$9,export_dpae!$B:$B,$W$10)+SUMIFS(export_dpae!$E:$E,export_dpae!$A:$A,$W$9,export_dpae!$B:$B,$W$10))) -> 0.9124948959 | M63: =SUMIFS(export_dpae!$L:$L,export_dpae!$A:$A,$W13,export_dpae!$B:$B,$W14)/(SUMIFS(export_dpae!$D:$D,export_dpae!$A:$A,$W13,export_dpae!$B:$B,$W14)+SUMIFS(export_dpae!$E:$E,export_dpae!$A:$A,$W13,export_dpae!$B:$B,$W14)) -> 0.8063422837
B64: =IF(SUMIFS(export_dpae!$G:$G,export_dpae!$A:$A,$W$9,export_dpae!$B:$B,$W$10)<5,"",SUMIFS(export_dpae!$G:$G,export_dpae!$A:$A,$W$9,export_dpae!$B:$B,$W$10)) -> 115702 | C64: =IF(B64="","Pas d'agence intérimaire sur le territoire","DPAE - contrats en intérim") -> DPAE - contrats en intérim | K64: =IF(SUMIFS(export_dpae!$U:$U,export_dpae!$A:$A,$W$9,export_dpae!$B:$B,$W$10)=0,"",IF(ABS(SUMIFS(export_dpae!$L:$L,export_dpae!$A:$A,$W$9,export_dpae!$B:$B,$W$10)/SUMIFS(export_dpae!$U:$U,export_dpae!$A:$A,$W$9,export_dpae!$B:$B,$W$10)-1)>150%,"",SUMIFS(export_dpae!$L:$L,export_dpae!$A:$A,$W$9,export_dpae!$B:$B,$W$10)/SUMIFS(export_dpae!$U:$U,export_dpae!$A:$A,$W$9,export_dpae!$B:$B,$W$10)-1)) -> 0.0610733236 | M64: =SUMIFS(export_dpae!$L:$L,export_dpae!$A:$A,$W13,export_dpae!$B:$B,$W14)/SUMIFS(export_dpae!$U:$U,export_dpae!$A:$A,$W13,export_dpae!$B:$B,$W14)-1 -> 0.009038235834
B65: =IF(B64="","",SUMIFS(export_dpae!$G:$G,export_dpae!$A:$A,$W$9,export_dpae!$B:$B,$W$10)/SUMIFS(export_dpae!$P:$P,export_dpae!$A:$A,$W$9,export_dpae!$B:$B,$W$10)-1) -> 0.02479119244 | C65: =IF(B64="","","en un an") -> en un an | G65: =IF(B64="","",SUMIFS(export_dpae!$G:$G,export_dpae!$A:$A,$W13,export_dpae!$B:$B,$W14)/SUMIFS(export_dpae!$P:$P,export_dpae!$A:$A,$W13,export_dpae!$B:$B,$W14)-1) -> -0.05251483323
B67: Les retours à l'emploi | F67: =Z17 -> Cumul annuel glissant 3e trim. 2023
B68: Demandeurs d’emploi en cat, A ou B ayant une DPAE d’un mois ou plus, sortants des listes en déclarant une reprise d’emploi, ou basculant sous certaines conditions en cat, C ou E
M69: Proportion | N69: Proportion Normandie
M70: Proportion
B71: =SUMIFS(export_re!D:D,export_re!A:A,W9,export_re!B:B,W10) -> 8657 | C71: =IF(B71<2,"retour à l'emploi","retours à l'emploi") -> retours à l'emploi | F71: Normandie | L71: Reprises d'activité réduite de plus de 78h | M71: =IF(SUMIFS(export_re!$D:$D,export_re!$A:$A,$W$9,export_re!$B:$B,$W$10)=0,"",SUMIFS(export_re!$H:$H,export_re!$A:$A,$W$9,export_re!$B:$B,$W$10)/SUMIFS(export_re!$D:$D,export_re!$A:$A,$W$9,export_re!$B:$B,$W$10)) -> 0.3144276308 | N71: =SUMIFS(export_re!$H:$H,export_re!$A:$A,$W$13,export_re!$B:$B,$W$14)/SUMIFS(export_re!$D:$D,export_re!$A:$A,$W$13,export_re!$B:$B,$W$14) -> 0.3715384574
B72: =IF(SUMIFS(export_re!$E:$E,export_re!$A:$A,$W$9,export_re!$B:$B,$W$10)=0,"",IF(ABS(SUMIFS(export_re!$D:$D,export_re!$A:$A,$W$9,export_re!$B:$B,$W$10)/SUMIFS(export_re!$E:$E,export_re!$A:$A,$W$9,export_re!$B:$B,$W$10)-1)>150%,"",SUMIFS(export_re!$D:$D,export_re!$A:$A,$W$9,export_re!$B:$B,$W$10)/SUMIFS(export_re!$E:$E,export_re!$A:$A,$W$9,export_re!$B:$B,$W$10)-1)) -> -0.04532421703 | C72: =IF(B72="","","en un an") -> en un an | F72: =SUMIFS(export_re!$D:$D,export_re!$A:$A,$W$13,export_re!$B:$B,$W$14)/SUMIFS(export_re!$E:$E,export_re!$A:$A,$W$13,export_re!$B:$B,$W$14)-1 -> -0.07346942821 | L72: DPAE CDI ou CDD de plus de 6 mois | M72: =IF(SUMIFS(export_re!$D:$D,export_re!$A:$A,$W$9,export_re!$B:$B,$W$10)=0,"",SUMIFS(export_re!$F:$F,export_re!$A:$A,$W$9,export_re!$B:$B,$W$10)/SUMIFS(export_re!$D:$D,export_re!$A:$A,$W$9,export_re!$B:$B,$W$10)) -> 0.3922837011 | N72: =SUMIFS(export_re!$F:$F,export_re!$A:$A,$W$13,export_re!$B:$B,$W$14)/SUMIFS(export_re!$D:$D,export_re!$A:$A,$W$13,export_re!$B:$B,$W$14) -> 0.3333886075
L73: DPAE CDD de 1 à 6 mois | M73: =IF(SUMIFS(export_re!$D:$D,export_re!$A:$A,$W$9,export_re!$B:$B,$W$10)=0,"",SUMIFS(export_re!$G:$G,export_re!$A:$A,$W$9,export_re!$B:$B,$W$10)/SUMIFS(export_re!$D:$D,export_re!$A:$A,$W$9,export_re!$B:$B,$W$10)) -> 0.2197065958 | N73: =SUMIFS(export_re!$G:$G,export_re!$A:$A,$W$13,export_re!$B:$B,$W$14)/SUMIFS(export_re!$D:$D,export_re!$A:$A,$W$13,export_re!$B:$B,$W$14) -> 0.2205330923
N75: ="[Chiffres-clé "&B21&" - "&Z10&"]" -> [Chiffres-clé Commune de Rouen - Février 2024] | Y75: 15.00006 | Z75: Construction, bâtiment et travaux publics
B76: La demande d'emploi | N76: [Source : France Travail / STMT]
B79: Demandeurs d'emploi inscrits à France Travail | H79: =Z19 -> Au 31 décembre 2023 | J79: (Données brutes)
J80: Les données relatives à la demande d'emploi sont arrondies à la dizaine. Pour cette raison, la somme des valeurs d'une colonne peut différer du total affiché.
E81: Proportion | F81: Proportion Normandie | G81: Évolution annuelle | H81: Évol. Ann. Normandie | Z81: Services à la personne et à la collectivité
G82: évol | H82: Normandie | Z82: Spectacle
B84: =ROUND(SUMIFS(export_defm!$D:$D,export_defm!$A:$A,$W$9,export_defm!$B:$B,$W$10),-1) -> 6900 | C84: en catégorie A | E84: =IF((SUMIFS(export_defm!$G:$G,export_defm!$A:$A,$W$9,export_defm!$B:$B,$W$10)+SUMIFS(export_defm!$H:$H,export_defm!$A:$A,$W$9,export_defm!$B:$B,$W$10)+SUMIFS(export_defm!$I:$I,export_defm!$A:$A,$W$9,export_defm!$B:$B,$W$10))=0,"",SUMIFS(export_defm!$D:$D,export_defm!$A:$A,$W$9,export_defm!$B:$B,$W$10)/(SUMIFS(export_defm!$G:$G,export_defm!$A:$A,$W$9,export_defm!$B:$B,$W$10)+SUMIFS(export_defm!$H:$H,export_defm!$A:$A,$W$9,export_defm!$B:$B,$W$10)+SUMIFS(export_defm!$I:$I,export_defm!$A:$A,$W$9,export_defm!$B:$B,$W$10))) -> 0.5082486375 | F84: =SUMIFS(export_defm!$D:$D,export_defm!$A:$A,$W13,export_defm!$B:$B,$W14)/(SUMIFS(export_defm!$G:$G,export_defm!$A:$A,$W13,export_defm!$B:$B,$W14)+SUMIFS(export_defm!$H:$H,export_defm!$A:$A,$W13,export_defm!$B:$B,$W14)+SUMIFS(export_defm!$I:$I,export_defm!$A:$A,$W13,export_defm!$B:$B,$W14)) -> 0.4642580663 | G84: =IF(SUMIFS(export_defm!$U:$U,export_defm!$A:$A,$W$9,export_defm!$B:$B,$W$10)=0,"",IF(ABS(SUMIFS(export_defm!$D:$D,export_defm!$A:$A,$W$9,export_defm!$B:$B,$W$10)/SUMIFS(export_defm!$U:$U,export_defm!$A:$A,$W$9,export_defm!$B:$B,$W$10)-1)>150%,"",SUMIFS(export_defm!$D:$D,export_defm!$A:$A,$W$9,export_defm!$B:$B,$W$10)/SUMIFS(export_defm!$U:$U,export_defm!$A:$A,$W$9,export_defm!$B:$B,$W$10)-1)) -> 0.04766965235 | H84: =SUMIFS(export_defm!$D:$D,export_defm!$A:$A,$W13,export_defm!$B:$B,$W14)/SUMIFS(export_defm!$U:$U,export_defm!$A:$A,$W13,export_defm!$B:$B,$W14)-1 -> 0.02030686625 | J84: =ROUND(SUMIFS(export_defm!$G:$G,export_defm!$A:$A,$W$9,export_defm!$B:$B,$W$10),-1) -> 11960 | L84: en catégories A, B, C | Z84: Support à l'entreprise
B85: =ROUND(SUMIFS(export_defm!$E:$E,export_defm!$A:$A,$W$9,export_defm!$B:$B,$W$10),-1) -> 1980 | C85: en catégorie B | E85: =IF((SUMIFS(export_defm!$G:$G,export_defm!$A:$A,$W$9,export_defm!$B:$B,$W$10)+SUMIFS(export_defm!$H:$H,export_defm!$A:$A,$W$9,export_defm!$B:$B,$W$10)+SUMIFS(export_defm!$I:$I,export_defm!$A:$A,$W$9,export_defm!$B:$B,$W$10))=0,"",SUMIFS(export_defm!$E:$E,export_defm!$A:$A,$W$9,export_defm!$B:$B,$W$10)/(SUMIFS(export_defm!$G:$G,export_defm!$A:$A,$W$9,export_defm!$B:$B,$W$10)+SUMIFS(export_defm!$H:$H,export_defm!$A:$A,$W$9,export_defm!$B:$B,$W$10)+SUMIFS(export_defm!$I:$I,export_defm!$A:$A,$W$9,export_defm!$B:$B,$W$10))) -> 0.1454558845 | F85: =SUMIFS(export_defm!$E:$E,export_defm!$A:$A,$W13,export_defm!$B:$B,$W14)/(SUMIFS(export_defm!$G:$G,export_defm!$A:$A,$W13,export_defm!$B:$B,$W14)+SUMIFS(export_defm!$H:$H,export_defm!$A:$A,$W13,export_defm!$B:$B,$W14)+SUMIFS(export_defm!$I:$I,export_defm!$A:$A,$W13,export_defm!$B:$B,$W14)) -> 0.1355139523 | G85: =IF(SUMIFS(export_defm!$V:$V,export_defm!$A:$A,$W$9,export_defm!$B:$B,$W$10)=0,"",IF(ABS(SUMIFS(export_defm!$E:$E,export_defm!$A:$A,$W$9,export_defm!$B:$B,$W$10)/SUMIFS(export_defm!$V:$V,export_defm!$A:$A,$W$9,export_defm!$B:$B,$W$10)-1)>150%,"",SUMIFS(export_defm!$E:$E,export_defm!$A:$A,$W$9,export_defm!$B:$B,$W$10)/SUMIFS(export_defm!$V:$V,export_defm!$A:$A,$W$9,export_defm!$B:$B,$W$10)-1)) -> 0.0917634052 | H85: =SUMIFS(export_defm!$E:$E,export_defm!$A:$A,$W13,export_defm!$B:$B,$W14)/SUMIFS(export_defm!$V:$V,export_defm!$A:$A,$W13,export_defm!$B:$B,$W14)-1 -> 0.006222808174 | J85: =IF(SUMIFS(export_defm!$X:$X,export_defm!$A:$A,$W$9,export_defm!$B:$B,$W$10)=0,"",IF(ABS(SUMIFS(export_defm!$G:$G,export_defm!$A:$A,$W$9,export_defm!$B:$B,$W$10)/SUMIFS(export_defm!$X:$X,export_defm!$A:$A,$W$9,export_defm!$B:$B,$W$10)-1)>150%,"",SUMIFS(export_defm!$G:$G,export_defm!$A:$A,$W$9,export_defm!$B:$B,$W$10)/SUMIFS(export_defm!$X:$X,export_defm!$A:$A,$W$9,export_defm!$B:$B,$W$10)-1)) -> 0.04921484341 | L85: =IF(J85="","","en un an") -> en un an
B86: =ROUND(SUMIFS(export_defm!$F:$F,export_defm!$A:$A,$W$9,export_defm!$B:$B,$W$10),-1) -> 3080 | C86: en catégorie C | E86: =IF((SUMIFS(export_defm!$G:$G,export_defm!$A:$A,$W$9,export_defm!$B:$B,$W$10)+SUMIFS(export_defm!$H:$H,export_defm!$A:$A,$W$9,export_defm!$B:$B,$W$10)+SUMIFS(export_defm!$I:$I,export_defm!$A:$A,$W$9,export_defm!$B:$B,$W$10))=0,"",SUMIFS(export_defm!$F:$F,export_defm!$A:$A,$W$9,export_defm!$B:$B,$W$10)/(SUMIFS(export_defm!$G:$G,export_defm!$A:$A,$W$9,export_defm!$B:$B,$W$10)+SUMIFS(export_defm!$H:$H,export_defm!$A:$A,$W$9,export_defm!$B:$B,$W$10)+SUMIFS(export_defm!$I:$I,export_defm!$A:$A,$W$9,export_defm!$B:$B,$W$10))) -> 0.2271321255 | F86: =SUMIFS(export_defm!$F:$F,export_defm!$A:$A,$W13,export_defm!$B:$B,$W14)/(SUMIFS(export_defm!$G:$G,export_defm!$A:$A,$W13,export_defm!$B:$B,$W14)+SUMIFS(export_defm!$H:$H,export_defm!$A:$A,$W13,export_defm!$B:$B,$W14)+SUMIFS(export_defm!$I:$I,export_defm!$A:$A,$W13,export_defm!$B:$B,$W14)) -> 0.2777572602 | G86: =IF(SUMIFS(export_defm!$W:$W,export_defm!$A:$A,$W$9,export_defm!$B:$B,$W$10)=0,"",IF(ABS(SUMIFS(export_defm!$F:$F,export_defm!$A:$A,$W$9,export_defm!$B:$B,$W$10)/SUMIFS(export_defm!$W:$W,export_defm!$A:$A,$W$9,export_defm!$B:$B,$W$10)-1)>150%,"",SUMIFS(export_defm!$F:$F,export_defm!$A:$A,$W$9,export_defm!$B:$B,$W$10)/SUMIFS(export_defm!$W:$W,export_defm!$A:$A,$W$9,export_defm!$B:$B,$W$10)-1)) -> 0.02697302697 | H86: =SUMIFS(export_defm!$F:$F,export_defm!$A:$A,$W13,export_defm!$B:$B,$W14)/SUMIFS(export_defm!$W:$W,export_defm!$A:$A,$W13,export_defm!$B:$B,$W14)-1 -> -0.006730415127 | K86: =SUMIFS(export_defm!$G:$G,export_defm!$A:$A,$W13,export_defm!$B:$B,$W14)/SUMIFS(export_defm!$X:$X,export_defm!$A:$A,$W13,export_defm!$B:$B,$W14)-1 -> 0.0094278735 | L86: en Normandie
B87: =ROUND(SUMIFS(export_defm!$H:$H,export_defm!$A:$A,$W$9,export_defm!$B:$B,$W$10),-1) -> 980 | C87: en catégorie D | E87: =IF((SUMIFS(export_defm!$G:$G,export_defm!$A:$A,$W$9,export_defm!$B:$B,$W$10)+SUMIFS(export_defm!$H:$H,export_defm!$A:$A,$W$9,export_defm!$B:$B,$W$10)+SUMIFS(export_defm!$I:$I,export_defm!$A:$A,$W$9,export_defm!$B:$B,$W$10))=0,"",SUMIFS(export_defm!$H:$H,export_defm!$A:$A,$W$9,export_defm!$B:$B,$W$10)/(SUMIFS(export_defm!$G:$G,export_defm!$A:$A,$W$9,export_defm!$B:$B,$W$10)+SUMIFS(export_defm!$H:$H,export_defm!$A:$A,$W$9,export_defm!$B:$B,$W$10)+SUMIFS(export_defm!$I:$I,export_defm!$A:$A,$W$9,export_defm!$B:$B,$W$10))) -> 0.07247017234 | F87: =SUMIFS(export_defm!$H:$H,export_defm!$A:$A,$W13,export_defm!$B:$B,$W14)/(SUMIFS(export_defm!$G:$G,export_defm!$A:$A,$W13,export_defm!$B:$B,$W14)+SUMIFS(export_defm!$H:$H,export_defm!$A:$A,$W13,export_defm!$B:$B,$W14)+SUMIFS(export_defm!$I:$I,export_defm!$A:$A,$W13,export_defm!$B:$B,$W14)) -> 0.06144842721 | G87: =IF(SUMIFS(export_defm!$Y:$Y,export_defm!$A:$A,$W$9,export_defm!$B:$B,$W$10)=0,"",IF(ABS(SUMIFS(export_defm!$H:$H,export_defm!$A:$A,$W$9,export_defm!$B:$B,$W$10)/SUMIFS(export_defm!$Y:$Y,export_defm!$A:$A,$W$9,export_defm!$B:$B,$W$10)-1)>150%,"",SUMIFS(export_defm!$H:$H,export_defm!$A:$A,$W$9,export_defm!$B:$B,$W$10)/SUMIFS(export_defm!$Y:$Y,export_defm!$A:$A,$W$9,export_defm!$B:$B,$W$10)-1)) -> -0.0390625 | H87: =SUMIFS(export_defm!$H:$H,export_defm!$A:$A,$W13,export_defm!$B:$B,$W14)/SUMIFS(export_defm!$Y:$Y,export_defm!$A:$A,$W13,export_defm!$B:$B,$W14)-1 -> -0.05152378864 | Z87: Transport et logistique
B88: =ROUND(SUMIFS(export_defm!$I:$I,export_defm!$A:$A,$W$9,export_defm!$B:$B,$W$10),-1) -> 630 | C88: en catégorie E | E88: =IF((SUMIFS(export_defm!$G:$G,export_defm!$A:$A,$W$9,export_defm!$B:$B,$W$10)+SUMIFS(export_defm!$H:$H,export_defm!$A:$A,$W$9,export_defm!$B:$B,$W$10)+SUMIFS(export_defm!$I:$I,export_defm!$A:$A,$W$9,export_defm!$B:$B,$W$10))=0,"",SUMIFS(export_defm!$I:$I,export_defm!$A:$A,$W$9,export_defm!$B:$B,$W$10)/(SUMIFS(export_defm!$G:$G,export_defm!$A:$A,$W$9,export_defm!$B:$B,$W$10)+SUMIFS(export_defm!$H:$H,export_defm!$A:$A,$W$9,export_defm!$B:$B,$W$10)+SUMIFS(export_defm!$I:$I,export_defm!$A:$A,$W$9,export_defm!$B:$B,$W$10))) -> 0.04669318014 | F88: =SUMIFS(export_defm!$I:$I,export_defm!$A:$A,$W13,export_defm!$B:$B,$W14)/(SUMIFS(export_defm!$G:$G,export_defm!$A:$A,$W13,export_defm!$B:$B,$W14)+SUMIFS(export_defm!$H:$H,export_defm!$A:$A,$W13,export_defm!$B:$B,$W14)+SUMIFS(export_defm!$I:$I,export_defm!$A:$A,$W13,export_defm!$B:$B,$W14)) -> 0.06102229388 | G88: =IF(SUMIFS(export_defm!$Z:$Z,export_defm!$A:$A,$W$9,export_defm!$B:$B,$W$10)=0,"",IF(ABS(SUMIFS(export_defm!$I:$I,export_defm!$A:$A,$W$9,export_defm!$B:$B,$W$10)/SUMIFS(export_defm!$Z:$Z,export_defm!$A:$A,$W$9,export_defm!$B:$B,$W$10)-1)>150%,"",SUMIFS(export_defm!$I:$I,export_defm!$A:$A,$W$9,export_defm!$B:$B,$W$10)/SUMIFS(export_defm!$Z:$Z,export_defm!$A:$A,$W$9,export_defm!$B:$B,$W$10)-1)) -> 0.03089430894 | H88: =SUMIFS(export_defm!$I:$I,export_defm!$A:$A,$W13,export_defm!$B:$B,$W14)/SUMIFS(export_defm!$Z:$Z,export_defm!$A:$A,$W13,export_defm!$B:$B,$W14)-1 -> 0.03437067357
E93: Proportion | F93: Proportion Normandie | G93: Évolution annuelle | H93: Évol. Ann. Normandie
G94: évol | H94: Normandie | J94: Métiers les plus recherchés :
B95: =ROUND(SUMIFS(export_defm!$J:$J,export_defm!$A:$A,$W$9,export_defm!$B:$B,$W$10),-1) -> 5500 | C95: femmes | E95: =IF(SUMIFS(export_defm!$G:$G,export_defm!$A:$A,$W$9,export_defm!$B:$B,$W$10)=0,"",SUMIFS(export_defm!$J:$J,export_defm!$A:$A,$W$9,export_defm!$B:$B,$W$10)/SUMIFS(export_defm!$G:$G,export_defm!$A:$A,$W$9,export_defm!$B:$B,$W$10)) -> 0.4601170569 | F95: =SUMIFS(export_defm!$J:$J,export_defm!$A:$A,$W13,export_defm!$B:$B,$W14)/SUMIFS(export_defm!$G:$G,export_defm!$A:$A,$W13,export_defm!$B:$B,$W14) -> 0.5175586976 | G95: =IF(SUMIFS(export_defm!$AA:$AA,export_defm!$A:$A,$W$9,export_defm!$B:$B,$W$10)=0,"",IF(ABS(SUMIFS(export_defm!$J:$J,export_defm!$A:$A,$W$9,export_defm!$B:$B,$W$10)/SUMIFS(export_defm!$AA:$AA,export_defm!$A:$A,$W$9,export_defm!$B:$B,$W$10)-1)>150%,"",SUMIFS(export_defm!$J:$J,export_defm!$A:$A,$W$9,export_defm!$B:$B,$W$10)/SUMIFS(export_defm!$AA:$AA,export_defm!$A:$A,$W$9,export_defm!$B:$B,$W$10)-1)) -> 0.03928234183 | H95: =SUMIFS(export_defm!$J:$J,export_defm!$A:$A,$W13,export_defm!$B:$B,$W14)/SUMIFS(export_defm!$AA:$AA,export_defm!$A:$A,$W13,export_defm!$B:$B,$W14)-1 -> -0.001140250855 | I95: =IF(J95="Pas de demandeur d'emploi","",IF(J95="","","❶")) -> ❶ | J95: =IF(ISNA(VLOOKUP(LEFT(W9,LEN(W9))&W10&"1 ",export_top5_defm!D:E,2,FALSE))=TRUE,"Pas de demandeur d'emploi",IF(VLOOKUP(LEFT(VLOOKUP(LEFT(W9,LEN(W9))&W10&"1 ",export_top5_defm!D:E,2,FALSE),LEN(VLOOKUP(LEFT(W9,LEN(W9))&W10&"1 ",export_top5_defm!D:E,2,FALSE))),Réf!K:L,2,FALSE)=0,"Pas de demandeur d'emploi",VLOOKUP(LEFT(VLOOKUP(LEFT(W9,LEN(W9))&W10&"1 ",export_top5_defm!D:E,2,FALSE),LEN(VLOOKUP(LEFT(W9,LEN(W9))&W10&"1 ",export_top5_defm!D:E,2,FALSE))),Réf!K:L,2,FALSE))) -> Nettoyage de locaux
B97: =ROUND(SUMIFS(export_defm!$K:$K,export_defm!$A:$A,$W$9,export_defm!$B:$B,$W$10),-1) -> 2230 | C97: moins de 26 ans | E97: =IF(SUMIFS(export_defm!$G:$G,export_defm!$A:$A,$W$9,export_defm!$B:$B,$W$10)=0,"",SUMIFS(export_defm!$K:$K,export_defm!$A:$A,$W$9,export_defm!$B:$B,$W$10)/SUMIFS(export_defm!$G:$G,export_defm!$A:$A,$W$9,export_defm!$B:$B,$W$10)) -> 0.1862876254 | F97: =SUMIFS(export_defm!$K:$K,export_defm!$A:$A,$W13,export_defm!$B:$B,$W14)/SUMIFS(export_defm!$G:$G,export_defm!$A:$A,$W13,export_defm!$B:$B,$W14) -> 0.1784237235 | G97: =IF(SUMIFS(export_defm!$AB:$AB,export_defm!$A:$A,$W$9,export_defm!$B:$B,$W$10)=0,"",IF(ABS(SUMIFS(export_defm!$K:$K,export_defm!$A:$A,$W$9,export_defm!$B:$B,$W$10)/SUMIFS(export_defm!$AB:$AB,export_defm!$A:$A,$W$9,export_defm!$B:$B,$W$10)-1)>150%,"",SUMIFS(export_defm!$K:$K,export_defm!$A:$A,$W$9,export_defm!$B:$B,$W$10)/SUMIFS(export_defm!$AB:$AB,export_defm!$A:$A,$W$9,export_defm!$B:$B,$W$10)-1)) -> 0.09108716944 | H97: =SUMIFS(export_defm!$K:$K,export_defm!$A:$A,$W13,export_defm!$B:$B,$W14)/SUMIFS(export_defm!$AB:$AB,export_defm!$A:$A,$W13,export_defm!$B:$B,$W14)-1 -> 0.03204437994 | I97: =IF(J97="","","❷") -> ❷ | J97: =IF(ISNA(VLOOKUP(LEFT(W9,LEN(W9))&W10&"2 ",export_top5_defm!D:E,2,FALSE))=TRUE,"",IF(VLOOKUP(LEFT(VLOOKUP(LEFT(W9,LEN(W9))&W10&"2 ",export_top5_defm!D:E,2,FALSE),LEN(VLOOKUP(LEFT(W9,LEN(W9))&W10&"2 ",export_top5_defm!D:E,2,FALSE))),Réf!K:L,2,FALSE)=0,"",VLOOKUP(LEFT(VLOOKUP(LEFT(W9,LEN(W9))&W10&"2 ",export_top5_defm!D:E,2,FALSE),LEN(VLOOKUP(LEFT(W9,LEN(W9))&W10&"2 ",export_top5_defm!D:E,2,FALSE))),Réf!K:L,2,FALSE))) -> Assistance auprès d'enfants
B99: =ROUND(SUMIFS(export_defm!$L:$L,export_defm!$A:$A,$W$9,export_defm!$B:$B,$W$10),-1) -> 2440 | C99: 50 ans ou plus | E99: =IF(SUMIFS(export_defm!$G:$G,export_defm!$A:$A,$W$9,export_defm!$B:$B,$W$10)=0,"",SUMIFS(export_defm!$L:$L,export_defm!$A:$A,$W$9,export_defm!$B:$B,$W$10)/SUMIFS(export_defm!$G:$G,export_defm!$A:$A,$W$9,export_defm!$B:$B,$W$10)) -> 0.2038461538 | F99: =SUMIFS(export_defm!$L:$L,export_defm!$A:$A,$W13,export_defm!$B:$B,$W14)/SUMIFS(export_defm!$G:$G,export_defm!$A:$A,$W13,export_defm!$B:$B,$W14) -> 0.2580549868 | G99: =IF(SUMIFS(export_defm!$AC:$AC,export_defm!$A:$A,$W$9,export_defm!$B:$B,$W$10)=0,"",IF(ABS(SUMIFS(export_defm!$L:$L,export_defm!$A:$A,$W$9,export_defm!$B:$B,$W$10)/SUMIFS(export_defm!$AC:$AC,export_defm!$A:$A,$W$9,export_defm!$B:$B,$W$10)-1)>150%,"",SUMIFS(export_defm!$L:$L,export_defm!$A:$A,$W$9,export_defm!$B:$B,$W$10)/SUMIFS(export_defm!$AC:$AC,export_defm!$A:$A,$W$9,export_defm!$B:$B,$W$10)-1)) -> 0.03744680851 | H99: =SUMIFS(export_defm!$L:$L,export_defm!$A:$A,$W13,export_defm!$B:$B,$W14)/SUMIFS(export_defm!$AC:$AC,export_defm!$A:$A,$W13,export_defm!$B:$B,$W14)-1 -> -0.005024106349 | I99: =IF(J99="","","❸") -> ❸ | J99: =IF(ISNA(VLOOKUP(LEFT(W9,LEN(W9))&W10&"3 ",export_top5_defm!D:E,2,FALSE))=TRUE,"",IF(VLOOKUP(LEFT(VLOOKUP(LEFT(W9,LEN(W9))&W10&"3 ",export_top5_defm!D:E,2,FALSE),LEN(VLOOKUP(LEFT(W9,LEN(W9))&W10&"3 ",export_top5_defm!D:E,2,FALSE))),Réf!K:L,2,FALSE)=0,"",VLOOKUP(LEFT(VLOOKUP(LEFT(W9,LEN(W9))&W10&"3 ",export_top5_defm!D:E,2,FALSE),LEN(VLOOKUP(LEFT(W9,LEN(W9))&W10&"3 ",export_top5_defm!D:E,2,FALSE))),Réf!K:L,2,FALSE))) -> Vente en habillement et accessoires de la personne
B101: =ROUND(SUMIFS(export_defm!$M:$M,export_defm!$A:$A,$W$9,export_defm!$B:$B,$W$10),-1) -> 6820 | C101: indemnisables | E101: =IF(SUMIFS(export_defm!$G:$G,export_defm!$A:$A,$W$9,export_defm!$B:$B,$W$10)=0,"",SUMIFS(export_defm!$M:$M,export_defm!$A:$A,$W$9,export_defm!$B:$B,$W$10)/SUMIFS(export_defm!$G:$G,export_defm!$A:$A,$W$9,export_defm!$B:$B,$W$10)) -> 0.5702341137 | F101: =SUMIFS(export_defm!$M:$M,export_defm!$A:$A,$W13,export_defm!$B:$B,$W14)/SUMIFS(export_defm!$G:$G,export_defm!$A:$A,$W13,export_defm!$B:$B,$W14) -> 0.6607193441 | G101: =IF(SUMIFS(export_defm!$AD:$AD,export_defm!$A:$A,$W$9,export_defm!$B:$B,$W$10)=0,"",IF(ABS(SUMIFS(export_defm!$M:$M,export_defm!$A:$A,$W$9,export_defm!$B:$B,$W$10)/SUMIFS(export_defm!$AD:$AD,export_defm!$A:$A,$W$9,export_defm!$B:$B,$W$10)-1)>150%,"",SUMIFS(export_defm!$M:$M,export_defm!$A:$A,$W$9,export_defm!$B:$B,$W$10)/SUMIFS(export_defm!$AD:$AD,export_defm!$A:$A,$W$9,export_defm!$B:$B,$W$10)-1)) -> 0.1193172493 | H101: =SUMIFS(export_defm!$M:$M,export_defm!$A:$A,$W13,export_defm!$B:$B,$W14)/SUMIFS(export_defm!$AD:$AD,export_defm!$A:$A,$W13,export_defm!$B:$B,$W14)-1 -> 0.04188655406 | I101: =IF(J101="","","❹") -> ❹ | J101: =IF(ISNA(VLOOKUP(LEFT(W9,LEN(W9))&W10&"4 ",export_top5_defm!D:E,2,FALSE))=TRUE,"",IF(VLOOKUP(LEFT(VLOOKUP(LEFT(W9,LEN(W9))&W10&"4 ",export_top5_defm!D:E,2,FALSE),LEN(VLOOKUP(LEFT(W9,LEN(W9))&W10&"4 ",export_top5_defm!D:E,2,FALSE))),Réf!K:L,2,FALSE)=0,"",VLOOKUP(LEFT(VLOOKUP(LEFT(W9,LEN(W9))&W10&"4 ",export_top5_defm!D:E,2,FALSE),LEN(VLOOKUP(LEFT(W9,LEN(W9))&W10&"4 ",export_top5_defm!D:E,2,FALSE))),Réf!K:L,2,FALSE))) -> Magasinage et préparation de commandes
B103: =ROUND(SUMIFS(export_defm!$N:$N,export_defm!$A:$A,$W$9,export_defm!$B:$B,$W$10),-1) -> 4700 | C103: niveau BEP-CAP ou infra | E103: =IF(SUMIFS(export_defm!$G:$G,export_defm!$A:$A,$W$9,export_defm!$B:$B,$W$10)=0,"",SUMIFS(export_defm!$N:$N,export_defm!$A:$A,$W$9,export_defm!$B:$B,$W$10)/SUMIFS(export_defm!$G:$G,export_defm!$A:$A,$W$9,export_defm!$B:$B,$W$10)) -> 0.3931438127 | F103: =SUMIFS(export_defm!$N:$N,export_defm!$A:$A,$W13,export_defm!$B:$B,$W14)/SUMIFS(export_defm!$G:$G,export_defm!$A:$A,$W13,export_defm!$B:$B,$W14) -> 0.506268362 | G103: =IF(SUMIFS(export_defm!$AE:$AE,export_defm!$A:$A,$W$9,export_defm!$B:$B,$W$10)=0,"",IF(ABS(SUMIFS(export_defm!$N:$N,export_defm!$A:$A,$W$9,export_defm!$B:$B,$W$10)/SUMIFS(export_defm!$AE:$AE,export_defm!$A:$A,$W$9,export_defm!$B:$B,$W$10)-1)>150%,"",SUMIFS(export_defm!$N:$N,export_defm!$A:$A,$W$9,export_defm!$B:$B,$W$10)/SUMIFS(export_defm!$AE:$AE,export_defm!$A:$A,$W$9,export_defm!$B:$B,$W$10)-1)) -> 0.02195174962 | H103: =SUMIFS(export_defm!$N:$N,export_defm!$A:$A,$W13,export_defm!$B:$B,$W14)/SUMIFS(export_defm!$AE:$AE,export_defm!$A:$A,$W13,export_defm!$B:$B,$W14)-1 -> -0.01188680288 | I103: =IF(J103="","","❺") -> ❺ | J103: =IF(ISNA(VLOOKUP(LEFT(W9,LEN(W9))&W10&"5 ",export_top5_defm!D:E,2,FALSE))=TRUE,"",IF(VLOOKUP(LEFT(VLOOKUP(LEFT(W9,LEN(W9))&W10&"5 ",export_top5_defm!D:E,2,FALSE),LEN(VLOOKUP(LEFT(W9,LEN(W9))&W10&"5 ",export_top5_defm!D:E,2,FALSE))),Réf!K:L,2,FALSE)=0,"",VLOOKUP(LEFT(VLOOKUP(LEFT(W9,LEN(W9))&W10&"5 ",export_top5_defm!D:E,2,FALSE),LEN(VLOOKUP(LEFT(W9,LEN(W9))&W10&"5 ",export_top5_defm!D:E,2,FALSE))),Réf!K:L,2,FALSE))) -> Services domestiques
I104: ❺
B105: =ROUND(SUMIFS(export_defm!$O:$O,export_defm!$A:$A,$W$9,export_defm!$B:$B,$W$10),-1) -> 2140 | C105: bénéficiaires du RSA | E105: =IF(SUMIFS(export_defm!$G:$G,export_defm!$A:$A,$W$9,export_defm!$B:$B,$W$10)=0,"",SUMIFS(export_defm!$O:$O,export_defm!$A:$A,$W$9,export_defm!$B:$B,$W$10)/SUMIFS(export_defm!$G:$G,export_defm!$A:$A,$W$9,export_defm!$B:$B,$W$10)) -> 0.1788461538 | F105: =SUMIFS(export_defm!$O:$O,export_defm!$A:$A,$W13,export_defm!$B:$B,$W14)/SUMIFS(export_defm!$G:$G,export_defm!$A:$A,$W13,export_defm!$B:$B,$W14) -> 0.1319552919 | G105: =IF(SUMIFS(export_defm!$AF:$AF,export_defm!$A:$A,$W$9,export_defm!$B:$B,$W$10)=0,"",IF(ABS(SUMIFS(export_defm!$O:$O,export_defm!$A:$A,$W$9,export_defm!$B:$B,$W$10)/SUMIFS(export_defm!$AF:$AF,export_defm!$A:$A,$W$9,export_defm!$B:$B,$W$10)-1)>150%,"",SUMIFS(export_defm!$O:$O,export_defm!$A:$A,$W$9,export_defm!$B:$B,$W$10)/SUMIFS(export_defm!$AF:$AF,export_defm!$A:$A,$W$9,export_defm!$B:$B,$W$10)-1)) -> -0.02551252847 | H105: =SUMIFS(export_defm!$O:$O,export_defm!$A:$A,$W13,export_defm!$B:$B,$W14)/SUMIFS(export_defm!$AF:$AF,export_defm!$A:$A,$W13,export_defm!$B:$B,$W14)-1 -> 0.0001533601202
J106: ZOOM : Chômage de longue (et très longue) durée
B107: NC | C107: bénéficiaires de | E107: NC | F107: NC | G107: NC | H107: NC
C108: l'obligation d'emploi | I108: =ROUND(SUMIFS(export_aco3!$D:$D,export_aco3!$A:$A,$W$9,export_aco3!$B:$B,$W$10),-1) -> 2250 | K108: inscrits au moins 12 mois en catégorie A (sans activité) au cours des 15 mois précédents
B110: =ROUND(SUMIFS(export_defm!$Q:$Q,export_defm!$A:$A,$W$9,export_defm!$B:$B,$W$10),-1) -> 2010 | C110: =IF(B110=0,"réside en QPV",IF(B110="","Pas de QPV sur le territoire","résidents en QPV")) -> résidents en QPV | E110: =IF(SUMIFS(export_defm!$G:$G,export_defm!$A:$A,$W$9,export_defm!$B:$B,$W$10)=0,"",SUMIFS(export_defm!$Q:$Q,export_defm!$A:$A,$W$9,export_defm!$B:$B,$W$10)/SUMIFS(export_defm!$G:$G,export_defm!$A:$A,$W$9,export_defm!$B:$B,$W$10)) -> 0.1680602007 | F110: =IF(B110="","",SUMIFS(export_defm!$Q:$Q,export_defm!$A:$A,$W13,export_defm!$B:$B,$W14)/SUMIFS(export_defm!$G:$G,export_defm!$A:$A,$W13,export_defm!$B:$B,$W14)) -> 0.1137855403 | G110: =IF(SUMIFS(export_defm!$AH:$AH,export_defm!$A:$A,$W$9,export_defm!$B:$B,$W$10)=0,"",IF(ABS(SUMIFS(export_defm!$Q:$Q,export_defm!$A:$A,$W$9,export_defm!$B:$B,$W$10)/SUMIFS(export_defm!$AH:$AH,export_defm!$A:$A,$W$9,export_defm!$B:$B,$W$10)-1)>150%,"",SUMIFS(export_defm!$Q:$Q,export_defm!$A:$A,$W$9,export_defm!$B:$B,$W$10)/SUMIFS(export_defm!$AH:$AH,export_defm!$A:$A,$W$9,export_defm!$B:$B,$W$10)-1)) -> -0.002976190476 | H110: =IF(B110="","",SUMIFS(export_defm!$Q:$Q,export_defm!$A:$A,$W13,export_defm!$B:$B,$W14)/SUMIFS(export_defm!$AH:$AH,export_defm!$A:$A,$W13,export_defm!$B:$B,$W14)-1) -> 0.02381299155
I112: =ROUND(SUMIFS(export_aco3!$E:$E,export_aco3!$A:$A,$W$9,export_aco3!$B:$B,$W$10),-1) -> 1060 | K112: inscrits au moins 24 mois en catégorie A (sans activité) au cours des 27 mois précédents
B115: Entrées et Sorties de France Travail | G115: =Z20 -> Cumul annuel glissant 4e trim. 2023
B117: =ROUND(SUMIFS(export_ent!D:D,export_ent!A:A,W9,export_ent!B:B,W10)+SUMIFS(export_ent!E:E,export_ent!A:A,W9,export_ent!B:B,W10)+SUMIFS(export_ent!F:F,export_ent!A:A,W9,export_ent!B:B,W10)+SUMIFS(export_ent!G:G,export_ent!A:A,W9,export_ent!B:B,W10)+SUMIFS(export_ent!H:H,export_ent!A:A,W9,export_ent!B:B,W10)+SUMIFS(export_ent!I:I,export_ent!A:A,W9,export_ent!B:B,W10)+SUMIFS(export_ent!J:J,export_ent!A:A,W9,export_ent!B:B,W10)+SUMIFS(export_ent!K:K,export_ent!A:A,W9,export_ent!B:B,W10)+SUMIFS(export_ent!L:L,export_ent!A:A,W9,export_ent!B:B,W10),-1) -> 16880 | C117: =IF(B117<2,"entrée à France Travail","entrées à France Travail") -> entrées à France Travail | I117: =ROUND(SUMIFS(export_sor!D:D,export_sor!A:A,W9,export_sor!B:B,W10)+SUMIFS(export_sor!E:E,export_sor!A:A,W9,export_sor!B:B,W10)+SUMIFS(export_sor!F:F,export_sor!A:A,W9,export_sor!B:B,W10)+SUMIFS(export_sor!G:G,export_sor!A:A,W9,export_sor!B:B,W10)+SUMIFS(export_sor!H:H,export_sor!A:A,W9,export_sor!B:B,W10)+SUMIFS(export_sor!I:I,export_sor!A:A,W9,export_sor!B:B,W10),-1) -> 16200 | J117: =IF(I117<2,"sortie de France Travail","sorties de France Travail") -> sorties de France Travail
B118: =IF((SUMIFS(export_ent!M:M,export_ent!A:A,W9,export_ent!B:B,W10)+SUMIFS(export_ent!N:N,export_ent!A:A,W9,export_ent!B:B,W10)+SUMIFS(export_ent!O:O,export_ent!A:A,W9,export_ent!B:B,W10)+SUMIFS(export_ent!P:P,export_ent!A:A,W9,export_ent!B:B,W10)+SUMIFS(export_ent!Q:Q,export_ent!A:A,W9,export_ent!B:B,W10)+SUMIFS(export_ent!R:R,export_ent!A:A,W9,export_ent!B:B,W10)+SUMIFS(export_ent!S:S,export_ent!A:A,W9,export_ent!B:B,W10)+SUMIFS(export_ent!T:T,export_ent!A:A,W9,export_ent!B:B,W10)+SUMIFS(export_ent!U:U,export_ent!A:A,W9,export_ent!B:B,W10))=0,"",IF(ABS((SUMIFS(export_ent!D:D,export_ent!A:A,W9,export_ent!B:B,W10)+SUMIFS(export_ent!E:E,export_ent!A:A,W9,export_ent!B:B,W10)+SUMIFS(export_ent!F:F,export_ent!A:A,W9,export_ent!B:B,W10)+SUMIFS(export_ent!G:G,export_ent!A:A,W9,export_ent!B:B,W10)+SUMIFS(export_ent!H:H,export_ent!A:A,W9,export_ent!B:B,W10)+SUMIFS(export_ent!I:I,export_ent!A:A,W9,export_ent!B:B,W10)+SUMIFS(export_ent!J:J,export_ent!A:A,W9,export_ent!B:B,W10)+SUMIFS(export_ent!K:K,export_ent!A:A,W9,export_ent!B:B,W10)+SUMIFS(export_ent!L:L,export_ent!A:A,W9,export_ent!B:B,W10))/(SUMIFS(export_ent!M:M,export_ent!A:A,W9,export_ent!B:B,W10)+SUMIFS(export_ent!N:N,export_ent!A:A,W9,export_ent!B:B,W10)+SUMIFS(export_ent!O:O,export_ent!A:A,W9,export_ent!B:B,W10)+SUMIFS(export_ent!P:P,export_ent!A:A,W9,export_ent!B:B,W10)+SUMIFS(export_ent!Q:Q,export_ent!A:A,W9,export_ent!B:B,W10)+SUMIFS(export_ent!R:R,export_ent!A:A,W9,export_ent!B:B,W10)+SUMIFS(export_ent!S:S,export_ent!A:A,W9,export_ent!B:B,W10)+SUMIFS(export_ent!T:T,export_ent!A:A,W9,export_ent!B:B,W10)+SUMIFS(export_ent!U:U,export_ent!A:A,W9,export_ent!B:B,W10))-1)>150%,"",(SUMIFS(export_ent!D:D,export_ent!A:A,W9,export_ent!B:B,W10)+SUMIFS(export_ent!E:E,export_ent!A:A,W9,export_ent!B:B,W10)+SUMIFS(export_ent!F:F,export_ent!A:A,W9,export_ent!B:B,W10)+SUMIFS(export_ent!G:G,export_ent!A:A,W9,export_ent!B:B,W10)+SUMIFS(export_ent!H:H,export_ent!A:A,W9,export_ent!B:B,W10)+SUMIFS(export_ent!I:I,export_ent!A:A,W9,export_ent!B:B,W10)+SUMIFS(export_ent!J:J,export_ent!A:A,W9,export_ent!B:B,W10)+SUMIFS(export_ent!K:K,export_ent!A:A,W9,export_ent!B:B,W10)+SUMIFS(export_ent!L:L,export_ent!A:A,W9,export_ent!B:B,W10))/(SUMIFS(export_ent!M:M,export_ent!A:A,W9,export_ent!B:B,W10)+SUMIFS(export_ent!N:N,export_ent!A:A,W9,export_ent!B:B,W10)+SUMIFS(export_ent!O:O,export_ent!A:A,W9,export_ent!B:B,W10)+SUMIFS(export_ent!P:P,export_ent!A:A,W9,export_ent!B:B,W10)+SUMIFS(export_ent!Q:Q,export_ent!A:A,W9,export_ent!B:B,W10)+SUMIFS(export_ent!R:R,export_ent!A:A,W9,export_ent!B:B,W10)+SUMIFS(export_ent!S:S,export_ent!A:A,W9,export_ent!B:B,W10)+SUMIFS(export_ent!T:T,export_ent!A:A,W9,export_ent!B:B,W10)+SUMIFS(export_ent!U:U,export_ent!A:A,W9,export_ent!B:B,W10))-1)) -> 0.01895448509 | C118: =IF(B118="","","en un an") -> en un an | E118: Dont : | I118: =IF((SUMIFS(export_sor!J:J,export_sor!A:A,W9,export_sor!B:B,W10)+SUMIFS(export_sor!K:K,export_sor!A:A,W9,export_sor!B:B,W10)+SUMIFS(export_sor!L:L,export_sor!A:A,W9,export_sor!B:B,W10)+SUMIFS(export_sor!M:M,export_sor!A:A,W9,export_sor!B:B,W10)+SUMIFS(export_sor!N:N,export_sor!A:A,W9,export_sor!B:B,W10)+SUMIFS(export_sor!O:O,export_sor!A:A,W9,export_sor!B:B,W10))=0,"",IF(ABS((SUMIFS(export_sor!D:D,export_sor!A:A,W9,export_sor!B:B,W10)+SUMIFS(export_sor!E:E,export_sor!A:A,W9,export_sor!B:B,W10)+SUMIFS(export_sor!F:F,export_sor!A:A,W9,export_sor!B:B,W10)+SUMIFS(export_sor!G:G,export_sor!A:A,W9,export_sor!B:B,W10)+SUMIFS(export_sor!H:H,export_sor!A:A,W9,export_sor!B:B,W10)+SUMIFS(export_sor!I:I,export_sor!A:A,W9,export_sor!B:B,W10))/(SUMIFS(export_sor!J:J,export_sor!A:A,W9,export_sor!B:B,W10)+SUMIFS(export_sor!K:K,export_sor!A:A,W9,export_sor!B:B,W10)+SUMIFS(export_sor!L:L,export_sor!A:A,W9,export_sor!B:B,W10)+SUMIFS(export_sor!M:M,export_sor!A:A,W9,export_sor!B:B,W10)+SUMIFS(export_sor!N:N,export_sor!A:A,W9,export_sor!B:B,W10)+SUMIFS(export_sor!O:O,export_sor!A:A,W9,export_sor!B:B,W10))-1)>150%,"",(SUMIFS(export_sor!D:D,export_sor!A:A,W9,export_sor!B:B,W10)+SUMIFS(export_sor!E:E,export_sor!A:A,W9,export_sor!B:B,W10)+SUMIFS(export_sor!F:F,export_sor!A:A,W9,export_sor!B:B,W10)+SUMIFS(export_sor!G:G,export_sor!A:A,W9,export_sor!B:B,W10)+SUMIFS(export_sor!H:H,export_sor!A:A,W9,export_sor!B:B,W10)+SUMIFS(export_sor!I:I,export_sor!A:A,W9,export_sor!B:B,W10))/(SUMIFS(export_sor!J:J,export_sor!A:A,W9,export_sor!B:B,W10)+SUMIFS(export_sor!K:K,export_sor!A:A,W9,export_sor!B:B,W10)+SUMIFS(export_sor!L:L,export_sor!A:A,W9,export_sor!B:B,W10)+SUMIFS(export_sor!M:M,export_sor!A:A,W9,export_sor!B:B,W10)+SUMIFS(export_sor!N:N,export_sor!A:A,W9,export_sor!B:B,W10)+SUMIFS(export_sor!O:O,export_sor!A:A,W9,export_sor!B:B,W10))-1)) -> -0.05801650971 | J118: =IF(I118="","","en un an") -> en un an | M118: Dont :
B120: =IF((SUMIFS(export_ent!D:D,export_ent!A:A,W9,export_ent!B:B,W10)+SUMIFS(export_ent!E:E,export_ent!A:A,W9,export_ent!B:B,W10)+SUMIFS(export_ent!F:F,export_ent!A:A,W9,export_ent!B:B,W10)+SUMIFS(export_ent!G:G,export_ent!A:A,W9,export_ent!B:B,W10)+SUMIFS(export_ent!H:H,export_ent!A:A,W9,export_ent!B:B,W10)+SUMIFS(export_ent!I:I,export_ent!A:A,W9,export_ent!B:B,W10)+SUMIFS(export_ent!J:J,export_ent!A:A,W9,export_ent!B:B,W10)+SUMIFS(export_ent!K:K,export_ent!A:A,W9,export_ent!B:B,W10)+SUMIFS(export_ent!L:L,export_ent!A:A,W9,export_ent!B:B,W10))=0,"-",SUMIFS(export_ent!D:D,export_ent!A:A,W9,export_ent!B:B,W10)/(SUMIFS(export_ent!D:D,export_ent!A:A,W9,export_ent!B:B,W10)+SUMIFS(export_ent!E:E,export_ent!A:A,W9,export_ent!B:B,W10)+SUMIFS(export_ent!F:F,export_ent!A:A,W9,export_ent!B:B,W10)+SUMIFS(export_ent!G:G,export_ent!A:A,W9,export_ent!B:B,W10)+SUMIFS(export_ent!H:H,export_ent!A:A,W9,export_ent!B:B,W10)+SUMIFS(export_ent!I:I,export_ent!A:A,W9,export_ent!B:B,W10)+SUMIFS(export_ent!J:J,export_ent!A:A,W9,export_ent!B:B,W10)+SUMIFS(export_ent!K:K,export_ent!A:A,W9,export_ent!B:B,W10)+SUMIFS(export_ent!L:L,export_ent!A:A,W9,export_ent!B:B,W10))) -> 0.2650473934 | C120: suite à une fin de contrat | I120: =IF((SUMIFS(export_sor!D:D,export_sor!A:A,W9,export_sor!B:B,W10)+SUMIFS(export_sor!E:E,export_sor!A:A,W9,export_sor!B:B,W10)+SUMIFS(export_sor!F:F,export_sor!A:A,W9,export_sor!B:B,W10)+SUMIFS(export_sor!G:G,export_sor!A:A,W9,export_sor!B:B,W10)+SUMIFS(export_sor!H:H,export_sor!A:A,W9,export_sor!B:B,W10)+SUMIFS(export_sor!I:I,export_sor!A:A,W9,export_sor!B:B,W10))=0,"-",SUMIFS(export_sor!G:G,export_sor!A:A,W9,export_sor!B:B,W10)/(SUMIFS(export_sor!D:D,export_sor!A:A,W9,export_sor!B:B,W10)+SUMIFS(export_sor!E:E,export_sor!A:A,W9,export_sor!B:B,W10)+SUMIFS(export_sor!F:F,export_sor!A:A,W9,export_sor!B:B,W10)+SUMIFS(export_sor!G:G,export_sor!A:A,W9,export_sor!B:B,W10)+SUMIFS(export_sor!H:H,export_sor!A:A,W9,export_sor!B:B,W10)+SUMIFS(export_sor!I:I,export_sor!A:A,W9,export_sor!B:B,W10))) -> 0.4869785238 | J120: suite à un défaut d'actualisation
B121: =IF((SUMIFS(export_ent!D:D,export_ent!A:A,W9,export_ent!B:B,W10)+SUMIFS(export_ent!E:E,export_ent!A:A,W9,export_ent!B:B,W10)+SUMIFS(export_ent!F:F,export_ent!A:A,W9,export_ent!B:B,W10)+SUMIFS(export_ent!G:G,export_ent!A:A,W9,export_ent!B:B,W10)+SUMIFS(export_ent!H:H,export_ent!A:A,W9,export_ent!B:B,W10)+SUMIFS(export_ent!I:I,export_ent!A:A,W9,export_ent!B:B,W10)+SUMIFS(export_ent!J:J,export_ent!A:A,W9,export_ent!B:B,W10)+SUMIFS(export_ent!K:K,export_ent!A:A,W9,export_ent!B:B,W10)+SUMIFS(export_ent!L:L,export_ent!A:A,W9,export_ent!B:B,W10))=0,"-",SUMIFS(export_ent!J:J,export_ent!A:A,W9,export_ent!B:B,W10)/(SUMIFS(export_ent!D:D,export_ent!A:A,W9,export_ent!B:B,W10)+SUMIFS(export_ent!E:E,export_ent!A:A,W9,export_ent!B:B,W10)+SUMIFS(export_ent!F:F,export_ent!A:A,W9,export_ent!B:B,W10)+SUMIFS(export_ent!G:G,export_ent!A:A,W9,export_ent!B:B,W10)+SUMIFS(export_ent!H:H,export_ent!A:A,W9,export_ent!B:B,W10)+SUMIFS(export_ent!I:I,export_ent!A:A,W9,export_ent!B:B,W10)+SUMIFS(export_ent!J:J,export_ent!A:A,W9,export_ent!B:B,W10)+SUMIFS(export_ent!K:K,export_ent!A:A,W9,export_ent!B:B,W10)+SUMIFS(export_ent!L:L,export_ent!A:A,W9,export_ent!B:B,W10))) -> 0.2273104265 | C121: pour retour d'inactivité | I121: =IF((SUMIFS(export_sor!D:D,export_sor!A:A,W9,export_sor!B:B,W10)+SUMIFS(export_sor!E:E,export_sor!A:A,W9,export_sor!B:B,W10)+SUMIFS(export_sor!F:F,export_sor!A:A,W9,export_sor!B:B,W10)+SUMIFS(export_sor!G:G,export_sor!A:A,W9,export_sor!B:B,W10)+SUMIFS(export_sor!H:H,export_sor!A:A,W9,export_sor!B:B,W10)+SUMIFS(export_sor!I:I,export_sor!A:A,W9,export_sor!B:B,W10))=0,"-",SUMIFS(export_sor!D:D,export_sor!A:A,W9,export_sor!B:B,W10)/(SUMIFS(export_sor!D:D,export_sor!A:A,W9,export_sor!B:B,W10)+SUMIFS(export_sor!E:E,export_sor!A:A,W9,export_sor!B:B,W10)+SUMIFS(export_sor!F:F,export_sor!A:A,W9,export_sor!B:B,W10)+SUMIFS(export_sor!G:G,export_sor!A:A,W9,export_sor!B:B,W10)+SUMIFS(export_sor!H:H,export_sor!A:A,W9,export_sor!B:B,W10)+SUMIFS(export_sor!I:I,export_sor!A:A,W9,export_sor!B:B,W10))) -> 0.1250925697 | J121: pour reprise d'emploi déclarée
B122: =IF((SUMIFS(export_ent!D:D,export_ent!A:A,W9,export_ent!B:B,W10)+SUMIFS(export_ent!E:E,export_ent!A:A,W9,export_ent!B:B,W10)+SUMIFS(export_ent!F:F,export_ent!A:A,W9,export_ent!B:B,W10)+SUMIFS(export_ent!G:G,export_ent!A:A,W9,export_ent!B:B,W10)+SUMIFS(export_ent!H:H,export_ent!A:A,W9,export_ent!B:B,W10)+SUMIFS(export_ent!I:I,export_ent!A:A,W9,export_ent!B:B,W10)+SUMIFS(export_ent!J:J,export_ent!A:A,W9,export_ent!B:B,W10)+SUMIFS(export_ent!K:K,export_ent!A:A,W9,export_ent!B:B,W10)+SUMIFS(export_ent!L:L,export_ent!A:A,W9,export_ent!B:B,W10))=0,"-",SUMIFS(export_ent!I:I,export_ent!A:A,W9,export_ent!B:B,W10)/(SUMIFS(export_ent!D:D,export_ent!A:A,W9,export_ent!B:B,W10)+SUMIFS(export_ent!E:E,export_ent!A:A,W9,export_ent!B:B,W10)+SUMIFS(export_ent!F:F,export_ent!A:A,W9,export_ent!B:B,W10)+SUMIFS(export_ent!G:G,export_ent!A:A,W9,export_ent!B:B,W10)+SUMIFS(export_ent!H:H,export_ent!A:A,W9,export_ent!B:B,W10)+SUMIFS(export_ent!I:I,export_ent!A:A,W9,export_ent!B:B,W10)+SUMIFS(export_ent!J:J,export_ent!A:A,W9,export_ent!B:B,W10)+SUMIFS(export_ent!K:K,export_ent!A:A,W9,export_ent!B:B,W10)+SUMIFS(export_ent!L:L,export_ent!A:A,W9,export_ent!B:B,W10))) -> 0.09650473934 | C122: pour une première entrée sur le marché du travail | I122: =IF((SUMIFS(export_sor!D:D,export_sor!A:A,W9,export_sor!B:B,W10)+SUMIFS(export_sor!E:E,export_sor!A:A,W9,export_sor!B:B,W10)+SUMIFS(export_sor!F:F,export_sor!A:A,W9,export_sor!B:B,W10)+SUMIFS(export_sor!G:G,export_sor!A:A,W9,export_sor!B:B,W10)+SUMIFS(export_sor!H:H,export_sor!A:A,W9,export_sor!B:B,W10)+SUMIFS(export_sor!I:I,export_sor!A:A,W9,export_sor!B:B,W10))=0,"-",SUMIFS(export_sor!E:E,export_sor!A:A,W9,export_sor!B:B,W10)/(SUMIFS(export_sor!D:D,export_sor!A:A,W9,export_sor!B:B,W10)+SUMIFS(export_sor!E:E,export_sor!A:A,W9,export_sor!B:B,W10)+SUMIFS(export_sor!F:F,export_sor!A:A,W9,export_sor!B:B,W10)+SUMIFS(export_sor!G:G,export_sor!A:A,W9,export_sor!B:B,W10)+SUMIFS(export_sor!H:H,export_sor!A:A,W9,export_sor!B:B,W10)+SUMIFS(export_sor!I:I,export_sor!A:A,W9,export_sor!B:B,W10))) -> 0.1220069119 | J122: pour entrée en stage ou en formation
B124: L'offre de service de France Travail | N124: [Source : France Travail]
B127: Offres d'emploi diffusées par France Travail | H127: (transmises par les partenaires ou collectées par France Travail)
B128: =Z26 -> Cumul annuel glissant au 4e trim. 2023
B129: =SUMIFS(export_diffusees!D:D,export_diffusees!A:A,W9,export_diffusees!B:B,W10) -> 33147 | C129: =IF(B129<2,"offre diffusée","offres diffusées") -> offres diffusées | H129: =IF(I129="","","●") -> ● | I129: =IF(ISNA(VLOOKUP(LEFT(W9,LEN(W9))&W10&"1 ",export_top5_diff!D:F,3,FALSE))=TRUE,"Pas d'offre diffusée",IF(VLOOKUP(LEFT(W9,LEN(W9))&W10&"1 ",export_top5_diff!D:F,3,FALSE)=0,"Pas d'offre diffusée",VLOOKUP(LEFT(VLOOKUP(LEFT(W9,LEN(W9))&W10&"1 ",export_top5_diff!D:F,2,FALSE),LEN(VLOOKUP(LEFT(W9,LEN(W9))&W10&"1 ",export_top5_diff!D:F,2,FALSE))),Réf!K:L,2,FALSE))) -> Comptabilité | Z129: Agriculture et pêche, espaces naturels et espaces verts, soins aux animaux
B130: =IF(B129=0,0,SUMIFS(export_diffusees!E:E,export_diffusees!A:A,W9,export_diffusees!B:B,W10)/SUMIFS(export_diffusees!D:D,export_diffusees!A:A,W9,export_diffusees!B:B,W10)) -> 0.7496606028 | C130: =IF(B129>=2,"offres durables (CDI et CDD de plus de 6 mois)","offre durable (CDI et CDD de plus de 6 mois)") -> offres durables (CDI et CDD de plus de 6 mois) | H130: =IF(I130="","","●") -> ● | I130: =IF(ISNA(VLOOKUP(LEFT(W9,LEN(W9))&W10&"2 ",export_top5_diff!D:F,3,FALSE))=TRUE,"",IF(VLOOKUP(LEFT(W9,LEN(W9))&W10&"2 ",export_top5_diff!D:F,3,FALSE)=0,"",VLOOKUP(LEFT(VLOOKUP(LEFT(W9,LEN(W9))&W10&"2 ",export_top5_diff!D:F,2,FALSE),LEN(VLOOKUP(LEFT(W9,LEN(W9))&W10&"2 ",export_top5_diff!D:F,2,FALSE))),Réf!K:L,2,FALSE))) -> Ingénierie et études du BTP | Y130: 2e-05 | Z130: Arts et façonnage d'ouvrages d'art
H131: =IF(I131="","","●") -> ● | I131: =IF(ISNA(VLOOKUP(LEFT(W9,LEN(W9))&W10&"3 ",export_top5_diff!D:F,3,FALSE))=TRUE,"",IF(VLOOKUP(LEFT(W9,LEN(W9))&W10&"3 ",export_top5_diff!D:F,3,FALSE)=0,"",VLOOKUP(LEFT(VLOOKUP(LEFT(W9,LEN(W9))&W10&"3 ",export_top5_diff!D:F,2,FALSE),LEN(VLOOKUP(LEFT(W9,LEN(W9))&W10&"3 ",export_top5_diff!D:F,2,FALSE))),Réf!K:L,2,FALSE))) -> Conduite de travaux du BTP | Y131: 4.00003 | Z131: Banque, assurance, immobilier
H132: =IF(I132="","","●") -> ● | I132: =IF(ISNA(VLOOKUP(LEFT(W9,LEN(W9))&W10&"4 ",export_top5_diff!D:F,3,FALSE)=0)=TRUE,"",IF(VLOOKUP(LEFT(W9,LEN(W9))&W10&"4 ",export_top5_diff!D:F,3,FALSE)=0,"",VLOOKUP(LEFT(VLOOKUP(LEFT(W9,LEN(W9))&W10&"4 ",export_top5_diff!D:F,2,FALSE),LEN(VLOOKUP(LEFT(W9,LEN(W9))&W10&"4 ",export_top5_diff!D:F,2,FALSE))),Réf!K:L,2,FALSE))) -> Relation technico-commerciale | Y132: 18.00004 | Z132: Commerce, vente et grande distribution
H133: =IF(I133="","","●") -> ● | I133: =IF(ISNA(VLOOKUP(LEFT(W9,LEN(W9))&W10&"5 ",export_top5_diff!D:F,3,FALSE))=TRUE,"",IF(VLOOKUP(LEFT(W9,LEN(W9))&W10&"5 ",export_top5_diff!D:F,3,FALSE)=0,"",VLOOKUP(LEFT(VLOOKUP(LEFT(W9,LEN(W9))&W10&"5 ",export_top5_diff!D:F,2,FALSE),LEN(VLOOKUP(LEFT(W9,LEN(W9))&W10&"5 ",export_top5_diff!D:F,2,FALSE))),Réf!K:L,2,FALSE))) -> Relation commerciale grands comptes et entreprises
B134: Offres d'emploi collectées par France Travail | Y134: 1.00005 | Z134: Communication, média et multimédia
B135: =Z21 -> Cumul annuel glissant 4e trim. 2023
F136: Évolution annuelle | H136: Agriculture | I136: =IF(B137=0,0,SUMIFS(export_oee!I:I,export_oee!A:A,W9,export_oee!B:B,W10)/SUMIFS(export_oee!E:E,export_oee!A:A,W9,export_oee!B:B,W10)) -> 0
B137: =SUMIFS(export_oee!E:E,export_oee!A:A,W9,export_oee!B:B,W10) -> 8521 | C137: =IF(B137<2,"offre collectée","offres collectées") -> offres collectées | F137: =IF(SUMIFS(export_oee!N:N,export_oee!A:A,W9,export_oee!B:B,W10)=0,"",IF(ABS(SUMIFS(export_oee!E:E,export_oee!A:A,W9,export_oee!B:B,W10)/SUMIFS(export_oee!N:N,export_oee!A:A,W9,export_oee!B:B,W10)-1)>150%,"",SUMIFS(export_oee!E:E,export_oee!A:A,W9,export_oee!B:B,W10)/SUMIFS(export_oee!N:N,export_oee!A:A,W9,export_oee!B:B,W10)-1)) -> -0.1173606795 | H137: Industrie | I137: =IF(B137=0,0,SUMIFS(export_oee!J:J,export_oee!A:A,W9,export_oee!B:B,W10)/SUMIFS(export_oee!E:E,export_oee!A:A,W9,export_oee!B:B,W10)) -> 0.02570120878 | N137: Offres collectées par France Travail
H138: Construction | I138: =IF(B137=0,0,SUMIFS(export_oee!K:K,export_oee!A:A,W9,export_oee!B:B,W10)/SUMIFS(export_oee!E:E,export_oee!A:A,W9,export_oee!B:B,W10)) -> 0.009975355005 | K138: =SUMIFS(export_oee!D:D,export_oee!A:A,W9,export_oee!B:B,W10) -> 489 | M138: =IF(K138<2,"offre en stock","offres en stock") -> offres en stock
B139: =IF(B137=0,0,SUMIFS(export_oee!F:F,export_oee!A:A,W9,export_oee!B:B,W10)/SUMIFS(export_oee!E:E,export_oee!A:A,W9,export_oee!B:B,W10)) -> 0.6424128623 | C139: CDI et CDD de plus de 6 mois | F139: =IF(SUMIFS(export_oee!O:O,export_oee!A:A,W9,export_oee!B:B,W10)=0,"",IF(ABS(SUMIFS(export_oee!F:F,export_oee!A:A,W9,export_oee!B:B,W10)/SUMIFS(export_oee!O:O,export_oee!A:A,W9,export_oee!B:B,W10)-1)>150%,"",SUMIFS(export_oee!F:F,export_oee!A:A,W9,export_oee!B:B,W10)/SUMIFS(export_oee!O:O,export_oee!A:A,W9,export_oee!B:B,W10)-1)) -> -0.07188877586 | H139: Commerce | I139: =IF(B137=0,0,SUMIFS(export_oee!L:L,export_oee!A:A,W9,export_oee!B:B,W10)/SUMIFS(export_oee!E:E,export_oee!A:A,W9,export_oee!B:B,W10)) -> 0.07839455463
B140: =IF(B137=0,0,(SUMIFS(export_oee!G:G,export_oee!A:A,W9,export_oee!B:B,W10)+SUMIFS(export_oee!H:H,export_oee!A:A,W9,export_oee!B:B,W10))/SUMIFS(export_oee!E:E,export_oee!A:A,W9,export_oee!B:B,W10)) -> 0.3575871377 | C140: CDD de 6 mois ou moins / intérim | F140: =IF((SUMIFS(export_oee!P:P,export_oee!A:A,W9,export_oee!B:B,W10)+SUMIFS(export_oee!Q:Q,export_oee!A:A,W9,export_oee!B:B,W10))=0,"",IF(ABS((SUMIFS(export_oee!G:G,export_oee!A:A,W9,export_oee!B:B,W10)+SUMIFS(export_oee!H:H,export_oee!A:A,W9,export_oee!B:B,W10))/(SUMIFS(export_oee!P:P,export_oee!A:A,W9,export_oee!B:B,W10)+SUMIFS(export_oee!Q:Q,export_oee!A:A,W9,export_oee!B:B,W10))-1)>150%,"",(SUMIFS(export_oee!G:G,export_oee!A:A,W9,export_oee!B:B,W10)+SUMIFS(export_oee!H:H,export_oee!A:A,W9,export_oee!B:B,W10))/(SUMIFS(export_oee!P:P,export_oee!A:A,W9,export_oee!B:B,W10)+SUMIFS(export_oee!Q:Q,export_oee!A:A,W9,export_oee!B:B,W10))-1)) -> -0.1887646432 | H140: Services | I140: =IF(B137=0,0,SUMIFS(export_oee!M:M,export_oee!A:A,W9,export_oee!B:B,W10)/SUMIFS(export_oee!E:E,export_oee!A:A,W9,export_oee!B:B,W10)) -> 0.8859288816 | K140: =Z22 -> Au 31 décembre 2023
B142: Entrées en formation | F142: =Z23 -> Cumul annuel glissant au 3e trim. 2023
B144: =IF(SUMIFS(export_form!D:D,export_form!A:A,W9,export_form!B:B,W10)<5,"<5",SUMIFS(export_form!D:D,export_form!A:A,W9,export_form!B:B,W10)) -> 2726 | C144: =IF(B144=0,"entrée en formation bénéficient à des demandeurs d'emploi",IF(B144<2,"entrée en formation bénéficient à des demandeurs d'emploi, dont :","entrées en formation bénéficient à des demandeurs d'emploi, dont :")) -> entrées en formation bénéficient à des demandeurs d'emploi, dont : | N144: Principaux champs de formation
B146: =IF(SUMIFS(export_form!D:D,export_form!A:A,W9,export_form!B:B,W10)=0,"",SUMIFS(export_form!F:F,export_form!A:A,W9,export_form!B:B,W10)/SUMIFS(export_form!D:D,export_form!A:A,W9,export_form!B:B,W10)) -> 0.2043286867 | C146: =IF(B146="","","financées par France Travail") -> financées par France Travail | I146: =IF(ISNA(VLOOKUP(LEFT(W9,LEN(W9))&W10&"1 ",Export_top3_form!D:F,3,FALSE))=TRUE,"",IF(VLOOKUP(LEFT(W9,LEN(W9))&W10&"1 ",Export_top3_form!D:F,3,FALSE)=0,"",IF(VLOOKUP(LEFT(W9,LEN(W9))&W10&"1 ",Export_top3_form!D:F,3,FALSE)<5,"<5",VLOOKUP(LEFT(W9,LEN(W9))&W10&"1 ",Export_top3_form!D:F,3,FALSE)))) -> 674 | J146: =IF(I146="","Pas de Formation",VLOOKUP(LEFT(VLOOKUP(LEFT(W9,LEN(W9))&W10&"1 ",Export_top3_form!D:F,2,FALSE),LEN(VLOOKUP(LEFT(W9,LEN(W9))&W10&"1 ",Export_top3_form!D:F,2,FALSE))),Réf!N:O,2,FALSE)) -> Développement professionnel et personnel
B147: =IF(SUMIFS(export_form!D:D,export_form!A:A,W9,export_form!B:B,W10)=0,"",SUMIFS(export_form!H:H,export_form!A:A,W9,export_form!B:B,W10)/SUMIFS(export_form!D:D,export_form!A:A,W9,export_form!B:B,W10)) -> 0.4086573734 | C147: =IF(B147="","","financées par le Conseil Régional") -> financées par le Conseil Régional | I147: =IF(ISNA(VLOOKUP(LEFT(W9,LEN(W9))&W10&"2 ",Export_top3_form!D:F,3,FALSE))=TRUE,"",IF(VLOOKUP(LEFT(W9,LEN(W9))&W10&"2 ",Export_top3_form!D:F,3,FALSE)=0,"",IF(VLOOKUP(LEFT(W9,LEN(W9))&W10&"2 ",Export_top3_form!D:F,3,FALSE)<5,"<5",VLOOKUP(LEFT(W9,LEN(W9))&W10&"2 ",Export_top3_form!D:F,3,FALSE)))) -> 523 | J147: =IF(I147="","",VLOOKUP(LEFT(VLOOKUP(LEFT(W9,LEN(W9))&W10&"2 ",Export_top3_form!D:F,2,FALSE),LEN(VLOOKUP(LEFT(W9,LEN(W9))&W10&"2 ",Export_top3_form!D:F,2,FALSE))),Réf!N:O,2,FALSE)) -> Transport
B148: =IF(SUMIFS(export_form!D:D,export_form!A:A,W9,export_form!B:B,W10)=0,"",SUMIFS(export_form!J:J,export_form!A:A,W9,export_form!B:B,W10)/SUMIFS(export_form!D:D,export_form!A:A,W9,export_form!B:B,W10)) -> 0.3286867205 | C148: =IF(B148="","","autofinancées (CPF)") -> autofinancées (CPF) | I148: =IF(ISNA(VLOOKUP(LEFT(W9,LEN(W9))&W10&"3 ",Export_top3_form!D:F,3,FALSE))=TRUE,"",IF(VLOOKUP(LEFT(W9,LEN(W9))&W10&"3 ",Export_top3_form!D:F,3,FALSE)=0,"",IF(VLOOKUP(LEFT(W9,LEN(W9))&W10&"3 ",Export_top3_form!D:F,3,FALSE)<5,"<5",VLOOKUP(LEFT(W9,LEN(W9))&W10&"3 ",Export_top3_form!D:F,3,FALSE)))) -> 123 | J148: =IF(I148="","",VLOOKUP(LEFT(VLOOKUP(LEFT(W9,LEN(W9))&W10&"3 ",Export_top3_form!D:F,2,FALSE),LEN(VLOOKUP(LEFT(W9,LEN(W9))&W10&"3 ",Export_top3_form!D:F,2,FALSE))),Réf!N:O,2,FALSE)) -> Hôtellerie restauration
C150: Accès à l'emploi dans les 6 mois qui suivent la sortie de formation
C151: ="("&Z27&")" -> (Cumul annuel glissant au 1er trim. 2023)
B152: =IF(SUMIFS(export_sortants!$D:$D,export_sortants!$A:$A,$W$9,export_sortants!$B:$B,$W$10)<60," ",SUMIFS(export_sortants!$D:$D,export_sortants!$A:$A,$W$9,export_sortants!$B:$B,$W$10)/SUMIFS(export_sortants!$F:$F,export_sortants!$A:$A,$W$9,export_sortants!$B:$B,$W$10)) -> 0.5662020906 | C152: =IF(B152=" ", "Le nombre de sortants est trop faible pour calculer l'accès à l'emploi.","ont eu au moins un accès à l'emploi (de plus d'un mois) dans les 6 mois") -> ont eu au moins un accès à l'emploi (de plus d'un mois) dans les 6 mois
B153: =IF(B152=" "," ",IF(ROUND((SUMIFS(export_sortants!$D:$D,export_sortants!$A:$A,$W$9,export_sortants!$B:$B,$W$10)/SUMIFS(export_sortants!$F:$F,export_sortants!$A:$A,$W$9,export_sortants!$B:$B,$W$10))*100,1)-ROUND((SUMIFS(export_sortants!$E:$E,export_sortants!$A:$A,$W$9,export_sortants!$B:$B,$W$10)/SUMIFS(export_sortants!$G:$G,export_sortants!$A:$A,$W$9,export_sortants!$B:$B,$W$10))*100,1)>0,"+"&ROUND(SUMIFS(export_sortants!$D:$D,export_sortants!$A:$A,$W$9,export_sortants!$B:$B,$W$10)/SUMIFS(export_sortants!$F:$F,export_sortants!$A:$A,$W$9,export_sortants!$B:$B,$W$10)*100-(SUMIFS(export_sortants!$E:$E,export_sortants!$A:$A,$W$9,export_sortants!$B:$B,$W$10)/SUMIFS(export_sortants!$G:$G,export_sortants!$A:$A,$W$9,export_sortants!$B:$B,$W$10))*100,1),ROUND((SUMIFS(export_sortants!$D:$D,export_sortants!$A:$A,$W$9,export_sortants!$B:$B,$W$10)/SUMIFS(export_sortants!$F:$F,export_sortants!$A:$A,$W$9,export_sortants!$B:$B,$W$10))*100,1)-ROUND((SUMIFS(export_sortants!$E:$E,export_sortants!$A:$A,$W$9,export_sortants!$B:$B,$W$10)/SUMIFS(export_sortants!$G:$G,export_sortants!$A:$A,$W$9,export_sortants!$B:$B,$W$10))*100,1))) -> -1.8 | C153: =IF(B152=" "," ","points en un an") -> points en un an

Sheet export_pop (hidden)
A1: type | B1: code | C1: libelle | D1: pop_actu | E1: pop_5ans | F1: superficie | G1: pop_jeune | H1: pop_inter | I1: pop_senior | J1: pop_agri | K1: po_arti | L1: pop_ouvriers | M1: pop_empl | N1: pop_profint | O1: pop_cadres
A2: Commune | B2: 14001 | D2: 1194 | E2: 1205 | F2: 12 | G2: 358 | H2: 506 | I2: 330 | J2: 5 | K2: 64 | L2: 110 | M2: 139 | N2: 111 | O2: 79
A3: Commune | B3: 14003 | D3: 310 | E3: 265 | F3: 4 | G3: 99 | H3: 124 | I3: 87 | J3: 10 | K3: 15 | L3: 30 | M3: 35 | N3: 30 | O3: 15
A4: Commune | B4: 14005 | D4: 1700 | E4: 1788 | F4: 41 | G4: 586 | H4: 694 | I4: 420 | J4: 25 | K4: 65 | L4: 235 | M4: 150 | N4: 185 | O4: 60
A5: Commune | B5: 14006 | D5: 1067 | E5: 988 | F5: 5 | G5: 359 | H5: 440 | I5: 267 | J5: 0 | K5: 21 | L5: 36 | M5: 101 | N5: 214 | O5: 86
A6: Commune | B6: 14007 | D6: 224 | E6: 209 | F6: 6 | G6: 70 | H6: 94 | I6: 59 | J6: 5 | K6: 5 | L6: 42 | M6: 21 | N6: 42 | O6: 5
A7: Commune | B7: 14009 | D7: 1378 | E7: 1383 | F7: 6 | G7: 445 | H7: 572 | I7: 360 | J7: 0 | K7: 30 | L7: 101 | M7: 187 | N7: 192 | O7: 92
A8: Commune | B8: 14011 | D8: 1899 | E8: 1947 | F8: 46 | G8: 681 | H8: 815 | I8: 403 | J8: 69 | K8: 51 | L8: 174 | M8: 203 | N8: 253 | O8: 89
A9: Commune | B9: 14012 | D9: 195 | E9: 132 | F9: 4 | G9: 78 | H9: 78 | I9: 39 | J9: 0 | K9: 5 | L9: 31 | M9: 5 | N9: 10 | O9: 21
A10: Commune | B10: 14014 | D10: 1256 | E10: 1144 | F10: 6 | G10: 415 | H10: 522 | I10: 318 | J10: 13 | K10: 47 | L10: 55 | M10: 98 | N10: 208 | O10: 164
A11: Commune | B11: 14015 | D11: 742 | E11: 702 | F11: 4 | G11: 234 | H11: 288 | I11: 220 | J11: 0 | K11: 30 | L11: 20 | M11: 45 | N11: 95 | O11: 140
A12: Commune | B12: 14016 | D12: 490 | E12: 425 | F12: 6 | G12: 157 | H12: 217 | I12: 116 | J12: 5 | K12: 20 | L12: 66 | M12: 66 | N12: 51 | O12: 10
A13: Commune | B13: 14019 | D13: 216 | E13: 234 | F13: 7 | G13: 63 | H13: 89 | I13: 64 | J13: 15 | K13: 5 | L13: 20 | M13: 25 | N13: 25 | O13: 5
A14: Commune | B14: 14020 | D14: 3798 | E14: 3642 | F14: 10 | G14: 1315 | H14: 1391 | I14: 1092 | J14: 0 | K14: 75 | L14: 390 | M14: 450 | N14: 375 | O14: 165
A15: Commune | B15: 14021 | D15: 465 | E15: 532 | F15: 1 | G15: 92 | H15: 175 | I15: 198 | J15: 5 | K15: 41 | L15: 18 | M15: 39 | N15: 24 | O15: 24
A16: Commune | B16: 14022 | D16: 603 | E16: 593 | F16: 3 | G16: 124 | H16: 170 | I16: 310 | J16: 5 | K16: 14 | L16: 24 | M16: 42 | N16: 47 | O16: 14
A17: Commune | B17: 14023 | D17: 69 | E17: 62 | F17: 5 | G17: 21 | H17: 29 | I17: 19 | J17: 15 | K17: 0 | L17: 10 | M17: 5 | N17: 0 | O17: 0
A18: Commune | B18: 14024 | D18: 591 | E18: 468 | F18: 3 | G18: 206 | H18: 240 | I18: 145 | J18: 0 | K18: 41 | L18: 67 | M18: 77 | N18: 51 | O18: 26
A19: Commune | B19: 14025 | D19: 315 | E19: 284 | F19: 5 | G19: 103 | H19: 128 | I19: 84 | J19: 0 | K19: 10 | L19: 26 | M19: 36 | N19: 51 | O19: 10
A20: Commune | B20: 14026 | D20: 1125 | E20: 1020 | F20: 11 | G20: 417 | H20: 459 | I20: 249 | J20: 5 | K20: 25 | L20: 147 | M20: 122 | N20: 192 | O20: 36
A21: Commune | B21: 14027 | D21: 4595 | E21: 4782 | F21: 69 | G21: 1608 | H21: 1771 | I21: 1216 | J21: 40 | K21: 82 | L21: 570 | M21: 767 | N21: 351 | O21: 144
A22: Commune | B22: 14030 | D22: 1666 | E22: 1529 | F22: 3 | G22: 553 | H22: 700 | I22: 413 | J22: 5 | K22: 68 | L22: 71 | M22: 138 | N22: 236 | O22: 205
A23: Commune | B23: 14032 | D23: 275 | E23: 293 | F23: 10 | G23: 80 | H23: 111 | I23: 84 | J23: 0 | K23: 30 | L23: 20 | M23: 20 | N23: 35 | O23: 5
A24: Commune | B24: 14033 | D24: 212 | E24: 243 | F24: 12 | G24: 58 | H24: 87 | I24: 67 | J24: 5 | K24: 14 | L24: 43 | M24: 14 | N24: 24 | O24: 0
A25: Commune | B25: 14034 | D25: 572 | E25: 545 | F25: 6 | G25: 236 | H25: 250 | I25: 87 | J25: 15 | K25: 21 | L25: 46 | M25: 61 | N25: 103 | O25: 47
A26: Commune | B26: 14035 | D26: 1346 | E26: 1432 | F26: 12 | G26: 510 | H26: 515 | I26: 320 | J26: 9 | K26: 46 | L26: 123 | M26: 199 | N26: 118 | O26: 67
A27: Commune | B27: 14036 | D27: 171 | E27: 157 | F27: 6 | G27: 68 | H27: 73 | I27: 30 | J27: 5 | K27: 10 | L27: 10 | M27: 25 | N27: 20 | O27: 15
A28: Commune | B28: 14037 | D28: 567 | E28: 513 | F28: 12 | G28: 210 | H28: 242 | I28: 115 | J28: 5 | K28: 29 | L28: 54 | M28: 56 | N28: 93 | O28: 49
A29: Commune | B29: 14038 | D29: 792 | E29: 717 | F29: 5 | G29: 257 | H29: 313 | I29: 222 | J29: 5 | K29: 39 | L29: 40 | M29: 137 | N29: 121 | O29: 30
A30: Commune | B30: 14039 | D30: 802 | E30: 818 | F30: 9 | G30: 319 | H30: 350 | I30: 133 | J30: 19 | K30: 20 | L30: 67 | M30: 91 | N30: 134 | O30: 57
A31: Commune | B31: 14040 | D31: 210 | E31: 178 | F31: 3 | G31: 61 | H31: 103 | I31: 46 | J31: 0 | K31: 17 | L31: 33 | M31: 33 | N31: 28 | O31: 11
A32: Commune | B32: 14041 | D32: 123 | E32: 131 | F32: 4 | G32: 26 | H32: 47 | I32: 50 | J32: 0 | K32: 10 | L32: 10 | M32: 10 | N32: 20 | O32: 15
A33: Commune | B33: 14042 | D33: 1005 | E33: 873 | F33: 6 | G33: 345 | H33: 426 | I33: 234 | J33: 5 | K33: 21 | L33: 43 | M33: 144 | N33: 159 | O33: 80
A34: Commune | B34: 14043 | D34: 69 | E34: 84 | F34: 8 | G34: 10 | H34: 26 | I34: 34 | J34: 0 | K34: 0 | L34: 20 | M34: 5 | N34: 5 | O34: 0
A35: Commune | B35: 14044 | D35: 1065 | E35: 1164 | F35: 4 | G35: 397 | H35: 453 | I35: 214 | J35: 15 | K35: 29 | L35: 78 | M35: 99 | N35: 201 | O35: 103
A36: Commune | B36: 14045 | D36: 249 | E36: 260 | F36: 11 | G36: 80 | H36: 99 | I36: 70 | J36: 0 | K36: 10 | L36: 20 | M36: 50 | N36: 15 | O36: 15
A37: Commune | B37: 14046 | D37: 1932 | E37: 1745 | F37: 18 | G37: 668 | H37: 808 | I37: 456 | J37: 0 | K37: 53 | L37: 196 | M37: 207 | N37: 250 | O37: 143
A38: Commune | B38: 14047 | D38: 12640 | E38: 13917 | F38: 7 | G38: 3730 | H38: 4246 | I38: 4665 | J38: 21 | K38: 304 | L38: 1090 | M38: 1419 | N38: 1030 | O38: 578
A39: Commune | B39: 14049 | D39: 141 | E39: 143 | F39: 4 | G39: 29 | H39: 67 | I39: 45 | J39: 10 | K39: 15 | L39: 15 | M39: 0 | N39: 24 | O39: 24
A40: Commune | B40: 14050 | D40: 185 | E40: 180 | F40: 10 | G40: 70 | H40: 75 | I40: 41 | J40: 5 | K40: 0 | L40: 26 | M40: 15 | N40: 20 | O40: 0
A41: Commune | B41: 14053 | D41: 167 | E41: 176 | F41: 11 | G41: 52 | H41: 67 | I41: 48 | J41: 0 | K41: 0 | L41: 15 | M41: 25 | N41: 15 | O41: 0
A42: Commune | B42: 14054 | D42: 202 | E42: 212 | F42: 5 | G42: 66 | H42: 85 | I42: 51 | J42: 0 | K42: 0 | L42: 29 | M42: 15 | N42: 24 | O42: 20
A43: Commune | B43: 14055 | D43: 409 | E43: 420 | F43: 8 | G43: 118 | H43: 144 | I43: 147 | J43: 5 | K43: 26 | L43: 31 | M43: 31 | N43: 51 | O43: 31
A44: Commune | B44: 14057 | D44: 1470 | E44: 1539 | F44: 10 | G44: 506 | H44: 596 | I44: 368 | J44: 5 | K44: 30 | L44: 170 | M44: 175 | N44: 230 | O44: 10
A45: Commune | B45: 14059 | D45: 420 | E45: 475 | F45: 3 | G45: 74 | H45: 136 | I45: 210 | J45: 10 | K45: 9 | L45: 10 | M45: 40 | N45: 20 | O45: 45
A46: Commune | B46: 14060 | D46: 2039 | E46: 2099 | F46: 5 | G46: 564 | H46: 803 | I46: 672 | J46: 0 | K46: 95 | L46: 140 | M46: 220 | N46: 235 | O46: 225
A47: Commune | B47: 14061 | D47: 8848 | E47: 8735 | F47: 187 | G47: 3062 | H47: 3425 | I47: 2361 | J47: 147 | K47: 293 | L47: 1360 | M47: 878 | N47: 824 | O47: 359
A48: Commune | B48: 14062 | D48: 444 | E48: 439 | F48: 7 | G48: 158 | H48: 197 | I48: 89 | J48: 20 | K48: 10 | L48: 45 | M48: 66 | N48: 30 | O48: 45
A49: Commune | B49: 14063 | D49: 213 | E49: 187 | F49: 6 | G49: 71 | H49: 89 | I49: 54 | J49: 0 | K49: 10 | L49: 30 | M49: 50 | N49: 10 | O49: 0
A50: Commune | B50: 14064 | D50: 221 | E50: 252 | F50: 9 | G50: 68 | H50: 91 | I50: 62 | J50: 0 | K50: 5 | L50: 44 | M50: 5 | N50: 10 | O50: 20
A51: Commune | B51: 14066 | D51: 2330 | E51: 2348 | F51: 8 | G51: 643 | H51: 859 | I51: 828 | J51: 5 | K51: 67 | L51: 181 | M51: 224 | N51: 238 | O51: 247
A52: Commune | B52: 14068 | D52: 3646 | E52: 2945 | F52: 11 | G52: 1161 | H52: 1396 | I52: 1089 | J52: 5 | K52: 180 | L52: 175 | M52: 315 | N52: 420 | O52: 415
A53: Commune | B53: 14069 | D53: 1331 | E53: 1379 | F53: 5 | G53: 455 | H53: 533 | I53: 343 | J53: 5 | K53: 25 | L53: 150 | M53: 207 | N53: 156 | O53: 64
A54: Commune | B54: 14070 | D54: 197 | E54: 210 | F54: 10 | G54: 39 | H54: 69 | I54: 89 | J54: 0 | K54: 10 | L54: 20 | M54: 20 | N54: 10 | O54: 25
A55: Commune | B55: 14076 | D55: 5761 | E55: 5514 | F55: 7 | G55: 2118 | H55: 2255 | I55: 1389 | J55: 0 | K55: 101 | L55: 606 | M55: 833 | N55: 662 | O55: 256
A56: Commune | B56: 14077 | D56: 728 | E56: 686 | F56: 11 | G56: 220 | H56: 258 | I56: 250 | J56: 0 | K56: 10 | L56: 47 | M56: 89 | N56: 78 | O56: 31
A57: Commune | B57: 14078 | D57: 364 | E57: 382 | F57: 7 | G57: 125 | H57: 151 | I57: 88 | J57: 5 | K57: 10 | L57: 40 | M57: 20 | N57: 45 | O57: 15
A58: Commune | B58: 14079 | D58: 1552 | E58: 1528 | F58: 7 | G58: 366 | H58: 496 | I58: 690 | J58: 0 | K58: 118 | L58: 84 | M58: 145 | N58: 110 | O58: 64
A59: Commune | B59: 14080 | D59: 125 | E59: 106 | F59: 4 | G59: 39 | H59: 58 | I59: 27 | J59: 5 | K59: 10 | L59: 0 | M59: 10 | N59: 10 | O59: 5
A60: Commune | B60: 14082 | D60: 189 | E60: 199 | F60: 2 | G60: 77 | H60: 83 | I60: 29 | J60: 0 | K60: 5 | L60: 20 | M60: 25 | N60: 5 | O60: 10
A61: Commune | B61: 14083 | D61: 666 | E61: 701 | F61: 12 | G61: 197 | H61: 263 | I61: 206 | J61: 5 | K61: 29 | L61: 115 | M61: 50 | N61: 86 | O61: 10
A62: Commune | B62: 14084 | D62: 398 | E62: 398 | F62: 8 | G62: 116 | H62: 173 | I62: 109 | J62: 0 | K62: 30 | L62: 35 | M62: 39 | N62: 45 | O62: 10
A63: Commune | B63: 14085 | D63: 814 | E63: 756 | F63: 21 | G63: 248 | H63: 305 | I63: 261 | J63: 5 | K63: 55 | L63: 95 | M63: 95 | N63: 90 | O63: 25
A64: Commune | B64: 14086 | D64: 321 | E64: 374 | F64: 7 | G64: 80 | H64: 122 | I64: 119 | J64: 10 | K64: 34 | L64: 30 | M64: 30 | N64: 10 | O64: 29
A65: Commune | B65: 14087 | D65: 122 | E65: 131 | F65: 7 | G65: 36 | H65: 46 | I65: 41 | J65: 5 | K65: 5 | L65: 15 | M65: 19 | N65: 0 | O65: 0
A66: Commune | B66: 14088 | D66: 401 | E66: 389 | F66: 9 | G66: 139 | H66: 170 | I66: 92 | J66: 0 | K66: 15 | L66: 37 | M66: 80 | N66: 46 | O66: 26
A67: Commune | B67: 14089 | D67: 390 | E67: 419 | F67: 3 | G67: 147 | H67: 188 | I67: 55 | J67: 0 | K67: 5 | L67: 40 | M67: 80 | N67: 90 | O67: 20
A68: Commune | B68: 14090 | D68: 778 | E68: 653 | F68: 15 | G68: 263 | H68: 338 | I68: 177 | J68: 5 | K68: 21 | L68: 95 | M68: 74 | N68: 138 | O68: 32
A69: Commune | B69: 14091 | D69: 100 | E69: 109 | F69: 6 | G69: 23 | H69: 36 | I69: 41 | J69: 5 | K69: 0 | L69: 5 | M69: 5 | N69: 19 | O69: 5
A70: Commune | B70: 14092 | D70: 2304 | E70: 1771 | F70: 6 | G70: 961 | H70: 1038 | I70: 305 | J70: 0 | K70: 86 | L70: 252 | M70: 476 | N70: 257 | O70: 135
A71: Commune | B71: 14093 | D71: 198 | E71: 220 | F71: 6 | G71: 66 | H71: 86 | I71: 46 | J71: 0 | K71: 0 | L71: 40 | M71: 30 | N71: 5 | O71: 10
A72: Commune | B72: 14096 | D72: 236 | E72: 219 | F72: 13 | G72: 92 | H72: 87 | I72: 57 | J72: 14 | K72: 9 | L72: 32 | M72: 14 | N72: 14 | O72: 5
A73: Commune | B73: 14097 | D73: 303 | E73: 289 | F73: 5 | G73: 121 | H73: 125 | I73: 57 | J73: 0 | K73: 10 | L73: 26 | M73: 46 | N73: 41 | O73: 25
A74: Commune | B74: 14098 | D74: 6150 | E74: 5449 | F74: 37 | G74: 2260 | H74: 2628 | I74: 1262 | J74: 19 | K74: 142 | L74: 530 | M74: 800 | N74: 966 | O74: 508
A75: Commune | B75: 14100 | D75: 1912 | E75: 1780 | F75: 10 | G75: 700 | H75: 738 | I75: 474 | J75: 5 | K75: 49 | L75: 192 | M75: 326 | N75: 160 | O75: 90
A76: Commune | B76: 14101 | D76: 4069 | E76: 3889 | F76: 6 | G76: 1260 | H76: 1423 | I76: 1387 | J76: 5 | K76: 152 | L76: 168 | M76: 377 | N76: 458 | O76: 441
A77: Commune | B77: 14102 | D77: 994 | E77: 1019 | F77: 9 | G77: 248 | H77: 358 | I77: 388 | J77: 0 | K77: 31 | L77: 58 | M77: 94 | N77: 177 | O77: 52
A78: Commune | B78: 14103 | D78: 415 | E78: 437 | F78: 4 | G78: 135 | H78: 178 | I78: 103 | J78: 0 | K78: 10 | L78: 46 | M78: 73 | N78: 21 | O78: 10
A79: Commune | B79: 14104 | D79: 178 | E79: 170 | F79: 4 | G79: 52 | H79: 83 | I79: 43 | J79: 4 | K79: 21 | L79: 17 | M79: 13 | N79: 16 | O79: 4
A80: Commune | B80: 14106 | D80: 659 | E80: 651 | F80: 5 | G80: 203 | H80: 254 | I80: 202 | J80: 10 | K80: 35 | L80: 25 | M80: 85 | N80: 80 | O80: 59
A81: Commune | B81: 14107 | D81: 155 | E81: 165 | F81: 7 | G81: 53 | H81: 62 | I81: 40 | J81: 0 | K81: 5 | L81: 20 | M81: 10 | N81: 25 | O81: 10
A82: Commune | B82: 14110 | D82: 126 | E82: 123 | F82: 7 | G82: 33 | H82: 51 | I82: 42 | J82: 5 | K82: 15 | L82: 10 | M82: 10 | N82: 5 | O82: 10
A83: Commune | B83: 14111 | D83: 437 | E83: 361 | F83: 5 | G83: 155 | H83: 181 | I83: 101 | J83: 0 | K83: 6 | L83: 32 | M83: 72 | N83: 88 | O83: 22
A84: Commune | B84: 14116 | D84: 113 | E84: 107 | F84: 3 | G84: 36 | H84: 55 | I84: 22 | J84: 0 | K84: 0 | L84: 15 | M84: 25 | N84: 5 | O84: 0
A85: Commune | B85: 14117 | D85: 3511 | E85: 3673 | F85: 6 | G85: 709 | H85: 951 | I85: 1852 | J85: 4 | K85: 100 | L85: 251 | M85: 259 | N85: 191 | O85: 89
A86: Commune | B86: 14118 | D86: 107250 | E86: 106538 | F86: 26 | G86: 48587 | H86: 33786 | I86: 24878 | J86: 42 | K86: 1757 | L86: 5849 | M86: 11037 | N86: 11340 | O86: 9797
A87: Commune | B87: 14119 | D87: 2003 | E87: 1607 | F87: 8 | G87: 776 | H87: 749 | I87: 478 | J87: 0 | K87: 62 | L87: 246 | M87: 321 | N87: 195 | O87: 46
A88: Commune | B88: 14120 | D88: 1400 | E88: 1400 | F88: 24 | G88: 515 | H88: 582 | I88: 303 | J88: 50 | K88: 50 | L88: 161 | M88: 121 | N88: 171 | O88: 60
A89: Commune | B89: 14121 | D89: 256 | E89: 255 | F89: 7 | G89: 90 | H89: 118 | I89: 48 | J89: 10 | K89: 5 | L89: 20 | M89: 25 | N89: 45 | O89: 10
A90: Commune | B90: 14122 | D90: 158 | E90: 139 | F90: 2 | G90: 65 | H90: 66 | I90: 27 | J90: 0 | K90: 5 | L90: 15 | M90: 20 | N90: 30 | O90: 0
A91: Commune | B91: 14123 | D91: 2029 | E91: 1901 | F91: 6 | G91: 667 | H91: 844 | I91: 519 | J91: 5 | K91: 87 | L91: 56 | M91: 188 | N91: 350 | O91: 294
A92: Commune | B92: 14124 | D92: 548 | E92: 608 | F92: 11 | G92: 158 | H92: 189 | I92: 201 | J92: 10 | K92: 5 | L92: 59 | M92: 30 | N92: 79 | O92: 10
A93: Commune | B93: 14125 | D93: 1717 | E93: 1517 | F93: 3 | G93: 545 | H93: 691 | I93: 482 | J93: 0 | K93: 35 | L93: 97 | M93: 220 | N93: 240 | O93: 216
A94: Commune | B94: 14126 | D94: 1322 | E94: 1349 | F94: 27 | G94: 400 | H94: 485 | I94: 437 | J94: 20 | K94: 60 | L94: 105 | M94: 135 | N94: 145 | O94: 100
A95: Commune | B95: 14127 | D95: 555 | E95: 498 | F95: 10 | G95: 217 | H95: 224 | I95: 114 | J95: 0 | K95: 5 | L95: 120 | M95: 65 | N95: 35 | O95: 10
A96: Commune | B96: 14130 | D96: 186 | E96: 192 | F96: 6 | G96: 58 | H96: 78 | I96: 49 | J96: 5 | K96: 5 | L96: 30 | M96: 10 | N96: 45 | O96: 0
A97: Commune | B97: 14131 | D97: 226 | E97: 216 | F97: 3 | G97: 56 | H97: 88 | I97: 82 | J97: 0 | K97: 10 | L97: 20 | M97: 45 | N97: 35 | O97: 10
A98: Commune | B98: 14132 | D98: 205 | E98: 208 | F98: 6 | G98: 61 | H98: 84 | I98: 61 | J98: 5 | K98: 10 | L98: 25 | M98: 20 | N98: 10 | O98: 20
A99: Commune | B99: 14134 | D99: 190 | E99: 192 | F99: 2 | G99: 48 | H99: 79 | I99: 63 | J99: 0 | K99: 5 | L99: 20 | M99: 35 | N99: 15 | O99: 0
A100: Commune | B100: 14135 | D100: 281 | E100: 295 | F100: 4 | G100: 97 | H100: 107 | I100: 77 | J100: 0 | K100: 20 | L100: 30 | M100: 20 | N100: 25 | O100: 5
A101: Commune | B101: 14136 | D101: 96 | E101: 100 | F101: 3 | G101: 42 | H101: 34 | I101: 20 | J101: 5 | K101: 0 | L101: 10 | M101: 10 | N101: 5 | O101: 0
A102: Commune | B102: 14137 | D102: 3137 | E102: 2395 | F102: 6 | G102: 1113 | H102: 1206 | I102: 817 | J102: 5 | K102: 121 | L102: 367 | M102: 398 | N102: 436 | O102: 147
A103: Commune | B103: 14138 | D103: 295 | E103: 311 | F103: 10 | G103: 96 | H103: 132 | I103: 66 | J103: 10 | K103: 20 | L103: 39 | M103: 34 | N103: 29 | O103: 10
A104: Commune | B104: 14140 | D104: 352 | E104: 333 | F104: 11 | G104: 131 | H104: 146 | I104: 75 | J104: 10 | K104: 25 | L104: 35 | M104: 55 | N104: 35 | O104: 5
A105: Commune | B105: 14141 | D105: 160 | E105: 170 | F105: 7 | G105: 67 | H105: 61 | I105: 33 | J105: 14 | K105: 14 | L105: 19 | M105: 5 | N105: 14 | O105: 10
A106: Commune | B106: 14143 | D106: 2394 | E106: 2407 | F106: 40 | G106: 777 | H106: 912 | I106: 706 | J106: 68 | K106: 45 | L106: 393 | M106: 272 | N106: 206 | O106: 70
A107: Commune | B107: 14145 | D107: 550 | E107: 489 | F107: 10 | G107: 207 | H107: 223 | I107: 120 | J107: 0 | K107: 11 | L107: 47 | M107: 52 | N107: 73 | O107: 21
A108: Commune | B108: 14146 | D108: 169 | E108: 156 | F108: 6 | G108: 47 | H108: 82 | I108: 40 | J108: 0 | K108: 5 | L108: 25 | M108: 20 | N108: 25 | O108: 5
A109: Commune | B109: 14147 | D109: 139 | E109: 150 | F109: 6 | G109: 47 | H109: 58 | I109: 34 | J109: 0 | K109: 0 | L109: 35 | M109: 25 | N109: 10 | O109: 0
A110: Commune | B110: 14149 | D110: 416 | E110: 474 | F110: 4 | G110: 156 | H110: 170 | I110: 90 | J110: 0 | K110: 0 | L110: 30 | M110: 45 | N110: 64 | O110: 31
A111: Commune | B111: 14150 | D111: 1365 | E111: 1323 | F111: 34 | G111: 448 | H111: 528 | I111: 389 | J111: 24 | K111: 29 | L111: 129 | M111: 192 | N111: 150 | O111: 34
A112: Commune | B112: 14159 | D112: 229 | E112: 227 | F112: 3 | G112: 78 | H112: 100 | I112: 51 | J112: 0 | K112: 5 | L112: 21 | M112: 10 | N112: 52 | O112: 10
A113: Commune | B113: 14160 | D113: 187 | E113: 199 | F113: 8 | G113: 75 | H113: 74 | I113: 38 | J113: 5 | K113: 20 | L113: 30 | M113: 49 | N113: 10 | O113: 5
A114: Commune | B114: 14161 | D114: 331 | E114: 375 | F114: 10 | G114: 88 | H114: 131 | I114: 112 | J114: 15 | K114: 25 | L114: 20 | M114: 45 | N114: 25 | O114: 5
A115: Commune | B115: 14162 | D115: 1305 | E115: 1251 | F115: 25 | G115: 412 | H115: 488 | I115: 404 | J115: 0 | K115: 46 | L115: 136 | M115: 172 | N115: 121 | O115: 45
A116: Commune | B116: 14163 | D116: 387 | E116: 367 | F116: 9 | G116: 131 | H116: 157 | I116: 99 | J116: 0 | K116: 10 | L116: 45 | M116: 55 | N116: 65 | O116: 10
A117: Commune | B117: 14165 | D117: 184 | E117: 189 | F117: 7 | G117: 46 | H117: 78 | I117: 60 | J117: 0 | K117: 5 | L117: 5 | M117: 18 | N117: 23 | O117: 9
A118: Commune | B118: 14166 | D118: 2546 | E118: 2347 | F118: 8 | G118: 747 | H118: 954 | I118: 845 | J118: 0 | K118: 134 | L118: 159 | M118: 218 | N118: 263 | O118: 193
A119: Commune | B119: 14167 | D119: 7029 | E119: 6258 | F119: 7 | G119: 2778 | H119: 2552 | I119: 1699 | J119: 5 | K119: 85 | L119: 864 | M119: 919 | N119: 651 | O119: 255
A120: Commune | B120: 14168 | D120: 205 | E120: 209 | F120: 11 | G120: 54 | H120: 65 | I120: 86 | J120: 20 | K120: 0 | L120: 10 | M120: 30 | N120: 5 | O120: 0
A121: Commune | B121: 14169 | D121: 157 | E121: 169 | F121: 3 | G121: 51 | H121: 67 | I121: 39 | J121: 10 | K121: 0 | L121: 5 | M121: 5 | N121: 25 | O121: 10
A122: Commune | B122: 14171 | D122: 144 | E122: 151 | F122: 5 | G122: 51 | H122: 60 | I122: 33 | J122: 20 | K122: 5 | L122: 10 | M122: 20 | N122: 5 | O122: 0
A123: Commune | B123: 14172 | D123: 445 | E123: 383 | F123: 7 | G123: 118 | H123: 158 | I123: 169 | J123: 5 | K123: 38 | L123: 47 | M123: 52 | N123: 24 | O123: 33
A124: Commune | B124: 14173 | D124: 434 | E124: 498 | F124: 11 | G124: 165 | H124: 168 | I124: 102 | J124: 5 | K124: 5 | L124: 47 | M124: 45 | N124: 34 | O124: 26
A125: Commune | B125: 14174 | D125: 6296 | E125: 6992 | F125: 63 | G125: 1740 | H125: 2209 | I125: 2348 | J125: 95 | K125: 146 | L125: 759 | M125: 533 | N125: 454 | O125: 221
A126: Commune | B126: 14175 | D126: 298 | E126: 288 | F126: 2 | G126: 127 | H126: 128 | I126: 44 | J126: 11 | K126: 5 | L126: 42 | M126: 37 | N126: 67 | O126: 21
A127: Commune | B127: 14177 | D127: 844 | E127: 866 | F127: 12 | G127: 262 | H127: 320 | I127: 262 | J127: 20 | K127: 25 | L127: 95 | M127: 90 | N127: 80 | O127: 55
A128: Commune | B128: 14179 | D128: 164 | E128: 142 | F128: 9 | G128: 56 | H128: 74 | I128: 34 | J128: 5 | K128: 15 | L128: 20 | M128: 25 | N128: 15 | O128: 5
A129: Commune | B129: 14180 | D129: 155 | E129: 145 | F129: 5 | G129: 53 | H129: 62 | I129: 41 | J129: 5 | K129: 5 | L129: 10 | M129: 20 | N129: 20 | O129: 5
A130: Commune | B130: 14181 | D130: 5093 | E130: 4797 | F130: 3 | G130: 1649 | H130: 1817 | I130: 1626 | J130: 5 | K130: 88 | L130: 363 | M130: 671 | N130: 529 | O130: 244
A131: Commune | B131: 14182 | D131: 397 | E131: 405 | F131: 11 | G131: 132 | H131: 162 | I131: 103 | J131: 0 | K131: 0 | L131: 60 | M131: 30 | N131: 45 | O131: 20
A132: Commune | B132: 14183 | D132: 107 | E132: 98 | F132: 5 | G132: 24 | H132: 60 | I132: 23 | J132: 0 | K132: 15 | L132: 25 | M132: 15 | N132: 5 | O132: 0
A133: Commune | B133: 14184 | D133: 230 | E133: 202 | F133: 4 | G133: 86 | H133: 81 | I133: 62 | J133: 5 | K133: 10 | L133: 30 | M133: 15 | N133: 20 | O133: 15
A134: Commune | B134: 14190 | D134: 127 | E134: 141 | F134: 9 | G134: 29 | H134: 55 | I134: 43 | J134: 0 | K134: 5 | L134: 15 | M134: 15 | N134: 15 | O134: 0
A135: Commune | B135: 14191 | D135: 4185 | E135: 4165 | F135: 8 | G135: 807 | H135: 1138 | I135: 2240 | J135: 5 | K135: 121 | L135: 258 | M135: 329 | N135: 239 | O135: 130
A136: Commune | B136: 14193 | D136: 665 | E136: 692 | F136: 13 | G136: 197 | H136: 269 | I136: 199 | J136: 0 | K136: 19 | L136: 78 | M136: 63 | N136: 122 | O136: 39
A137: Commune | B137: 14194 | D137: 642 | E137: 673 | F137: 14 | G137: 220 | H137: 263 | I137: 159 | J137: 0 | K137: 10 | L137: 102 | M137: 81 | N137: 92 | O137: 16
A138: Commune | B138: 14195 | D138: 270 | E138: 220 | F138: 10 | G138: 96 | H138: 115 | I138: 59 | J138: 14 | K138: 0 | L138: 33 | M138: 24 | N138: 69 | O138: 5
A139: Commune | B139: 14196 | D139: 212 | E139: 218 | F139: 5 | G139: 59 | H139: 81 | I139: 72 | J139: 5 | K139: 14 | L139: 14 | M139: 43 | N139: 19 | O139: 5
A140: Commune | B140: 14197 | D140: 1099 | E140: 1184 | F140: 4 | G140: 317 | H140: 465 | I140: 316 | J140: 5 | K140: 38 | L140: 43 | M140: 109 | N140: 158 | O140: 99
A141: Commune | B141: 14198 | D141: 252 | E141: 263 | F141: 5 | G141: 85 | H141: 100 | I141: 67 | J141: 0 | K141: 15 | L141: 5 | M141: 15 | N141: 40 | O141: 25
A142: Commune | B142: 14200 | D142: 2260 | E142: 2405 | F142: 19 | G142: 797 | H142: 881 | I142: 583 | J142: 10 | K142: 72 | L142: 267 | M142: 297 | N142: 299 | O142: 107
A143: Commune | B143: 14202 | D143: 267 | E143: 300 | F143: 2 | G143: 53 | H143: 88 | I143: 126 | J143: 10 | K143: 40 | L143: 10 | M143: 45 | N143: 25 | O143: 0
A144: Commune | B144: 14203 | D144: 189 | E144: 185 | F144: 7 | G144: 63 | H144: 69 | I144: 58 | J144: 5 | K144: 5 | L144: 0 | M144: 15 | N144: 36 | O144: 21
A145: Commune | B145: 14204 | D145: 172 | E145: 189 | F145: 9 | G145: 47 | H145: 56 | I145: 69 | J145: 0 | K145: 15 | L145: 25 | M145: 40 | N145: 10 | O145: 0
A146: Commune | B146: 14205 | D146: 218 | E146: 209 | F146: 4 | G146: 82 | H146: 89 | I146: 46 | J146: 5 | K146: 0 | L146: 25 | M146: 10 | N146: 35 | O146: 10
A147: Commune | B147: 14206 | D147: 291 | E147: 310 | F147: 10 | G147: 87 | H147: 107 | I147: 97 | J147: 10 | K147: 5 | L147: 25 | M147: 30 | N147: 10 | O147: 10
A148: Commune | B148: 14207 | D148: 648 | E148: 641 | F148: 10 | G148: 264 | H148: 285 | I148: 99 | J148: 15 | K148: 26 | L148: 72 | M148: 77 | N148: 103 | O148: 21
A149: Commune | B149: 14209 | D149: 505 | E149: 534 | F149: 8 | G149: 159 | H149: 190 | I149: 157 | J149: 5 | K149: 20 | L149: 58 | M149: 54 | N149: 40 | O149: 10
A150: Commune | B150: 14211 | D150: 366 | E150: 350 | F150: 8 | G150: 122 | H150: 147 | I150: 98 | J150: 5 | K150: 10 | L150: 39 | M150: 14 | N150: 72 | O150: 19
A151: Commune | B151: 14214 | D151: 183 | E151: 171 | F151: 2 | G151: 58 | H151: 70 | I151: 55 | J151: 5 | K151: 5 | L151: 27 | M151: 27 | N151: 11 | O151: 16
A152: Commune | B152: 14215 | D152: 2284 | E152: 2027 | F152: 2 | G152: 841 | H152: 929 | I152: 514 | J152: 0 | K152: 27 | L152: 247 | M152: 272 | N152: 298 | O152: 93
A153: Commune | B153: 14216 | D153: 239 | E153: 230 | F153: 6 | G153: 81 | H153: 104 | I153: 54 | J153: 0 | K153: 5 | L153: 60 | M153: 30 | N153: 30 | O153: 0
A154: Commune | B154: 14218 | D154: 404 | E154: 365 | F154: 6 | G154: 157 | H154: 171 | I154: 77 | J154: 0 | K154: 10 | L154: 46 | M154: 41 | N154: 67 | O154: 36
A155: Commune | B155: 14220 | D155: 3567 | E155: 3725 | F155: 4 | G155: 672 | H155: 968 | I155: 1926 | J155: 10 | K155: 96 | L155: 154 | M155: 398 | N155: 203 | O155: 99
A156: Commune | B156: 14221 | D156: 3063 | E156: 3245 | F156: 4 | G156: 930 | H156: 1086 | I156: 1047 | J156: 5 | K156: 24 | L156: 216 | M156: 465 | N156: 282 | O156: 145
A157: Commune | B157: 14223 | D157: 88 | E157: 89 | F157: 6 | G157: 26 | H157: 33 | I157: 28 | J157: 15 | K157: 0 | L157: 5 | M157: 5 | N157: 0 | O157: 5
A158: Commune | B158: 14224 | D158: 47 | E158: 63 | F158: 4 | G158: 14 | H158: 19 | I158: 15 | J158: 13 | K158: 0 | L158: 0 | M158: 9 | N158: 4 | O158: 4
A159: Commune | B159: 14225 | D159: 5234 | E159: 5761 | F159: 6 | G159: 1541 | H159: 1801 | I159: 1893 | J159: 5 | K159: 145 | L159: 634 | M159: 573 | N159: 362 | O159: 114
A160: Commune | B160: 14226 | D160: 302 | E160: 258 | F160: 11 | G160: 111 | H160: 137 | I160: 53 | J160: 15 | K160: 0 | L160: 30 | M160: 31 | N160: 46 | O160: 15
A161: Commune | B161: 14227 | D161: 214 | E161: 220 | F161: 6 | G161: 56 | H161: 77 | I161: 80 | J161: 0 | K161: 15 | L161: 24 | M161: 24 | N161: 19 | O161: 5
A162: Commune | B162: 14228 | D162: 5076 | E162: 5156 | F162: 11 | G162: 1558 | H162: 1968 | I162: 1550 | J162: 21 | K162: 147 | L162: 274 | M162: 625 | N162: 626 | O162: 459
A163: Commune | B163: 14229 | D163: 2314 | E163: 2145 | F163: 5 | G163: 786 | H163: 811 | I163: 717 | J163: 5 | K163: 60 | L163: 269 | M163: 314 | N163: 214 | O163: 76
A164: Commune | B164: 14230 | D164: 114 | E164: 112 | F164: 3 | G164: 31 | H164: 42 | I164: 41 | J164: 5 | K164: 0 | L164: 15 | M164: 10 | N164: 10 | O164: 10
A165: Commune | B165: 14231 | D165: 439 | E165: 436 | F165: 11 | G165: 155 | H165: 189 | I165: 96 | J165: 10 | K165: 29 | L165: 63 | M165: 64 | N165: 34 | O165: 5
A166: Commune | B166: 14232 | D166: 172 | E166: 144 | F166: 4 | G166: 60 | H166: 77 | I166: 35 | J166: 5 | K166: 0 | L166: 14 | M166: 19 | N166: 19 | O166: 10
A167: Commune | B167: 14236 | D167: 608 | E167: 471 | F167: 7 | G167: 192 | H167: 231 | I167: 185 | J167: 5 | K167: 5 | L167: 46 | M167: 68 | N167: 90 | O167: 31
A168: Commune | B168: 14237 | D168: 633 | E168: 583 | F168: 4 | G168: 261 | H168: 276 | I168: 96 | J168: 0 | K168: 40 | L168: 60 | M168: 60 | N168: 115 | O168: 55
A169: Commune | B169: 14238 | D169: 112 | E169: 119 | F169: 4 | G169: 31 | H169: 39 | I169: 43 | J169: 5 | K169: 10 | L169: 0 | M169: 5 | N169: 10 | O169: 15
A170: Commune | B170: 14239 | D170: 103 | E170: 90 | F170: 8 | G170: 29 | H170: 38 | I170: 37 | J170: 0 | K170: 0 | L170: 11 | M170: 0 | N170: 6 | O170: 0
A171: Commune | B171: 14240 | D171: 508 | E171: 532 | F171: 12 | G171: 188 | H171: 212 | I171: 108 | J171: 40 | K171: 25 | L171: 34 | M171: 49 | N171: 39 | O171: 34
A172: Commune | B172: 14241 | D172: 624 | E172: 642 | F172: 12 | G172: 206 | H172: 256 | I172: 162 | J172: 0 | K172: 10 | L172: 70 | M172: 70 | N172: 115 | O172: 25
A173: Commune | B173: 14242 | D173: 1655 | E173: 1616 | F173: 1 | G173: 670 | H173: 386 | I173: 599 | J173: 0 | K173: 20 | L173: 16 | M173: 97 | N173: 106 | O173: 187
A174: Commune | B174: 14243 | D174: 1580 | E174: 1391 | F174: 6 | G174: 348 | H174: 470 | I174: 762 | J174: 0 | K174: 71 | L174: 76 | M174: 172 | N174: 132 | O174: 106
A175: Commune | B175: 14244 | D175: 294 | E175: 338 | F175: 4 | G175: 89 | H175: 127 | I175: 78 | J175: 0 | K175: 20 | L175: 35 | M175: 40 | N175: 20 | O175: 15
A176: Commune | B176: 14245 | D176: 319 | E176: 331 | F176: 9 | G176: 109 | H176: 126 | I176: 84 | J176: 10 | K176: 5 | L176: 30 | M176: 45 | N176: 35 | O176: 5
A177: Commune | B177: 14246 | D177: 809 | E177: 807 | F177: 5 | G177: 289 | H177: 344 | I177: 176 | J177: 0 | K177: 20 | L177: 96 | M177: 71 | N177: 110 | O177: 70
A178: Commune | B178: 14248 | D178: 250 | E178: 221 | F178: 5 | G178: 90 | H178: 101 | I178: 59 | J178: 0 | K178: 5 | L178: 20 | M178: 36 | N178: 26 | O178: 15
A179: Commune | B179: 14249 | D179: 1436 | E179: 1438 | F179: 3 | G179: 564 | H179: 652 | I179: 220 | J179: 0 | K179: 15 | L179: 168 | M179: 212 | N179: 216 | O179: 103
A180: Commune | B180: 14250 | D180: 279 | E180: 316 | F180: 3 | G180: 62 | H180: 115 | I180: 101 | J180: 0 | K180: 24 | L180: 9 | M180: 39 | N180: 20 | O180: 28
A181: Commune | B181: 14251 | D181: 550 | E181: 512 | F181: 9 | G181: 225 | H181: 221 | I181: 104 | J181: 15 | K181: 15 | L181: 80 | M181: 110 | N181: 30 | O181: 20
A182: Commune | B182: 14252 | D182: 265 | E182: 240 | F182: 7 | G182: 99 | H182: 122 | I182: 44 | J182: 11 | K182: 0 | L182: 11 | M182: 21 | N182: 37 | O182: 37
A183: Commune | B183: 14254 | D183: 1644 | E183: 1552 | F183: 5 | G183: 587 | H183: 699 | I183: 358 | J183: 0 | K183: 41 | L183: 75 | M183: 163 | N183: 222 | O183: 204
A184: Commune | B184: 14256 | D184: 330 | E184: 321 | F184: 4 | G184: 99 | H184: 159 | I184: 72 | J184: 5 | K184: 25 | L184: 25 | M184: 60 | N184: 20 | O184: 15
A185: Commune | B185: 14257 | D185: 2020 | E185: 2000 | F185: 8 | G185: 742 | H185: 768 | I185: 510 | J185: 15 | K185: 35 | L185: 132 | M185: 237 | N185: 312 | O185: 136
A186: Commune | B186: 14258 | D186: 7849 | E186: 8294 | F186: 12 | G186: 2644 | H186: 2742 | I186: 2463 | J186: 5 | K186: 170 | L186: 830 | M186: 685 | N186: 715 | O186: 340
A187: Commune | B187: 14260 | D187: 241 | E187: 251 | F187: 7 | G187: 67 | H187: 90 | I187: 85 | J187: 10 | K187: 15 | L187: 4 | M187: 33 | N187: 19 | O187: 10
A188: Commune | B188: 14261 | D188: 335 | E188: 341 | F188: 4 | G188: 114 | H188: 149 | I188: 72 | J188: 0 | K188: 10 | L188: 49 | M188: 59 | N188: 35 | O188: 15
A189: Commune | B189: 14266 | D189: 1443 | E189: 1408 | F189: 8 | G189: 494 | H189: 609 | I189: 340 | J189: 0 | K189: 50 | L189: 96 | M189: 177 | N189: 207 | O189: 116
A190: Commune | B190: 14269 | D190: 228 | E190: 203 | F190: 5 | G190: 75 | H190: 90 | I190: 64 | J190: 0 | K190: 35 | L190: 15 | M190: 15 | N190: 25 | O190: 10
A191: Commune | B191: 14270 | D191: 387 | E191: 437 | F191: 5 | G191: 96 | H191: 149 | I191: 143 | J191: 0 | K191: 5 | L191: 38 | M191: 39 | N191: 48 | O191: 0
A192: Commune | B192: 14271 | D192: 4981 | E192: 4660 | F192: 7 | G192: 1818 | H192: 1898 | I192: 1265 | J192: 5 | K192: 112 | L192: 478 | M192: 694 | N192: 497 | O192: 304
A193: Commune | B193: 14272 | D193: 99 | E193: 118 | F193: 7 | G193: 29 | H193: 32 | I193: 38 | J193: 5 | K193: 0 | L193: 5 | M193: 5 | N193: 14 | O193: 0
A194: Commune | B194: 14273 | D194: 140 | E194: 141 | F194: 11 | G194: 30 | H194: 54 | I194: 56 | J194: 0 | K194: 20 | L194: 25 | M194: 15 | N194: 5 | O194: 5
A195: Commune | B195: 14274 | D195: 2682 | E195: 2189 | F195: 5 | G195: 1007 | H195: 1147 | I195: 528 | J195: 0 | K195: 78 | L195: 125 | M195: 258 | N195: 414 | O195: 442
A196: Commune | B196: 14275 | D196: 494 | E196: 483 | F196: 6 | G196: 166 | H196: 192 | I196: 136 | J196: 16 | K196: 5 | L196: 49 | M196: 48 | N196: 54 | O196: 32
A197: Commune | B197: 14276 | D197: 355 | E197: 361 | F197: 9 | G197: 119 | H197: 153 | I197: 83 | J197: 15 | K197: 20 | L197: 35 | M197: 35 | N197: 30 | O197: 5
A198: Commune | B198: 14277 | D198: 1946 | E198: 1817 | F198: 10 | G198: 739 | H198: 798 | I198: 409 | J198: 5 | K198: 35 | L198: 155 | M198: 285 | N198: 280 | O198: 100
A199: Commune | B199: 14278 | D199: 1197 | E199: 1185 | F199: 10 | G199: 400 | H199: 476 | I199: 321 | J199: 5 | K199: 53 | L199: 118 | M199: 163 | N199: 161 | O199: 46
A200: Commune | B200: 14280 | D200: 259 | E200: 235 | F200: 6 | G200: 91 | H200: 105 | I200: 63 | J200: 5 | K200: 5 | L200: 25 | M200: 30 | N200: 20 | O200: 25
... 2453 more rows

Sheet export_emploi (hidden)
A1: NAF_A05 | B1: type | C1: code | D1: etab_actu | E1: etab_prec | F1: salaries_actu | G1: salaries_prec
A2: 2 | B2: Commune | C2: 14001 | D2: 1 | E2: 1 | F2: 4 | G2: 3
A3: 3 | B3: Commune | C3: 14001 | D3: 8 | E3: 8 | F3: 18 | G3: 17
A4: 4 | B4: Commune | C4: 14001 | D4: 1 | E4: 1 | F4: 5 | G4: 5
A5: 5 | B5: Commune | C5: 14001 | D5: 9 | E5: 9 | F5: 42 | G5: 42
A6: 2 | B6: Commune | C6: 14003
A7: 3 | B7: Commune | C7: 14003 | D7: 1 | E7: 1 | F7: 1 | G7: 1
A8: 5 | B8: Commune | C8: 14003
A9: 2 | B9: Commune | C9: 14005 | D9: 2 | E9: 2 | F9: 23 | G9: 25
A10: 3 | B10: Commune | C10: 14005 | D10: 4 | E10: 7 | F10: 9 | G10: 18
A11: 4 | B11: Commune | C11: 14005 | D11: 4 | E11: 4 | F11: 27 | G11: 28
A12: 5 | B12: Commune | C12: 14005 | D12: 4 | E12: 3 | F12: 15 | G12: 12
A13: 3 | B13: Commune | C13: 14006 | D13: 2 | E13: 2 | F13: 7 | G13: 4
A14: 4 | B14: Commune | C14: 14006 | D14: 3 | E14: 3 | F14: 3 | G14: 3
A15: 5 | B15: Commune | C15: 14006 | D15: 9 | E15: 7 | F15: 28 | G15: 25
A16: 3 | B16: Commune | C16: 14007 | E16: 1 | G16: 1
A17: 4 | B17: Commune | C17: 14007 | D17: 1 | F17: 1
A18: 5 | B18: Commune | C18: 14007 | D18: 1 | E18: 1 | F18: 1 | G18: 1
A19: 2 | B19: Commune | C19: 14009 | D19: 1 | E19: 1 | F19: 6 | G19: 7
A20: 3 | B20: Commune | C20: 14009 | D20: 5 | E20: 6 | F20: 35 | G20: 33
A21: 4 | B21: Commune | C21: 14009 | D21: 1 | E21: 1 | F21: 2 | G21: 2
A22: 5 | B22: Commune | C22: 14009 | D22: 7 | E22: 6 | F22: 20 | G22: 18
A23: 2 | B23: Commune | C23: 14011 | D23: 1 | E23: 1 | F23: 1 | G23: 2
A24: 3 | B24: Commune | C24: 14011 | D24: 8 | E24: 6 | F24: 22 | G24: 17
A25: 4 | B25: Commune | C25: 14011 | D25: 3 | E25: 3 | F25: 11 | G25: 8
A26: 5 | B26: Commune | C26: 14011 | D26: 6 | E26: 5 | F26: 14 | G26: 11
A27: 2 | B27: Commune | C27: 14012 | D27: 1 | E27: 2 | F27: 2 | G27: 15
A28: 3 | B28: Commune | C28: 14012 | E28: 1 | G28: 1
A29: 4 | B29: Commune | C29: 14012 | D29: 1 | F29: 1
A30: 5 | B30: Commune | C30: 14012 | D30: 1 | E30: 2 | F30: 2 | G30: 6
A31: 2 | B31: Commune | C31: 14014
A32: 3 | B32: Commune | C32: 14014 | D32: 5 | E32: 4 | F32: 16 | G32: 16
A33: 4 | B33: Commune | C33: 14014 | D33: 1 | E33: 1 | F33: 1 | G33: 1
A34: 5 | B34: Commune | C34: 14014 | D34: 12 | E34: 14 | F34: 36 | G34: 32
A35: 2 | B35: Commune | C35: 14015 | D35: 1 | E35: 1 | F35: 1 | G35: 1
A36: 3 | B36: Commune | C36: 14015 | D36: 2 | E36: 1 | F36: 11 | G36: 5
A37: 4 | B37: Commune | C37: 14015 | D37: 1 | E37: 1 | F37: 3 | G37: 3
A38: 5 | B38: Commune | C38: 14015 | D38: 9 | E38: 10 | F38: 18 | G38: 19
A39: 2 | B39: Commune | C39: 14016 | D39: 2 | E39: 2 | F39: 11 | G39: 11
A40: 3 | B40: Commune | C40: 14016 | D40: 6 | E40: 5 | F40: 33 | G40: 29
A41: 4 | B41: Commune | C41: 14016 | D41: 2 | E41: 3 | F41: 3 | G41: 5
A42: 5 | B42: Commune | C42: 14016 | D42: 5 | E42: 3 | F42: 8 | G42: 6
A43: 3 | B43: Commune | C43: 14019 | E43: 1 | G43: 3
A44: 5 | B44: Commune | C44: 14019
A45: 2 | B45: Commune | C45: 14020 | D45: 10 | E45: 13 | F45: 87 | G45: 103
A46: 3 | B46: Commune | C46: 14020 | D46: 17 | E46: 18 | F46: 87 | G46: 87
A47: 4 | B47: Commune | C47: 14020 | D47: 22 | E47: 20 | F47: 256 | G47: 240
A48: 5 | B48: Commune | C48: 14020 | D48: 61 | E48: 52 | F48: 273 | G48: 249
A49: 2 | B49: Commune | C49: 14021 | D49: 1 | E49: 1 | F49: 7 | G49: 6
A50: 3 | B50: Commune | C50: 14021 | D50: 2 | E50: 2 | F50: 2 | G50: 2
A51: 4 | B51: Commune | C51: 14021 | D51: 6 | E51: 8 | F51: 11 | G51: 13
A52: 5 | B52: Commune | C52: 14021 | D52: 13 | E52: 14 | F52: 74 | G52: 80
A53: 2 | B53: Commune | C53: 14022 | D53: 2 | E53: 2 | F53: 12 | G53: 10
A54: 3 | B54: Commune | C54: 14022
A55: 4 | B55: Commune | C55: 14022 | D55: 2 | E55: 2 | F55: 13 | G55: 12
A56: 5 | B56: Commune | C56: 14022 | D56: 7 | E56: 8 | F56: 43 | G56: 32
A57: 5 | B57: Commune | C57: 14023 | D57: 1 | E57: 1 | F57: 1 | G57: 1
A58: 2 | B58: Commune | C58: 14024 | D58: 1 | E58: 1 | F58: 1 | G58: 1
A59: 3 | B59: Commune | C59: 14024 | D59: 1 | E59: 2 | F59: 1 | G59: 6
A60: 4 | B60: Commune | C60: 14024 | D60: 2 | E60: 2 | F60: 8 | G60: 8
A61: 5 | B61: Commune | C61: 14024 | D61: 7 | E61: 7 | F61: 20 | G61: 15
A62: 2 | B62: Commune | C62: 14025
A63: 4 | B63: Commune | C63: 14025 | D63: 1 | E63: 1 | F63: 2 | G63: 1
A64: 5 | B64: Commune | C64: 14025 | D64: 2 | E64: 1 | F64: 4 | G64: 3
A65: 2 | B65: Commune | C65: 14026 | D65: 1 | E65: 1 | F65: 2 | G65: 2
A66: 3 | B66: Commune | C66: 14026 | D66: 5 | E66: 6 | F66: 9 | G66: 32
A67: 4 | B67: Commune | C67: 14026
A68: 5 | B68: Commune | C68: 14026 | D68: 5 | E68: 5 | F68: 24 | G68: 24
A69: 2 | B69: Commune | C69: 14027 | D69: 9 | E69: 10 | F69: 99 | G69: 101
A70: 3 | B70: Commune | C70: 14027 | D70: 11 | E70: 11 | F70: 31 | G70: 24
A71: 4 | B71: Commune | C71: 14027 | D71: 15 | E71: 15 | F71: 77 | G71: 72
A72: 5 | B72: Commune | C72: 14027 | D72: 40 | E72: 40 | F72: 159 | G72: 164
A73: 2 | B73: Commune | C73: 14030 | D73: 1 | E73: 1 | F73: 3 | G73: 2
A74: 3 | B74: Commune | C74: 14030 | D74: 4 | E74: 4 | F74: 40 | G74: 40
A75: 4 | B75: Commune | C75: 14030 | D75: 2 | E75: 2 | F75: 15 | G75: 16
A76: 5 | B76: Commune | C76: 14030 | D76: 12 | E76: 13 | F76: 40 | G76: 33
A77: 3 | B77: Commune | C77: 14032
A78: 4 | B78: Commune | C78: 14032 | D78: 1 | E78: 1 | F78: 1 | G78: 1
A79: 5 | B79: Commune | C79: 14032 | D79: 2 | E79: 1 | F79: 4 | G79: 1
A80: 2 | B80: Commune | C80: 14033
A81: 3 | B81: Commune | C81: 14033 | D81: 1 | E81: 1 | F81: 1 | G81: 2
A82: 4 | B82: Commune | C82: 14033 | D82: 1 | E82: 1 | F82: 2 | G82: 2
A83: 5 | B83: Commune | C83: 14033 | D83: 1 | E83: 1 | F83: 6 | G83: 5
A84: 3 | B84: Commune | C84: 14034 | D84: 3 | E84: 3 | F84: 5 | G84: 5
A85: 5 | B85: Commune | C85: 14034 | D85: 1 | E85: 1 | F85: 0 | G85: 1
A86: 2 | B86: Commune | C86: 14035 | D86: 2 | E86: 2 | F86: 19 | G86: 20
A87: 3 | B87: Commune | C87: 14035 | D87: 4 | E87: 4 | F87: 15 | G87: 16
A88: 4 | B88: Commune | C88: 14035 | D88: 4 | E88: 4 | F88: 13 | G88: 12
A89: 5 | B89: Commune | C89: 14035 | D89: 10 | E89: 11 | F89: 47 | G89: 50
A90: 3 | B90: Commune | C90: 14036 | D90: 1 | E90: 1 | F90: 2 | G90: 2
A91: 5 | B91: Commune | C91: 14036 | D91: 2 | E91: 2 | F91: 15 | G91: 14
A92: 3 | B92: Commune | C92: 14037 | D92: 3 | E92: 3 | F92: 6 | G92: 8
A93: 4 | B93: Commune | C93: 14037 | D93: 1 | F93: 1
A94: 5 | B94: Commune | C94: 14037 | D94: 1 | F94: 1
A95: 2 | B95: Commune | C95: 14038
A96: 3 | B96: Commune | C96: 14038 | D96: 1 | E96: 2 | F96: 2 | G96: 3
A97: 4 | B97: Commune | C97: 14038 | D97: 1 | E97: 1 | F97: 1 | G97: 1
A98: 5 | B98: Commune | C98: 14038 | D98: 2 | E98: 2 | F98: 7 | G98: 5
A99: 2 | B99: Commune | C99: 14039 | D99: 1 | E99: 1 | F99: 2 | G99: 2
A100: 3 | B100: Commune | C100: 14039 | D100: 2 | E100: 1 | F100: 2 | G100: 1
A101: 4 | B101: Commune | C101: 14039
A102: 5 | B102: Commune | C102: 14039 | D102: 1 | F102: 0
A103: 2 | B103: Commune | C103: 14040
A104: 3 | B104: Commune | C104: 14040 | D104: 1 | E104: 1 | F104: 3 | G104: 3
A105: 4 | B105: Commune | C105: 14040 | D105: 1 | F105: 1
A106: 5 | B106: Commune | C106: 14040 | D106: 5 | E106: 4 | F106: 15 | G106: 13
A107: 3 | B107: Commune | C107: 14041
A108: 5 | B108: Commune | C108: 14041 | D108: 1 | E108: 1 | F108: 16 | G108: 11
A109: 3 | B109: Commune | C109: 14042 | D109: 1 | E109: 1 | F109: 5 | G109: 2
A110: 4 | B110: Commune | C110: 14042 | D110: 2 | E110: 3 | F110: 9 | G110: 11
A111: 5 | B111: Commune | C111: 14042 | D111: 7 | E111: 7 | F111: 85 | G111: 84
A112: 2 | B112: Commune | C112: 14044 | D112: 2 | E112: 2 | F112: 5 | G112: 7
A113: 3 | B113: Commune | C113: 14044 | D113: 3 | E113: 3 | F113: 16 | G113: 14
A114: 4 | B114: Commune | C114: 14044
A115: 5 | B115: Commune | C115: 14044 | D115: 6 | E115: 7 | F115: 9 | G115: 10
A116: 2 | B116: Commune | C116: 14045 | E116: 1 | G116: 1
A117: 3 | B117: Commune | C117: 14045 | D117: 2 | E117: 2 | F117: 1 | G117: 1
A118: 4 | B118: Commune | C118: 14045 | D118: 2 | E118: 2 | F118: 6 | G118: 7
A119: 5 | B119: Commune | C119: 14045 | D119: 2 | E119: 3 | F119: 6 | G119: 6
A120: 2 | B120: Commune | C120: 14046 | D120: 5 | E120: 4 | F120: 197 | G120: 183
A121: 3 | B121: Commune | C121: 14046 | D121: 3 | E121: 2 | F121: 6 | G121: 5
A122: 4 | B122: Commune | C122: 14046 | D122: 8 | E122: 7 | F122: 38 | G122: 33
A123: 5 | B123: Commune | C123: 14046 | D123: 10 | E123: 9 | F123: 19 | G123: 17
A124: 2 | B124: Commune | C124: 14047 | D124: 46 | E124: 41 | F124: 533 | G124: 492
A125: 3 | B125: Commune | C125: 14047 | D125: 20 | E125: 18 | F125: 131 | G125: 122
A126: 4 | B126: Commune | C126: 14047 | D126: 151 | E126: 159 | F126: 1312 | G126: 1314
A127: 5 | B127: Commune | C127: 14047 | D127: 357 | E127: 341 | F127: 2863 | G127: 2774
A128: 3 | B128: Commune | C128: 14049 | D128: 1 | E128: 1 | F128: 1 | G128: 2
A129: 5 | B129: Commune | C129: 14049 | E129: 1 | G129: 1
A130: 2 | B130: Commune | C130: 14050 | D130: 1 | E130: 1 | F130: 2 | G130: 1
A131: 3 | B131: Commune | C131: 14050
A132: 3 | B132: Commune | C132: 14053
A133: 5 | B133: Commune | C133: 14053 | D133: 1 | F133: 2
A134: 2 | B134: Commune | C134: 14054
A135: 3 | B135: Commune | C135: 14054
A136: 4 | B136: Commune | C136: 14054
A137: 5 | B137: Commune | C137: 14054
A138: 2 | B138: Commune | C138: 14055 | D138: 3 | E138: 3 | F138: 5 | G138: 7
A139: 3 | B139: Commune | C139: 14055 | D139: 2 | E139: 2 | F139: 4 | G139: 5
A140: 4 | B140: Commune | C140: 14055 | D140: 4 | E140: 5 | F140: 8 | G140: 8
A141: 5 | B141: Commune | C141: 14055 | D141: 6 | E141: 7 | F141: 22 | G141: 20
A142: 2 | B142: Commune | C142: 14057 | D142: 3 | E142: 3 | F142: 14 | G142: 13
A143: 3 | B143: Commune | C143: 14057 | D143: 5 | E143: 5 | F143: 11 | G143: 12
A144: 4 | B144: Commune | C144: 14057 | D144: 5 | E144: 5 | F144: 16 | G144: 18
A145: 5 | B145: Commune | C145: 14057 | D145: 10 | E145: 11 | F145: 25 | G145: 35
A146: 2 | B146: Commune | C146: 14059 | D146: 1 | E146: 1 | F146: 3 | G146: 3
A147: 3 | B147: Commune | C147: 14059
A148: 4 | B148: Commune | C148: 14059 | D148: 3 | E148: 2 | F148: 4 | G148: 3
A149: 5 | B149: Commune | C149: 14059 | D149: 19 | E149: 17 | F149: 62 | G149: 61
A150: 2 | B150: Commune | C150: 14060 | D150: 2 | E150: 2 | F150: 8 | G150: 7
A151: 3 | B151: Commune | C151: 14060 | D151: 17 | E151: 18 | F151: 114 | G151: 120
A152: 4 | B152: Commune | C152: 14060 | D152: 13 | E152: 14 | F152: 114 | G152: 106
A153: 5 | B153: Commune | C153: 14060 | D153: 16 | E153: 16 | F153: 45 | G153: 54
A154: 2 | B154: Commune | C154: 14061 | D154: 16 | E154: 16 | F154: 160 | G154: 165
A155: 3 | B155: Commune | C155: 14061 | D155: 26 | E155: 25 | F155: 125 | G155: 122
A156: 4 | B156: Commune | C156: 14061 | D156: 24 | E156: 25 | F156: 105 | G156: 104
A157: 5 | B157: Commune | C157: 14061 | D157: 50 | E157: 51 | F157: 302 | G157: 311
A158: 2 | B158: Commune | C158: 14062 | D158: 1 | E158: 1 | F158: 4 | G158: 3
A159: 3 | B159: Commune | C159: 14062 | D159: 4 | E159: 4 | F159: 13 | G159: 10
A160: 5 | B160: Commune | C160: 14062
A161: 3 | B161: Commune | C161: 14063 | D161: 1 | E161: 1 | F161: 8 | G161: 8
A162: 5 | B162: Commune | C162: 14063 | D162: 1 | E162: 1 | F162: 3 | G162: 3
A163: 2 | B163: Commune | C163: 14064 | D163: 1 | E163: 1 | F163: 28 | G163: 30
A164: 4 | B164: Commune | C164: 14064
A165: 5 | B165: Commune | C165: 14064
A166: 2 | B166: Commune | C166: 14066 | D166: 1 | E166: 1 | F166: 5 | G166: 5
A167: 3 | B167: Commune | C167: 14066 | D167: 6 | E167: 6 | F167: 17 | G167: 17
A168: 4 | B168: Commune | C168: 14066 | D168: 3 | E168: 3 | F168: 44 | G168: 40
A169: 5 | B169: Commune | C169: 14066 | D169: 20 | E169: 18 | F169: 34 | G169: 36
A170: 2 | B170: Commune | C170: 14068 | D170: 4 | E170: 3 | F170: 13 | G170: 11
A171: 3 | B171: Commune | C171: 14068 | D171: 8 | E171: 8 | F171: 41 | G171: 36
A172: 4 | B172: Commune | C172: 14068 | D172: 26 | E172: 28 | F172: 308 | G172: 288
A173: 5 | B173: Commune | C173: 14068 | D173: 48 | E173: 50 | F173: 334 | G173: 339
A174: 2 | B174: Commune | C174: 14069 | D174: 4 | E174: 4 | F174: 152 | G174: 156
A175: 3 | B175: Commune | C175: 14069 | D175: 8 | E175: 9 | F175: 54 | G175: 52
A176: 4 | B176: Commune | C176: 14069 | D176: 2 | E176: 1 | F176: 4 | G176: 3
A177: 5 | B177: Commune | C177: 14069 | D177: 8 | E177: 7 | F177: 185 | G177: 197
A178: 2 | B178: Commune | C178: 14070 | D178: 1 | E178: 1 | F178: 1 | G178: 1
A179: 3 | B179: Commune | C179: 14070 | E179: 1 | G179: 0
A180: 4 | B180: Commune | C180: 14070 | D180: 3 | E180: 2 | F180: 6 | G180: 4
A181: 5 | B181: Commune | C181: 14070 | D181: 5 | E181: 6 | F181: 29 | G181: 28
A182: 2 | B182: Commune | C182: 14076 | D182: 19 | E182: 19 | F182: 1938 | G182: 1847
A183: 3 | B183: Commune | C183: 14076 | D183: 15 | E183: 17 | F183: 207 | G183: 207
A184: 4 | B184: Commune | C184: 14076 | D184: 20 | E184: 21 | F184: 312 | G184: 323
A185: 5 | B185: Commune | C185: 14076 | D185: 49 | E185: 52 | F185: 305 | G185: 310
A186: 2 | B186: Commune | C186: 14077 | D186: 1 | E186: 1 | F186: 2 | G186: 3
A187: 3 | B187: Commune | C187: 14077 | D187: 4 | E187: 4 | F187: 16 | G187: 14
A188: 4 | B188: Commune | C188: 14077 | D188: 4 | E188: 4 | F188: 18 | G188: 20
A189: 5 | B189: Commune | C189: 14077 | D189: 12 | E189: 12 | F189: 31 | G189: 29
A190: 3 | B190: Commune | C190: 14078
A191: 4 | B191: Commune | C191: 14078 | D191: 1 | E191: 1 | F191: 3 | G191: 3
A192: 5 | B192: Commune | C192: 14078 | D192: 1 | E192: 1 | F192: 5 | G192: 3
A193: 2 | B193: Commune | C193: 14079 | D193: 1 | E193: 1 | F193: 5 | G193: 6
A194: 3 | B194: Commune | C194: 14079 | D194: 5 | E194: 5 | F194: 54 | G194: 55
A195: 4 | B195: Commune | C195: 14079 | D195: 7 | E195: 7 | F195: 16 | G195: 16
A196: 5 | B196: Commune | C196: 14079 | D196: 23 | E196: 23 | F196: 43 | G196: 41
A197: 2 | B197: Commune | C197: 14080 | D197: 1 | E197: 1 | F197: 1 | G197: 1
A198: 3 | B198: Commune | C198: 14080 | D198: 1 | E198: 1 | F198: 8 | G198: 6
A199: 4 | B199: Commune | C199: 14080
A200: 5 | B200: Commune | C200: 14080 | D200: 1 | E200: 1 | F200: 2 | G200: 2
... 7929 more rows

Sheet export_dpae (hidden)
A1: type | B1: code | C1: libelle | D1: dpae_dur | E1: dpae_non_dur | F1: dpae_de | G1: dpae_interim | H1: dpae_agri | I1: dpae_indus | J1: dpae_btp | K1: dpae_comm | L1: dpae_serv | M1: dpae_dur_p | N1: dpae_non_dur_p | O1: dpae_de_p | P1: dpae_interim_p | Q1: dpae_agri_p | R1: dpae_indus_p | S1: dpae_btp_p | T1: dpae_comm_p | U1: dpae_serv_p
A2: Commune | B2: 14001 | C2: Ablon | D2: 18 | E2: 45 | F2: 31 | G2: 0 | H2: 2 | I2: 1 | J2: 5 | K2: 1 | L2: 54 | M2: 23 | N2: 56 | O2: 34 | P2: 0 | Q2: 1 | R2: 1 | S2: 8 | T2: 0 | U2: 69
A3: Commune | B3: 14003 | C3: Agy | D3: 0 | E3: 2 | F3: 1 | G3: 0 | H3: 1 | I3: 0 | J3: 0 | K3: 0 | L3: 1 | M3: 1 | N3: 0 | O3: 0 | P3: 0 | Q3: 1 | R3: 0 | S3: 0 | T3: 0 | U3: 0
A4: Commune | B4: 14005 | C4: Valambray | D4: 29 | E4: 45 | F4: 28 | G4: 0 | H4: 19 | I4: 11 | J4: 2 | K4: 31 | L4: 11 | M4: 31 | N4: 59 | O4: 36 | P4: 0 | Q4: 27 | R4: 5 | S4: 13 | T4: 33 | U4: 12
A5: Commune | B5: 14006 | C5: Amayé-sur-Orne | D5: 23 | E5: 40 | F5: 22 | G5: 0 | H5: 11 | I5: 0 | J5: 1 | K5: 1 | L5: 50 | M5: 31 | N5: 80 | O5: 35 | P5: 0 | Q5: 7 | R5: 0 | S5: 13 | T5: 5 | U5: 86
A6: Commune | B6: 14007 | C6: Amayé-sur-Seulles | D6: 1 | E6: 39 | F6: 14 | G6: 0 | H6: 1 | I6: 0 | J6: 0 | K6: 0 | L6: 39 | M6: 2 | N6: 11 | O6: 7 | P6: 0 | Q6: 2 | R6: 0 | S6: 0 | T6: 0 | U6: 11
A7: Commune | B7: 14009 | C7: Amfreville | D7: 28 | E7: 10 | F7: 19 | G7: 0 | H7: 0 | I7: 5 | J7: 12 | K7: 11 | L7: 10 | M7: 29 | N7: 18 | O7: 29 | P7: 0 | Q7: 7 | R7: 7 | S7: 11 | T7: 1 | U7: 21
A8: Commune | B8: 14011 | C8: Aurseulles | D8: 28 | E8: 242 | F8: 222 | G8: 0 | H8: 15 | I8: 0 | J8: 10 | K8: 7 | L8: 238 | M8: 32 | N8: 63 | O8: 43 | P8: 0 | Q8: 36 | R8: 2 | S8: 15 | T8: 10 | U8: 32
A9: Commune | B9: 14012 | C9: Angerville | D9: 4 | E9: 3 | F9: 2 | G9: 0 | H9: 0 | I9: 2 | J9: 1 | K9: 0 | L9: 4 | M9: 2 | N9: 2 | O9: 2 | P9: 0 | Q9: 0 | R9: 0 | S9: 0 | T9: 0 | U9: 4
A10: Commune | B10: 14014 | C10: Colomby-Anguerny | D10: 35 | E10: 13 | F10: 32 | G10: 0 | H10: 4 | I10: 0 | J10: 12 | K10: 0 | L10: 32 | M10: 26 | N10: 19 | O10: 17 | P10: 0 | Q10: 5 | R10: 1 | S10: 7 | T10: 0 | U10: 32
A11: Commune | B11: 14015 | C11: Anisy | D11: 53 | E11: 10 | F11: 25 | G11: 0 | H11: 0 | I11: 0 | J11: 50 | K11: 1 | L11: 12 | M11: 9 | N11: 2 | O11: 3 | P11: 0 | Q11: 0 | R11: 0 | S11: 8 | T11: 0 | U11: 3
A12: Commune | B12: 14016 | C12: Annebault | D12: 23 | E12: 16 | F12: 19 | G12: 0 | H12: 0 | I12: 9 | J12: 3 | K12: 1 | L12: 26 | M12: 26 | N12: 20 | O12: 18 | P12: 0 | Q12: 4 | R12: 6 | S12: 10 | T12: 5 | U12: 21
A13: Commune | B13: 14019 | C13: Arganchy | D13: 0 | E13: 3 | F13: 1 | G13: 0 | H13: 3 | I13: 0 | J13: 0 | K13: 0 | L13: 0 | M13: 1 | N13: 3 | O13: 1 | P13: 0 | Q13: 4 | R13: 0 | S13: 0 | T13: 0 | U13: 0
A14: Commune | B14: 14020 | C14: Argences | D14: 218 | E14: 894 | F14: 472 | G14: 0 | H14: 9 | I14: 96 | J14: 34 | K14: 225 | L14: 748 | M14: 240 | N14: 637 | O14: 374 | P14: 0 | Q14: 1 | R14: 55 | S14: 43 | T14: 215 | U14: 563
A15: Commune | B15: 14021 | C15: Arromanches-les-Bains | D15: 126 | E15: 282 | F15: 187 | G15: 0 | H15: 0 | I15: 11 | J15: 1 | K15: 20 | L15: 376 | M15: 107 | N15: 255 | O15: 196 | P15: 0 | Q15: 0 | R15: 7 | S15: 2 | T15: 28 | U15: 325
A16: Commune | B16: 14022 | C16: Asnelles | D16: 28 | E16: 181 | F16: 84 | G16: 0 | H16: 7 | I16: 19 | J16: 0 | K16: 9 | L16: 174 | M16: 48 | N16: 207 | O16: 108 | P16: 0 | Q16: 9 | R16: 12 | S16: 0 | T16: 4 | U16: 230
A17: Commune | B17: 14023 | C17: Asnières-en-Bessin | D17: 4 | E17: 6 | F17: 6 | G17: 0 | H17: 7 | I17: 0 | J17: 0 | K17: 0 | L17: 3 | M17: 1 | N17: 2 | O17: 1 | P17: 0 | Q17: 3 | R17: 0 | S17: 0 | T17: 0 | U17: 0
A18: Commune | B18: 14024 | C18: Auberville | D18: 24 | E18: 231 | F18: 144 | G18: 0 | H18: 0 | I18: 0 | J18: 0 | K18: 19 | L18: 236 | M18: 22 | N18: 181 | O18: 147 | P18: 0 | Q18: 0 | R18: 1 | S18: 0 | T18: 0 | U18: 202
A19: Commune | B19: 14025 | C19: Aubigny | D19: 7 | E19: 3 | F19: 3 | G19: 0 | H19: 2 | I19: 0 | J19: 0 | K19: 0 | L19: 8 | M19: 4 | N19: 5 | O19: 0 | P19: 0 | Q19: 4 | R19: 0 | S19: 0 | T19: 2 | U19: 3
A20: Commune | B20: 14026 | C20: Audrieu | D20: 44 | E20: 66 | F20: 54 | G20: 0 | H20: 3 | I20: 0 | J20: 1 | K20: 0 | L20: 106 | M20: 51 | N20: 78 | O20: 56 | P20: 0 | Q20: 3 | R20: 1 | S20: 4 | T20: 0 | U20: 121
A21: Commune | B21: 14027 | C21: Les Monts d'Aunay | D21: 140 | E21: 229 | F21: 184 | G21: 0 | H21: 11 | I21: 28 | J21: 7 | K21: 25 | L21: 298 | M21: 121 | N21: 209 | O21: 179 | P21: 0 | Q21: 8 | R21: 25 | S21: 12 | T21: 38 | U21: 247
A22: Commune | B22: 14030 | C22: Authie | D22: 48 | E22: 123 | F22: 92 | G22: 0 | H22: 1 | I22: 4 | J22: 16 | K22: 7 | L22: 143 | M22: 43 | N22: 131 | O22: 70 | P22: 0 | Q22: 1 | R22: 7 | S22: 19 | T22: 4 | U22: 143
A23: Commune | B23: 14032 | C23: Les Authieux-sur-Calonne | D23: 3 | E23: 4 | F23: 2 | G23: 0 | H23: 6 | I23: 0 | J23: 0 | K23: 1 | L23: 0 | M23: 2 | N23: 63 | O23: 9 | P23: 0 | Q23: 7 | R23: 0 | S23: 0 | T23: 0 | U23: 58
A24: Commune | B24: 14033 | C24: Auvillars | D24: 4 | E24: 5 | F24: 5 | G24: 0 | H24: 3 | I24: 0 | J24: 1 | K24: 0 | L24: 5 | M24: 1 | N24: 10 | O24: 4 | P24: 0 | Q24: 5 | R24: 0 | S24: 0 | T24: 0 | U24: 6
A25: Commune | B25: 14034 | C25: Avenay | D25: 3 | E25: 1 | F25: 1 | G25: 0 | H25: 2 | I25: 0 | J25: 1 | K25: 0 | L25: 1 | M25: 3 | N25: 0 | O25: 2 | P25: 0 | Q25: 1 | R25: 0 | S25: 2 | T25: 0 | U25: 0
A26: Commune | B26: 14035 | C26: Balleroy-sur-Drôme | D26: 33 | E26: 84 | F26: 88 | G26: 0 | H26: 7 | I26: 3 | J26: 2 | K26: 5 | L26: 100 | M26: 19 | N26: 57 | O26: 46 | P26: 0 | Q26: 2 | R26: 5 | S26: 0 | T26: 10 | U26: 59
A27: Commune | B27: 14036 | C27: Banneville-la-Campagne | D27: 4 | E27: 2 | F27: 3 | G27: 0 | H27: 3 | I27: 0 | J27: 3 | K27: 0 | L27: 0 | M27: 5 | N27: 6 | O27: 6 | P27: 0 | Q27: 7 | R27: 0 | S27: 1 | T27: 0 | U27: 3
A28: Commune | B28: 14037 | C28: Malherbe-sur-Ajon | D28: 4 | E28: 6 | F28: 6 | G28: 0 | H28: 0 | I28: 0 | J28: 6 | K28: 2 | L28: 2 | M28: 5 | N28: 6 | O28: 7 | P28: 0 | Q28: 0 | R28: 2 | S28: 6 | T28: 0 | U28: 3
A29: Commune | B29: 14038 | C29: Banville | D29: 12 | E29: 11 | F29: 10 | G29: 0 | H29: 3 | I29: 3 | J29: 7 | K29: 5 | L29: 5 | M29: 4 | N29: 8 | O29: 6 | P29: 0 | Q29: 1 | R29: 1 | S29: 0 | T29: 1 | U29: 9
A30: Commune | B30: 14039 | C30: Barbery | D30: 11 | E30: 34 | F30: 28 | G30: 0 | H30: 0 | I30: 19 | J30: 1 | K30: 0 | L30: 25 | M30: 3 | N30: 53 | O30: 43 | P30: 0 | Q30: 1 | R30: 9 | S30: 1 | T30: 0 | U30: 45
A31: Commune | B31: 14040 | C31: Barbeville | D31: 29 | E31: 17 | F31: 27 | G31: 0 | H31: 1 | I31: 0 | J31: 1 | K31: 1 | L31: 43 | M31: 34 | N31: 22 | O31: 35 | P31: 0 | Q31: 0 | R31: 0 | S31: 2 | T31: 2 | U31: 52
A32: Commune | B32: 14041 | C32: Barneville-la-Bertran | D32: 14 | E32: 27 | F32: 19 | G32: 0 | H32: 2 | I32: 0 | J32: 0 | K32: 0 | L32: 39 | M32: 20 | N32: 23 | O32: 18 | P32: 0 | Q32: 0 | R32: 0 | S32: 0 | T32: 0 | U32: 43
A33: Commune | B33: 14042 | C33: Baron-sur-Odon | D33: 27 | E33: 234 | F33: 169 | G33: 0 | H33: 3 | I33: 0 | J33: 1 | K33: 4 | L33: 253 | M33: 31 | N33: 250 | O33: 202 | P33: 0 | Q33: 1 | R33: 0 | S33: 3 | T33: 0 | U33: 277
A34: Commune | B34: 14043 | C34: Barou-en-Auge | D34: 0 | E34: 3 | F34: 2 | G34: 0 | H34: 3 | I34: 0 | J34: 0 | K34: 0 | L34: 0 | M34: 0 | N34: 1 | O34: 0 | P34: 0 | Q34: 1 | R34: 0 | S34: 0 | T34: 0 | U34: 0
A35: Commune | B35: 14044 | C35: Basly | D35: 17 | E35: 7 | F35: 18 | G35: 0 | H35: 1 | I35: 1 | J35: 10 | K35: 2 | L35: 10 | M35: 32 | N35: 8 | O35: 20 | P35: 0 | Q35: 1 | R35: 2 | S35: 9 | T35: 4 | U35: 24
A36: Commune | B36: 14045 | C36: Basseneville | D36: 8 | E36: 0 | F36: 4 | G36: 0 | H36: 0 | I36: 0 | J36: 0 | K36: 2 | L36: 6 | M36: 4 | N36: 7 | O36: 5 | P36: 0 | Q36: 0 | R36: 0 | S36: 0 | T36: 0 | U36: 11
A37: Commune | B37: 14046 | C37: Bavent | D37: 38 | E37: 25 | F37: 39 | G37: 0 | H37: 6 | I37: 30 | J37: 3 | K37: 13 | L37: 11 | M37: 51 | N37: 52 | O37: 63 | P37: 0 | Q37: 6 | R37: 42 | S37: 5 | T37: 10 | U37: 40
A38: Commune | B38: 14047 | C38: Bayeux | D38: 1834 | E38: 5321 | F38: 4170 | G38: 22929 | H38: 0 | I38: 197 | J38: 47 | K38: 1266 | L38: 5645 | M38: 1717 | N38: 5795 | O38: 4524 | P38: 24544 | Q38: 1 | R38: 182 | S38: 52 | T38: 1529 | U38: 5748
A39: Commune | B39: 14049 | C39: Bazenville | D39: 1 | E39: 1 | F39: 0 | G39: 0 | H39: 1 | I39: 0 | J39: 0 | K39: 0 | L39: 1 | M39: 0 | N39: 1 | O39: 0 | P39: 0 | Q39: 0 | R39: 0 | S39: 0 | T39: 0 | U39: 1
A40: Commune | B40: 14050 | C40: La Bazoque | D40: 0 | E40: 3 | F40: 2 | G40: 0 | H40: 2 | I40: 0 | J40: 0 | K40: 1 | L40: 0 | M40: 3 | N40: 2 | O40: 1 | P40: 0 | Q40: 2 | R40: 2 | S40: 0 | T40: 1 | U40: 0
A41: Commune | B41: 14053 | C41: Beaumais | D41: 1 | E41: 5 | F41: 2 | G41: 0 | H41: 1 | I41: 0 | J41: 0 | K41: 2 | L41: 3 | M41: 3 | N41: 10 | O41: 9 | P41: 0 | Q41: 0 | R41: 0 | S41: 0 | T41: 6 | U41: 7
A42: Commune | B42: 14054 | C42: Beaumesnil | D42: 1 | E42: 0 | F42: 0 | G42: 0 | H42: 1 | I42: 0 | J42: 0 | K42: 0 | L42: 0 | M42: 1 | N42: 1 | O42: 0 | P42: 0 | Q42: 0 | R42: 0 | S42: 0 | T42: 0 | U42: 2
A43: Commune | B43: 14055 | C43: Beaumont-en-Auge | D43: 25 | E43: 32 | F43: 27 | G43: 0 | H43: 0 | I43: 0 | J43: 6 | K43: 4 | L43: 47 | M43: 22 | N43: 46 | O43: 30 | P43: 0 | Q43: 1 | R43: 2 | S43: 0 | T43: 6 | U43: 59
A44: Commune | B44: 14057 | C44: Bellengreville | D44: 35 | E44: 159 | F44: 87 | G44: 0 | H44: 54 | I44: 13 | J44: 9 | K44: 10 | L44: 108 | M44: 35 | N44: 168 | O44: 78 | P44: 0 | Q44: 62 | R44: 8 | S44: 4 | T44: 11 | U44: 118
A45: Commune | B45: 14059 | C45: Benerville-sur-Mer | D45: 46 | E45: 167 | F45: 135 | G45: 0 | H45: 0 | I45: 0 | J45: 0 | K45: 2 | L45: 211 | M45: 50 | N45: 139 | O45: 111 | P45: 0 | Q45: 0 | R45: 0 | S45: 0 | T45: 2 | U45: 187
A46: Commune | B46: 14060 | C46: Bénouville | D46: 102 | E46: 275 | F46: 130 | G46: 0 | H46: 0 | I46: 15 | J46: 53 | K46: 46 | L46: 263 | M46: 98 | N46: 231 | O46: 116 | P46: 0 | Q46: 0 | R46: 7 | S46: 48 | T46: 64 | U46: 210
A47: Commune | B47: 14061 | C47: Souleuvre-en-Bocage | D47: 202 | E47: 1836 | F47: 1237 | G47: 0 | H47: 81 | I47: 35 | J47: 53 | K47: 35 | L47: 1834 | M47: 237 | N47: 1879 | O47: 1369 | P47: 0 | Q47: 82 | R47: 44 | S47: 67 | T47: 61 | U47: 1862
A48: Commune | B48: 14062 | C48: Bény-sur-Mer | D48: 6 | E48: 11 | F48: 7 | G48: 0 | H48: 1 | I48: 1 | J48: 8 | K48: 0 | L48: 7 | M48: 12 | N48: 17 | O48: 21 | P48: 0 | Q48: 1 | R48: 1 | S48: 10 | T48: 0 | U48: 17
A49: Commune | B49: 14063 | C49: Bernesq | D49: 9 | E49: 3 | F49: 3 | G49: 0 | H49: 4 | I49: 1 | J49: 0 | K49: 0 | L49: 7 | M49: 14 | N49: 11 | O49: 10 | P49: 0 | Q49: 5 | R49: 3 | S49: 3 | T49: 9 | U49: 5
A50: Commune | B50: 14064 | C50: Bernières-d'Ailly | D50: 6 | E50: 8 | F50: 6 | G50: 0 | H50: 4 | I50: 10 | J50: 0 | K50: 0 | L50: 0 | M50: 4 | N50: 11 | O50: 3 | P50: 0 | Q50: 11 | R50: 2 | S50: 0 | T50: 0 | U50: 2
A51: Commune | B51: 14066 | C51: Bernières-sur-Mer | D51: 35 | E51: 108 | F51: 62 | G51: 0 | H51: 1 | I51: 0 | J51: 2 | K51: 82 | L51: 58 | M51: 32 | N51: 72 | O51: 36 | P51: 0 | Q51: 2 | R51: 0 | S51: 1 | T51: 72 | U51: 29
A52: Commune | B52: 14068 | C52: Biéville-Beuville | D52: 362 | E52: 1036 | F52: 697 | G52: 0 | H52: 2 | I52: 9 | J52: 21 | K52: 185 | L52: 1181 | M52: 344 | N52: 858 | O52: 548 | P52: 0 | Q52: 4 | R52: 17 | S52: 27 | T52: 162 | U52: 992
A53: Commune | B53: 14069 | C53: Beuvillers | D53: 50 | E53: 119 | F53: 87 | G53: 0 | H53: 0 | I53: 113 | J53: 26 | K53: 3 | L53: 27 | M53: 43 | N53: 170 | O53: 115 | P53: 0 | Q53: 0 | R53: 167 | S53: 22 | T53: 3 | U53: 21
A54: Commune | B54: 14070 | C54: Beuvron-en-Auge | D54: 19 | E54: 39 | F54: 18 | G54: 0 | H54: 1 | I54: 0 | J54: 1 | K54: 1 | L54: 55 | M54: 22 | N54: 51 | O54: 23 | P54: 0 | Q54: 3 | R54: 0 | S54: 0 | T54: 2 | U54: 68
A55: Commune | B55: 14076 | C55: Blainville-sur-Orne | D55: 500 | E55: 911 | F55: 926 | G55: 5150 | H55: 2 | I55: 258 | J55: 76 | K55: 362 | L55: 713 | M55: 460 | N55: 1368 | O55: 1352 | P55: 5745 | Q55: 3 | R55: 236 | S55: 71 | T55: 716 | U55: 802
A56: Commune | B56: 14077 | C56: Blangy-le-Château | D56: 18 | E56: 180 | F56: 62 | G56: 0 | H56: 0 | I56: 0 | J56: 4 | K56: 3 | L56: 191 | M56: 25 | N56: 166 | O56: 74 | P56: 0 | Q56: 0 | R56: 2 | S56: 1 | T56: 6 | U56: 182
A57: Commune | B57: 14078 | C57: Blay | D57: 4 | E57: 9 | F57: 5 | G57: 0 | H57: 11 | I57: 0 | J57: 0 | K57: 1 | L57: 1 | M57: 6 | N57: 16 | O57: 3 | P57: 0 | Q57: 18 | R57: 0 | S57: 0 | T57: 0 | U57: 4
A58: Commune | B58: 14079 | C58: Blonville-sur-Mer | D58: 54 | E58: 105 | F58: 70 | G58: 0 | H58: 2 | I58: 4 | J58: 11 | K58: 23 | L58: 119 | M58: 55 | N58: 109 | O58: 92 | P58: 0 | Q58: 1 | R58: 4 | S58: 9 | T58: 20 | U58: 130
A59: Commune | B59: 14080 | C59: Le Bô | D59: 3 | E59: 1 | F59: 1 | G59: 0 | H59: 0 | I59: 0 | J59: 0 | K59: 0 | L59: 4 | M59: 3 | N59: 8 | O59: 8 | P59: 0 | Q59: 3 | R59: 1 | S59: 3 | T59: 1 | U59: 3
A60: Commune | B60: 14082 | C60: La Boissière | D60: 8 | E60: 2 | F60: 8 | G60: 0 | H60: 0 | I60: 7 | J60: 3 | K60: 0 | L60: 0 | M60: 4 | N60: 1 | O60: 4 | P60: 0 | Q60: 0 | R60: 1 | S60: 4 | T60: 0 | U60: 0
A61: Commune | B61: 14083 | C61: Bonnebosq | D61: 27 | E61: 45 | F61: 24 | G61: 0 | H61: 18 | I61: 2 | J61: 8 | K61: 4 | L61: 40 | M61: 31 | N61: 45 | O61: 40 | P61: 0 | Q61: 28 | R61: 3 | S61: 6 | T61: 8 | U61: 31
A62: Commune | B62: 14084 | C62: Bonnemaison | D62: 1 | E62: 1 | F62: 2 | G62: 0 | H62: 0 | I62: 0 | J62: 2 | K62: 0 | L62: 0 | M62: 0 | N62: 1 | O62: 1 | P62: 0 | Q62: 1 | R62: 0 | S62: 0 | T62: 0 | U62: 0
A63: Commune | B63: 14085 | C63: Bonneville-la-Louvet | D63: 17 | E63: 8 | F63: 8 | G63: 0 | H63: 8 | I63: 2 | J63: 2 | K63: 1 | L63: 12 | M63: 12 | N63: 8 | O63: 11 | P63: 0 | Q63: 5 | R63: 2 | S63: 1 | T63: 0 | U63: 12
A64: Commune | B64: 14086 | C64: Bonneville-sur-Touques | D64: 14 | E64: 14 | F64: 11 | G64: 0 | H64: 1 | I64: 0 | J64: 3 | K64: 4 | L64: 20 | M64: 4 | N64: 6 | O64: 2 | P64: 0 | Q64: 1 | R64: 0 | S64: 2 | T64: 2 | U64: 5
A65: Commune | B65: 14087 | C65: Bonnoeil | D65: 3 | E65: 5 | F65: 3 | G65: 0 | H65: 8 | I65: 0 | J65: 0 | K65: 0 | L65: 0 | M65: 0 | N65: 4 | O65: 0 | P65: 0 | Q65: 4 | R65: 0 | S65: 0 | T65: 0 | U65: 0
A66: Commune | B66: 14088 | C66: Bons-Tassilly | D66: 0 | E66: 4 | F66: 0 | G66: 0 | H66: 0 | I66: 0 | J66: 0 | K66: 1 | L66: 3 | M66: 3 | N66: 5 | O66: 1 | P66: 0 | Q66: 0 | R66: 0 | S66: 0 | T66: 1 | U66: 7
A67: Commune | B67: 14089 | C67: Bougy | D67: 6 | E67: 0 | F67: 3 | G67: 0 | H67: 2 | I67: 0 | J67: 3 | K67: 0 | L67: 1 | M67: 0 | N67: 0 | O67: 0 | P67: 0 | Q67: 0 | R67: 0 | S67: 0 | T67: 0 | U67: 0
A68: Commune | B68: 14090 | C68: Boulon | D68: 1 | E68: 5 | F68: 1 | G68: 0 | H68: 3 | I68: 0 | J68: 1 | K68: 0 | L68: 2 | M68: 7 | N68: 6 | O68: 4 | P68: 0 | Q68: 4 | R68: 0 | S68: 6 | T68: 1 | U68: 2
A69: Commune | B69: 14091 | C69: Bourgeauville | D69: 14 | E69: 8 | F69: 7 | G69: 0 | H69: 17 | I69: 4 | J69: 0 | K69: 0 | L69: 1 | M69: 6 | N69: 13 | O69: 7 | P69: 0 | Q69: 11 | R69: 4 | S69: 0 | T69: 0 | U69: 4
A70: Commune | B70: 14092 | C70: Bourguébus | D70: 664 | E70: 1703 | F70: 1366 | G70: 0 | H70: 20 | I70: 57 | J70: 209 | K70: 84 | L70: 1997 | M70: 540 | N70: 1814 | O70: 1344 | P70: 0 | Q70: 18 | R70: 81 | S70: 175 | T70: 76 | U70: 2004
A71: Commune | B71: 14093 | C71: Branville | D71: 37 | E71: 1010 | F71: 674 | G71: 0 | H71: 0 | I71: 0 | J71: 0 | K71: 3 | L71: 1044 | M71: 37 | N71: 1178 | O71: 699 | P71: 0 | Q71: 0 | R71: 0 | S71: 0 | T71: 8 | U71: 1207
A72: Commune | B72: 14096 | C72: Brémoy | D72: 0 | E72: 0 | F72: 0 | G72: 0 | H72: 0 | I72: 0 | J72: 0 | K72: 0 | L72: 0 | M72: 4 | N72: 0 | O72: 2 | P72: 0 | Q72: 4 | R72: 0 | S72: 0 | T72: 0 | U72: 0
A73: Commune | B73: 14097 | C73: Bretteville-le-Rabet | D73: 0 | E73: 1 | F73: 0 | G73: 0 | H73: 0 | I73: 0 | J73: 0 | K73: 0 | L73: 1 | M73: 2 | N73: 2 | O73: 1 | P73: 0 | Q73: 0 | R73: 0 | S73: 0 | T73: 0 | U73: 4
A74: Commune | B74: 14098 | C74: Thue et Mue | D74: 227 | E74: 1059 | F74: 736 | G74: 0 | H74: 6 | I74: 29 | J74: 89 | K74: 68 | L74: 1094 | M74: 289 | N74: 1058 | O74: 788 | P74: 0 | Q74: 9 | R74: 55 | S74: 112 | T74: 64 | U74: 1107
A75: Commune | B75: 14100 | C75: Bretteville-sur-Laize | D75: 181 | E75: 482 | F75: 324 | G75: 0 | H75: 7 | I75: 14 | J75: 69 | K75: 67 | L75: 506 | M75: 145 | N75: 537 | O75: 319 | P75: 0 | Q75: 5 | R75: 15 | S75: 67 | T75: 95 | U75: 500
A76: Commune | B76: 14101 | C76: Bretteville-sur-Odon | D76: 1060 | E76: 2644 | F76: 1868 | G76: 0 | H76: 0 | I76: 65 | J76: 271 | K76: 332 | L76: 3036 | M76: 968 | N76: 2473 | O76: 1745 | P76: 0 | Q76: 0 | R76: 82 | S76: 207 | T76: 320 | U76: 2832
A77: Commune | B77: 14102 | C77: Le Breuil-en-Auge | D77: 82 | E77: 400 | F77: 314 | G77: 0 | H77: 11 | I77: 19 | J77: 25 | K77: 14 | L77: 413 | M77: 84 | N77: 218 | O77: 151 | P77: 0 | Q77: 8 | R77: 22 | S77: 38 | T77: 13 | U77: 221
A78: Commune | B78: 14103 | C78: Le Breuil-en-Bessin | D78: 7 | E78: 2 | F78: 3 | G78: 0 | H78: 0 | I78: 0 | J78: 6 | K78: 2 | L78: 1 | M78: 3 | N78: 2 | O78: 1 | P78: 0 | Q78: 0 | R78: 0 | S78: 1 | T78: 1 | U78: 3
A79: Commune | B79: 14104 | C79: Le Brévedent | D79: 5 | E79: 20 | F79: 10 | G79: 0 | H79: 0 | I79: 0 | J79: 3 | K79: 0 | L79: 22 | M79: 8 | N79: 25 | O79: 26 | P79: 0 | Q79: 0 | R79: 0 | S79: 8 | T79: 1 | U79: 24
A80: Commune | B80: 14106 | C80: Bréville-les-Monts | D80: 7 | E80: 9 | F80: 8 | G80: 0 | H80: 1 | I80: 0 | J80: 0 | K80: 0 | L80: 15 | M80: 4 | N80: 18 | O80: 15 | P80: 0 | Q80: 0 | R80: 0 | S80: 0 | T80: 0 | U80: 22
A81: Commune | B81: 14107 | C81: Bricqueville | D81: 8 | E81: 58 | F81: 53 | G81: 0 | H81: 5 | I81: 0 | J81: 1 | K81: 0 | L81: 60 | M81: 1 | N81: 2 | O81: 2 | P81: 0 | Q81: 0 | R81: 0 | S81: 0 | T81: 0 | U81: 3
A82: Commune | B82: 14111 | C82: Bucéels | D82: 6 | E82: 3 | F82: 5 | G82: 0 | H82: 0 | I82: 0 | J82: 3 | K82: 0 | L82: 6 | M82: 4 | N82: 5 | O82: 2 | P82: 0 | Q82: 0 | R82: 0 | S82: 6 | T82: 0 | U82: 3
A83: Commune | B83: 14116 | C83: Le Bû-sur-Rouvres | D83: 9 | E83: 2 | F83: 3 | G83: 0 | H83: 0 | I83: 0 | J83: 5 | K83: 0 | L83: 6 | M83: 5 | N83: 0 | O83: 2 | P83: 0 | Q83: 0 | R83: 0 | S83: 5 | T83: 0 | U83: 0
A84: Commune | B84: 14117 | C84: Cabourg | D84: 682 | E84: 5565 | F84: 2831 | G84: 0 | H84: 3 | I84: 138 | J84: 11 | K84: 343 | L84: 5752 | M84: 709 | N84: 4970 | O84: 2379 | P84: 0 | Q84: 3 | R84: 84 | S84: 19 | T84: 429 | U84: 5144
A85: Commune | B85: 14118 | C85: Caen | D85: 14704 | E85: 59480 | F85: 45372 | G85: 101592 | H85: 50 | I85: 752 | J85: 543 | K85: 3861 | L85: 68978 | M85: 14887 | N85: 57199 | O85: 44282 | P85: 114497 | Q85: 57 | R85: 758 | S85: 737 | T85: 4195 | U85: 66339
A86: Commune | B86: 14119 | C86: Cagny | D86: 184 | E86: 743 | F86: 393 | G86: 6904 | H86: 7 | I86: 40 | J86: 16 | K86: 58 | L86: 806 | M86: 195 | N86: 734 | O86: 395 | P86: 8391 | Q86: 2 | R86: 39 | S86: 29 | T86: 60 | U86: 799
A87: Commune | B87: 14120 | C87: Cahagnes | D87: 40 | E87: 143 | F87: 82 | G87: 0 | H87: 8 | I87: 7 | J87: 11 | K87: 10 | L87: 147 | M87: 30 | N87: 169 | O87: 96 | P87: 0 | Q87: 9 | R87: 10 | S87: 5 | T87: 6 | U87: 169
A88: Commune | B88: 14121 | C88: Cahagnolles | D88: 5 | E88: 25 | F88: 9 | G88: 0 | H88: 0 | I88: 5 | J88: 0 | K88: 2 | L88: 23 | M88: 5 | N88: 22 | O88: 10 | P88: 0 | Q88: 2 | R88: 5 | S88: 0 | T88: 1 | U88: 19
A89: Commune | B89: 14122 | C89: La Caine | D89: 4 | E89: 4 | F89: 4 | G89: 0 | H89: 6 | I89: 0 | J89: 2 | K89: 0 | L89: 0 | M89: 2 | N89: 3 | O89: 1 | P89: 0 | Q89: 5 | R89: 0 | S89: 0 | T89: 0 | U89: 0
A90: Commune | B90: 14123 | C90: Cairon | D90: 29 | E90: 53 | F90: 42 | G90: 0 | H90: 0 | I90: 0 | J90: 8 | K90: 7 | L90: 67 | M90: 34 | N90: 55 | O90: 51 | P90: 0 | Q90: 1 | R90: 3 | S90: 8 | T90: 3 | U90: 74
A91: Commune | B91: 14124 | C91: La Cambe | D91: 16 | E91: 16 | F91: 12 | G91: 0 | H91: 4 | I91: 5 | J91: 3 | K91: 15 | L91: 5 | M91: 24 | N91: 15 | O91: 13 | P91: 0 | Q91: 8 | R91: 3 | S91: 8 | T91: 14 | U91: 6
A92: Commune | B92: 14125 | C92: Cambes-en-Plaine | D92: 4 | E92: 66 | F92: 37 | G92: 0 | H92: 1 | I92: 4 | J92: 0 | K92: 23 | L92: 42 | M92: 10 | N92: 64 | O92: 36 | P92: 0 | Q92: 0 | R92: 5 | S92: 0 | T92: 3 | U92: 66
A93: Commune | B93: 14126 | C93: Cambremer | D93: 32 | E93: 227 | F93: 168 | G93: 0 | H93: 43 | I93: 21 | J93: 4 | K93: 7 | L93: 184 | M93: 50 | N93: 245 | O93: 187 | P93: 0 | Q93: 43 | R93: 17 | S93: 2 | T93: 11 | U93: 222
A94: Commune | B94: 14127 | C94: Campagnolles | D94: 5 | E94: 3 | F94: 3 | G94: 0 | H94: 1 | I94: 4 | J94: 0 | K94: 0 | L94: 3 | M94: 2 | N94: 2 | O94: 0 | P94: 0 | Q94: 1 | R94: 3 | S94: 0 | T94: 0 | U94: 0
A95: Commune | B95: 14130 | C95: Campigny | D95: 2 | E95: 4 | F95: 2 | G95: 0 | H95: 2 | I95: 0 | J95: 0 | K95: 0 | L95: 4 | M95: 1 | N95: 3 | O95: 0 | P95: 0 | Q95: 3 | R95: 0 | S95: 0 | T95: 0 | U95: 1
A96: Commune | B96: 14131 | C96: Canapville | D96: 18 | E96: 70 | F96: 44 | G96: 0 | H96: 0 | I96: 0 | J96: 0 | K96: 1 | L96: 87 | M96: 20 | N96: 110 | O96: 76 | P96: 0 | Q96: 2 | R96: 0 | S96: 0 | T96: 1 | U96: 127
A97: Commune | B97: 14132 | C97: Canchy | D97: 1 | E97: 3 | F97: 2 | G97: 0 | H97: 2 | I97: 0 | J97: 1 | K97: 0 | L97: 1 | M97: 1 | N97: 3 | O97: 1 | P97: 0 | Q97: 2 | R97: 0 | S97: 1 | T97: 0 | U97: 1
A98: Commune | B98: 14134 | C98: Canteloup | D98: 2 | E98: 3 | F98: 1 | G98: 0 | H98: 2 | I98: 0 | J98: 1 | K98: 0 | L98: 2 | M98: 1 | N98: 3 | O98: 1 | P98: 0 | Q98: 2 | R98: 0 | S98: 0 | T98: 0 | U98: 2
A99: Commune | B99: 14135 | C99: Carcagny | D99: 1 | E99: 2 | F99: 2 | G99: 0 | H99: 0 | I99: 0 | J99: 0 | K99: 3 | L99: 0 | M99: 4 | N99: 1 | O99: 2 | P99: 0 | Q99: 0 | R99: 0 | S99: 0 | T99: 1 | U99: 4
A100: Commune | B100: 14136 | C100: Cardonville | D100: 1 | E100: 17 | F100: 11 | G100: 0 | H100: 18 | I100: 0 | J100: 0 | K100: 0 | L100: 0 | M100: 0 | N100: 12 | O100: 7 | P100: 0 | Q100: 12 | R100: 0 | S100: 0 | T100: 0 | U100: 0
A101: Commune | B101: 14137 | C101: Carpiquet | D101: 1052 | E101: 2437 | F101: 2057 | G101: 0 | H101: 1 | I101: 83 | J101: 142 | K101: 347 | L101: 2916 | M101: 988 | N101: 2406 | O101: 1965 | P101: 0 | Q101: 4 | R101: 91 | S101: 182 | T101: 370 | U101: 2747
A102: Commune | B102: 14138 | C102: Cartigny-l'Épinay | D102: 4 | E102: 8 | F102: 7 | G102: 0 | H102: 10 | I102: 0 | J102: 0 | K102: 0 | L102: 2 | M102: 0 | N102: 10 | O102: 7 | P102: 0 | Q102: 10 | R102: 0 | S102: 0 | T102: 0 | U102: 0
A103: Commune | B103: 14140 | C103: Castillon | D103: 1 | E103: 8 | F103: 7 | G103: 0 | H103: 5 | I103: 0 | J103: 4 | K103: 0 | L103: 0 | M103: 4 | N103: 5 | O103: 2 | P103: 0 | Q103: 4 | R103: 0 | S103: 5 | T103: 0 | U103: 0
A104: Commune | B104: 14141 | C104: Castillon-en-Auge | D104: 1 | E104: 5 | F104: 1 | G104: 0 | H104: 4 | I104: 0 | J104: 2 | K104: 0 | L104: 0 | M104: 3 | N104: 12 | O104: 4 | P104: 0 | Q104: 14 | R104: 0 | S104: 1 | T104: 0 | U104: 0
A105: Commune | B105: 14143 | C105: Caumont-sur-Aure | D105: 107 | E105: 3005 | F105: 2039 | G105: 364 | H105: 13 | I105: 4 | J105: 7 | K105: 47 | L105: 3041 | M105: 93 | N105: 2776 | O105: 2047 | P105: 423 | Q105: 29 | R105: 11 | S105: 11 | T105: 44 | U105: 2774
A106: Commune | B106: 14145 | C106: Cauvicourt | D106: 30 | E106: 2 | F106: 18 | G106: 0 | H106: 0 | I106: 0 | J106: 28 | K106: 0 | L106: 4 | M106: 22 | N106: 11 | O106: 23 | P106: 0 | Q106: 0 | R106: 0 | S106: 26 | T106: 0 | U106: 7
A107: Commune | B107: 14146 | C107: Cauville | D107: 0 | E107: 0 | F107: 0 | G107: 0 | H107: 0 | I107: 0 | J107: 0 | K107: 0 | L107: 0 | M107: 1 | N107: 0 | O107: 0 | P107: 0 | Q107: 0 | R107: 0 | S107: 0 | T107: 0 | U107: 1
A108: Commune | B108: 14147 | C108: Cernay | D108: 1 | E108: 0 | F108: 1 | G108: 0 | H108: 0 | I108: 0 | J108: 0 | K108: 0 | L108: 1 | M108: 1 | N108: 0 | O108: 1 | P108: 0 | Q108: 0 | R108: 0 | S108: 0 | T108: 0 | U108: 1
A109: Commune | B109: 14149 | C109: Cesny-aux-Vignes | D109: 5 | E109: 15 | F109: 7 | G109: 0 | H109: 0 | I109: 13 | J109: 3 | K109: 0 | L109: 4 | M109: 3 | N109: 19 | O109: 1 | P109: 0 | Q109: 0 | R109: 22 | S109: 0 | T109: 0 | U109: 0
A110: Commune | B110: 14150 | C110: Cesny-les-Sources | D110: 18 | E110: 73 | F110: 53 | G110: 0 | H110: 36 | I110: 0 | J110: 9 | K110: 6 | L110: 40 | M110: 29 | N110: 99 | O110: 80 | P110: 0 | Q110: 25 | R110: 2 | S110: 55 | T110: 11 | U110: 35
A111: Commune | B111: 14159 | C111: Chouain | D111: 14 | E111: 1 | F111: 7 | G111: 0 | H111: 0 | I111: 14 | J111: 1 | K111: 0 | L111: 0 | M111: 4 | N111: 1 | O111: 3 | P111: 0 | Q111: 0 | R111: 4 | S111: 0 | T111: 0 | U111: 1
A112: Commune | B112: 14160 | C112: Cintheaux | D112: 19 | E112: 15 | F112: 19 | G112: 0 | H112: 14 | I112: 1 | J112: 0 | K112: 9 | L112: 10 | M112: 11 | N112: 11 | O112: 15 | P112: 0 | Q112: 9 | R112: 1 | S112: 0 | T112: 4 | U112: 8
A113: Commune | B113: 14161 | C113: Clarbec | D113: 42 | E113: 46 | F113: 36 | G113: 0 | H113: 11 | I113: 0 | J113: 21 | K113: 9 | L113: 47 | M113: 42 | N113: 32 | O113: 49 | P113: 0 | Q113: 14 | R113: 0 | S113: 13 | T113: 3 | U113: 44
A114: Commune | B114: 14162 | C114: Clécy | D114: 95 | E114: 402 | F114: 183 | G114: 0 | H114: 3 | I114: 40 | J114: 0 | K114: 8 | L114: 446 | M114: 82 | N114: 291 | O114: 184 | P114: 0 | Q114: 4 | R114: 29 | S114: 3 | T114: 4 | U114: 333
A115: Commune | B115: 14163 | C115: Cléville | D115: 8 | E115: 4 | F115: 7 | G115: 0 | H115: 1 | I115: 0 | J115: 6 | K115: 0 | L115: 5 | M115: 5 | N115: 2 | O115: 3 | P115: 0 | Q115: 2 | R115: 0 | S115: 2 | T115: 1 | U115: 2
A116: Commune | B116: 14165 | C116: Colleville-sur-Mer | D116: 28 | E116: 103 | F116: 86 | G116: 0 | H116: 0 | I116: 0 | J116: 0 | K116: 0 | L116: 131 | M116: 33 | N116: 93 | O116: 72 | P116: 0 | Q116: 0 | R116: 0 | S116: 0 | T116: 0 | U116: 126
A117: Commune | B117: 14166 | C117: Colleville-Montgomery | D117: 123 | E117: 428 | F117: 257 | G117: 0 | H117: 9 | I117: 0 | J117: 15 | K117: 73 | L117: 454 | M117: 84 | N117: 354 | O117: 197 | P117: 0 | Q117: 12 | R117: 1 | S117: 28 | T117: 40 | U117: 357
A118: Commune | B118: 14167 | C118: Colombelles | D118: 1544 | E118: 6422 | F118: 4716 | G118: 0 | H118: 46 | I118: 291 | J118: 143 | K118: 335 | L118: 7151 | M118: 1387 | N118: 6099 | O118: 4559 | P118: 0 | Q118: 14 | R118: 317 | S118: 156 | T118: 432 | U118: 6567
A119: Commune | B119: 14168 | C119: Colombières | D119: 0 | E119: 1 | F119: 0 | G119: 0 | H119: 0 | I119: 0 | J119: 1 | K119: 0 | L119: 0 | M119: 0 | N119: 2 | O119: 1 | P119: 0 | Q119: 1 | R119: 0 | S119: 1 | T119: 0 | U119: 0
A120: Commune | B120: 14169 | C120: Colombiers-sur-Seulles | D120: 9 | E120: 13 | F120: 5 | G120: 0 | H120: 0 | I120: 0 | J120: 0 | K120: 0 | L120: 22 | M120: 8 | N120: 13 | O120: 2 | P120: 0 | Q120: 0 | R120: 0 | S120: 0 | T120: 0 | U120: 21
A121: Commune | B121: 14171 | C121: Combray | D121: 0 | E121: 2 | F121: 2 | G121: 0 | H121: 0 | I121: 0 | J121: 0 | K121: 0 | L121: 2 | M121: 0 | N121: 1 | O121: 1 | P121: 0 | Q121: 0 | R121: 0 | S121: 1 | T121: 0 | U121: 0
A122: Commune | B122: 14172 | C122: Commes | D122: 50 | E122: 127 | F122: 80 | G122: 0 | H122: 5 | I122: 0 | J122: 12 | K122: 4 | L122: 156 | M122: 48 | N122: 139 | O122: 101 | P122: 0 | Q122: 3 | R122: 0 | S122: 1 | T122: 15 | U122: 168
A123: Commune | B123: 14173 | C123: Condé-sur-Ifs | D123: 4 | E123: 6 | F123: 4 | G123: 0 | H123: 3 | I123: 0 | J123: 6 | K123: 1 | L123: 0 | M123: 11 | N123: 8 | O123: 10 | P123: 0 | Q123: 2 | R123: 0 | S123: 10 | T123: 1 | U123: 6
A124: Commune | B124: 14174 | C124: Condé-en-Normandie | D124: 479 | E124: 1961 | F124: 1704 | G124: 0 | H124: 20 | I124: 161 | J124: 44 | K124: 368 | L124: 1847 | M124: 459 | N124: 1428 | O124: 1288 | P124: 0 | Q124: 20 | R124: 189 | S124: 53 | T124: 260 | U124: 1365
A125: Commune | B125: 14175 | C125: Condé-sur-Seulles | D125: 25 | E125: 16 | F125: 10 | G125: 0 | H125: 0 | I125: 0 | J125: 14 | K125: 0 | L125: 27 | M125: 10 | N125: 13 | O125: 12 | P125: 0 | Q125: 0 | R125: 0 | S125: 14 | T125: 0 | U125: 9
A126: Commune | B126: 14177 | C126: Coquainvilliers | D126: 5 | E126: 4 | F126: 6 | G126: 0 | H126: 1 | I126: 4 | J126: 1 | K126: 1 | L126: 2 | M126: 2 | N126: 8 | O126: 7 | P126: 0 | Q126: 5 | R126: 1 | S126: 1 | T126: 0 | U126: 3
A127: Commune | B127: 14179 | C127: Cordebugle | D127: 1 | E127: 3 | F127: 0 | G127: 0 | H127: 4 | I127: 0 | J127: 0 | K127: 0 | L127: 0 | M127: 0 | N127: 2 | O127: 1 | P127: 0 | Q127: 1 | R127: 0 | S127: 1 | T127: 0 | U127: 0
A128: Commune | B128: 14180 | C128: Cordey | D128: 0 | E128: 1 | F128: 0 | G128: 0 | H128: 1 | I128: 0 | J128: 0 | K128: 0 | L128: 0 | M128: 3 | N128: 0 | O128: 1 | P128: 0 | Q128: 0 | R128: 0 | S128: 0 | T128: 0 | U128: 3
A129: Commune | B129: 14181 | C129: Cormelles-le-Royal | D129: 998 | E129: 5911 | F129: 3465 | G129: 9693 | H129: 0 | I129: 86 | J129: 155 | K129: 219 | L129: 6449 | M129: 672 | N129: 5158 | O129: 3052 | P129: 1039 | Q129: 0 | R129: 92 | S129: 125 | T129: 143 | U129: 5470
A130: Commune | B130: 14182 | C130: Cormolain | D130: 5 | E130: 17 | F130: 5 | G130: 0 | H130: 19 | I130: 1 | J130: 0 | K130: 0 | L130: 2 | M130: 7 | N130: 12 | O130: 11 | P130: 0 | Q130: 8 | R130: 0 | S130: 10 | T130: 0 | U130: 1
A131: Commune | B131: 14183 | C131: Cossesseville | D131: 1 | E131: 3 | F131: 1 | G131: 0 | H131: 0 | I131: 0 | J131: 2 | K131: 1 | L131: 1 | M131: 7 | N131: 5 | O131: 6 | P131: 0 | Q131: 0 | R131: 0 | S131: 0 | T131: 1 | U131: 11
A132: Commune | B132: 14184 | C132: Cottun | D132: 1 | E132: 0 | F132: 0 | G132: 0 | H132: 0 | I132: 0 | J132: 1 | K132: 0 | L132: 0 | M132: 2 | N132: 0 | O132: 0 | P132: 0 | Q132: 0 | R132: 0 | S132: 1 | T132: 0 | U132: 1
A133: Commune | B133: 14190 | C133: Courcy | D133: 3 | E133: 1 | F133: 1 | G133: 0 | H133: 1 | I133: 0 | J133: 0 | K133: 1 | L133: 2 | M133: 2 | N133: 1 | O133: 0 | P133: 0 | Q133: 0 | R133: 0 | S133: 0 | T133: 1 | U133: 2
A134: Commune | B134: 14191 | C134: Courseulles-sur-Mer | D134: 436 | E134: 2933 | F134: 1040 | G134: 0 | H134: 37 | I134: 33 | J134: 31 | K134: 306 | L134: 2962 | M134: 464 | N134: 2108 | O134: 1098 | P134: 0 | Q134: 42 | R134: 52 | S134: 28 | T134: 359 | U134: 2091
A135: Commune | B135: 14193 | C135: Courtonne-la-Meurdrac | D135: 33 | E135: 15 | F135: 30 | G135: 0 | H135: 6 | I135: 1 | J135: 2 | K135: 28 | L135: 11 | M135: 19 | N135: 9 | O135: 12 | P135: 0 | Q135: 8 | R135: 2 | S135: 3 | T135: 3 | U135: 12
A136: Commune | B136: 14194 | C136: Courtonne-les-Deux-Églises | D136: 10 | E136: 13 | F136: 9 | G136: 0 | H136: 8 | I136: 1 | J136: 7 | K136: 0 | L136: 7 | M136: 5 | N136: 7 | O136: 5 | P136: 0 | Q136: 2 | R136: 2 | S136: 7 | T136: 0 | U136: 1
A137: Commune | B137: 14195 | C137: Courvaudon | D137: 1 | E137: 1 | F137: 0 | G137: 0 | H137: 0 | I137: 0 | J137: 0 | K137: 0 | L137: 2 | M137: 1 | N137: 4 | O137: 2 | P137: 0 | Q137: 0 | R137: 0 | S137: 0 | T137: 0 | U137: 5
A138: Commune | B138: 14196 | C138: Crépon | D138: 15 | E138: 29 | F138: 9 | G138: 0 | H138: 0 | I138: 0 | J138: 0 | K138: 0 | L138: 44 | M138: 14 | N138: 21 | O138: 6 | P138: 0 | Q138: 0 | R138: 4 | S138: 0 | T138: 0 | U138: 31
A139: Commune | B139: 14197 | C139: Cresserons | D139: 17 | E139: 33 | F139: 24 | G139: 0 | H139: 5 | I139: 7 | J139: 4 | K139: 5 | L139: 29 | M139: 35 | N139: 140 | O139: 113 | P139: 0 | Q139: 3 | R139: 14 | S139: 1 | T139: 3 | U139: 154
A140: Commune | B140: 14198 | C140: Cresseveuille | D140: 12 | E140: 12 | F140: 11 | G140: 0 | H140: 0 | I140: 0 | J140: 0 | K140: 0 | L140: 24 | M140: 17 | N140: 20 | O140: 18 | P140: 0 | Q140: 3 | R140: 0 | S140: 0 | T140: 0 | U140: 34
A141: Commune | B141: 14200 | C141: Creully sur Seulles | D141: 211 | E141: 682 | F141: 569 | G141: 0 | H141: 36 | I141: 61 | J141: 19 | K141: 30 | L141: 747 | M141: 178 | N141: 714 | O141: 545 | P141: 0 | Q141: 24 | R141: 40 | S141: 17 | T141: 31 | U141: 780
A142: Commune | B142: 14202 | C142: Cricqueboeuf | D142: 56 | E142: 1169 | F142: 632 | G142: 0 | H142: 0 | I142: 0 | J142: 0 | K142: 1 | L142: 1224 | M142: 59 | N142: 681 | O142: 329 | P142: 0 | Q142: 0 | R142: 0 | S142: 0 | T142: 8 | U142: 732
A143: Commune | B143: 14203 | C143: Cricqueville-en-Auge | D143: 12 | E143: 5 | F143: 8 | G143: 0 | H143: 17 | I143: 0 | J143: 0 | K143: 0 | L143: 0 | M143: 4 | N143: 3 | O143: 6 | P143: 0 | Q143: 7 | R143: 0 | S143: 0 | T143: 0 | U143: 0
A144: Commune | B144: 14204 | C144: Cricqueville-en-Bessin | D144: 3 | E144: 27 | F144: 11 | G144: 0 | H144: 11 | I144: 0 | J144: 0 | K144: 18 | L144: 1 | M144: 4 | N144: 15 | O144: 5 | P144: 0 | Q144: 4 | R144: 0 | S144: 0 | T144: 13 | U144: 2
A145: Commune | B145: 14205 | C145: Cristot | D145: 5 | E145: 41 | F145: 20 | G145: 0 | H145: 0 | I145: 0 | J145: 6 | K145: 0 | L145: 40 | M145: 2 | N145: 107 | O145: 62 | P145: 0 | Q145: 3 | R145: 0 | S145: 9 | T145: 0 | U145: 97
A146: Commune | B146: 14206 | C146: Crocy | D146: 6 | E146: 9 | F146: 3 | G146: 0 | H146: 9 | I146: 0 | J146: 6 | K146: 0 | L146: 0 | M146: 8 | N146: 7 | O146: 6 | P146: 0 | Q146: 7 | R146: 0 | S146: 5 | T146: 0 | U146: 3
A147: Commune | B147: 14207 | C147: Croisilles | D147: 3 | E147: 1 | F147: 3 | G147: 0 | H147: 0 | I147: 0 | J147: 2 | K147: 0 | L147: 2 | M147: 11 | N147: 2 | O147: 4 | P147: 0 | Q147: 0 | R147: 0 | S147: 9 | T147: 1 | U147: 3
A148: Commune | B148: 14209 | C148: Crouay | D148: 19 | E148: 6 | F148: 5 | G148: 0 | H148: 1 | I148: 5 | J148: 11 | K148: 1 | L148: 7 | M148: 13 | N148: 12 | O148: 10 | P148: 0 | Q148: 8 | R148: 0 | S148: 11 | T148: 0 | U148: 6
A149: Commune | B149: 14211 | C149: Culey-le-Patry | D149: 0 | E149: 0 | F149: 0 | G149: 0 | H149: 0 | I149: 0 | J149: 0 | K149: 0 | L149: 0 | M149: 0 | N149: 1 | O149: 1 | P149: 0 | Q149: 0 | R149: 0 | S149: 0 | T149: 0 | U149: 1
A150: Commune | B150: 14214 | C150: Cussy | D150: 18 | E150: 39 | F150: 12 | G150: 0 | H150: 0 | I150: 0 | J150: 0 | K150: 0 | L150: 57 | M150: 42 | N150: 29 | O150: 30 | P150: 0 | Q150: 2 | R150: 1 | S150: 0 | T150: 0 | U150: 68
A151: Commune | B151: 14215 | C151: Cuverville | D151: 37 | E151: 182 | F151: 128 | G151: 0 | H151: 0 | I151: 4 | J151: 20 | K151: 26 | L151: 169 | M151: 41 | N151: 183 | O151: 154 | P151: 0 | Q151: 0 | R151: 2 | S151: 12 | T151: 22 | U151: 188
A152: Commune | B152: 14216 | C152: Damblainville | D152: 2 | E152: 0 | F152: 1 | G152: 0 | H152: 1 | I152: 0 | J152: 1 | K152: 0 | L152: 0 | M152: 0 | N152: 0 | O152: 0 | P152: 0 | Q152: 0 | R152: 0 | S152: 0 | T152: 0 | U152: 0
A153: Commune | B153: 14218 | C153: Danestal | D153: 9 | E153: 3 | F153: 2 | G153: 0 | H153: 1 | I153: 0 | J153: 0 | K153: 2 | L153: 9 | M153: 5 | N153: 4 | O153: 3 | P153: 0 | Q153: 3 | R153: 0 | S153: 1 | T153: 0 | U153: 5
A154: Commune | B154: 14220 | C154: Deauville | D154: 1736 | E154: 20045 | F154: 10419 | G154: 11179 | H154: 0 | I154: 196 | J154: 20 | K154: 787 | L154: 20778 | M154: 1697 | N154: 21127 | O154: 12184 | P154: 7063 | Q154: 0 | R154: 176 | S154: 25 | T154: 870 | U154: 21753
A155: Commune | B155: 14221 | C155: Démouville | D155: 245 | E155: 2567 | F155: 1951 | G155: 0 | H155: 9 | I155: 22 | J155: 33 | K155: 49 | L155: 2699 | M155: 272 | N155: 3809 | O155: 3016 | P155: 0 | Q155: 9 | R155: 15 | S155: 42 | T155: 36 | U155: 3979
A156: Commune | B156: 14223 | C156: Le Détroit | D156: 0 | E156: 1 | F156: 0 | G156: 0 | H156: 0 | I156: 0 | J156: 0 | K156: 0 | L156: 1 | M156: 1 | N156: 0 | O156: 1 | P156: 0 | Q156: 0 | R156: 0 | S156: 0 | T156: 0 | U156: 1
A157: Commune | B157: 14224 | C157: Deux-Jumeaux | D157: 0 | E157: 2 | F157: 0 | G157: 0 | H157: 1 | I157: 0 | J157: 0 | K157: 0 | L157: 1 | M157: 2 | N157: 3 | O157: 0 | P157: 0 | Q157: 4 | R157: 0 | S157: 0 | T157: 0 | U157: 1
A158: Commune | B158: 14225 | C158: Dives-sur-Mer | D158: 508 | E158: 1661 | F158: 1126 | G158: 0 | H158: 3 | I158: 129 | J158: 43 | K158: 323 | L158: 1671 | M158: 568 | N158: 1781 | O158: 1139 | P158: 0 | Q158: 1 | R158: 179 | S158: 65 | T158: 380 | U158: 1724
A159: Commune | B159: 14226 | C159: Donnay | D159: 1 | E159: 18 | F159: 1 | G159: 0 | H159: 18 | I159: 0 | J159: 0 | K159: 0 | L159: 1 | M159: 1 | N159: 19 | O159: 6 | P159: 0 | Q159: 20 | R159: 0 | S159: 0 | T159: 0 | U159: 0
A160: Commune | B160: 14227 | C160: Douville-en-Auge | D160: 7 | E160: 3 | F160: 2 | G160: 0 | H160: 1 | I160: 0 | J160: 0 | K160: 9 | L160: 0 | M160: 4 | N160: 2 | O160: 0 | P160: 0 | Q160: 3 | R160: 0 | S160: 0 | T160: 3 | U160: 0
A161: Commune | B161: 14228 | C161: Douvres-la-Délivrande | D161: 564 | E161: 1710 | F161: 1284 | G161: 0 | H161: 8 | I161: 52 | J161: 58 | K161: 418 | L161: 1738 | M161: 649 | N161: 1671 | O161: 1143 | P161: 0 | Q161: 10 | R161: 64 | S161: 71 | T161: 335 | U161: 1840
A162: Commune | B162: 14229 | C162: Dozulé | D162: 178 | E162: 2112 | F162: 1339 | G162: 0 | H162: 0 | I162: 14 | J162: 5 | K162: 179 | L162: 2092 | M162: 178 | N162: 2306 | O162: 1666 | P162: 0 | Q162: 0 | R162: 7 | S162: 3 | T162: 208 | U162: 2266
A163: Commune | B163: 14230 | C163: Drubec | D163: 11 | E163: 17 | F163: 11 | G163: 0 | H163: 0 | I163: 0 | J163: 0 | K163: 3 | L163: 25 | M163: 9 | N163: 16 | O163: 14 | P163: 0 | Q163: 0 | R163: 0 | S163: 0 | T163: 3 | U163: 22
A164: Commune | B164: 14231 | C164: Beaufour-Druval | D164: 12 | E164: 12 | F164: 14 | G164: 0 | H164: 8 | I164: 0 | J164: 2 | K164: 8 | L164: 6 | M164: 16 | N164: 9 | O164: 9 | P164: 0 | Q164: 5 | R164: 0 | S164: 4 | T164: 7 | U164: 9
A165: Commune | B165: 14232 | C165: Ducy-Sainte-Marguerite | D165: 1 | E165: 19 | F165: 4 | G165: 0 | H165: 3 | I165: 11 | J165: 3 | K165: 0 | L165: 3 | M165: 5 | N165: 16 | O165: 4 | P165: 0 | Q165: 2 | R165: 15 | S165: 1 | T165: 0 | U165: 3
A166: Commune | B166: 14236 | C166: Ellon | D166: 29 | E166: 1080 | F166: 765 | G166: 0 | H166: 3 | I166: 0 | J166: 2 | K166: 1 | L166: 1103 | M166: 29 | N166: 1236 | O166: 959 | P166: 0 | Q166: 3 | R166: 0 | S166: 0 | T166: 1 | U166: 1261
A167: Commune | B167: 14237 | C167: Émiéville | D167: 2 | E167: 21 | F167: 19 | G167: 0 | H167: 0 | I167: 3 | J167: 1 | K167: 0 | L167: 19 | M167: 4 | N167: 12 | O167: 4 | P167: 0 | Q167: 0 | R167: 0 | S167: 2 | T167: 0 | U167: 14
A168: Commune | B168: 14238 | C168: Englesqueville-en-Auge | D168: 1 | E168: 12 | F168: 2 | G168: 0 | H168: 1 | I168: 0 | J168: 0 | K168: 0 | L168: 12 | M168: 1 | N168: 5 | O168: 1 | P168: 0 | Q168: 1 | R168: 0 | S168: 0 | T168: 0 | U168: 5
A169: Commune | B169: 14239 | C169: Englesqueville-la-Percée | D169: 4 | E169: 8 | F169: 2 | G169: 0 | H169: 3 | I169: 0 | J169: 0 | K169: 0 | L169: 9 | M169: 0 | N169: 14 | O169: 4 | P169: 0 | Q169: 5 | R169: 0 | S169: 0 | T169: 0 | U169: 9
A170: Commune | B170: 14240 | C170: Épaney | D170: 1 | E170: 2 | F170: 1 | G170: 0 | H170: 0 | I170: 0 | J170: 1 | K170: 0 | L170: 2 | M170: 0 | N170: 3 | O170: 1 | P170: 0 | Q170: 2 | R170: 0 | S170: 1 | T170: 0 | U170: 0
A171: Commune | B171: 14241 | C171: Épinay-sur-Odon | D171: 9 | E171: 3 | F171: 4 | G171: 0 | H171: 3 | I171: 0 | J171: 4 | K171: 0 | L171: 5 | M171: 13 | N171: 4 | O171: 8 | P171: 0 | Q171: 2 | R171: 0 | S171: 3 | T171: 0 | U171: 12
A172: Commune | B172: 14242 | C172: Épron | D172: 221 | E172: 2005 | F172: 1191 | G172: 9383 | H172: 0 | I172: 21 | J172: 1 | K172: 22 | L172: 2182 | M172: 201 | N172: 1593 | O172: 864 | P172: 7935 | Q172: 0 | R172: 18 | S172: 1 | T172: 13 | U172: 1762
A173: Commune | B173: 14243 | C173: Équemauville | D173: 54 | E173: 116 | F173: 91 | G173: 0 | H173: 3 | I173: 1 | J173: 7 | K173: 53 | L173: 106 | M173: 104 | N173: 164 | O173: 161 | P173: 0 | Q173: 3 | R173: 4 | S173: 3 | T173: 83 | U173: 175
A174: Commune | B174: 14244 | C174: Eraines | D174: 2 | E174: 0 | F174: 0 | G174: 0 | H174: 0 | I174: 0 | J174: 2 | K174: 0 | L174: 0 | M174: 3 | N174: 0 | O174: 1 | P174: 0 | Q174: 0 | R174: 0 | S174: 3 | T174: 0 | U174: 0
A175: Commune | B175: 14245 | C175: Ernes | D175: 2 | E175: 20 | F175: 12 | G175: 0 | H175: 18 | I175: 0 | J175: 0 | K175: 0 | L175: 4 | M175: 1 | N175: 27 | O175: 17 | P175: 0 | Q175: 28 | R175: 0 | S175: 0 | T175: 0 | U175: 0
A176: Commune | B176: 14246 | C176: Escoville | D176: 2 | E176: 3 | F176: 3 | G176: 0 | H176: 1 | I176: 0 | J176: 2 | K176: 1 | L176: 1 | M176: 9 | N176: 2 | O176: 4 | P176: 0 | Q176: 1 | R176: 0 | S176: 1 | T176: 0 | U176: 9
A177: Commune | B177: 14248 | C177: Espins | D177: 0 | E177: 3 | F177: 3 | G177: 0 | H177: 0 | I177: 0 | J177: 0 | K177: 0 | L177: 3 | M177: 1 | N177: 3 | O177: 2 | P177: 0 | Q177: 0 | R177: 0 | S177: 1 | T177: 0 | U177: 3
A178: Commune | B178: 14249 | C178: Esquay-Notre-Dame | D178: 22 | E178: 90 | F178: 39 | G178: 0 | H178: 0 | I178: 0 | J178: 16 | K178: 1 | L178: 95 | M178: 23 | N178: 50 | O178: 39 | P178: 0 | Q178: 0 | R178: 0 | S178: 15 | T178: 9 | U178: 49
A179: Commune | B179: 14250 | C179: Esquay-sur-Seulles | D179: 6 | E179: 0 | F179: 3 | G179: 0 | H179: 0 | I179: 0 | J179: 0 | K179: 0 | L179: 6 | M179: 1 | N179: 0 | O179: 0 | P179: 0 | Q179: 0 | R179: 0 | S179: 1 | T179: 0 | U179: 0
A180: Commune | B180: 14251 | C180: Esson | D180: 18 | E180: 8 | F180: 15 | G180: 0 | H180: 0 | I180: 14 | J180: 11 | K180: 0 | L180: 1 | M180: 28 | N180: 8 | O180: 23 | P180: 0 | Q180: 1 | R180: 23 | S180: 7 | T180: 2 | U180: 3
A181: Commune | B181: 14252 | C181: Estrées-la-Campagne | D181: 0 | E181: 1 | F181: 1 | G181: 0 | H181: 0 | I181: 0 | J181: 0 | K181: 1 | L181: 0 | M181: 9 | N181: 0 | O181: 1 | P181: 0 | Q181: 0 | R181: 0 | S181: 0 | T181: 1 | U181: 8
A182: Commune | B182: 14254 | C182: Éterville | D182: 79 | E182: 74 | F182: 93 | G182: 0 | H182: 0 | I182: 30 | J182: 16 | K182: 6 | L182: 101 | M182: 87 | N182: 75 | O182: 69 | P182: 0 | Q182: 2 | R182: 23 | S182: 19 | T182: 31 | U182: 87
A183: Commune | B183: 14256 | C183: Étréham | D183: 7 | E183: 19 | F183: 14 | G183: 0 | H183: 17 | I183: 0 | J183: 0 | K183: 0 | L183: 9 | M183: 16 | N183: 19 | O183: 10 | P183: 0 | Q183: 19 | R183: 0 | S183: 8 | T183: 0 | U183: 8
A184: Commune | B184: 14257 | C184: Évrecy | D184: 198 | E184: 994 | F184: 571 | G184: 0 | H184: 6 | I184: 29 | J184: 22 | K184: 119 | L184: 1016 | M184: 186 | N184: 1078 | O184: 681 | P184: 0 | Q184: 2 | R184: 41 | S184: 22 | T184: 133 | U184: 1066
A185: Commune | B185: 14258 | C185: Falaise | D185: 886 | E185: 2549 | F185: 1993 | G185: 7562 | H185: 40 | I185: 274 | J185: 88 | K185: 565 | L185: 2468 | M185: 816 | N185: 2375 | O185: 1812 | P185: 5769 | Q185: 57 | R185: 188 | S185: 82 | T185: 634 | U185: 2230
A186: Commune | B186: 14260 | C186: Fauguernon | D186: 0 | E186: 0 | F186: 0 | G186: 0 | H186: 0 | I186: 0 | J186: 0 | K186: 0 | L186: 0 | M186: 1 | N186: 0 | O186: 0 | P186: 0 | Q186: 0 | R186: 0 | S186: 1 | T186: 0 | U186: 0
A187: Commune | B187: 14261 | C187: Le Faulq | D187: 4 | E187: 9 | F187: 6 | G187: 0 | H187: 0 | I187: 0 | J187: 5 | K187: 0 | L187: 8 | M187: 16 | N187: 17 | O187: 11 | P187: 0 | Q187: 0 | R187: 0 | S187: 10 | T187: 0 | U187: 23
A188: Commune | B188: 14266 | C188: Feuguerolles-Bully | D188: 14 | E188: 375 | F188: 345 | G188: 0 | H188: 4 | I188: 1 | J188: 0 | K188: 16 | L188: 368 | M188: 18 | N188: 66 | O188: 44 | P188: 0 | Q188: 2 | R188: 3 | S188: 3 | T188: 40 | U188: 36
A189: Commune | B189: 14269 | C189: Fierville-les-Parcs | D189: 0 | E189: 2 | F189: 1 | G189: 0 | H189: 0 | I189: 0 | J189: 0 | K189: 2 | L189: 0 | M189: 1 | N189: 2 | O189: 0 | P189: 0 | Q189: 0 | R189: 0 | S189: 0 | T189: 3 | U189: 0
A190: Commune | B190: 14270 | C190: Firfol | D190: 9 | E190: 524 | F190: 418 | G190: 0 | H190: 0 | I190: 0 | J190: 3 | K190: 0 | L190: 530 | M190: 26 | N190: 746 | O190: 444 | P190: 0 | Q190: 0 | R190: 0 | S190: 6 | T190: 0 | U190: 766
A191: Commune | B191: 14271 | C191: Fleury-sur-Orne | D191: 800 | E191: 3930 | F191: 2804 | G191: 3218 | H191: 10 | I191: 22 | J191: 86 | K191: 312 | L191: 4300 | M191: 660 | N191: 3701 | O191: 2724 | P191: 3290 | Q191: 13 | R191: 41 | S191: 128 | T191: 217 | U191: 3962
A192: Commune | B192: 14272 | C192: La Folie | D192: 0 | E192: 2 | F192: 0 | G192: 0 | H192: 2 | I192: 0 | J192: 0 | K192: 0 | L192: 0 | M192: 0 | N192: 1 | O192: 0 | P192: 0 | Q192: 1 | R192: 0 | S192: 0 | T192: 0 | U192: 0
A193: Commune | B193: 14273 | C193: La Folletière-Abenon | D193: 1 | E193: 7 | F193: 1 | G193: 0 | H193: 3 | I193: 3 | J193: 0 | K193: 0 | L193: 2 | M193: 5 | N193: 0 | O193: 1 | P193: 0 | Q193: 1 | R193: 1 | S193: 0 | T193: 0 | U193: 3
A194: Commune | B194: 14274 | C194: Fontaine-Étoupefour | D194: 18 | E194: 121 | F194: 101 | G194: 0 | H194: 0 | I194: 11 | J194: 5 | K194: 6 | L194: 117 | M194: 40 | N194: 143 | O194: 126 | P194: 0 | Q194: 0 | R194: 9 | S194: 28 | T194: 11 | U194: 135
A195: Commune | B195: 14275 | C195: Fontaine-Henry | D195: 2 | E195: 6 | F195: 1 | G195: 0 | H195: 4 | I195: 0 | J195: 0 | K195: 0 | L195: 4 | M195: 4 | N195: 2 | O195: 1 | P195: 0 | Q195: 2 | R195: 0 | S195: 0 | T195: 0 | U195: 4
A196: Commune | B196: 14276 | C196: Fontaine-le-Pin | D196: 0 | E196: 4 | F196: 0 | G196: 0 | H196: 2 | I196: 0 | J196: 2 | K196: 0 | L196: 0 | M196: 2 | N196: 8 | O196: 3 | P196: 0 | Q196: 4 | R196: 0 | S196: 6 | T196: 0 | U196: 0
A197: Commune | B197: 14277 | C197: Fontenay-le-Marmion | D197: 58 | E197: 244 | F197: 158 | G197: 0 | H197: 172 | I197: 2 | J197: 29 | K197: 24 | L197: 75 | M197: 58 | N197: 311 | O197: 200 | P197: 0 | Q197: 255 | R197: 10 | S197: 20 | T197: 7 | U197: 77
A198: Commune | B198: 14278 | C198: Fontenay-le-Pesnel | D198: 65 | E198: 636 | F198: 403 | G198: 0 | H198: 0 | I198: 9 | J198: 8 | K198: 2 | L198: 682 | M198: 47 | N198: 686 | O198: 475 | P198: 0 | Q198: 2 | R198: 6 | S198: 5 | T198: 2 | U198: 718
A199: Commune | B199: 14280 | C199: Formentin | D199: 3 | E199: 1 | F199: 1 | G199: 0 | H199: 0 | I199: 0 | J199: 1 | K199: 1 | L199: 2 | M199: 2 | N199: 2 | O199: 1 | P199: 0 | Q199: 1 | R199: 0 | S199: 0 | T199: 0 | U199: 3
A200: Commune | B200: 14281 | C200: Formigny La Bataille | D200: 9 | E200: 15 | F200: 10 | G200: 0 | H200: 8 | I200: 0 | J200: 10 | K200: 3 | L200: 3 | M200: 15 | N200: 6 | O200: 5 | P200: 0 | Q200: 9 | R200: 0 | S200: 6 | T200: 5 | U200: 1
... 2559 more rows

Sheet export_defm (hidden)
A1: type | B1: code | C1: libelle | D1: cata | E1: catb | F1: catc | G1: catabc | H1: catd | I1: cate | J1: femmes | K1: jeunes | L1: seniors | M1: indemn | N1: bepcap | O1: rsa | P1: boe | Q1: qpv | R1: jeunescap | S1: jeunesbac | T1: jeunesbacp2 | U1: cata_p | V1: catb_p | W1: catc_p | X1: catabc_p | Y1: catd_p | Z1: cate_p | AA1: femmes_p | AB1: jeunes_p | AC1: seniors_p | AD1: indemn_p | AE1: bepcap_p | AF1: rsa_p | AG1: boe_p | AH1: qpv_p | AI1: jeunescap_p | AJ1: jeunesbac_p | AK1: jeunesbacp2_p
A2: Commune | B2: 14001 | C2: Ablon | D2: 25 | E2: 8 | F2: 25 | G2: 58 | H2: 6 | I2: 5 | J2: 31 | K2: 7 | L2: 13 | M2: 43 | N2: 30 | O2: 2 | P2: NC | Q2: 0 | R2: 3 | S2: 1 | T2: 3 | U2: 26 | V2: 8 | W2: 22 | X2: 56 | Y2: 5 | Z2: 7 | AA2: 27 | AB2: 9 | AC2: 15 | AD2: 38 | AE2: 24 | AF2: 3 | AG2: NC | AH2: 0 | AI2: 2 | AJ2: 4 | AK2: 2
A3: Commune | B3: 14003 | C3: Agy | D3: 4 | E3: 2 | F3: 3 | G3: 9 | H3: 1 | I3: 5 | J3: 6 | K3: 0 | L3: 3 | M3: 6 | N3: 4 | O3: 1 | P3: NC | Q3: 0 | R3: 0 | S3: 0 | T3: 0 | U3: 6 | V3: 2 | W3: 2 | X3: 10 | Y3: 0 | Z3: 1 | AA3: 7 | AB3: 1 | AC3: 2 | AD3: 7 | AE3: 2 | AF3: 0 | AG3: NC | AH3: 0 | AI3: 0 | AJ3: 0 | AK3: 1
A4: Commune | B4: 14005 | C4: Valambray | D4: 43 | E4: 19 | F4: 30 | G4: 92 | H4: 5 | I4: 10 | J4: 58 | K4: 14 | L4: 18 | M4: 72 | N4: 36 | O4: 5 | P4: NC | Q4: 0 | R4: 4 | S4: 4 | T4: 6 | U4: 40 | V4: 20 | W4: 35 | X4: 95 | Y4: 7 | Z4: 10 | AA4: 59 | AB4: 14 | AC4: 22 | AD4: 75 | AE4: 44 | AF4: 6 | AG4: NC | AH4: 0 | AI4: 6 | AJ4: 4 | AK4: 4
A5: Commune | B5: 14006 | C5: Amayé-sur-Orne | D5: 25 | E5: 10 | F5: 21 | G5: 56 | H5: 1 | I5: 9 | J5: 30 | K5: 11 | L5: 10 | M5: 49 | N5: 15 | O5: 0 | P5: NC | Q5: 0 | R5: 3 | S5: 5 | T5: 3 | U5: 18 | V5: 12 | W5: 16 | X5: 46 | Y5: 3 | Z5: 6 | AA5: 30 | AB5: 7 | AC5: 14 | AD5: 37 | AE5: 20 | AF5: 0 | AG5: NC | AH5: 0 | AI5: 2 | AJ5: 2 | AK5: 3
A6: Commune | B6: 14007 | C6: Amayé-sur-Seulles | D6: 3 | E6: 1 | F6: 3 | G6: 7 | H6: 0 | I6: 0 | J6: 4 | K6: 2 | L6: 0 | M6: 7 | N6: 1 | O6: 0 | P6: NC | Q6: 0 | R6: 1 | S6: 1 | T6: 0 | U6: 6 | V6: 2 | W6: 2 | X6: 10 | Y6: 0 | Z6: 0 | AA6: 2 | AB6: 2 | AC6: 0 | AD6: 8 | AE6: 3 | AF6: 1 | AG6: NC | AH6: 0 | AI6: 1 | AJ6: 1 | AK6: 0
A7: Commune | B7: 14009 | C7: Amfreville | D7: 41 | E7: 13 | F7: 30 | G7: 84 | H7: 5 | I7: 8 | J7: 49 | K7: 18 | L7: 27 | M7: 58 | N7: 32 | O7: 4 | P7: NC | Q7: 0 | R7: 8 | S7: 4 | T7: 6 | U7: 36 | V7: 18 | W7: 31 | X7: 85 | Y7: 3 | Z7: 11 | AA7: 50 | AB7: 20 | AC7: 23 | AD7: 68 | AE7: 33 | AF7: 4 | AG7: NC | AH7: 0 | AI7: 7 | AJ7: 8 | AK7: 5
A8: Commune | B8: 14011 | C8: Aurseulles | D8: 54 | E8: 18 | F8: 18 | G8: 90 | H8: 6 | I8: 14 | J8: 52 | K8: 9 | L8: 25 | M8: 72 | N8: 39 | O8: 7 | P8: NC | Q8: 0 | R8: 3 | S8: 3 | T8: 3 | U8: 44 | V8: 16 | W8: 31 | X8: 91 | Y8: 8 | Z8: 15 | AA8: 45 | AB8: 12 | AC8: 26 | AD8: 68 | AE8: 44 | AF8: 7 | AG8: NC | AH8: 0 | AI8: 5 | AJ8: 6 | AK8: 1
A9: Commune | B9: 14012 | C9: Angerville | D9: 5 | E9: 3 | F9: 5 | G9: 13 | H9: 1 | I9: 1 | J9: 9 | K9: 3 | L9: 2 | M9: 9 | N9: 6 | O9: 0 | P9: NC | Q9: 0 | R9: 1 | S9: 2 | T9: 0 | U9: 9 | V9: 2 | W9: 4 | X9: 15 | Y9: 0 | Z9: 0 | AA9: 9 | AB9: 2 | AC9: 4 | AD9: 10 | AE9: 8 | AF9: 0 | AG9: NC | AH9: 0 | AI9: 1 | AJ9: 1 | AK9: 0
A10: Commune | B10: 14014 | C10: Colomby-Anguerny | D10: 22 | E10: 7 | F10: 23 | G10: 52 | H10: 6 | I10: 10 | J10: 24 | K10: 6 | L10: 16 | M10: 40 | N10: 9 | O10: 2 | P10: NC | Q10: 0 | R10: 0 | S10: 1 | T10: 5 | U10: 38 | V10: 11 | W10: 29 | X10: 78 | Y10: 5 | Z10: 7 | AA10: 42 | AB10: 9 | AC10: 21 | AD10: 56 | AE10: 16 | AF10: 5 | AG10: NC | AH10: 0 | AI10: 0 | AJ10: 5 | AK10: 4
A11: Commune | B11: 14015 | C11: Anisy | D11: 20 | E11: 2 | F11: 12 | G11: 34 | H11: 4 | I11: 5 | J11: 15 | K11: 0 | L11: 8 | M11: 25 | N11: 10 | O11: 1 | P11: NC | Q11: 0 | R11: 0 | S11: 0 | T11: 0 | U11: 17 | V11: 3 | W11: 9 | X11: 29 | Y11: 3 | Z11: 5 | AA11: 16 | AB11: 4 | AC11: 6 | AD11: 23 | AE11: 8 | AF11: 0 | AG11: NC | AH11: 0 | AI11: 1 | AJ11: 0 | AK11: 3
A12: Commune | B12: 14016 | C12: Annebault | D12: 8 | E12: 5 | F12: 13 | G12: 26 | H12: 0 | I12: 0 | J12: 18 | K12: 2 | L12: 7 | M12: 21 | N12: 11 | O12: 1 | P12: NC | Q12: 0 | R12: 0 | S12: 2 | T12: 0 | U12: 10 | V12: 7 | W12: 13 | X12: 30 | Y12: 0 | Z12: 0 | AA12: 21 | AB12: 3 | AC12: 9 | AD12: 24 | AE12: 13 | AF12: 1 | AG12: NC | AH12: 0 | AI12: 1 | AJ12: 1 | AK12: 1
A13: Commune | B13: 14019 | C13: Arganchy | D13: 7 | E13: 0 | F13: 3 | G13: 10 | H13: 2 | I13: 2 | J13: 6 | K13: 4 | L13: 1 | M13: 7 | N13: 4 | O13: 1 | P13: NC | Q13: 0 | R13: 1 | S13: 3 | T13: 0 | U13: 7 | V13: 2 | W13: 4 | X13: 13 | Y13: 2 | Z13: 2 | AA13: 6 | AB13: 4 | AC13: 4 | AD13: 7 | AE13: 7 | AF13: 1 | AG13: NC | AH13: 0 | AI13: 0 | AJ13: 2 | AK13: 2
A14: Commune | B14: 14020 | C14: Argences | D14: 133 | E14: 43 | F14: 113 | G14: 289 | H14: 19 | I14: 15 | J14: 178 | K14: 54 | L14: 84 | M14: 197 | N14: 150 | O14: 27 | P14: NC | Q14: 0 | R14: 18 | S14: 23 | T14: 13 | U14: 146 | V14: 35 | W14: 112 | X14: 293 | Y14: 16 | Z14: 21 | AA14: 182 | AB14: 55 | AC14: 83 | AD14: 197 | AE14: 155 | AF14: 30 | AG14: NC | AH14: 0 | AI14: 15 | AJ14: 22 | AK14: 18
A15: Commune | B15: 14021 | C15: Arromanches-les-Bains | D15: 28 | E15: 4 | F15: 6 | G15: 38 | H15: 0 | I15: 4 | J15: 13 | K15: 6 | L15: 9 | M15: 28 | N15: 16 | O15: 5 | P15: NC | Q15: 0 | R15: 4 | S15: 0 | T15: 2 | U15: 20 | V15: 11 | W15: 3 | X15: 34 | Y15: 2 | Z15: 4 | AA15: 15 | AB15: 5 | AC15: 12 | AD15: 20 | AE15: 16 | AF15: 5 | AG15: NC | AH15: 0 | AI15: 3 | AJ15: 2 | AK15: 0
A16: Commune | B16: 14022 | C16: Asnelles | D16: 27 | E16: 6 | F16: 6 | G16: 39 | H16: 1 | I16: 4 | J16: 22 | K16: 5 | L16: 12 | M16: 28 | N16: 19 | O16: 3 | P16: NC | Q16: 0 | R16: 1 | S16: 1 | T16: 3 | U16: 25 | V16: 6 | W16: 8 | X16: 39 | Y16: 3 | Z16: 3 | AA16: 23 | AB16: 5 | AC16: 15 | AD16: 30 | AE16: 19 | AF16: 1 | AG16: NC | AH16: 0 | AI16: 1 | AJ16: 3 | AK16: 1
A17: Commune | B17: 14023 | C17: Asnières-en-Bessin | D17: 3 | E17: 0 | F17: 0 | G17: 3 | H17: 0 | I17: 0 | J17: 2 | K17: 0 | L17: 1 | M17: 3 | N17: 1 | O17: 2 | P17: NC | Q17: 0 | R17: 0 | S17: 0 | T17: 0 | U17: 1 | V17: 1 | W17: 0 | X17: 2 | Y17: 0 | Z17: 0 | AA17: 1 | AB17: 1 | AC17: 1 | AD17: 1 | AE17: 1 | AF17: 0 | AG17: NC | AH17: 0 | AI17: 0 | AJ17: 0 | AK17: 1
A18: Commune | B18: 14024 | C18: Auberville | D18: 20 | E18: 8 | F18: 15 | G18: 43 | H18: 2 | I18: 6 | J18: 28 | K18: 5 | L18: 14 | M18: 34 | N18: 20 | O18: 2 | P18: NC | Q18: 0 | R18: 0 | S18: 4 | T18: 1 | U18: 26 | V18: 7 | W18: 17 | X18: 50 | Y18: 1 | Z18: 10 | AA18: 30 | AB18: 6 | AC18: 19 | AD18: 36 | AE18: 28 | AF18: 2 | AG18: NC | AH18: 0 | AI18: 2 | AJ18: 2 | AK18: 2
A19: Commune | B19: 14025 | C19: Aubigny | D19: 8 | E19: 3 | F19: 3 | G19: 14 | H19: 0 | I19: 0 | J19: 6 | K19: 3 | L19: 6 | M19: 10 | N19: 9 | O19: 2 | P19: NC | Q19: 0 | R19: 1 | S19: 1 | T19: 1 | U19: 9 | V19: 1 | W19: 5 | X19: 15 | Y19: 0 | Z19: 1 | AA19: 5 | AB19: 3 | AC19: 7 | AD19: 12 | AE19: 7 | AF19: 2 | AG19: NC | AH19: 0 | AI19: 1 | AJ19: 0 | AK19: 2
A20: Commune | B20: 14026 | C20: Audrieu | D20: 26 | E20: 7 | F20: 18 | G20: 51 | H20: 6 | I20: 6 | J20: 27 | K20: 7 | L20: 11 | M20: 38 | N20: 18 | O20: 3 | P20: NC | Q20: 0 | R20: 2 | S20: 1 | T20: 4 | U20: 32 | V20: 1 | W20: 30 | X20: 63 | Y20: 5 | Z20: 7 | AA20: 40 | AB20: 11 | AC20: 14 | AD20: 50 | AE20: 16 | AF20: 3 | AG20: NC | AH20: 0 | AI20: 2 | AJ20: 3 | AK20: 6
A21: Commune | B21: 14027 | C21: Les Monts d'Aunay | D21: 162 | E21: 53 | F21: 118 | G21: 333 | H21: 24 | I21: 14 | J21: 190 | K21: 64 | L21: 88 | M21: 234 | N21: 195 | O21: 32 | P21: NC | Q21: 0 | R21: 27 | S21: 26 | T21: 11 | U21: 157 | V21: 71 | W21: 107 | X21: 335 | Y21: 17 | Z21: 16 | AA21: 201 | AB21: 67 | AC21: 83 | AD21: 241 | AE21: 199 | AF21: 29 | AG21: NC | AH21: 0 | AI21: 27 | AJ21: 27 | AK21: 13
A22: Commune | B22: 14030 | C22: Authie | D22: 44 | E22: 9 | F22: 31 | G22: 84 | H22: 6 | I22: 6 | J22: 42 | K22: 12 | L22: 22 | M22: 60 | N22: 22 | O22: 7 | P22: NC | Q22: 0 | R22: 1 | S22: 4 | T22: 7 | U22: 44 | V22: 14 | W22: 23 | X22: 81 | Y22: 6 | Z22: 9 | AA22: 43 | AB22: 12 | AC22: 20 | AD22: 59 | AE22: 24 | AF22: 6 | AG22: NC | AH22: 0 | AI22: 5 | AJ22: 2 | AK22: 5
A23: Commune | B23: 14032 | C23: Les Authieux-sur-Calonne | D23: 13 | E23: 1 | F23: 2 | G23: 16 | H23: 0 | I23: 4 | J23: 11 | K23: 0 | L23: 3 | M23: 10 | N23: 3 | O23: 3 | P23: NC | Q23: 0 | R23: 0 | S23: 0 | T23: 0 | U23: 4 | V23: 2 | W23: 4 | X23: 10 | Y23: 1 | Z23: 1 | AA23: 5 | AB23: 2 | AC23: 4 | AD23: 6 | AE23: 6 | AF23: 1 | AG23: NC | AH23: 0 | AI23: 0 | AJ23: 1 | AK23: 1
A24: Commune | B24: 14033 | C24: Auvillars | D24: 3 | E24: 2 | F24: 6 | G24: 11 | H24: 0 | I24: 1 | J24: 6 | K24: 2 | L24: 2 | M24: 9 | N24: 5 | O24: 1 | P24: NC | Q24: 0 | R24: 0 | S24: 0 | T24: 2 | U24: 6 | V24: 1 | W24: 7 | X24: 14 | Y24: 0 | Z24: 1 | AA24: 6 | AB24: 1 | AC24: 3 | AD24: 10 | AE24: 10 | AF24: 2 | AG24: NC | AH24: 0 | AI24: 1 | AJ24: 0 | AK24: 0
A25: Commune | B25: 14034 | C25: Avenay | D25: 15 | E25: 7 | F25: 11 | G25: 33 | H25: 2 | I25: 2 | J25: 19 | K25: 8 | L25: 12 | M25: 24 | N25: 12 | O25: 2 | P25: NC | Q25: 0 | R25: 1 | S25: 2 | T25: 5 | U25: 12 | V25: 2 | W25: 9 | X25: 23 | Y25: 2 | Z25: 2 | AA25: 12 | AB25: 6 | AC25: 9 | AD25: 18 | AE25: 11 | AF25: 2 | AG25: NC | AH25: 0 | AI25: 2 | AJ25: 2 | AK25: 2
A26: Commune | B26: 14035 | C26: Balleroy-sur-Drôme | D26: 50 | E26: 12 | F26: 34 | G26: 96 | H26: 11 | I26: 11 | J26: 56 | K26: 21 | L26: 28 | M26: 67 | N26: 53 | O26: 7 | P26: NC | Q26: 0 | R26: 7 | S26: 8 | T26: 6 | U26: 48 | V26: 16 | W26: 35 | X26: 99 | Y26: 6 | Z26: 9 | AA26: 57 | AB26: 17 | AC26: 28 | AD26: 72 | AE26: 49 | AF26: 5 | AG26: NC | AH26: 0 | AI26: 5 | AJ26: 3 | AK26: 9
A27: Commune | B27: 14036 | C27: Banneville-la-Campagne | D27: 5 | E27: 1 | F27: 12 | G27: 18 | H27: 0 | I27: 1 | J27: 13 | K27: 1 | L27: 2 | M27: 15 | N27: 7 | O27: 0 | P27: NC | Q27: 0 | R27: 0 | S27: 0 | T27: 1 | U27: 2 | V27: 5 | W27: 12 | X27: 19 | Y27: 0 | Z27: 4 | AA27: 14 | AB27: 4 | AC27: 2 | AD27: 12 | AE27: 11 | AF27: 0 | AG27: NC | AH27: 0 | AI27: 2 | AJ27: 1 | AK27: 1
A28: Commune | B28: 14037 | C28: Malherbe-sur-Ajon | D28: 14 | E28: 6 | F28: 23 | G28: 43 | H28: 2 | I28: 5 | J28: 27 | K28: 5 | L28: 9 | M28: 31 | N28: 15 | O28: 3 | P28: NC | Q28: 0 | R28: 2 | S28: 2 | T28: 1 | U28: 17 | V28: 7 | W28: 15 | X28: 39 | Y28: 1 | Z28: 2 | AA28: 22 | AB28: 3 | AC28: 12 | AD28: 32 | AE28: 11 | AF28: 1 | AG28: NC | AH28: 0 | AI28: 2 | AJ28: 1 | AK28: 0
A29: Commune | B29: 14038 | C29: Banville | D29: 25 | E29: 3 | F29: 14 | G29: 42 | H29: 3 | I29: 7 | J29: 24 | K29: 4 | L29: 9 | M29: 34 | N29: 16 | O29: 4 | P29: NC | Q29: 0 | R29: 1 | S29: 2 | T29: 1 | U29: 17 | V29: 5 | W29: 12 | X29: 34 | Y29: 4 | Z29: 10 | AA29: 22 | AB29: 6 | AC29: 6 | AD29: 26 | AE29: 10 | AF29: 2 | AG29: NC | AH29: 0 | AI29: 2 | AJ29: 1 | AK29: 3
A30: Commune | B30: 14039 | C30: Barbery | D30: 16 | E30: 12 | F30: 24 | G30: 52 | H30: 4 | I30: 0 | J30: 28 | K30: 5 | L30: 16 | M30: 37 | N30: 15 | O30: 3 | P30: NC | Q30: 0 | R30: 3 | S30: 1 | T30: 1 | U30: 15 | V30: 9 | W30: 16 | X30: 40 | Y30: 4 | Z30: 1 | AA30: 25 | AB30: 5 | AC30: 13 | AD30: 28 | AE30: 10 | AF30: 2 | AG30: NC | AH30: 0 | AI30: 1 | AJ30: 1 | AK30: 3
A31: Commune | B31: 14040 | C31: Barbeville | D31: 6 | E31: 3 | F31: 3 | G31: 12 | H31: 0 | I31: 5 | J31: 6 | K31: 1 | L31: 5 | M31: 7 | N31: 6 | O31: 0 | P31: NC | Q31: 0 | R31: 1 | S31: 0 | T31: 0 | U31: 8 | V31: 6 | W31: 5 | X31: 19 | Y31: 0 | Z31: 4 | AA31: 9 | AB31: 1 | AC31: 5 | AD31: 16 | AE31: 8 | AF31: 0 | AG31: NC | AH31: 0 | AI31: 0 | AJ31: 1 | AK31: 0
A32: Commune | B32: 14041 | C32: Barneville-la-Bertran | D32: 2 | E32: 4 | F32: 0 | G32: 6 | H32: 0 | I32: 0 | J32: 4 | K32: 0 | L32: 4 | M32: 6 | N32: 3 | O32: 0 | P32: NC | Q32: 0 | R32: 0 | S32: 0 | T32: 0 | U32: 0 | V32: 2 | W32: 1 | X32: 3 | Y32: 1 | Z32: 0 | AA32: 2 | AB32: 0 | AC32: 2 | AD32: 2 | AE32: 2 | AF32: 0 | AG32: NC | AH32: 0 | AI32: 0 | AJ32: 0 | AK32: 0
A33: Commune | B33: 14042 | C33: Baron-sur-Odon | D33: 15 | E33: 11 | F33: 21 | G33: 47 | H33: 4 | I33: 1 | J33: 27 | K33: 5 | L33: 15 | M33: 37 | N33: 20 | O33: 4 | P33: NC | Q33: 0 | R33: 0 | S33: 3 | T33: 2 | U33: 17 | V33: 11 | W33: 23 | X33: 51 | Y33: 2 | Z33: 5 | AA33: 33 | AB33: 4 | AC33: 16 | AD33: 40 | AE33: 25 | AF33: 2 | AG33: NC | AH33: 0 | AI33: 1 | AJ33: 2 | AK33: 1
A34: Commune | B34: 14043 | C34: Barou-en-Auge | D34: 3 | E34: 2 | F34: 1 | G34: 6 | H34: 1 | I34: 0 | J34: 4 | K34: 2 | L34: 3 | M34: 4 | N34: 4 | O34: 0 | P34: NC | Q34: 0 | R34: 0 | S34: 2 | T34: 0 | U34: 0 | V34: 1 | W34: 0 | X34: 1 | Y34: 0 | Z34: 0 | AA34: 0 | AB34: 1 | AC34: 0 | AD34: 0 | AE34: 0 | AF34: 0 | AG34: NC | AH34: 0 | AI34: 0 | AJ34: 1 | AK34: 0
A35: Commune | B35: 14044 | C35: Basly | D35: 23 | E35: 6 | F35: 17 | G35: 46 | H35: 3 | I35: 6 | J35: 31 | K35: 8 | L35: 13 | M35: 33 | N35: 19 | O35: 3 | P35: NC | Q35: 0 | R35: 2 | S35: 3 | T35: 3 | U35: 19 | V35: 6 | W35: 16 | X35: 41 | Y35: 5 | Z35: 5 | AA35: 17 | AB35: 6 | AC35: 11 | AD35: 28 | AE35: 15 | AF35: 2 | AG35: NC | AH35: 0 | AI35: 2 | AJ35: 1 | AK35: 3
A36: Commune | B36: 14045 | C36: Basseneville | D36: 4 | E36: 2 | F36: 6 | G36: 12 | H36: 1 | I36: 0 | J36: 8 | K36: 1 | L36: 6 | M36: 11 | N36: 6 | O36: 0 | P36: NC | Q36: 0 | R36: 0 | S36: 1 | T36: 0 | U36: 2 | V36: 5 | W36: 4 | X36: 11 | Y36: 3 | Z36: 3 | AA36: 6 | AB36: 2 | AC36: 5 | AD36: 9 | AE36: 5 | AF36: 0 | AG36: NC | AH36: 0 | AI36: 0 | AJ36: 1 | AK36: 1
A37: Commune | B37: 14046 | C37: Bavent | D37: 56 | E37: 23 | F37: 39 | G37: 118 | H37: 7 | I37: 10 | J37: 70 | K37: 21 | L37: 42 | M37: 97 | N37: 57 | O37: 12 | P37: NC | Q37: 0 | R37: 2 | S37: 11 | T37: 8 | U37: 59 | V37: 15 | W37: 31 | X37: 105 | Y37: 6 | Z37: 12 | AA37: 60 | AB37: 18 | AC37: 38 | AD37: 81 | AE37: 60 | AF37: 11 | AG37: NC | AH37: 0 | AI37: 6 | AJ37: 7 | AK37: 5
A38: Commune | B38: 14047 | C38: Bayeux | D38: 631 | E38: 158 | F38: 271 | G38: 1060 | H38: 73 | I38: 72 | J38: 525 | K38: 187 | L38: 310 | M38: 730 | N38: 572 | O38: 123 | P38: NC | Q38: 0 | R38: 76 | S38: 49 | T38: 62 | U38: 656 | V38: 181 | W38: 276 | X38: 1113 | Y38: 61 | Z38: 80 | AA38: 556 | AB38: 200 | AC38: 316 | AD38: 703 | AE38: 640 | AF38: 151 | AG38: NC | AH38: 0 | AI38: 88 | AJ38: 56 | AK38: 56
A39: Commune | B39: 14049 | C39: Bazenville | D39: 10 | E39: 0 | F39: 2 | G39: 12 | H39: 0 | I39: 1 | J39: 3 | K39: 0 | L39: 1 | M39: 11 | N39: 3 | O39: 0 | P39: NC | Q39: 0 | R39: 0 | S39: 0 | T39: 0 | U39: 2 | V39: 0 | W39: 2 | X39: 4 | Y39: 0 | Z39: 1 | AA39: 2 | AB39: 0 | AC39: 0 | AD39: 3 | AE39: 1 | AF39: 0 | AG39: NC | AH39: 0 | AI39: 0 | AJ39: 0 | AK39: 0
A40: Commune | B40: 14050 | C40: La Bazoque | D40: 7 | E40: 2 | F40: 6 | G40: 15 | H40: 1 | I40: 1 | J40: 9 | K40: 2 | L40: 4 | M40: 10 | N40: 10 | O40: 0 | P40: NC | Q40: 0 | R40: 1 | S40: 0 | T40: 1 | U40: 1 | V40: 2 | W40: 4 | X40: 7 | Y40: 2 | Z40: 2 | AA40: 5 | AB40: 1 | AC40: 1 | AD40: 6 | AE40: 6 | AF40: 0 | AG40: NC | AH40: 0 | AI40: 1 | AJ40: 0 | AK40: 0
A41: Commune | B41: 14053 | C41: Beaumais | D41: 7 | E41: 1 | F41: 8 | G41: 16 | H41: 2 | I41: 0 | J41: 8 | K41: 4 | L41: 3 | M41: 10 | N41: 9 | O41: 0 | P41: NC | Q41: 0 | R41: 1 | S41: 3 | T41: 0 | U41: 4 | V41: 3 | W41: 4 | X41: 11 | Y41: 1 | Z41: 0 | AA41: 6 | AB41: 2 | AC41: 3 | AD41: 9 | AE41: 4 | AF41: 1 | AG41: NC | AH41: 0 | AI41: 0 | AJ41: 1 | AK41: 1
A42: Commune | B42: 14054 | C42: Beaumesnil | D42: 11 | E42: 0 | F42: 2 | G42: 13 | H42: 1 | I42: 1 | J42: 11 | K42: 0 | L42: 4 | M42: 7 | N42: 7 | O42: 2 | P42: NC | Q42: 0 | R42: 0 | S42: 0 | T42: 0 | U42: 6 | V42: 1 | W42: 3 | X42: 10 | Y42: 1 | Z42: 2 | AA42: 7 | AB42: 0 | AC42: 3 | AD42: 5 | AE42: 7 | AF42: 2 | AG42: NC | AH42: 0 | AI42: 0 | AJ42: 0 | AK42: 0
A43: Commune | B43: 14055 | C43: Beaumont-en-Auge | D43: 7 | E43: 8 | F43: 6 | G43: 21 | H43: 1 | I43: 5 | J43: 13 | K43: 5 | L43: 8 | M43: 16 | N43: 8 | O43: 1 | P43: NC | Q43: 0 | R43: 0 | S43: 1 | T43: 4 | U43: 10 | V43: 12 | W43: 4 | X43: 26 | Y43: 2 | Z43: 3 | AA43: 13 | AB43: 6 | AC43: 9 | AD43: 21 | AE43: 11 | AF43: 2 | AG43: NC | AH43: 0 | AI43: 1 | AJ43: 3 | AK43: 2
A44: Commune | B44: 14057 | C44: Bellengreville | D44: 47 | E44: 21 | F44: 36 | G44: 104 | H44: 6 | I44: 13 | J44: 62 | K44: 14 | L44: 29 | M44: 72 | N44: 53 | O44: 6 | P44: NC | Q44: 0 | R44: 3 | S44: 8 | T44: 3 | U44: 46 | V44: 17 | W44: 39 | X44: 102 | Y44: 7 | Z44: 9 | AA44: 60 | AB44: 20 | AC44: 22 | AD44: 68 | AE44: 55 | AF44: 10 | AG44: NC | AH44: 0 | AI44: 11 | AJ44: 4 | AK44: 5
A45: Commune | B45: 14059 | C45: Benerville-sur-Mer | D45: 19 | E45: 7 | F45: 12 | G45: 38 | H45: 2 | I45: 5 | J45: 19 | K45: 4 | L45: 16 | M45: 28 | N45: 15 | O45: 0 | P45: NC | Q45: 0 | R45: 3 | S45: 1 | T45: 0 | U45: 17 | V45: 9 | W45: 18 | X45: 44 | Y45: 4 | Z45: 8 | AA45: 20 | AB45: 7 | AC45: 15 | AD45: 33 | AE45: 17 | AF45: 0 | AG45: NC | AH45: 0 | AI45: 4 | AJ45: 3 | AK45: 0
A46: Commune | B46: 14060 | C46: Bénouville | D46: 59 | E46: 14 | F46: 48 | G46: 121 | H46: 9 | I46: 11 | J46: 65 | K46: 19 | L46: 43 | M46: 81 | N46: 54 | O46: 6 | P46: NC | Q46: 0 | R46: 8 | S46: 5 | T46: 6 | U46: 60 | V46: 14 | W46: 37 | X46: 111 | Y46: 6 | Z46: 13 | AA46: 67 | AB46: 15 | AC46: 41 | AD46: 84 | AE46: 42 | AF46: 9 | AG46: NC | AH46: 0 | AI46: 4 | AJ46: 4 | AK46: 7
A47: Commune | B47: 14061 | C47: Souleuvre-en-Bocage | D47: 254 | E47: 100 | F47: 191 | G47: 545 | H47: 37 | I47: 22 | J47: 307 | K47: 93 | L47: 146 | M47: 398 | N47: 286 | O47: 49 | P47: NC | Q47: 0 | R47: 38 | S47: 40 | T47: 14 | U47: 261 | V47: 80 | W47: 193 | X47: 534 | Y47: 31 | Z47: 34 | AA47: 320 | AB47: 89 | AC47: 145 | AD47: 371 | AE47: 285 | AF47: 60 | AG47: NC | AH47: 0 | AI47: 31 | AJ47: 37 | AK47: 20
A48: Commune | B48: 14062 | C48: Bény-sur-Mer | D48: 12 | E48: 5 | F48: 9 | G48: 26 | H48: 1 | I48: 1 | J48: 14 | K48: 6 | L48: 7 | M48: 19 | N48: 6 | O48: 3 | P48: NC | Q48: 0 | R48: 3 | S48: 2 | T48: 1 | U48: 7 | V48: 4 | W48: 10 | X48: 21 | Y48: 0 | Z48: 1 | AA48: 12 | AB48: 2 | AC48: 5 | AD48: 16 | AE48: 3 | AF48: 2 | AG48: NC | AH48: 0 | AI48: 1 | AJ48: 1 | AK48: 0
A49: Commune | B49: 14063 | C49: Bernesq | D49: 13 | E49: 3 | F49: 4 | G49: 20 | H49: 1 | I49: 3 | J49: 11 | K49: 4 | L49: 5 | M49: 14 | N49: 11 | O49: 1 | P49: NC | Q49: 0 | R49: 2 | S49: 0 | T49: 2 | U49: 9 | V49: 2 | W49: 5 | X49: 16 | Y49: 2 | Z49: 0 | AA49: 10 | AB49: 6 | AC49: 4 | AD49: 10 | AE49: 9 | AF49: 2 | AG49: NC | AH49: 0 | AI49: 2 | AJ49: 3 | AK49: 1
A50: Commune | B50: 14064 | C50: Bernières-d'Ailly | D50: 4 | E50: 2 | F50: 11 | G50: 17 | H50: 1 | I50: 2 | J50: 7 | K50: 3 | L50: 3 | M50: 15 | N50: 10 | O50: 1 | P50: NC | Q50: 0 | R50: 2 | S50: 1 | T50: 0 | U50: 9 | V50: 3 | W50: 7 | X50: 19 | Y50: 1 | Z50: 2 | AA50: 12 | AB50: 4 | AC50: 4 | AD50: 16 | AE50: 10 | AF50: 0 | AG50: NC | AH50: 0 | AI50: 3 | AJ50: 0 | AK50: 1
A51: Commune | B51: 14066 | C51: Bernières-sur-Mer | D51: 92 | E51: 23 | F51: 45 | G51: 160 | H51: 16 | I51: 16 | J51: 86 | K51: 18 | L51: 62 | M51: 118 | N51: 53 | O51: 16 | P51: NC | Q51: 0 | R51: 3 | S51: 9 | T51: 6 | U51: 83 | V51: 22 | W51: 49 | X51: 154 | Y51: 9 | Z51: 14 | AA51: 84 | AB51: 20 | AC51: 59 | AD51: 116 | AE51: 61 | AF51: 12 | AG51: NC | AH51: 0 | AI51: 3 | AJ51: 8 | AK51: 9
A52: Commune | B52: 14068 | C52: Biéville-Beuville | D52: 82 | E52: 31 | F52: 72 | G52: 185 | H52: 12 | I52: 24 | J52: 97 | K52: 38 | L52: 49 | M52: 127 | N52: 62 | O52: 15 | P52: NC | Q52: 0 | R52: 13 | S52: 13 | T52: 11 | U52: 86 | V52: 31 | W52: 55 | X52: 172 | Y52: 13 | Z52: 25 | AA52: 96 | AB52: 28 | AC52: 43 | AD52: 133 | AE52: 47 | AF52: 12 | AG52: NC | AH52: 0 | AI52: 6 | AJ52: 11 | AK52: 10
A53: Commune | B53: 14069 | C53: Beuvillers | D53: 51 | E53: 11 | F53: 33 | G53: 95 | H53: 2 | I53: 5 | J53: 54 | K53: 19 | L53: 30 | M53: 73 | N53: 52 | O53: 6 | P53: NC | Q53: 0 | R53: 7 | S53: 7 | T53: 5 | U53: 31 | V53: 13 | W53: 40 | X53: 84 | Y53: 8 | Z53: 2 | AA53: 45 | AB53: 14 | AC53: 26 | AD53: 71 | AE53: 57 | AF53: 4 | AG53: NC | AH53: 0 | AI53: 8 | AJ53: 2 | AK53: 4
A54: Commune | B54: 14070 | C54: Beuvron-en-Auge | D54: 7 | E54: 4 | F54: 4 | G54: 15 | H54: 2 | I54: 2 | J54: 11 | K54: 2 | L54: 2 | M54: 10 | N54: 9 | O54: 1 | P54: NC | Q54: 0 | R54: 1 | S54: 1 | T54: 0 | U54: 6 | V54: 2 | W54: 4 | X54: 12 | Y54: 0 | Z54: 3 | AA54: 9 | AB54: 3 | AC54: 3 | AD54: 7 | AE54: 8 | AF54: 1 | AG54: NC | AH54: 0 | AI54: 1 | AJ54: 2 | AK54: 0
A55: Commune | B55: 14076 | C55: Blainville-sur-Orne | D55: 264 | E55: 71 | F55: 180 | G55: 515 | H55: 32 | I55: 45 | J55: 263 | K55: 111 | L55: 105 | M55: 348 | N55: 253 | O55: 57 | P55: NC | Q55: 0 | R55: 47 | S55: 34 | T55: 29 | U55: 250 | V55: 62 | W55: 174 | X55: 486 | Y55: 33 | Z55: 42 | AA55: 254 | AB55: 87 | AC55: 104 | AD55: 314 | AE55: 245 | AF55: 61 | AG55: NC | AH55: 0 | AI55: 30 | AJ55: 34 | AK55: 22
A56: Commune | B56: 14077 | C56: Blangy-le-Château | D56: 19 | E56: 10 | F56: 20 | G56: 49 | H56: 2 | I56: 3 | J56: 27 | K56: 8 | L56: 17 | M56: 36 | N56: 22 | O56: 4 | P56: NC | Q56: 0 | R56: 2 | S56: 3 | T56: 3 | U56: 15 | V56: 13 | W56: 16 | X56: 44 | Y56: 4 | Z56: 2 | AA56: 25 | AB56: 8 | AC56: 16 | AD56: 31 | AE56: 20 | AF56: 4 | AG56: NC | AH56: 0 | AI56: 2 | AJ56: 4 | AK56: 2
A57: Commune | B57: 14078 | C57: Blay | D57: 8 | E57: 6 | F57: 6 | G57: 20 | H57: 0 | I57: 1 | J57: 14 | K57: 5 | L57: 5 | M57: 18 | N57: 4 | O57: 0 | P57: NC | Q57: 0 | R57: 2 | S57: 3 | T57: 0 | U57: 13 | V57: 5 | W57: 8 | X57: 26 | Y57: 0 | Z57: 1 | AA57: 17 | AB57: 6 | AC57: 6 | AD57: 18 | AE57: 7 | AF57: 0 | AG57: NC | AH57: 0 | AI57: 1 | AJ57: 3 | AK57: 2
A58: Commune | B58: 14079 | C58: Blonville-sur-Mer | D58: 65 | E58: 25 | F58: 35 | G58: 125 | H58: 2 | I58: 12 | J58: 63 | K58: 21 | L58: 40 | M58: 89 | N58: 56 | O58: 14 | P58: NC | Q58: 0 | R58: 9 | S58: 5 | T58: 7 | U58: 65 | V58: 19 | W58: 27 | X58: 111 | Y58: 4 | Z58: 14 | AA58: 63 | AB58: 16 | AC58: 35 | AD58: 77 | AE58: 53 | AF58: 7 | AG58: NC | AH58: 0 | AI58: 8 | AJ58: 4 | AK58: 4
A59: Commune | B59: 14080 | C59: Le Bô | D59: 3 | E59: 4 | F59: 3 | G59: 10 | H59: 0 | I59: 0 | J59: 8 | K59: 1 | L59: 3 | M59: 8 | N59: 7 | O59: 1 | P59: NC | Q59: 0 | R59: 1 | S59: 0 | T59: 0 | U59: 4 | V59: 4 | W59: 2 | X59: 10 | Y59: 1 | Z59: 0 | AA59: 9 | AB59: 2 | AC59: 2 | AD59: 9 | AE59: 5 | AF59: 1 | AG59: NC | AH59: 0 | AI59: 1 | AJ59: 0 | AK59: 1
A60: Commune | B60: 14082 | C60: La Boissière | D60: 3 | E60: 0 | F60: 3 | G60: 6 | H60: 2 | I60: 1 | J60: 4 | K60: 0 | L60: 1 | M60: 6 | N60: 4 | O60: 0 | P60: NC | Q60: 0 | R60: 0 | S60: 0 | T60: 0 | U60: 3 | V60: 2 | W60: 4 | X60: 9 | Y60: 2 | Z60: 2 | AA60: 6 | AB60: 1 | AC60: 1 | AD60: 5 | AE60: 4 | AF60: 1 | AG60: NC | AH60: 0 | AI60: 0 | AJ60: 1 | AK60: 0
A61: Commune | B61: 14083 | C61: Bonnebosq | D61: 22 | E61: 10 | F61: 12 | G61: 44 | H61: 2 | I61: 2 | J61: 25 | K61: 9 | L61: 14 | M61: 36 | N61: 30 | O61: 3 | P61: NC | Q61: 0 | R61: 7 | S61: 2 | T61: 0 | U61: 19 | V61: 7 | W61: 15 | X61: 41 | Y61: 3 | Z61: 3 | AA61: 24 | AB61: 9 | AC61: 14 | AD61: 36 | AE61: 23 | AF61: 2 | AG61: NC | AH61: 0 | AI61: 5 | AJ61: 3 | AK61: 1
A62: Commune | B62: 14084 | C62: Bonnemaison | D62: 10 | E62: 4 | F62: 12 | G62: 26 | H62: 3 | I62: 4 | J62: 14 | K62: 2 | L62: 6 | M62: 21 | N62: 14 | O62: 1 | P62: NC | Q62: 0 | R62: 1 | S62: 0 | T62: 1 | U62: 10 | V62: 3 | W62: 15 | X62: 28 | Y62: 1 | Z62: 3 | AA62: 16 | AB62: 3 | AC62: 7 | AD62: 20 | AE62: 13 | AF62: 1 | AG62: NC | AH62: 0 | AI62: 1 | AJ62: 0 | AK62: 2
A63: Commune | B63: 14085 | C63: Bonneville-la-Louvet | D63: 19 | E63: 5 | F63: 9 | G63: 33 | H63: 6 | I63: 7 | J63: 19 | K63: 1 | L63: 15 | M63: 23 | N63: 14 | O63: 0 | P63: NC | Q63: 0 | R63: 0 | S63: 0 | T63: 1 | U63: 20 | V63: 7 | W63: 13 | X63: 40 | Y63: 4 | Z63: 5 | AA63: 23 | AB63: 3 | AC63: 16 | AD63: 30 | AE63: 21 | AF63: 5 | AG63: NC | AH63: 0 | AI63: 0 | AJ63: 1 | AK63: 2
A64: Commune | B64: 14086 | C64: Bonneville-sur-Touques | D64: 13 | E64: 1 | F64: 2 | G64: 16 | H64: 1 | I64: 0 | J64: 7 | K64: 3 | L64: 5 | M64: 13 | N64: 3 | O64: 1 | P64: NC | Q64: 0 | R64: 0 | S64: 1 | T64: 2 | U64: 13 | V64: 2 | W64: 2 | X64: 17 | Y64: 0 | Z64: 2 | AA64: 11 | AB64: 1 | AC64: 12 | AD64: 13 | AE64: 8 | AF64: 2 | AG64: NC | AH64: 0 | AI64: 0 | AJ64: 1 | AK64: 0
A65: Commune | B65: 14087 | C65: Bonnoeil | D65: 3 | E65: 0 | F65: 1 | G65: 4 | H65: 0 | I65: 2 | J65: 2 | K65: 1 | L65: 1 | M65: 4 | N65: 3 | O65: 0 | P65: NC | Q65: 0 | R65: 0 | S65: 1 | T65: 0 | U65: 3 | V65: 2 | W65: 2 | X65: 7 | Y65: 1 | Z65: 1 | AA65: 3 | AB65: 0 | AC65: 1 | AD65: 6 | AE65: 3 | AF65: 0 | AG65: NC | AH65: 0 | AI65: 0 | AJ65: 0 | AK65: 0
A66: Commune | B66: 14088 | C66: Bons-Tassilly | D66: 12 | E66: 5 | F66: 13 | G66: 30 | H66: 1 | I66: 2 | J66: 15 | K66: 5 | L66: 5 | M66: 24 | N66: 17 | O66: 1 | P66: NC | Q66: 0 | R66: 3 | S66: 1 | T66: 1 | U66: 12 | V66: 4 | W66: 7 | X66: 23 | Y66: 2 | Z66: 2 | AA66: 12 | AB66: 4 | AC66: 5 | AD66: 18 | AE66: 11 | AF66: 0 | AG66: NC | AH66: 0 | AI66: 1 | AJ66: 2 | AK66: 1
A67: Commune | B67: 14089 | C67: Bougy | D67: 12 | E67: 6 | F67: 5 | G67: 23 | H67: 1 | I67: 1 | J67: 9 | K67: 2 | L67: 5 | M67: 18 | N67: 7 | O67: 4 | P67: NC | Q67: 0 | R67: 0 | S67: 1 | T67: 1 | U67: 6 | V67: 9 | W67: 8 | X67: 23 | Y67: 1 | Z67: 3 | AA67: 13 | AB67: 1 | AC67: 6 | AD67: 17 | AE67: 10 | AF67: 2 | AG67: NC | AH67: 0 | AI67: 0 | AJ67: 0 | AK67: 1
A68: Commune | B68: 14090 | C68: Boulon | D68: 23 | E68: 8 | F68: 18 | G68: 49 | H68: 2 | I68: 5 | J68: 25 | K68: 6 | L68: 12 | M68: 38 | N68: 16 | O68: 3 | P68: NC | Q68: 0 | R68: 1 | S68: 2 | T68: 3 | U68: 18 | V68: 8 | W68: 20 | X68: 46 | Y68: 4 | Z68: 2 | AA68: 23 | AB68: 6 | AC68: 14 | AD68: 30 | AE68: 17 | AF68: 0 | AG68: NC | AH68: 0 | AI68: 1 | AJ68: 4 | AK68: 1
A69: Commune | B69: 14091 | C69: Bourgeauville | D69: 4 | E69: 0 | F69: 0 | G69: 4 | H69: 0 | I69: 0 | J69: 3 | K69: 0 | L69: 1 | M69: 3 | N69: 1 | O69: 0 | P69: NC | Q69: 0 | R69: 0 | S69: 0 | T69: 0 | U69: 3 | V69: 1 | W69: 0 | X69: 4 | Y69: 0 | Z69: 1 | AA69: 2 | AB69: 0 | AC69: 2 | AD69: 4 | AE69: 2 | AF69: 0 | AG69: NC | AH69: 0 | AI69: 0 | AJ69: 0 | AK69: 0
A70: Commune | B70: 14092 | C70: Bourguébus | D70: 59 | E70: 20 | F70: 61 | G70: 140 | H70: 10 | I70: 19 | J70: 90 | K70: 24 | L70: 30 | M70: 104 | N70: 56 | O70: 7 | P70: NC | Q70: 0 | R70: 10 | S70: 5 | T70: 9 | U70: 65 | V70: 23 | W70: 58 | X70: 146 | Y70: 13 | Z70: 13 | AA70: 86 | AB70: 26 | AC70: 32 | AD70: 106 | AE70: 50 | AF70: 6 | AG70: NC | AH70: 0 | AI70: 7 | AJ70: 10 | AK70: 9
A71: Commune | B71: 14093 | C71: Branville | D71: 9 | E71: 3 | F71: 4 | G71: 16 | H71: 2 | I71: 1 | J71: 8 | K71: 5 | L71: 0 | M71: 15 | N71: 9 | O71: 1 | P71: NC | Q71: 0 | R71: 3 | S71: 2 | T71: 0 | U71: 7 | V71: 2 | W71: 3 | X71: 12 | Y71: 0 | Z71: 1 | AA71: 4 | AB71: 3 | AC71: 3 | AD71: 7 | AE71: 6 | AF71: 1 | AG71: NC | AH71: 0 | AI71: 2 | AJ71: 1 | AK71: 0
A72: Commune | B72: 14096 | C72: Brémoy | D72: 5 | E72: 0 | F72: 4 | G72: 9 | H72: 1 | I72: 1 | J72: 5 | K72: 2 | L72: 2 | M72: 7 | N72: 4 | O72: 0 | P72: NC | Q72: 0 | R72: 2 | S72: 0 | T72: 0 | U72: 5 | V72: 2 | W72: 4 | X72: 11 | Y72: 1 | Z72: 1 | AA72: 9 | AB72: 0 | AC72: 3 | AD72: 8 | AE72: 3 | AF72: 1 | AG72: NC | AH72: 0 | AI72: 0 | AJ72: 0 | AK72: 0
A73: Commune | B73: 14097 | C73: Bretteville-le-Rabet | D73: 5 | E73: 3 | F73: 8 | G73: 16 | H73: 3 | I73: 1 | J73: 9 | K73: 2 | L73: 3 | M73: 13 | N73: 9 | O73: 0 | P73: NC | Q73: 0 | R73: 1 | S73: 0 | T73: 1 | U73: 9 | V73: 5 | W73: 7 | X73: 21 | Y73: 3 | Z73: 2 | AA73: 14 | AB73: 4 | AC73: 4 | AD73: 18 | AE73: 9 | AF73: 1 | AG73: NC | AH73: 0 | AI73: 2 | AJ73: 1 | AK73: 1
A74: Commune | B74: 14098 | C74: Thue et Mue | D74: 147 | E74: 53 | F74: 130 | G74: 330 | H74: 19 | I74: 38 | J74: 193 | K74: 56 | L74: 86 | M74: 241 | N74: 122 | O74: 22 | P74: NC | Q74: 0 | R74: 15 | S74: 16 | T74: 25 | U74: 122 | V74: 43 | W74: 134 | X74: 299 | Y74: 29 | Z74: 41 | AA74: 189 | AB74: 45 | AC74: 72 | AD74: 228 | AE74: 110 | AF74: 13 | AG74: NC | AH74: 0 | AI74: 9 | AJ74: 19 | AK74: 17
A75: Commune | B75: 14100 | C75: Bretteville-sur-Laize | D75: 64 | E75: 20 | F75: 49 | G75: 133 | H75: 8 | I75: 6 | J75: 70 | K75: 22 | L75: 41 | M75: 110 | N75: 62 | O75: 8 | P75: NC | Q75: 0 | R75: 8 | S75: 7 | T75: 7 | U75: 46 | V75: 22 | W75: 46 | X75: 114 | Y75: 11 | Z75: 10 | AA75: 60 | AB75: 21 | AC75: 33 | AD75: 88 | AE75: 50 | AF75: 6 | AG75: NC | AH75: 0 | AI75: 5 | AJ75: 8 | AK75: 8
A76: Commune | B76: 14101 | C76: Bretteville-sur-Odon | D76: 163 | E76: 59 | F76: 84 | G76: 306 | H76: 27 | I76: 33 | J76: 166 | K76: 50 | L76: 55 | M76: 200 | N76: 115 | O76: 51 | P76: NC | Q76: 0 | R76: 20 | S76: 17 | T76: 13 | U76: 153 | V76: 48 | W76: 85 | X76: 286 | Y76: 23 | Z76: 34 | AA76: 153 | AB76: 49 | AC76: 64 | AD76: 181 | AE76: 118 | AF76: 37 | AG76: NC | AH76: 0 | AI76: 15 | AJ76: 21 | AK76: 13
A77: Commune | B77: 14102 | C77: Le Breuil-en-Auge | D77: 17 | E77: 12 | F77: 14 | G77: 43 | H77: 3 | I77: 1 | J77: 26 | K77: 7 | L77: 14 | M77: 34 | N77: 10 | O77: 1 | P77: NC | Q77: 0 | R77: 1 | S77: 3 | T77: 3 | U77: 15 | V77: 7 | W77: 18 | X77: 40 | Y77: 5 | Z77: 3 | AA77: 21 | AB77: 6 | AC77: 13 | AD77: 33 | AE77: 10 | AF77: 0 | AG77: NC | AH77: 0 | AI77: 0 | AJ77: 4 | AK77: 2
A78: Commune | B78: 14103 | C78: Le Breuil-en-Bessin | D78: 7 | E78: 5 | F78: 14 | G78: 26 | H78: 1 | I78: 2 | J78: 15 | K78: 8 | L78: 6 | M78: 22 | N78: 15 | O78: 0 | P78: NC | Q78: 0 | R78: 2 | S78: 3 | T78: 3 | U78: 12 | V78: 1 | W78: 7 | X78: 20 | Y78: 1 | Z78: 4 | AA78: 11 | AB78: 3 | AC78: 6 | AD78: 17 | AE78: 11 | AF78: 0 | AG78: NC | AH78: 0 | AI78: 1 | AJ78: 0 | AK78: 2
A79: Commune | B79: 14104 | C79: Le Brévedent | D79: 8 | E79: 2 | F79: 1 | G79: 11 | H79: 1 | I79: 0 | J79: 6 | K79: 3 | L79: 6 | M79: 5 | N79: 6 | O79: 0 | P79: NC | Q79: 0 | R79: 1 | S79: 2 | T79: 0 | U79: 8 | V79: 2 | W79: 1 | X79: 11 | Y79: 2 | Z79: 1 | AA79: 5 | AB79: 2 | AC79: 5 | AD79: 6 | AE79: 5 | AF79: 0 | AG79: NC | AH79: 0 | AI79: 0 | AJ79: 2 | AK79: 0
A80: Commune | B80: 14106 | C80: Bréville-les-Monts | D80: 10 | E80: 4 | F80: 23 | G80: 37 | H80: 1 | I80: 3 | J80: 18 | K80: 6 | L80: 7 | M80: 24 | N80: 14 | O80: 1 | P80: NC | Q80: 0 | R80: 1 | S80: 3 | T80: 2 | U80: 14 | V80: 9 | W80: 13 | X80: 36 | Y80: 0 | Z80: 6 | AA80: 16 | AB80: 12 | AC80: 7 | AD80: 26 | AE80: 16 | AF80: 1 | AG80: NC | AH80: 0 | AI80: 4 | AJ80: 5 | AK80: 3
A81: Commune | B81: 14107 | C81: Bricqueville | D81: 4 | E81: 1 | F81: 1 | G81: 6 | H81: 1 | I81: 1 | J81: 3 | K81: 1 | L81: 0 | M81: 3 | N81: 3 | O81: 1 | P81: NC | Q81: 0 | R81: 0 | S81: 0 | T81: 1 | U81: 7 | V81: 0 | W81: 1 | X81: 8 | Y81: 0 | Z81: 2 | AA81: 5 | AB81: 2 | AC81: 1 | AD81: 5 | AE81: 7 | AF81: 0 | AG81: NC | AH81: 0 | AI81: 1 | AJ81: 0 | AK81: 1
A82: Commune | B82: 14110 | C82: Brucourt | D82: 7 | E82: 1 | F82: 1 | G82: 9 | H82: 0 | I82: 1 | J82: 4 | K82: 1 | L82: 2 | M82: 6 | N82: 7 | O82: 2 | P82: NC | Q82: 0 | R82: 1 | S82: 0 | T82: 0 | U82: 4 | V82: 0 | W82: 3 | X82: 7 | Y82: 0 | Z82: 0 | AA82: 3 | AB82: 1 | AC82: 3 | AD82: 5 | AE82: 4 | AF82: 2 | AG82: NC | AH82: 0 | AI82: 0 | AJ82: 0 | AK82: 1
A83: Commune | B83: 14111 | C83: Bucéels | D83: 6 | E83: 3 | F83: 8 | G83: 17 | H83: 0 | I83: 4 | J83: 12 | K83: 1 | L83: 3 | M83: 13 | N83: 7 | O83: 0 | P83: NC | Q83: 0 | R83: 0 | S83: 1 | T83: 0 | U83: 10 | V83: 3 | W83: 8 | X83: 21 | Y83: 1 | Z83: 2 | AA83: 15 | AB83: 3 | AC83: 5 | AD83: 17 | AE83: 7 | AF83: 0 | AG83: NC | AH83: 0 | AI83: 1 | AJ83: 1 | AK83: 1
A84: Commune | B84: 14116 | C84: Le Bû-sur-Rouvres | D84: 4 | E84: 1 | F84: 5 | G84: 10 | H84: 0 | I84: 0 | J84: 7 | K84: 0 | L84: 5 | M84: 8 | N84: 6 | O84: 0 | P84: NC | Q84: 0 | R84: 0 | S84: 0 | T84: 0 | U84: 3 | V84: 1 | W84: 3 | X84: 7 | Y84: 0 | Z84: 0 | AA84: 3 | AB84: 0 | AC84: 3 | AD84: 4 | AE84: 6 | AF84: 0 | AG84: NC | AH84: 0 | AI84: 0 | AJ84: 0 | AK84: 0
A85: Commune | B85: 14117 | C85: Cabourg | D85: 149 | E85: 35 | F85: 63 | G85: 247 | H85: 12 | I85: 17 | J85: 122 | K85: 29 | L85: 110 | M85: 188 | N85: 126 | O85: 26 | P85: NC | Q85: 0 | R85: 11 | S85: 13 | T85: 5 | U85: 176 | V85: 44 | W85: 67 | X85: 287 | Y85: 19 | Z85: 19 | AA85: 147 | AB85: 32 | AC85: 118 | AD85: 192 | AE85: 160 | AF85: 29 | AG85: NC | AH85: 0 | AI85: 17 | AJ85: 12 | AK85: 3
A86: Commune | B86: 14118 | C86: Caen | D86: 6693 | E86: 1841 | F86: 2944 | G86: 11478 | H86: 866 | I86: 719 | J86: 5165 | K86: 2057 | L86: 2359 | M86: 6697 | N86: 5056 | O86: 2313 | P86: NC | Q86: 2764 | R86: 686 | S86: 661 | T86: 710 | U86: 6234 | V86: 1694 | W86: 2717 | X86: 10645 | Y86: 935 | Z86: 749 | AA86: 4847 | AB86: 1896 | AC86: 2272 | AD86: 5981 | AE86: 4751 | AF86: 2325 | AG86: NC | AH86: 2576 | AI86: 658 | AJ86: 597 | AK86: 635
A87: Commune | B87: 14119 | C87: Cagny | D87: 70 | E87: 16 | F87: 58 | G87: 144 | H87: 8 | I87: 9 | J87: 87 | K87: 20 | L87: 31 | M87: 106 | N87: 77 | O87: 9 | P87: NC | Q87: 0 | R87: 8 | S87: 9 | T87: 3 | U87: 52 | V87: 17 | W87: 63 | X87: 132 | Y87: 9 | Z87: 6 | AA87: 82 | AB87: 21 | AC87: 32 | AD87: 94 | AE87: 70 | AF87: 8 | AG87: NC | AH87: 0 | AI87: 8 | AJ87: 10 | AK87: 3
A88: Commune | B88: 14120 | C88: Cahagnes | D88: 32 | E88: 23 | F88: 41 | G88: 96 | H88: 8 | I88: 4 | J88: 57 | K88: 16 | L88: 27 | M88: 69 | N88: 46 | O88: 5 | P88: NC | Q88: 0 | R88: 6 | S88: 4 | T88: 6 | U88: 36 | V88: 16 | W88: 31 | X88: 83 | Y88: 6 | Z88: 5 | AA88: 50 | AB88: 10 | AC88: 22 | AD88: 64 | AE88: 41 | AF88: 7 | AG88: NC | AH88: 0 | AI88: 6 | AJ88: 3 | AK88: 1
A89: Commune | B89: 14121 | C89: Cahagnolles | D89: 7 | E89: 1 | F89: 8 | G89: 16 | H89: 0 | I89: 0 | J89: 7 | K89: 5 | L89: 3 | M89: 14 | N89: 5 | O89: 0 | P89: NC | Q89: 0 | R89: 0 | S89: 3 | T89: 2 | U89: 2 | V89: 5 | W89: 5 | X89: 12 | Y89: 0 | Z89: 2 | AA89: 6 | AB89: 2 | AC89: 3 | AD89: 9 | AE89: 5 | AF89: 0 | AG89: NC | AH89: 0 | AI89: 0 | AJ89: 1 | AK89: 0
A90: Commune | B90: 14122 | C90: La Caine | D90: 1 | E90: 4 | F90: 7 | G90: 12 | H90: 5 | I90: 1 | J90: 8 | K90: 0 | L90: 3 | M90: 11 | N90: 7 | O90: 0 | P90: NC | Q90: 0 | R90: 0 | S90: 0 | T90: 0 | U90: 4 | V90: 3 | W90: 4 | X90: 11 | Y90: 1 | Z90: 3 | AA90: 7 | AB90: 0 | AC90: 3 | AD90: 8 | AE90: 7 | AF90: 1 | AG90: NC | AH90: 0 | AI90: 0 | AJ90: 0 | AK90: 0
A91: Commune | B91: 14123 | C91: Cairon | D91: 43 | E91: 13 | F91: 22 | G91: 78 | H91: 7 | I91: 20 | J91: 40 | K91: 14 | L91: 25 | M91: 64 | N91: 19 | O91: 3 | P91: NC | Q91: 0 | R91: 2 | S91: 7 | T91: 5 | U91: 35 | V91: 10 | W91: 23 | X91: 68 | Y91: 6 | Z91: 14 | AA91: 41 | AB91: 10 | AC91: 27 | AD91: 51 | AE91: 25 | AF91: 3 | AG91: NC | AH91: 0 | AI91: 2 | AJ91: 1 | AK91: 7
A92: Commune | B92: 14124 | C92: La Cambe | D92: 10 | E92: 5 | F92: 12 | G92: 27 | H92: 3 | I92: 7 | J92: 16 | K92: 2 | L92: 9 | M92: 23 | N92: 16 | O92: 0 | P92: NC | Q92: 0 | R92: 0 | S92: 1 | T92: 1 | U92: 13 | V92: 4 | W92: 16 | X92: 33 | Y92: 4 | Z92: 5 | AA92: 22 | AB92: 5 | AC92: 8 | AD92: 27 | AE92: 16 | AF92: 0 | AG92: NC | AH92: 0 | AI92: 1 | AJ92: 2 | AK92: 2
A93: Commune | B93: 14125 | C93: Cambes-en-Plaine | D93: 53 | E93: 16 | F93: 39 | G93: 108 | H93: 11 | I93: 5 | J93: 49 | K93: 18 | L93: 35 | M93: 75 | N93: 31 | O93: 7 | P93: NC | Q93: 0 | R93: 5 | S93: 6 | T93: 7 | U93: 49 | V93: 14 | W93: 28 | X93: 91 | Y93: 11 | Z93: 8 | AA93: 49 | AB93: 21 | AC93: 25 | AD93: 55 | AE93: 25 | AF93: 9 | AG93: NC | AH93: 0 | AI93: 8 | AJ93: 8 | AK93: 5
A94: Commune | B94: 14126 | C94: Cambremer | D94: 30 | E94: 18 | F94: 26 | G94: 74 | H94: 1 | I94: 4 | J94: 45 | K94: 15 | L94: 23 | M94: 49 | N94: 29 | O94: 5 | P94: NC | Q94: 0 | R94: 7 | S94: 8 | T94: 0 | U94: 33 | V94: 11 | W94: 21 | X94: 65 | Y94: 6 | Z94: 9 | AA94: 43 | AB94: 14 | AC94: 23 | AD94: 46 | AE94: 23 | AF94: 2 | AG94: NC | AH94: 0 | AI94: 4 | AJ94: 5 | AK94: 5
A95: Commune | B95: 14127 | C95: Campagnolles | D95: 8 | E95: 1 | F95: 12 | G95: 21 | H95: 3 | I95: 3 | J95: 14 | K95: 2 | L95: 3 | M95: 18 | N95: 8 | O95: 2 | P95: NC | Q95: 0 | R95: 0 | S95: 1 | T95: 1 | U95: 11 | V95: 4 | W95: 14 | X95: 29 | Y95: 3 | Z95: 1 | AA95: 19 | AB95: 2 | AC95: 5 | AD95: 22 | AE95: 16 | AF95: 2 | AG95: NC | AH95: 0 | AI95: 1 | AJ95: 0 | AK95: 1
A96: Commune | B96: 14130 | C96: Campigny | D96: 4 | E96: 1 | F96: 3 | G96: 8 | H96: 0 | I96: 1 | J96: 5 | K96: 2 | L96: 1 | M96: 6 | N96: 6 | O96: 0 | P96: NC | Q96: 0 | R96: 0 | S96: 1 | T96: 1 | U96: 2 | V96: 1 | W96: 2 | X96: 5 | Y96: 1 | Z96: 0 | AA96: 3 | AB96: 0 | AC96: 1 | AD96: 5 | AE96: 4 | AF96: 0 | AG96: NC | AH96: 0 | AI96: 0 | AJ96: 0 | AK96: 0
A97: Commune | B97: 14131 | C97: Canapville | D97: 8 | E97: 4 | F97: 5 | G97: 17 | H97: 1 | I97: 3 | J97: 9 | K97: 2 | L97: 8 | M97: 11 | N97: 9 | O97: 0 | P97: NC | Q97: 0 | R97: 1 | S97: 1 | T97: 0 | U97: 8 | V97: 3 | W97: 3 | X97: 14 | Y97: 1 | Z97: 2 | AA97: 6 | AB97: 3 | AC97: 6 | AD97: 11 | AE97: 7 | AF97: 0 | AG97: NC | AH97: 0 | AI97: 1 | AJ97: 1 | AK97: 1
A98: Commune | B98: 14132 | C98: Canchy | D98: 1 | E98: 2 | F98: 5 | G98: 8 | H98: 1 | I98: 0 | J98: 2 | K98: 0 | L98: 2 | M98: 5 | N98: 4 | O98: 2 | P98: NC | Q98: 0 | R98: 0 | S98: 0 | T98: 0 | U98: 1 | V98: 4 | W98: 2 | X98: 7 | Y98: 1 | Z98: 2 | AA98: 4 | AB98: 0 | AC98: 0 | AD98: 4 | AE98: 4 | AF98: 0 | AG98: NC | AH98: 0 | AI98: 0 | AJ98: 0 | AK98: 0
A99: Commune | B99: 14134 | C99: Canteloup | D99: 5 | E99: 0 | F99: 2 | G99: 7 | H99: 0 | I99: 1 | J99: 3 | K99: 3 | L99: 2 | M99: 4 | N99: 2 | O99: 0 | P99: NC | Q99: 0 | R99: 0 | S99: 1 | T99: 2 | U99: 6 | V99: 0 | W99: 4 | X99: 10 | Y99: 0 | Z99: 1 | AA99: 6 | AB99: 3 | AC99: 3 | AD99: 9 | AE99: 4 | AF99: 0 | AG99: NC | AH99: 0 | AI99: 0 | AJ99: 2 | AK99: 1
A100: Commune | B100: 14135 | C100: Carcagny | D100: 5 | E100: 2 | F100: 3 | G100: 10 | H100: 1 | I100: 1 | J100: 4 | K100: 1 | L100: 3 | M100: 7 | N100: 7 | O100: 1 | P100: NC | Q100: 0 | R100: 0 | S100: 0 | T100: 1 | U100: 6 | V100: 3 | W100: 3 | X100: 12 | Y100: 0 | Z100: 2 | AA100: 3 | AB100: 1 | AC100: 3 | AD100: 9 | AE100: 8 | AF100: 1 | AG100: NC | AH100: 0 | AI100: 1 | AJ100: 0 | AK100: 0
A101: Commune | B101: 14136 | C101: Cardonville | D101: 1 | E101: 0 | F101: 2 | G101: 3 | H101: 0 | I101: 0 | J101: 2 | K101: 0 | L101: 0 | M101: 1 | N101: 2 | O101: 0 | P101: NC | Q101: 0 | R101: 0 | S101: 0 | T101: 0 | U101: 1 | V101: 2 | W101: 2 | X101: 5 | Y101: 0 | Z101: 1 | AA101: 3 | AB101: 2 | AC101: 1 | AD101: 2 | AE101: 2 | AF101: 0 | AG101: NC | AH101: 0 | AI101: 1 | AJ101: 1 | AK101: 0
A102: Commune | B102: 14137 | C102: Carpiquet | D102: 177 | E102: 42 | F102: 98 | G102: 317 | H102: 19 | I102: 33 | J102: 169 | K102: 64 | L102: 74 | M102: 220 | N102: 141 | O102: 26 | P102: NC | Q102: 0 | R102: 18 | S102: 26 | T102: 20 | U102: 129 | V102: 41 | W102: 84 | X102: 254 | Y102: 28 | Z102: 33 | AA102: 145 | AB102: 39 | AC102: 59 | AD102: 170 | AE102: 129 | AF102: 21 | AG102: NC | AH102: 0 | AI102: 16 | AJ102: 12 | AK102: 11
A103: Commune | B103: 14138 | C103: Cartigny-l'Épinay | D103: 10 | E103: 5 | F103: 9 | G103: 24 | H103: 1 | I103: 3 | J103: 12 | K103: 3 | L103: 9 | M103: 17 | N103: 15 | O103: 1 | P103: NC | Q103: 0 | R103: 3 | S103: 0 | T103: 0 | U103: 11 | V103: 9 | W103: 16 | X103: 36 | Y103: 1 | Z103: 3 | AA103: 17 | AB103: 4 | AC103: 11 | AD103: 24 | AE103: 24 | AF103: 3 | AG103: NC | AH103: 0 | AI103: 3 | AJ103: 1 | AK103: 0
A104: Commune | B104: 14140 | C104: Castillon | D104: 6 | E104: 2 | F104: 6 | G104: 14 | H104: 1 | I104: 1 | J104: 9 | K104: 1 | L104: 1 | M104: 13 | N104: 4 | O104: 0 | P104: NC | Q104: 0 | R104: 0 | S104: 1 | T104: 0 | U104: 5 | V104: 3 | W104: 11 | X104: 19 | Y104: 2 | Z104: 2 | AA104: 11 | AB104: 2 | AC104: 3 | AD104: 15 | AE104: 8 | AF104: 0 | AG104: NC | AH104: 0 | AI104: 1 | AJ104: 1 | AK104: 0
A105: Commune | B105: 14141 | C105: Castillon-en-Auge | D105: 6 | E105: 1 | F105: 4 | G105: 11 | H105: 0 | I105: 0 | J105: 5 | K105: 0 | L105: 5 | M105: 6 | N105: 5 | O105: 4 | P105: NC | Q105: 0 | R105: 0 | S105: 0 | T105: 0 | U105: 5 | V105: 3 | W105: 3 | X105: 11 | Y105: 0 | Z105: 1 | AA105: 6 | AB105: 0 | AC105: 6 | AD105: 4 | AE105: 6 | AF105: 3 | AG105: NC | AH105: 0 | AI105: 0 | AJ105: 0 | AK105: 0
A106: Commune | B106: 14143 | C106: Caumont-sur-Aure | D106: 103 | E106: 24 | F106: 56 | G106: 183 | H106: 13 | I106: 28 | J106: 95 | K106: 30 | L106: 57 | M106: 129 | N106: 121 | O106: 19 | P106: NC | Q106: 0 | R106: 16 | S106: 12 | T106: 2 | U106: 96 | V106: 34 | W106: 57 | X106: 187 | Y106: 7 | Z106: 27 | AA106: 105 | AB106: 26 | AC106: 64 | AD106: 129 | AE106: 130 | AF106: 16 | AG106: NC | AH106: 0 | AI106: 14 | AJ106: 9 | AK106: 3
A107: Commune | B107: 14145 | C107: Cauvicourt | D107: 7 | E107: 10 | F107: 12 | G107: 29 | H107: 3 | I107: 3 | J107: 17 | K107: 5 | L107: 8 | M107: 22 | N107: 10 | O107: 0 | P107: NC | Q107: 0 | R107: 1 | S107: 3 | T107: 1 | U107: 8 | V107: 7 | W107: 12 | X107: 27 | Y107: 2 | Z107: 1 | AA107: 17 | AB107: 3 | AC107: 6 | AD107: 21 | AE107: 10 | AF107: 0 | AG107: NC | AH107: 0 | AI107: 2 | AJ107: 1 | AK107: 0
A108: Commune | B108: 14146 | C108: Cauville | D108: 6 | E108: 2 | F108: 4 | G108: 12 | H108: 2 | I108: 0 | J108: 6 | K108: 1 | L108: 5 | M108: 11 | N108: 4 | O108: 1 | P108: NC | Q108: 0 | R108: 0 | S108: 0 | T108: 1 | U108: 6 | V108: 1 | W108: 5 | X108: 12 | Y108: 2 | Z108: 0 | AA108: 5 | AB108: 0 | AC108: 4 | AD108: 9 | AE108: 3 | AF108: 0 | AG108: NC | AH108: 0 | AI108: 0 | AJ108: 0 | AK108: 0
A109: Commune | B109: 14147 | C109: Cernay | D109: 3 | E109: 2 | F109: 1 | G109: 6 | H109: 0 | I109: 0 | J109: 5 | K109: 1 | L109: 1 | M109: 5 | N109: 3 | O109: 0 | P109: NC | Q109: 0 | R109: 1 | S109: 0 | T109: 0 | U109: 1 | V109: 0 | W109: 1 | X109: 2 | Y109: 2 | Z109: 3 | AA109: 2 | AB109: 0 | AC109: 1 | AD109: 2 | AE109: 1 | AF109: 0 | AG109: NC | AH109: 0 | AI109: 0 | AJ109: 0 | AK109: 0
A110: Commune | B110: 14149 | C110: Cesny-aux-Vignes | D110: 10 | E110: 7 | F110: 7 | G110: 24 | H110: 1 | I110: 6 | J110: 18 | K110: 3 | L110: 7 | M110: 16 | N110: 11 | O110: 0 | P110: NC | Q110: 0 | R110: 0 | S110: 2 | T110: 1 | U110: 9 | V110: 4 | W110: 12 | X110: 25 | Y110: 3 | Z110: 6 | AA110: 21 | AB110: 4 | AC110: 6 | AD110: 17 | AE110: 10 | AF110: 1 | AG110: NC | AH110: 0 | AI110: 0 | AJ110: 4 | AK110: 0
A111: Commune | B111: 14150 | C111: Cesny-les-Sources | D111: 39 | E111: 16 | F111: 37 | G111: 92 | H111: 4 | I111: 2 | J111: 53 | K111: 15 | L111: 26 | M111: 73 | N111: 43 | O111: 6 | P111: NC | Q111: 0 | R111: 3 | S111: 7 | T111: 5 | U111: 41 | V111: 19 | W111: 32 | X111: 92 | Y111: 4 | Z111: 2 | AA111: 57 | AB111: 18 | AC111: 21 | AD111: 68 | AE111: 40 | AF111: 3 | AG111: NC | AH111: 0 | AI111: 3 | AJ111: 8 | AK111: 7
A112: Commune | B112: 14159 | C112: Chouain | D112: 4 | E112: 1 | F112: 2 | G112: 7 | H112: 0 | I112: 4 | J112: 4 | K112: 4 | L112: 0 | M112: 5 | N112: 0 | O112: 0 | P112: NC | Q112: 0 | R112: 0 | S112: 3 | T112: 1 | U112: 4 | V112: 3 | W112: 2 | X112: 9 | Y112: 1 | Z112: 1 | AA112: 5 | AB112: 3 | AC112: 3 | AD112: 8 | AE112: 3 | AF112: 1 | AG112: NC | AH112: 0 | AI112: 0 | AJ112: 2 | AK112: 1
A113: Commune | B113: 14160 | C113: Cintheaux | D113: 3 | E113: 1 | F113: 5 | G113: 9 | H113: 0 | I113: 0 | J113: 6 | K113: 2 | L113: 2 | M113: 7 | N113: 1 | O113: 0 | P113: NC | Q113: 0 | R113: 0 | S113: 1 | T113: 1 | U113: 0 | V113: 3 | W113: 9 | X113: 12 | Y113: 0 | Z113: 0 | AA113: 8 | AB113: 2 | AC113: 0 | AD113: 10 | AE113: 3 | AF113: 0 | AG113: NC | AH113: 0 | AI113: 0 | AJ113: 1 | AK113: 1
A114: Commune | B114: 14161 | C114: Clarbec | D114: 2 | E114: 2 | F114: 5 | G114: 9 | H114: 0 | I114: 2 | J114: 5 | K114: 0 | L114: 1 | M114: 7 | N114: 2 | O114: 0 | P114: NC | Q114: 0 | R114: 0 | S114: 0 | T114: 0 | U114: 7 | V114: 3 | W114: 3 | X114: 13 | Y114: 0 | Z114: 1 | AA114: 7 | AB114: 2 | AC114: 3 | AD114: 11 | AE114: 3 | AF114: 0 | AG114: NC | AH114: 0 | AI114: 0 | AJ114: 1 | AK114: 1
A115: Commune | B115: 14162 | C115: Clécy | D115: 50 | E115: 26 | F115: 23 | G115: 99 | H115: 3 | I115: 2 | J115: 53 | K115: 10 | L115: 32 | M115: 80 | N115: 46 | O115: 10 | P115: NC | Q115: 0 | R115: 6 | S115: 3 | T115: 1 | U115: 59 | V115: 14 | W115: 36 | X115: 109 | Y115: 6 | Z115: 3 | AA115: 51 | AB115: 17 | AC115: 30 | AD115: 86 | AE115: 54 | AF115: 9 | AG115: NC | AH115: 0 | AI115: 7 | AJ115: 7 | AK115: 3
A116: Commune | B116: 14163 | C116: Cléville | D116: 7 | E116: 4 | F116: 20 | G116: 31 | H116: 1 | I116: 2 | J116: 22 | K116: 3 | L116: 6 | M116: 27 | N116: 11 | O116: 1 | P116: NC | Q116: 0 | R116: 0 | S116: 2 | T116: 1 | U116: 11 | V116: 5 | W116: 14 | X116: 30 | Y116: 1 | Z116: 4 | AA116: 16 | AB116: 2 | AC116: 7 | AD116: 22 | AE116: 10 | AF116: 0 | AG116: NC | AH116: 0 | AI116: 0 | AJ116: 1 | AK116: 1
A117: Commune | B117: 14165 | C117: Colleville-sur-Mer | D117: 12 | E117: 3 | F117: 1 | G117: 16 | H117: 0 | I117: 0 | J117: 10 | K117: 2 | L117: 8 | M117: 10 | N117: 10 | O117: 1 | P117: NC | Q117: 0 | R117: 1 | S117: 0 | T117: 1 | U117: 9 | V117: 3 | W117: 1 | X117: 13 | Y117: 1 | Z117: 0 | AA117: 7 | AB117: 2 | AC117: 7 | AD117: 10 | AE117: 8 | AF117: 0 | AG117: NC | AH117: 0 | AI117: 0 | AJ117: 1 | AK117: 1
A118: Commune | B118: 14166 | C118: Colleville-Montgomery | D118: 70 | E118: 26 | F118: 37 | G118: 133 | H118: 10 | I118: 14 | J118: 68 | K118: 28 | L118: 39 | M118: 98 | N118: 55 | O118: 10 | P118: NC | Q118: 0 | R118: 8 | S118: 9 | T118: 11 | U118: 69 | V118: 17 | W118: 42 | X118: 128 | Y118: 8 | Z118: 12 | AA118: 62 | AB118: 28 | AC118: 34 | AD118: 91 | AE118: 54 | AF118: 13 | AG118: NC | AH118: 0 | AI118: 7 | AJ118: 12 | AK118: 9
A119: Commune | B119: 14167 | C119: Colombelles | D119: 448 | E119: 117 | F119: 224 | G119: 789 | H119: 45 | I119: 124 | J119: 420 | K119: 152 | L119: 167 | M119: 493 | N119: 451 | O119: 127 | P119: NC | Q119: 182 | R119: 72 | S119: 45 | T119: 34 | U119: 431 | V119: 116 | W119: 224 | X119: 771 | Y119: 57 | Z119: 134 | AA119: 421 | AB119: 159 | AC119: 163 | AD119: 505 | AE119: 426 | AF119: 125 | AG119: NC | AH119: 150 | AI119: 69 | AJ119: 55 | AK119: 33
A120: Commune | B120: 14168 | C120: Colombières | D120: 8 | E120: 4 | F120: 3 | G120: 15 | H120: 1 | I120: 0 | J120: 8 | K120: 1 | L120: 8 | M120: 12 | N120: 12 | O120: 1 | P120: NC | Q120: 0 | R120: 1 | S120: 0 | T120: 0 | U120: 6 | V120: 5 | W120: 4 | X120: 15 | Y120: 0 | Z120: 0 | AA120: 9 | AB120: 2 | AC120: 8 | AD120: 14 | AE120: 9 | AF120: 0 | AG120: NC | AH120: 0 | AI120: 0 | AJ120: 0 | AK120: 2
A121: Commune | B121: 14169 | C121: Colombiers-sur-Seulles | D121: 9 | E121: 4 | F121: 0 | G121: 13 | H121: 2 | I121: 1 | J121: 5 | K121: 0 | L121: 6 | M121: 9 | N121: 6 | O121: 1 | P121: NC | Q121: 0 | R121: 0 | S121: 0 | T121: 0 | U121: 6 | V121: 3 | W121: 0 | X121: 9 | Y121: 4 | Z121: 4 | AA121: 2 | AB121: 1 | AC121: 5 | AD121: 5 | AE121: 3 | AF121: 1 | AG121: NC | AH121: 0 | AI121: 0 | AJ121: 1 | AK121: 0
A122: Commune | B122: 14171 | C122: Combray | D122: 7 | E122: 3 | F122: 6 | G122: 16 | H122: 1 | I122: 2 | J122: 10 | K122: 6 | L122: 3 | M122: 11 | N122: 7 | O122: 0 | P122: NC | Q122: 0 | R122: 2 | S122: 3 | T122: 1 | U122: 3 | V122: 1 | W122: 7 | X122: 11 | Y122: 2 | Z122: 1 | AA122: 6 | AB122: 3 | AC122: 3 | AD122: 8 | AE122: 6 | AF122: 0 | AG122: NC | AH122: 0 | AI122: 1 | AJ122: 2 | AK122: 0
A123: Commune | B123: 14172 | C123: Commes | D123: 12 | E123: 3 | F123: 6 | G123: 21 | H123: 3 | I123: 1 | J123: 9 | K123: 3 | L123: 8 | M123: 16 | N123: 11 | O123: 0 | P123: NC | Q123: 0 | R123: 1 | S123: 2 | T123: 0 | U123: 8 | V123: 2 | W123: 7 | X123: 17 | Y123: 1 | Z123: 1 | AA123: 7 | AB123: 2 | AC123: 6 | AD123: 14 | AE123: 7 | AF123: 0 | AG123: NC | AH123: 0 | AI123: 0 | AJ123: 2 | AK123: 0
A124: Commune | B124: 14173 | C124: Condé-sur-Ifs | D124: 13 | E124: 3 | F124: 12 | G124: 28 | H124: 5 | I124: 0 | J124: 15 | K124: 6 | L124: 5 | M124: 21 | N124: 11 | O124: 0 | P124: NC | Q124: 0 | R124: 2 | S124: 2 | T124: 2 | U124: 15 | V124: 3 | W124: 11 | X124: 29 | Y124: 1 | Z124: 2 | AA124: 15 | AB124: 5 | AC124: 4 | AD124: 22 | AE124: 11 | AF124: 0 | AG124: NC | AH124: 0 | AI124: 2 | AJ124: 2 | AK124: 1
A125: Commune | B125: 14174 | C125: Condé-en-Normandie | D125: 282 | E125: 82 | F125: 131 | G125: 495 | H125: 28 | I125: 16 | J125: 250 | K125: 84 | L125: 159 | M125: 323 | N125: 296 | O125: 89 | P125: NC | Q125: 0 | R125: 32 | S125: 36 | T125: 16 | U125: 282 | V125: 76 | W125: 154 | X125: 512 | Y125: 15 | Z125: 21 | AA125: 266 | AB125: 83 | AC125: 171 | AD125: 313 | AE125: 315 | AF125: 90 | AG125: NC | AH125: 0 | AI125: 34 | AJ125: 32 | AK125: 16
A126: Commune | B126: 14175 | C126: Condé-sur-Seulles | D126: 11 | E126: 3 | F126: 7 | G126: 21 | H126: 1 | I126: 2 | J126: 13 | K126: 4 | L126: 3 | M126: 16 | N126: 7 | O126: 0 | P126: NC | Q126: 0 | R126: 0 | S126: 3 | T126: 1 | U126: 9 | V126: 6 | W126: 3 | X126: 18 | Y126: 1 | Z126: 3 | AA126: 10 | AB126: 2 | AC126: 3 | AD126: 14 | AE126: 8 | AF126: 0 | AG126: NC | AH126: 0 | AI126: 0 | AJ126: 1 | AK126: 1
A127: Commune | B127: 14177 | C127: Coquainvilliers | D127: 18 | E127: 7 | F127: 17 | G127: 42 | H127: 4 | I127: 1 | J127: 22 | K127: 8 | L127: 13 | M127: 29 | N127: 18 | O127: 2 | P127: NC | Q127: 0 | R127: 2 | S127: 3 | T127: 2 | U127: 13 | V127: 9 | W127: 15 | X127: 37 | Y127: 4 | Z127: 0 | AA127: 20 | AB127: 6 | AC127: 15 | AD127: 31 | AE127: 19 | AF127: 1 | AG127: NC | AH127: 0 | AI127: 2 | AJ127: 1 | AK127: 2
A128: Commune | B128: 14179 | C128: Cordebugle | D128: 6 | E128: 1 | F128: 1 | G128: 8 | H128: 0 | I128: 1 | J128: 4 | K128: 1 | L128: 1 | M128: 6 | N128: 4 | O128: 1 | P128: NC | Q128: 0 | R128: 1 | S128: 0 | T128: 0 | U128: 8 | V128: 4 | W128: 2 | X128: 14 | Y128: 0 | Z128: 0 | AA128: 6 | AB128: 3 | AC128: 1 | AD128: 12 | AE128: 7 | AF128: 2 | AG128: NC | AH128: 0 | AI128: 2 | AJ128: 1 | AK128: 0
A129: Commune | B129: 14180 | C129: Cordey | D129: 2 | E129: 3 | F129: 4 | G129: 9 | H129: 1 | I129: 1 | J129: 4 | K129: 1 | L129: 5 | M129: 9 | N129: 4 | O129: 0 | P129: NC | Q129: 0 | R129: 0 | S129: 1 | T129: 0 | U129: 1 | V129: 2 | W129: 4 | X129: 7 | Y129: 1 | Z129: 0 | AA129: 4 | AB129: 1 | AC129: 2 | AD129: 6 | AE129: 3 | AF129: 0 | AG129: NC | AH129: 0 | AI129: 0 | AJ129: 1 | AK129: 0
A130: Commune | B130: 14181 | C130: Cormelles-le-Royal | D130: 179 | E130: 64 | F130: 126 | G130: 369 | H130: 26 | I130: 31 | J130: 185 | K130: 61 | L130: 100 | M130: 245 | N130: 167 | O130: 40 | P130: NC | Q130: 0 | R130: 29 | S130: 21 | T130: 11 | U130: 191 | V130: 62 | W130: 132 | X130: 385 | Y130: 26 | Z130: 25 | AA130: 209 | AB130: 62 | AC130: 96 | AD130: 261 | AE130: 176 | AF130: 44 | AG130: NC | AH130: 0 | AI130: 23 | AJ130: 23 | AK130: 16
A131: Commune | B131: 14182 | C131: Cormolain | D131: 13 | E131: 6 | F131: 12 | G131: 31 | H131: 1 | I131: 3 | J131: 20 | K131: 5 | L131: 6 | M131: 23 | N131: 16 | O131: 1 | P131: NC | Q131: 0 | R131: 2 | S131: 2 | T131: 1 | U131: 12 | V131: 8 | W131: 11 | X131: 31 | Y131: 2 | Z131: 4 | AA131: 17 | AB131: 5 | AC131: 5 | AD131: 22 | AE131: 16 | AF131: 3 | AG131: NC | AH131: 0 | AI131: 2 | AJ131: 3 | AK131: 0
A132: Commune | B132: 14183 | C132: Cossesseville | D132: 2 | E132: 3 | F132: 1 | G132: 6 | H132: 0 | I132: 0 | J132: 4 | K132: 0 | L132: 1 | M132: 5 | N132: 3 | O132: 0 | P132: NC | Q132: 0 | R132: 0 | S132: 0 | T132: 0 | U132: 3 | V132: 1 | W132: 0 | X132: 4 | Y132: 0 | Z132: 0 | AA132: 3 | AB132: 0 | AC132: 2 | AD132: 3 | AE132: 2 | AF132: 1 | AG132: NC | AH132: 0 | AI132: 0 | AJ132: 0 | AK132: 0
A133: Commune | B133: 14184 | C133: Cottun | D133: 4 | E133: 0 | F133: 7 | G133: 11 | H133: 1 | I133: 3 | J133: 7 | K133: 2 | L133: 0 | M133: 9 | N133: 6 | O133: 0 | P133: NC | Q133: 0 | R133: 2 | S133: 0 | T133: 0 | U133: 3 | V133: 1 | W133: 2 | X133: 6 | Y133: 0 | Z133: 3 | AA133: 5 | AB133: 0 | AC133: 0 | AD133: 5 | AE133: 2 | AF133: 0 | AG133: NC | AH133: 0 | AI133: 0 | AJ133: 0 | AK133: 0
A134: Commune | B134: 14190 | C134: Courcy | D134: 3 | E134: 1 | F134: 1 | G134: 5 | H134: 0 | I134: 0 | J134: 3 | K134: 1 | L134: 2 | M134: 4 | N134: 3 | O134: 0 | P134: NC | Q134: 0 | R134: 0 | S134: 0 | T134: 1 | U134: 4 | V134: 1 | W134: 3 | X134: 8 | Y134: 0 | Z134: 3 | AA134: 5 | AB134: 1 | AC134: 4 | AD134: 6 | AE134: 6 | AF134: 0 | AG134: NC | AH134: 0 | AI134: 1 | AJ134: 0 | AK134: 0
A135: Commune | B135: 14191 | C135: Courseulles-sur-Mer | D135: 169 | E135: 49 | F135: 77 | G135: 295 | H135: 20 | I135: 17 | J135: 149 | K135: 37 | L135: 119 | M135: 208 | N135: 142 | O135: 38 | P135: NC | Q135: 0 | R135: 14 | S135: 14 | T135: 9 | U135: 160 | V135: 48 | W135: 77 | X135: 285 | Y135: 17 | Z135: 21 | AA135: 139 | AB135: 33 | AC135: 104 | AD135: 197 | AE135: 145 | AF135: 32 | AG135: NC | AH135: 0 | AI135: 15 | AJ135: 12 | AK135: 6
A136: Commune | B136: 14193 | C136: Courtonne-la-Meurdrac | D136: 10 | E136: 3 | F136: 8 | G136: 21 | H136: 4 | I136: 4 | J136: 15 | K136: 2 | L136: 10 | M136: 14 | N136: 8 | O136: 1 | P136: NC | Q136: 0 | R136: 1 | S136: 0 | T136: 1 | U136: 12 | V136: 4 | W136: 11 | X136: 27 | Y136: 2 | Z136: 6 | AA136: 18 | AB136: 2 | AC136: 10 | AD136: 17 | AE136: 14 | AF136: 2 | AG136: NC | AH136: 0 | AI136: 1 | AJ136: 1 | AK136: 0
A137: Commune | B137: 14194 | C137: Courtonne-les-Deux-Églises | D137: 15 | E137: 3 | F137: 17 | G137: 35 | H137: 1 | I137: 6 | J137: 18 | K137: 4 | L137: 11 | M137: 27 | N137: 18 | O137: 2 | P137: NC | Q137: 0 | R137: 1 | S137: 3 | T137: 0 | U137: 21 | V137: 8 | W137: 15 | X137: 44 | Y137: 1 | Z137: 5 | AA137: 29 | AB137: 9 | AC137: 9 | AD137: 32 | AE137: 21 | AF137: 1 | AG137: NC | AH137: 0 | AI137: 2 | AJ137: 4 | AK137: 3
A138: Commune | B138: 14195 | C138: Courvaudon | D138: 3 | E138: 5 | F138: 9 | G138: 17 | H138: 1 | I138: 2 | J138: 9 | K138: 4 | L138: 5 | M138: 15 | N138: 7 | O138: 1 | P138: NC | Q138: 0 | R138: 1 | S138: 1 | T138: 2 | U138: 5 | V138: 3 | W138: 10 | X138: 18 | Y138: 2 | Z138: 1 | AA138: 10 | AB138: 3 | AC138: 7 | AD138: 14 | AE138: 10 | AF138: 2 | AG138: NC | AH138: 0 | AI138: 1 | AJ138: 2 | AK138: 0
A139: Commune | B139: 14196 | C139: Crépon | D139: 7 | E139: 3 | F139: 2 | G139: 12 | H139: 0 | I139: 2 | J139: 9 | K139: 0 | L139: 4 | M139: 9 | N139: 6 | O139: 0 | P139: NC | Q139: 0 | R139: 0 | S139: 0 | T139: 0 | U139: 5 | V139: 1 | W139: 6 | X139: 12 | Y139: 0 | Z139: 1 | AA139: 9 | AB139: 2 | AC139: 2 | AD139: 11 | AE139: 7 | AF139: 0 | AG139: NC | AH139: 0 | AI139: 0 | AJ139: 2 | AK139: 0
A140: Commune | B140: 14197 | C140: Cresserons | D140: 26 | E140: 9 | F140: 21 | G140: 56 | H140: 2 | I140: 3 | J140: 30 | K140: 12 | L140: 19 | M140: 38 | N140: 14 | O140: 4 | P140: NC | Q140: 0 | R140: 2 | S140: 5 | T140: 5 | U140: 19 | V140: 9 | W140: 10 | X140: 38 | Y140: 2 | Z140: 4 | AA140: 21 | AB140: 3 | AC140: 17 | AD140: 26 | AE140: 18 | AF140: 5 | AG140: NC | AH140: 0 | AI140: 3 | AJ140: 0 | AK140: 0
A141: Commune | B141: 14198 | C141: Cresseveuille | D141: 4 | E141: 4 | F141: 6 | G141: 14 | H141: 3 | I141: 1 | J141: 11 | K141: 5 | L141: 3 | M141: 12 | N141: 6 | O141: 1 | P141: NC | Q141: 0 | R141: 0 | S141: 5 | T141: 0 | U141: 10 | V141: 1 | W141: 5 | X141: 16 | Y141: 2 | Z141: 0 | AA141: 9 | AB141: 0 | AC141: 5 | AD141: 12 | AE141: 8 | AF141: 1 | AG141: NC | AH141: 0 | AI141: 0 | AJ141: 0 | AK141: 0
A142: Commune | B142: 14200 | C142: Creully sur Seulles | D142: 50 | E142: 17 | F142: 45 | G142: 112 | H142: 6 | I142: 12 | J142: 61 | K142: 26 | L142: 23 | M142: 90 | N142: 50 | O142: 6 | P142: NC | Q142: 0 | R142: 10 | S142: 7 | T142: 9 | U142: 62 | V142: 29 | W142: 37 | X142: 128 | Y142: 11 | Z142: 17 | AA142: 74 | AB142: 27 | AC142: 29 | AD142: 97 | AE142: 59 | AF142: 12 | AG142: NC | AH142: 0 | AI142: 10 | AJ142: 9 | AK142: 8
A143: Commune | B143: 14202 | C143: Cricqueboeuf | D143: 3 | E143: 0 | F143: 1 | G143: 4 | H143: 0 | I143: 0 | J143: 2 | K143: 0 | L143: 3 | M143: 2 | N143: 1 | O143: 1 | P143: NC | Q143: 0 | R143: 0 | S143: 0 | T143: 0 | U143: 3 | V143: 2 | W143: 0 | X143: 5 | Y143: 1 | Z143: 1 | AA143: 2 | AB143: 2 | AC143: 1 | AD143: 3 | AE143: 2 | AF143: 0 | AG143: NC | AH143: 0 | AI143: 1 | AJ143: 0 | AK143: 1
A144: Commune | B144: 14203 | C144: Cricqueville-en-Auge | D144: 5 | E144: 3 | F144: 2 | G144: 10 | H144: 0 | I144: 1 | J144: 7 | K144: 1 | L144: 3 | M144: 8 | N144: 6 | O144: 0 | P144: NC | Q144: 0 | R144: 1 | S144: 0 | T144: 0 | U144: 6 | V144: 0 | W144: 3 | X144: 9 | Y144: 0 | Z144: 0 | AA144: 4 | AB144: 3 | AC144: 2 | AD144: 9 | AE144: 5 | AF144: 0 | AG144: NC | AH144: 0 | AI144: 1 | AJ144: 2 | AK144: 0
A145: Commune | B145: 14204 | C145: Cricqueville-en-Bessin | D145: 5 | E145: 3 | F145: 2 | G145: 10 | H145: 0 | I145: 0 | J145: 7 | K145: 4 | L145: 1 | M145: 6 | N145: 3 | O145: 1 | P145: NC | Q145: 0 | R145: 0 | S145: 4 | T145: 0 | U145: 8 | V145: 0 | W145: 1 | X145: 9 | Y145: 2 | Z145: 2 | AA145: 6 | AB145: 1 | AC145: 2 | AD145: 7 | AE145: 5 | AF145: 1 | AG145: NC | AH145: 0 | AI145: 0 | AJ145: 1 | AK145: 0
A146: Commune | B146: 14205 | C146: Cristot | D146: 3 | E146: 0 | F146: 3 | G146: 6 | H146: 1 | I146: 2 | J146: 6 | K146: 1 | L146: 2 | M146: 4 | N146: 2 | O146: 0 | P146: NC | Q146: 0 | R146: 0 | S146: 0 | T146: 1 | U146: 4 | V146: 0 | W146: 3 | X146: 7 | Y146: 0 | Z146: 2 | AA146: 5 | AB146: 2 | AC146: 3 | AD146: 6 | AE146: 2 | AF146: 0 | AG146: NC | AH146: 0 | AI146: 0 | AJ146: 0 | AK146: 2
A147: Commune | B147: 14206 | C147: Crocy | D147: 8 | E147: 4 | F147: 9 | G147: 21 | H147: 0 | I147: 0 | J147: 9 | K147: 2 | L147: 6 | M147: 18 | N147: 13 | O147: 2 | P147: NC | Q147: 0 | R147: 1 | S147: 1 | T147: 0 | U147: 11 | V147: 3 | W147: 5 | X147: 19 | Y147: 0 | Z147: 2 | AA147: 8 | AB147: 5 | AC147: 4 | AD147: 15 | AE147: 10 | AF147: 0 | AG147: NC | AH147: 0 | AI147: 1 | AJ147: 2 | AK147: 2
A148: Commune | B148: 14207 | C148: Croisilles | D148: 16 | E148: 10 | F148: 15 | G148: 41 | H148: 8 | I148: 4 | J148: 23 | K148: 4 | L148: 15 | M148: 36 | N148: 20 | O148: 1 | P148: NC | Q148: 0 | R148: 2 | S148: 2 | T148: 0 | U148: 15 | V148: 9 | W148: 20 | X148: 44 | Y148: 1 | Z148: 3 | AA148: 23 | AB148: 9 | AC148: 13 | AD148: 33 | AE148: 25 | AF148: 3 | AG148: NC | AH148: 0 | AI148: 8 | AJ148: 0 | AK148: 1
A149: Commune | B149: 14209 | C149: Crouay | D149: 11 | E149: 3 | F149: 8 | G149: 22 | H149: 2 | I149: 3 | J149: 11 | K149: 6 | L149: 6 | M149: 19 | N149: 11 | O149: 1 | P149: NC | Q149: 0 | R149: 1 | S149: 3 | T149: 2 | U149: 12 | V149: 1 | W149: 10 | X149: 23 | Y149: 1 | Z149: 5 | AA149: 15 | AB149: 4 | AC149: 7 | AD149: 17 | AE149: 12 | AF149: 2 | AG149: NC | AH149: 0 | AI149: 1 | AJ149: 2 | AK149: 1
A150: Commune | B150: 14211 | C150: Culey-le-Patry | D150: 17 | E150: 6 | F150: 6 | G150: 29 | H150: 1 | I150: 0 | J150: 15 | K150: 7 | L150: 6 | M150: 19 | N150: 14 | O150: 2 | P150: NC | Q150: 0 | R150: 4 | S150: 0 | T150: 3 | U150: 15 | V150: 4 | W150: 6 | X150: 25 | Y150: 2 | Z150: 1 | AA150: 14 | AB150: 8 | AC150: 4 | AD150: 19 | AE150: 13 | AF150: 1 | AG150: NC | AH150: 0 | AI150: 4 | AJ150: 1 | AK150: 3
A151: Commune | B151: 14214 | C151: Cussy | D151: 2 | E151: 0 | F151: 4 | G151: 6 | H151: 0 | I151: 1 | J151: 4 | K151: 0 | L151: 2 | M151: 5 | N151: 0 | O151: 1 | P151: NC | Q151: 0 | R151: 0 | S151: 0 | T151: 0 | U151: 0 | V151: 0 | W151: 5 | X151: 5 | Y151: 0 | Z151: 0 | AA151: 3 | AB151: 0 | AC151: 1 | AD151: 5 | AE151: 1 | AF151: 0 | AG151: NC | AH151: 0 | AI151: 0 | AJ151: 0 | AK151: 0
A152: Commune | B152: 14215 | C152: Cuverville | D152: 61 | E152: 25 | F152: 52 | G152: 138 | H152: 10 | I152: 9 | J152: 75 | K152: 26 | L152: 30 | M152: 103 | N152: 69 | O152: 4 | P152: NC | Q152: 0 | R152: 12 | S152: 8 | T152: 6 | U152: 58 | V152: 18 | W152: 55 | X152: 131 | Y152: 7 | Z152: 14 | AA152: 76 | AB152: 26 | AC152: 27 | AD152: 94 | AE152: 59 | AF152: 2 | AG152: NC | AH152: 0 | AI152: 9 | AJ152: 10 | AK152: 7
A153: Commune | B153: 14216 | C153: Damblainville | D153: 4 | E153: 0 | F153: 5 | G153: 9 | H153: 1 | I153: 0 | J153: 6 | K153: 2 | L153: 4 | M153: 8 | N153: 3 | O153: 0 | P153: NC | Q153: 0 | R153: 1 | S153: 0 | T153: 1 | U153: 7 | V153: 2 | W153: 3 | X153: 12 | Y153: 3 | Z153: 1 | AA153: 6 | AB153: 3 | AC153: 1 | AD153: 9 | AE153: 7 | AF153: 0 | AG153: NC | AH153: 0 | AI153: 3 | AJ153: 0 | AK153: 0
A154: Commune | B154: 14218 | C154: Danestal | D154: 9 | E154: 8 | F154: 7 | G154: 24 | H154: 0 | I154: 0 | J154: 13 | K154: 2 | L154: 6 | M154: 20 | N154: 11 | O154: 2 | P154: NC | Q154: 0 | R154: 0 | S154: 1 | T154: 1 | U154: 6 | V154: 4 | W154: 8 | X154: 18 | Y154: 2 | Z154: 2 | AA154: 12 | AB154: 1 | AC154: 7 | AD154: 12 | AE154: 7 | AF154: 2 | AG154: NC | AH154: 0 | AI154: 0 | AJ154: 1 | AK154: 0
A155: Commune | B155: 14220 | C155: Deauville | D155: 158 | E155: 47 | F155: 67 | G155: 272 | H155: 15 | I155: 22 | J155: 139 | K155: 27 | L155: 112 | M155: 204 | N155: 125 | O155: 31 | P155: NC | Q155: 0 | R155: 6 | S155: 13 | T155: 8 | U155: 150 | V155: 44 | W155: 74 | X155: 268 | Y155: 14 | Z155: 14 | AA155: 145 | AB155: 31 | AC155: 109 | AD155: 188 | AE155: 119 | AF155: 37 | AG155: NC | AH155: 0 | AI155: 7 | AJ155: 17 | AK155: 7
A156: Commune | B156: 14221 | C156: Démouville | D156: 109 | E156: 30 | F156: 74 | G156: 213 | H156: 12 | I156: 16 | J156: 118 | K156: 37 | L156: 60 | M156: 142 | N156: 118 | O156: 23 | P156: NC | Q156: 0 | R156: 19 | S156: 11 | T156: 7 | U156: 112 | V156: 27 | W156: 71 | X156: 210 | Y156: 17 | Z156: 15 | AA156: 118 | AB156: 38 | AC156: 64 | AD156: 142 | AE156: 111 | AF156: 23 | AG156: NC | AH156: 0 | AI156: 20 | AJ156: 14 | AK156: 4
A157: Commune | B157: 14223 | C157: Le Détroit | D157: 4 | E157: 1 | F157: 2 | G157: 7 | H157: 0 | I157: 0 | J157: 3 | K157: 1 | L157: 0 | M157: 3 | N157: 3 | O157: 2 | P157: NC | Q157: 0 | R157: 1 | S157: 0 | T157: 0 | U157: 6 | V157: 0 | W157: 2 | X157: 8 | Y157: 1 | Z157: 0 | AA157: 3 | AB157: 1 | AC157: 0 | AD157: 5 | AE157: 6 | AF157: 2 | AG157: NC | AH157: 0 | AI157: 1 | AJ157: 0 | AK157: 0
A158: Commune | B158: 14224 | C158: Deux-Jumeaux | D158: 3 | E158: 0 | F158: 0 | G158: 3 | H158: 0 | I158: 1 | J158: 1 | K158: 2 | L158: 1 | M158: 2 | N158: 0 | O158: 0 | P158: NC | Q158: 0 | R158: 0 | S158: 1 | T158: 1 | U158: 4 | V158: 0 | W158: 0 | X158: 4 | Y158: 0 | Z158: 0 | AA158: 2 | AB158: 1 | AC158: 2 | AD158: 3 | AE158: 0 | AF158: 0 | AG158: NC | AH158: 0 | AI158: 0 | AJ158: 1 | AK158: 0
A159: Commune | B159: 14225 | C159: Dives-sur-Mer | D159: 261 | E159: 65 | F159: 116 | G159: 442 | H159: 23 | I159: 19 | J159: 223 | K159: 82 | L159: 133 | M159: 309 | N159: 283 | O159: 68 | P159: NC | Q159: 0 | R159: 44 | S159: 26 | T159: 12 | U159: 274 | V159: 66 | W159: 129 | X159: 469 | Y159: 21 | Z159: 22 | AA159: 258 | AB159: 101 | AC159: 133 | AD159: 307 | AE159: 306 | AF159: 84 | AG159: NC | AH159: 0 | AI159: 59 | AJ159: 29 | AK159: 13
A160: Commune | B160: 14226 | C160: Donnay | D160: 11 | E160: 4 | F160: 7 | G160: 22 | H160: 1 | I160: 0 | J160: 10 | K160: 2 | L160: 7 | M160: 16 | N160: 12 | O160: 1 | P160: NC | Q160: 0 | R160: 2 | S160: 0 | T160: 0 | U160: 8 | V160: 5 | W160: 6 | X160: 19 | Y160: 2 | Z160: 1 | AA160: 11 | AB160: 2 | AC160: 5 | AD160: 14 | AE160: 7 | AF160: 1 | AG160: NC | AH160: 0 | AI160: 0 | AJ160: 1 | AK160: 1
A161: Commune | B161: 14227 | C161: Douville-en-Auge | D161: 5 | E161: 1 | F161: 2 | G161: 8 | H161: 1 | I161: 1 | J161: 4 | K161: 3 | L161: 2 | M161: 7 | N161: 4 | O161: 0 | P161: NC | Q161: 1 | R161: 1 | S161: 2 | T161: 0 | U161: 3 | V161: 2 | W161: 2 | X161: 7 | Y161: 0 | Z161: 3 | AA161: 4 | AB161: 1 | AC161: 4 | AD161: 4 | AE161: 3 | AF161: 0 | AG161: NC | AH161: 0 | AI161: 0 | AJ161: 1 | AK161: 0
A162: Commune | B162: 14228 | C162: Douvres-la-Délivrande | D162: 153 | E162: 49 | F162: 124 | G162: 326 | H162: 28 | I162: 23 | J162: 170 | K162: 57 | L162: 95 | M162: 225 | N162: 132 | O162: 25 | P162: NC | Q162: 0 | R162: 19 | S162: 17 | T162: 21 | U162: 175 | V162: 60 | W162: 103 | X162: 338 | Y162: 17 | Z162: 24 | AA162: 181 | AB162: 58 | AC162: 79 | AD162: 243 | AE162: 134 | AF162: 23 | AG162: NC | AH162: 0 | AI162: 24 | AJ162: 19 | AK162: 15
A163: Commune | B163: 14229 | C163: Dozulé | D163: 71 | E163: 22 | F163: 47 | G163: 140 | H163: 7 | I163: 10 | J163: 76 | K163: 28 | L163: 36 | M163: 97 | N163: 72 | O163: 10 | P163: NC | Q163: 0 | R163: 10 | S163: 14 | T163: 4 | U163: 69 | V163: 29 | W163: 45 | X163: 143 | Y163: 11 | Z163: 17 | AA163: 80 | AB163: 25 | AC163: 38 | AD163: 104 | AE163: 82 | AF163: 17 | AG163: NC | AH163: 0 | AI163: 7 | AJ163: 10 | AK163: 8
A164: Commune | B164: 14230 | C164: Drubec | D164: 4 | E164: 3 | F164: 3 | G164: 10 | H164: 1 | I164: 1 | J164: 6 | K164: 2 | L164: 4 | M164: 7 | N164: 3 | O164: 2 | P164: NC | Q164: 0 | R164: 0 | S164: 1 | T164: 1 | U164: 3 | V164: 3 | W164: 3 | X164: 9 | Y164: 0 | Z164: 2 | AA164: 5 | AB164: 2 | AC164: 4 | AD164: 8 | AE164: 3 | AF164: 1 | AG164: NC | AH164: 0 | AI164: 0 | AJ164: 1 | AK164: 1
A165: Commune | B165: 14231 | C165: Beaufour-Druval | D165: 5 | E165: 2 | F165: 10 | G165: 17 | H165: 3 | I165: 3 | J165: 13 | K165: 1 | L165: 3 | M165: 15 | N165: 9 | O165: 0 | P165: NC | Q165: 0 | R165: 1 | S165: 0 | T165: 0 | U165: 10 | V165: 1 | W165: 12 | X165: 23 | Y165: 1 | Z165: 2 | AA165: 12 | AB165: 4 | AC165: 6 | AD165: 20 | AE165: 13 | AF165: 2 | AG165: NC | AH165: 0 | AI165: 3 | AJ165: 0 | AK165: 1
A166: Commune | B166: 14232 | C166: Ducy-Sainte-Marguerite | D166: 1 | E166: 1 | F166: 1 | G166: 3 | H166: 1 | I166: 2 | J166: 1 | K166: 0 | L166: 2 | M166: 1 | N166: 2 | O166: 1 | P166: NC | Q166: 0 | R166: 0 | S166: 0 | T166: 0 | U166: 3 | V166: 1 | W166: 2 | X166: 6 | Y166: 0 | Z166: 3 | AA166: 4 | AB166: 0 | AC166: 5 | AD166: 4 | AE166: 2 | AF166: 1 | AG166: NC | AH166: 0 | AI166: 0 | AJ166: 0 | AK166: 0
A167: Commune | B167: 14236 | C167: Ellon | D167: 11 | E167: 3 | F167: 6 | G167: 20 | H167: 0 | I167: 3 | J167: 9 | K167: 2 | L167: 6 | M167: 15 | N167: 10 | O167: 0 | P167: NC | Q167: 0 | R167: 0 | S167: 0 | T167: 2 | U167: 8 | V167: 1 | W167: 5 | X167: 14 | Y167: 1 | Z167: 3 | AA167: 6 | AB167: 2 | AC167: 6 | AD167: 10 | AE167: 7 | AF167: 0 | AG167: NC | AH167: 0 | AI167: 2 | AJ167: 0 | AK167: 0
A168: Commune | B168: 14237 | C168: Émiéville | D168: 16 | E168: 7 | F168: 14 | G168: 37 | H168: 5 | I168: 3 | J168: 24 | K168: 9 | L168: 11 | M168: 28 | N168: 10 | O168: 1 | P168: NC | Q168: 0 | R168: 2 | S168: 1 | T168: 6 | U168: 19 | V168: 2 | W168: 19 | X168: 40 | Y168: 0 | Z168: 3 | AA168: 25 | AB168: 8 | AC168: 13 | AD168: 31 | AE168: 13 | AF168: 1 | AG168: NC | AH168: 0 | AI168: 2 | AJ168: 4 | AK168: 2
A169: Commune | B169: 14238 | C169: Englesqueville-en-Auge | D169: 3 | E169: 0 | F169: 0 | G169: 3 | H169: 1 | I169: 0 | J169: 2 | K169: 0 | L169: 1 | M169: 2 | N169: 1 | O169: 0 | P169: NC | Q169: 0 | R169: 0 | S169: 0 | T169: 0 | U169: 3 | V169: 0 | W169: 0 | X169: 3 | Y169: 0 | Z169: 0 | AA169: 1 | AB169: 0 | AC169: 3 | AD169: 2 | AE169: 1 | AF169: 0 | AG169: NC | AH169: 0 | AI169: 0 | AJ169: 0 | AK169: 0
A170: Commune | B170: 14239 | C170: Englesqueville-la-Percée | D170: 2 | E170: 1 | F170: 0 | G170: 3 | H170: 0 | I170: 0 | J170: 2 | K170: 0 | L170: 0 | M170: 3 | N170: 1 | O170: 0 | P170: NC | Q170: 0 | R170: 0 | S170: 0 | T170: 0 | U170: 1 | V170: 1 | W170: 2 | X170: 4 | Y170: 0 | Z170: 0 | AA170: 4 | AB170: 0 | AC170: 2 | AD170: 2 | AE170: 1 | AF170: 0 | AG170: NC | AH170: 0 | AI170: 0 | AJ170: 0 | AK170: 0
A171: Commune | B171: 14240 | C171: Épaney | D171: 17 | E171: 5 | F171: 13 | G171: 35 | H171: 3 | I171: 0 | J171: 20 | K171: 5 | L171: 10 | M171: 25 | N171: 19 | O171: 4 | P171: NC | Q171: 0 | R171: 2 | S171: 3 | T171: 0 | U171: 18 | V171: 6 | W171: 11 | X171: 35 | Y171: 2 | Z171: 0 | AA171: 20 | AB171: 3 | AC171: 8 | AD171: 24 | AE171: 18 | AF171: 5 | AG171: NC | AH171: 0 | AI171: 1 | AJ171: 2 | AK171: 0
A172: Commune | B172: 14241 | C172: Épinay-sur-Odon | D172: 13 | E172: 3 | F172: 12 | G172: 28 | H172: 2 | I172: 3 | J172: 21 | K172: 5 | L172: 9 | M172: 20 | N172: 10 | O172: 1 | P172: NC | Q172: 0 | R172: 1 | S172: 2 | T172: 2 | U172: 14 | V172: 4 | W172: 9 | X172: 27 | Y172: 3 | Z172: 3 | AA172: 21 | AB172: 5 | AC172: 9 | AD172: 19 | AE172: 11 | AF172: 0 | AG172: NC | AH172: 0 | AI172: 2 | AJ172: 2 | AK172: 1
A173: Commune | B173: 14242 | C173: Épron | D173: 68 | E173: 15 | F173: 44 | G173: 127 | H173: 7 | I173: 8 | J173: 74 | K173: 25 | L173: 22 | M173: 86 | N173: 37 | O173: 17 | P173: NC | Q173: 0 | R173: 4 | S173: 6 | T173: 15 | U173: 62 | V173: 28 | W173: 35 | X173: 125 | Y173: 6 | Z173: 8 | AA173: 66 | AB173: 26 | AC173: 26 | AD173: 87 | AE173: 40 | AF173: 8 | AG173: NC | AH173: 0 | AI173: 5 | AJ173: 11 | AK173: 10
A174: Commune | B174: 14243 | C174: Équemauville | D174: 38 | E174: 11 | F174: 9 | G174: 58 | H174: 4 | I174: 10 | J174: 32 | K174: 16 | L174: 17 | M174: 40 | N174: 29 | O174: 4 | P174: NC | Q174: 0 | R174: 6 | S174: 5 | T174: 5 | U174: 26 | V174: 12 | W174: 12 | X174: 50 | Y174: 2 | Z174: 5 | AA174: 25 | AB174: 9 | AC174: 19 | AD174: 32 | AE174: 25 | AF174: 3 | AG174: NC | AH174: 0 | AI174: 3 | AJ174: 3 | AK174: 3
A175: Commune | B175: 14244 | C175: Eraines | D175: 12 | E175: 3 | F175: 10 | G175: 25 | H175: 1 | I175: 1 | J175: 19 | K175: 5 | L175: 9 | M175: 22 | N175: 9 | O175: 0 | P175: NC | Q175: 0 | R175: 1 | S175: 2 | T175: 2 | U175: 14 | V175: 2 | W175: 11 | X175: 27 | Y175: 1 | Z175: 1 | AA175: 20 | AB175: 6 | AC175: 12 | AD175: 17 | AE175: 14 | AF175: 0 | AG175: NC | AH175: 0 | AI175: 3 | AJ175: 2 | AK175: 1
A176: Commune | B176: 14245 | C176: Ernes | D176: 8 | E176: 1 | F176: 4 | G176: 13 | H176: 1 | I176: 1 | J176: 9 | K176: 3 | L176: 2 | M176: 9 | N176: 4 | O176: 1 | P176: NC | Q176: 0 | R176: 1 | S176: 1 | T176: 1 | U176: 7 | V176: 4 | W176: 6 | X176: 17 | Y176: 6 | Z176: 2 | AA176: 9 | AB176: 3 | AC176: 2 | AD176: 13 | AE176: 7 | AF176: 0 | AG176: NC | AH176: 0 | AI176: 1 | AJ176: 1 | AK176: 1
A177: Commune | B177: 14246 | C177: Escoville | D177: 13 | E177: 3 | F177: 19 | G177: 35 | H177: 4 | I177: 4 | J177: 23 | K177: 5 | L177: 9 | M177: 24 | N177: 10 | O177: 0 | P177: NC | Q177: 0 | R177: 1 | S177: 2 | T177: 2 | U177: 19 | V177: 4 | W177: 24 | X177: 47 | Y177: 4 | Z177: 7 | AA177: 27 | AB177: 9 | AC177: 10 | AD177: 37 | AE177: 13 | AF177: 1 | AG177: NC | AH177: 0 | AI177: 2 | AJ177: 6 | AK177: 1
A178: Commune | B178: 14248 | C178: Espins | D178: 3 | E178: 0 | F178: 2 | G178: 5 | H178: 0 | I178: 1 | J178: 5 | K178: 0 | L178: 0 | M178: 4 | N178: 0 | O178: 0 | P178: NC | Q178: 0 | R178: 0 | S178: 0 | T178: 0 | U178: 2 | V178: 0 | W178: 4 | X178: 6 | Y178: 2 | Z178: 0 | AA178: 5 | AB178: 0 | AC178: 1 | AD178: 3 | AE178: 2 | AF178: 1 | AG178: NC | AH178: 0 | AI178: 0 | AJ178: 0 | AK178: 0
A179: Commune | B179: 14249 | C179: Esquay-Notre-Dame | D179: 34 | E179: 13 | F179: 39 | G179: 86 | H179: 8 | I179: 4 | J179: 52 | K179: 27 | L179: 26 | M179: 63 | N179: 40 | O179: 3 | P179: NC | Q179: 0 | R179: 11 | S179: 6 | T179: 10 | U179: 30 | V179: 11 | W179: 39 | X179: 80 | Y179: 5 | Z179: 6 | AA179: 49 | AB179: 18 | AC179: 28 | AD179: 64 | AE179: 41 | AF179: 5 | AG179: NC | AH179: 0 | AI179: 9 | AJ179: 4 | AK179: 5
A180: Commune | B180: 14250 | C180: Esquay-sur-Seulles | D180: 9 | E180: 2 | F180: 6 | G180: 17 | H180: 1 | I180: 4 | J180: 10 | K180: 3 | L180: 9 | M180: 14 | N180: 10 | O180: 0 | P180: NC | Q180: 0 | R180: 2 | S180: 1 | T180: 0 | U180: 12 | V180: 2 | W180: 7 | X180: 21 | Y180: 1 | Z180: 3 | AA180: 12 | AB180: 8 | AC180: 9 | AD180: 17 | AE180: 11 | AF180: 0 | AG180: NC | AH180: 0 | AI180: 3 | AJ180: 2 | AK180: 3
A181: Commune | B181: 14251 | C181: Esson | D181: 9 | E181: 8 | F181: 15 | G181: 32 | H181: 3 | I181: 2 | J181: 23 | K181: 1 | L181: 8 | M181: 28 | N181: 10 | O181: 2 | P181: NC | Q181: 0 | R181: 1 | S181: 0 | T181: 0 | U181: 12 | V181: 9 | W181: 19 | X181: 40 | Y181: 1 | Z181: 1 | AA181: 28 | AB181: 4 | AC181: 9 | AD181: 27 | AE181: 16 | AF181: 3 | AG181: NC | AH181: 0 | AI181: 3 | AJ181: 1 | AK181: 0
A182: Commune | B182: 14252 | C182: Estrées-la-Campagne | D182: 3 | E182: 1 | F182: 5 | G182: 9 | H182: 0 | I182: 1 | J182: 7 | K182: 0 | L182: 2 | M182: 7 | N182: 6 | O182: 0 | P182: NC | Q182: 0 | R182: 0 | S182: 0 | T182: 0 | U182: 4 | V182: 2 | W182: 8 | X182: 14 | Y182: 0 | Z182: 1 | AA182: 10 | AB182: 1 | AC182: 4 | AD182: 9 | AE182: 7 | AF182: 0 | AG182: NC | AH182: 0 | AI182: 0 | AJ182: 1 | AK182: 0
A183: Commune | B183: 14254 | C183: Éterville | D183: 37 | E183: 16 | F183: 37 | G183: 90 | H183: 6 | I183: 3 | J183: 54 | K183: 11 | L183: 26 | M183: 74 | N183: 34 | O183: 1 | P183: NC | Q183: 0 | R183: 3 | S183: 2 | T183: 6 | U183: 43 | V183: 13 | W183: 41 | X183: 97 | Y183: 10 | Z183: 6 | AA183: 58 | AB183: 14 | AC183: 25 | AD183: 70 | AE183: 38 | AF183: 4 | AG183: NC | AH183: 0 | AI183: 3 | AJ183: 7 | AK183: 4
A184: Commune | B184: 14256 | C184: Étréham | D184: 9 | E184: 2 | F184: 9 | G184: 20 | H184: 1 | I184: 2 | J184: 16 | K184: 1 | L184: 8 | M184: 13 | N184: 4 | O184: 2 | P184: NC | Q184: 0 | R184: 0 | S184: 0 | T184: 1 | U184: 7 | V184: 2 | W184: 5 | X184: 14 | Y184: 2 | Z184: 1 | AA184: 12 | AB184: 2 | AC184: 9 | AD184: 8 | AE184: 6 | AF184: 1 | AG184: NC | AH184: 0 | AI184: 0 | AJ184: 1 | AK184: 1
A185: Commune | B185: 14257 | C185: Évrecy | D185: 33 | E185: 13 | F185: 39 | G185: 85 | H185: 7 | I185: 6 | J185: 51 | K185: 14 | L185: 24 | M185: 73 | N185: 28 | O185: 2 | P185: NC | Q185: 0 | R185: 1 | S185: 11 | T185: 2 | U185: 24 | V185: 8 | W185: 38 | X185: 70 | Y185: 8 | Z185: 4 | AA185: 43 | AB185: 9 | AC185: 18 | AD185: 49 | AE185: 26 | AF185: 5 | AG185: NC | AH185: 0 | AI185: 3 | AJ185: 4 | AK185: 2
A186: Commune | B186: 14258 | C186: Falaise | D186: 408 | E186: 108 | F186: 203 | G186: 719 | H186: 53 | I186: 66 | J186: 367 | K186: 141 | L186: 169 | M186: 481 | N186: 439 | O186: 113 | P186: NC | Q186: 0 | R186: 66 | S186: 53 | T186: 21 | U186: 422 | V186: 122 | W186: 197 | X186: 741 | Y186: 66 | Z186: 61 | AA186: 377 | AB186: 153 | AC186: 182 | AD186: 490 | AE186: 477 | AF186: 115 | AG186: NC | AH186: 0 | AI186: 82 | AJ186: 47 | AK186: 24
A187: Commune | B187: 14260 | C187: Fauguernon | D187: 2 | E187: 1 | F187: 4 | G187: 7 | H187: 0 | I187: 1 | J187: 3 | K187: 1 | L187: 2 | M187: 6 | N187: 3 | O187: 0 | P187: NC | Q187: 0 | R187: 0 | S187: 0 | T187: 1 | U187: 0 | V187: 2 | W187: 4 | X187: 6 | Y187: 1 | Z187: 1 | AA187: 2 | AB187: 2 | AC187: 1 | AD187: 5 | AE187: 3 | AF187: 0 | AG187: NC | AH187: 0 | AI187: 1 | AJ187: 0 | AK187: 1
A188: Commune | B188: 14261 | C188: Le Faulq | D188: 14 | E188: 4 | F188: 8 | G188: 26 | H188: 2 | I188: 0 | J188: 13 | K188: 5 | L188: 5 | M188: 23 | N188: 8 | O188: 1 | P188: NC | Q188: 0 | R188: 1 | S188: 1 | T188: 2 | U188: 12 | V188: 0 | W188: 12 | X188: 24 | Y188: 1 | Z188: 1 | AA188: 10 | AB188: 7 | AC188: 8 | AD188: 18 | AE188: 10 | AF188: 0 | AG188: NC | AH188: 0 | AI188: 2 | AJ188: 2 | AK188: 3
A189: Commune | B189: 14266 | C189: Feuguerolles-Bully | D189: 27 | E189: 10 | F189: 27 | G189: 64 | H189: 4 | I189: 6 | J189: 33 | K189: 5 | L189: 18 | M189: 51 | N189: 24 | O189: 4 | P189: NC | Q189: 0 | R189: 0 | S189: 2 | T189: 3 | U189: 22 | V189: 13 | W189: 25 | X189: 60 | Y189: 11 | Z189: 5 | AA189: 33 | AB189: 7 | AC189: 15 | AD189: 38 | AE189: 29 | AF189: 6 | AG189: NC | AH189: 0 | AI189: 4 | AJ189: 1 | AK189: 2
A190: Commune | B190: 14269 | C190: Fierville-les-Parcs | D190: 5 | E190: 3 | F190: 4 | G190: 12 | H190: 0 | I190: 1 | J190: 9 | K190: 0 | L190: 6 | M190: 11 | N190: 4 | O190: 0 | P190: NC | Q190: 0 | R190: 0 | S190: 0 | T190: 0 | U190: 9 | V190: 3 | W190: 8 | X190: 20 | Y190: 0 | Z190: 1 | AA190: 15 | AB190: 2 | AC190: 8 | AD190: 14 | AE190: 9 | AF190: 1 | AG190: NC | AH190: 0 | AI190: 1 | AJ190: 1 | AK190: 0
A191: Commune | B191: 14270 | C191: Firfol | D191: 9 | E191: 7 | F191: 4 | G191: 20 | H191: 0 | I191: 2 | J191: 10 | K191: 2 | L191: 9 | M191: 14 | N191: 14 | O191: 3 | P191: NC | Q191: 0 | R191: 2 | S191: 0 | T191: 0 | U191: 10 | V191: 2 | W191: 7 | X191: 19 | Y191: 0 | Z191: 1 | AA191: 8 | AB191: 3 | AC191: 7 | AD191: 14 | AE191: 12 | AF191: 5 | AG191: NC | AH191: 0 | AI191: 2 | AJ191: 0 | AK191: 1
A192: Commune | B192: 14271 | C192: Fleury-sur-Orne | D192: 336 | E192: 103 | F192: 187 | G192: 626 | H192: 45 | I192: 36 | J192: 311 | K192: 109 | L192: 119 | M192: 391 | N192: 316 | O192: 119 | P192: NC | Q192: 18 | R192: 49 | S192: 31 | T192: 29 | U192: 303 | V192: 87 | W192: 179 | X192: 569 | Y192: 45 | Z192: 25 | AA192: 271 | AB192: 97 | AC192: 119 | AD192: 340 | AE192: 301 | AF192: 113 | AG192: NC | AH192: 16 | AI192: 43 | AJ192: 25 | AK192: 29
A193: Commune | B193: 14272 | C193: La Folie | D193: 2 | E193: 1 | F193: 2 | G193: 5 | H193: 0 | I193: 0 | J193: 2 | K193: 1 | L193: 2 | M193: 3 | N193: 2 | O193: 1 | P193: NC | Q193: 0 | R193: 1 | S193: 0 | T193: 0 | U193: 5 | V193: 3 | W193: 1 | X193: 9 | Y193: 0 | Z193: 1 | AA193: 4 | AB193: 1 | AC193: 0 | AD193: 6 | AE193: 6 | AF193: 1 | AG193: NC | AH193: 0 | AI193: 1 | AJ193: 0 | AK193: 0
A194: Commune | B194: 14273 | C194: La Folletière-Abenon | D194: 4 | E194: 1 | F194: 4 | G194: 9 | H194: 0 | I194: 0 | J194: 4 | K194: 2 | L194: 5 | M194: 7 | N194: 5 | O194: 2 | P194: NC | Q194: 0 | R194: 0 | S194: 1 | T194: 1 | U194: 5 | V194: 0 | W194: 1 | X194: 6 | Y194: 0 | Z194: 0 | AA194: 2 | AB194: 0 | AC194: 3 | AD194: 3 | AE194: 5 | AF194: 3 | AG194: NC | AH194: 0 | AI194: 0 | AJ194: 0 | AK194: 0
A195: Commune | B195: 14274 | C195: Fontaine-Étoupefour | D195: 52 | E195: 27 | F195: 68 | G195: 147 | H195: 14 | I195: 14 | J195: 86 | K195: 30 | L195: 31 | M195: 115 | N195: 44 | O195: 4 | P195: NC | Q195: 0 | R195: 2 | S195: 13 | T195: 15 | U195: 57 | V195: 27 | W195: 62 | X195: 146 | Y195: 14 | Z195: 15 | AA195: 91 | AB195: 25 | AC195: 36 | AD195: 114 | AE195: 35 | AF195: 2 | AG195: NC | AH195: 0 | AI195: 3 | AJ195: 6 | AK195: 16
A196: Commune | B196: 14275 | C196: Fontaine-Henry | D196: 10 | E196: 6 | F196: 12 | G196: 28 | H196: 1 | I196: 3 | J196: 13 | K196: 0 | L196: 10 | M196: 23 | N196: 14 | O196: 2 | P196: NC | Q196: 0 | R196: 0 | S196: 0 | T196: 0 | U196: 13 | V196: 4 | W196: 12 | X196: 29 | Y196: 4 | Z196: 1 | AA196: 12 | AB196: 5 | AC196: 9 | AD196: 22 | AE196: 13 | AF196: 3 | AG196: NC | AH196: 0 | AI196: 0 | AJ196: 2 | AK196: 3
A197: Commune | B197: 14276 | C197: Fontaine-le-Pin | D197: 15 | E197: 0 | F197: 5 | G197: 20 | H197: 2 | I197: 1 | J197: 12 | K197: 5 | L197: 5 | M197: 14 | N197: 7 | O197: 3 | P197: NC | Q197: 0 | R197: 2 | S197: 3 | T197: 0 | U197: 14 | V197: 4 | W197: 5 | X197: 23 | Y197: 0 | Z197: 2 | AA197: 12 | AB197: 4 | AC197: 8 | AD197: 14 | AE197: 10 | AF197: 3 | AG197: NC | AH197: 0 | AI197: 1 | AJ197: 3 | AK197: 0
A198: Commune | B198: 14277 | C198: Fontenay-le-Marmion | D198: 54 | E198: 25 | F198: 45 | G198: 124 | H198: 8 | I198: 13 | J198: 66 | K198: 23 | L198: 29 | M198: 93 | N198: 64 | O198: 5 | P198: NC | Q198: 0 | R198: 11 | S198: 8 | T198: 4 | U198: 60 | V198: 17 | W198: 52 | X198: 129 | Y198: 11 | Z198: 11 | AA198: 63 | AB198: 19 | AC198: 35 | AD198: 98 | AE198: 59 | AF198: 7 | AG198: NC | AH198: 0 | AI198: 9 | AJ198: 7 | AK198: 3
A199: Commune | B199: 14278 | C199: Fontenay-le-Pesnel | D199: 14 | E199: 7 | F199: 32 | G199: 53 | H199: 9 | I199: 10 | J199: 30 | K199: 9 | L199: 10 | M199: 42 | N199: 15 | O199: 1 | P199: NC | Q199: 0 | R199: 3 | S199: 1 | T199: 5 | U199: 19 | V199: 9 | W199: 22 | X199: 50 | Y199: 8 | Z199: 9 | AA199: 24 | AB199: 8 | AC199: 10 | AD199: 41 | AE199: 15 | AF199: 1 | AG199: NC | AH199: 0 | AI199: 3 | AJ199: 1 | AK199: 4
A200: Commune | B200: 14280 | C200: Formentin | D200: 4 | E200: 3 | F200: 3 | G200: 10 | H200: 1 | I200: 0 | J200: 6 | K200: 0 | L200: 3 | M200: 9 | N200: 3 | O200: 0 | P200: NC | Q200: 0 | R200: 0 | S200: 0 | T200: 0 | U200: 5 | V200: 4 | W200: 5 | X200: 14 | Y200: 0 | Z200: 0 | AA200: 11 | AB200: 1 | AC200: 6 | AD200: 9 | AE200: 5 | AF200: 2 | AG200: NC | AH200: 0 | AI200: 1 | AJ200: 0 | AK200: 0
... 2452 more rows

Sheet export_top5_defm (hidden)
A1: type | B1: code | C1: n | D1: cle_rome | E1: ROME | F1: tot_rome
A2: Commune | B2: 14001 | C2: 1 | D2: Commune140011 | E2: K1303 | F2: 5
A3: Commune | B3: 14001 | C3: 2 | D3: Commune140012 | E3: A1203 | F3: 3
A4: Commune | B4: 14001 | C4: 3 | D4: Commune140013 | E4: C1504 | F4: 2
A5: Commune | B5: 14001 | C5: 4 | D5: Commune140014 | E5: D1211 | F5: 2
A6: Commune | B6: 14001 | C6: 5 | D6: Commune140015 | E6: D1507 | F6: 2
A7: Commune | B7: 14003 | C7: 1 | D7: Commune140031 | E7: A1414 | F7: 1
A8: Commune | B8: 14003 | C8: 2 | D8: Commune140032 | E8: A1416 | F8: 1
A9: Commune | B9: 14003 | C9: 3 | D9: Commune140033 | E9: D1208 | F9: 1
A10: Commune | B10: 14003 | C10: 4 | D10: Commune140034 | E10: K1104 | F10: 1
A11: Commune | B11: 14003 | C11: 5 | D11: Commune140035 | E11: K2111 | F11: 1
A12: Commune | B12: 14005 | C12: 1 | D12: Commune140051 | E12: K1303 | F12: 5
A13: Commune | B13: 14005 | C13: 2 | D13: Commune140052 | E13: H3302 | F13: 4
A14: Commune | B14: 14005 | C14: 3 | D14: Commune140053 | E14: A1414 | F14: 3
A15: Commune | B15: 14005 | C15: 4 | D15: Commune140054 | E15: K2111 | F15: 3
A16: Commune | B16: 14005 | C16: 5 | D16: Commune140055 | E16: L1202 | F16: 3
A17: Commune | B17: 14006 | C17: 1 | D17: Commune140061 | E17: K1304 | F17: 3
A18: Commune | B18: 14006 | C18: 2 | D18: Commune140062 | E18: N1103 | F18: 3
A19: Commune | B19: 14006 | C19: 3 | D19: Commune140063 | E19: A1203 | F19: 2
A20: Commune | B20: 14006 | C20: 4 | D20: Commune140064 | E20: D1211 | F20: 2
A21: Commune | B21: 14006 | C21: 5 | D21: Commune140065 | E21: D1402 | F21: 2
A22: Commune | B22: 14007 | C22: 1 | D22: Commune140071 | E22: A1202 | F22: 1
A23: Commune | B23: 14007 | C23: 2 | D23: Commune140072 | E23: F1101 | F23: 1
A24: Commune | B24: 14007 | C24: 3 | D24: Commune140073 | E24: F1701 | F24: 1
A25: Commune | B25: 14007 | C25: 4 | D25: Commune140074 | E25: G1207 | F25: 1
A26: Commune | B26: 14007 | C26: 5 | D26: Commune140075 | E26: M1601 | F26: 1
A27: Commune | B27: 14009 | C27: 1 | D27: Commune140091 | E27: K1303 | F27: 8
A28: Commune | B28: 14009 | C28: 2 | D28: Commune140092 | E28: A1203 | F28: 4
A29: Commune | B29: 14009 | C29: 3 | D29: Commune140093 | E29: G1204 | F29: 3
A30: Commune | B30: 14009 | C30: 4 | D30: Commune140094 | E30: M1607 | F30: 3
A31: Commune | B31: 14009 | C31: 5 | D31: Commune140095 | E31: D1401 | F31: 2
A32: Commune | B32: 14011 | C32: 1 | D32: Commune140111 | E32: K1303 | F32: 10
A33: Commune | B33: 14011 | C33: 2 | D33: Commune140112 | E33: N4101 | F33: 5
A34: Commune | B34: 14011 | C34: 3 | D34: Commune140113 | E34: M1601 | F34: 4
A35: Commune | B35: 14011 | C35: 4 | D35: Commune140114 | E35: H3302 | F35: 3
A36: Commune | B36: 14011 | C36: 5 | D36: Commune140115 | E36: M1602 | F36: 3
A37: Commune | B37: 14012 | C37: 1 | D37: Commune140121 | E37: D1507 | F37: 2
A38: Commune | B38: 14012 | C38: 2 | D38: Commune140122 | E38: K2503 | F38: 2
A39: Commune | B39: 14012 | C39: 3 | D39: Commune140123 | E39: B1805 | F39: 1
A40: Commune | B40: 14012 | C40: 4 | D40: Commune140124 | E40: D1402 | F40: 1
A41: Commune | B41: 14012 | C41: 5 | D41: Commune140125 | E41: D1404 | F41: 1
A42: Commune | B42: 14014 | C42: 1 | D42: Commune140141 | E42: K1303 | F42: 3
A43: Commune | B43: 14014 | C43: 2 | D43: Commune140142 | E43: D1214 | F43: 2
A44: Commune | B44: 14014 | C44: 3 | D44: Commune140143 | E44: H3203 | F44: 2
A45: Commune | B45: 14014 | C45: 4 | D45: Commune140144 | E45: M1604 | F45: 2
A46: Commune | B46: 14014 | C46: 5 | D46: Commune140145 | E46: M1803 | F46: 2
A47: Commune | B47: 14015 | C47: 1 | D47: Commune140151 | E47: A1303 | F47: 2
A48: Commune | B48: 14015 | C48: 2 | D48: Commune140152 | E48: H2102 | F48: 2
A49: Commune | B49: 14015 | C49: 3 | D49: Commune140153 | E49: D1103 | F49: 1
A50: Commune | B50: 14015 | C50: 4 | D50: Commune140154 | E50: D1104 | F50: 1
A51: Commune | B51: 14015 | C51: 5 | D51: Commune140155 | E51: D1401 | F51: 1
A52: Commune | B52: 14016 | C52: 1 | D52: Commune140161 | E52: K1303 | F52: 7
A53: Commune | B53: 14016 | C53: 2 | D53: Commune140162 | E53: D1214 | F53: 2
A54: Commune | B54: 14016 | C54: 3 | D54: Commune140163 | E54: G1803 | F54: 2
A55: Commune | B55: 14016 | C55: 4 | D55: Commune140164 | E55: K1304 | F55: 2
A56: Commune | B56: 14016 | C56: 5 | D56: Commune140165 | E56: D1403 | F56: 1
A57: Commune | B57: 14019 | C57: 1 | D57: Commune140191 | E57: A1203 | F57: 1
A58: Commune | B58: 14019 | C58: 2 | D58: Commune140192 | E58: A1501 | F58: 1
A59: Commune | B59: 14019 | C59: 3 | D59: Commune140193 | E59: D1505 | F59: 1
A60: Commune | B60: 14019 | C60: 4 | D60: Commune140194 | E60: D1507 | F60: 1
A61: Commune | B61: 14019 | C61: 5 | D61: Commune140195 | E61: G1605 | F61: 1
A62: Commune | B62: 14020 | C62: 1 | D62: Commune140201 | E62: K1303 | F62: 26
A63: Commune | B63: 14020 | C63: 2 | D63: Commune140202 | E63: M1602 | F63: 11
A64: Commune | B64: 14020 | C64: 3 | D64: Commune140203 | E64: K1304 | F64: 10
A65: Commune | B65: 14020 | C65: 4 | D65: Commune140204 | E65: M1607 | F65: 10
A66: Commune | B66: 14020 | C66: 5 | D66: Commune140205 | E66: K2204 | F66: 9
A67: Commune | B67: 14021 | C67: 1 | D67: Commune140211 | E67: G1601 | F67: 3
A68: Commune | B68: 14021 | C68: 2 | D68: Commune140212 | E68: A1203 | F68: 2
A69: Commune | B69: 14021 | C69: 3 | D69: Commune140213 | E69: F1603 | F69: 2
A70: Commune | B70: 14021 | C70: 4 | D70: Commune140214 | E70: G1201 | F70: 2
A71: Commune | B71: 14021 | C71: 5 | D71: Commune140215 | E71: G1501 | F71: 2
A72: Commune | B72: 14022 | C72: 1 | D72: Commune140221 | E72: D1106 | F72: 3
A73: Commune | B73: 14022 | C73: 2 | D73: Commune140222 | E73: K2204 | F73: 3
A74: Commune | B74: 14022 | C74: 3 | D74: Commune140223 | E74: F1603 | F74: 2
A75: Commune | B75: 14022 | C75: 4 | D75: Commune140224 | E75: G1605 | F75: 2
A76: Commune | B76: 14022 | C76: 5 | D76: Commune140225 | E76: A1203 | F76: 1
A77: Commune | B77: 14023 | C77: 1 | D77: Commune140231 | E77: A1416 | F77: 1
A78: Commune | B78: 14023 | C78: 2 | D78: Commune140232 | E78: H1503 | F78: 1
A79: Commune | B79: 14023 | C79: 3 | D79: Commune140233 | E79: M1601 | F79: 1
A80: Commune | B80: 14024 | C80: 1 | D80: Commune140241 | E80: K1303 | F80: 4
A81: Commune | B81: 14024 | C81: 2 | D81: Commune140242 | E81: M1607 | F81: 4
A82: Commune | B82: 14024 | C82: 3 | D82: Commune140243 | E82: D1214 | F82: 3
A83: Commune | B83: 14024 | C83: 4 | D83: Commune140244 | E83: G1803 | F83: 3
A84: Commune | B84: 14024 | C84: 5 | D84: Commune140245 | E84: C1504 | F84: 2
A85: Commune | B85: 14025 | C85: 1 | D85: Commune140251 | E85: A1203 | F85: 1
A86: Commune | B86: 14025 | C86: 2 | D86: Commune140252 | E86: D1103 | F86: 1
A87: Commune | B87: 14025 | C87: 3 | D87: Commune140253 | E87: D1507 | F87: 1
A88: Commune | B88: 14025 | C88: 4 | D88: Commune140254 | E88: G1605 | F88: 1
A89: Commune | B89: 14025 | C89: 5 | D89: Commune140255 | E89: G1803 | F89: 1
A90: Commune | B90: 14026 | C90: 1 | D90: Commune140261 | E90: K1303 | F90: 8
A91: Commune | B91: 14026 | C91: 2 | D91: Commune140262 | E91: J1501 | F91: 2
A92: Commune | B92: 14026 | C92: 3 | D92: Commune140263 | E92: K2503 | F92: 2
A93: Commune | B93: 14026 | C93: 4 | D93: Commune140264 | E93: M1605 | F93: 2
A94: Commune | B94: 14026 | C94: 5 | D94: Commune140265 | E94: A1414 | F94: 1
A95: Commune | B95: 14027 | C95: 1 | D95: Commune140271 | E95: K1303 | F95: 32
A96: Commune | B96: 14027 | C96: 2 | D96: Commune140272 | E96: K2204 | F96: 14
A97: Commune | B97: 14027 | C97: 3 | D97: Commune140273 | E97: J1301 | F97: 13
A98: Commune | B98: 14027 | C98: 4 | D98: Commune140274 | E98: K1304 | F98: 12
A99: Commune | B99: 14027 | C99: 5 | D99: Commune140275 | E99: D1507 | F99: 10
A100: Commune | B100: 14030 | C100: 1 | D100: Commune140301 | E100: K1303 | F100: 5
A101: Commune | B101: 14030 | C101: 2 | D101: Commune140302 | E101: N4101 | F101: 3
A102: Commune | B102: 14030 | C102: 3 | D102: Commune140303 | E102: D1211 | F102: 2
A103: Commune | B103: 14030 | C103: 4 | D103: Commune140304 | E103: D1401 | F103: 2
A104: Commune | B104: 14030 | C104: 5 | D104: Commune140305 | E104: D1407 | F104: 2
A105: Commune | B105: 14032 | C105: 1 | D105: Commune140321 | E105: A1416 | F105: 2
A106: Commune | B106: 14032 | C106: 2 | D106: Commune140322 | E106: D1408 | F106: 2
A107: Commune | B107: 14032 | C107: 3 | D107: Commune140323 | E107: A1501 | F107: 1
A108: Commune | B108: 14032 | C108: 4 | D108: Commune140324 | E108: D1301 | F108: 1
A109: Commune | B109: 14032 | C109: 5 | D109: Commune140325 | E109: F1201 | F109: 1
A110: Commune | B110: 14033 | C110: 1 | D110: Commune140331 | E110: H3302 | F110: 2
A111: Commune | B111: 14033 | C111: 2 | D111: Commune140332 | E111: A1203 | F111: 1
A112: Commune | B112: 14033 | C112: 3 | D112: Commune140333 | E112: D1402 | F112: 1
A113: Commune | B113: 14033 | C113: 4 | D113: Commune140334 | E113: F1301 | F113: 1
A114: Commune | B114: 14033 | C114: 5 | D114: Commune140335 | E114: K1204 | F114: 1
A115: Commune | B115: 14034 | C115: 1 | D115: Commune140341 | E115: K1303 | F115: 3
A116: Commune | B116: 14034 | C116: 2 | D116: Commune140342 | E116: M1203 | F116: 2
A117: Commune | B117: 14034 | C117: 3 | D117: Commune140343 | E117: C1102 | F117: 1
A118: Commune | B118: 14034 | C118: 4 | D118: Commune140344 | E118: D1212 | F118: 1
A119: Commune | B119: 14034 | C119: 5 | D119: Commune140345 | E119: D1214 | F119: 1
A120: Commune | B120: 14035 | C120: 1 | D120: Commune140351 | E120: K1303 | F120: 6
A121: Commune | B121: 14035 | C121: 2 | D121: Commune140352 | E121: D1505 | F121: 4
A122: Commune | B122: 14035 | C122: 3 | D122: Commune140353 | E122: K1304 | F122: 4
A123: Commune | B123: 14035 | C123: 4 | D123: Commune140354 | E123: G1605 | F123: 3
A124: Commune | B124: 14035 | C124: 5 | D124: Commune140355 | E124: G1803 | F124: 3
A125: Commune | B125: 14036 | C125: 1 | D125: Commune140361 | E125: G1603 | F125: 2
A126: Commune | B126: 14036 | C126: 2 | D126: Commune140362 | E126: D1211 | F126: 1
A127: Commune | B127: 14036 | C127: 3 | D127: Commune140363 | E127: D1214 | F127: 1
A128: Commune | B128: 14036 | C128: 4 | D128: Commune140364 | E128: D1401 | F128: 1
A129: Commune | B129: 14036 | C129: 5 | D129: Commune140365 | E129: D1408 | F129: 1
A130: Commune | B130: 14037 | C130: 1 | D130: Commune140371 | E130: K1303 | F130: 4
A131: Commune | B131: 14037 | C131: 2 | D131: Commune140372 | E131: J1501 | F131: 3
A132: Commune | B132: 14037 | C132: 3 | D132: Commune140373 | E132: K1302 | F132: 2
A133: Commune | B133: 14037 | C133: 4 | D133: Commune140374 | E133: K2204 | F133: 2
A134: Commune | B134: 14037 | C134: 5 | D134: Commune140375 | E134: A1203 | F134: 1
A135: Commune | B135: 14038 | C135: 1 | D135: Commune140381 | E135: K1303 | F135: 3
A136: Commune | B136: 14038 | C136: 2 | D136: Commune140382 | E136: A1203 | F136: 2
A137: Commune | B137: 14038 | C137: 3 | D137: Commune140383 | E137: D1214 | F137: 2
A138: Commune | B138: 14038 | C138: 4 | D138: Commune140384 | E138: M1601 | F138: 2
A139: Commune | B139: 14038 | C139: 5 | D139: Commune140385 | E139: N4105 | F139: 2
A140: Commune | B140: 14039 | C140: 1 | D140: Commune140391 | E140: M1203 | F140: 4
A141: Commune | B141: 14039 | C141: 2 | D141: Commune140392 | E141: K1303 | F141: 3
A142: Commune | B142: 14039 | C142: 3 | D142: Commune140393 | E142: K1304 | F142: 3
A143: Commune | B143: 14039 | C143: 4 | D143: Commune140394 | E143: K2104 | F143: 3
A144: Commune | B144: 14039 | C144: 5 | D144: Commune140395 | E144: M1607 | F144: 3
A145: Commune | B145: 14040 | C145: 1 | D145: Commune140401 | E145: A1301 | F145: 1
A146: Commune | B146: 14040 | C146: 2 | D146: Commune140402 | E146: G1204 | F146: 1
A147: Commune | B147: 14040 | C147: 3 | D147: Commune140403 | E147: G1603 | F147: 1
A148: Commune | B148: 14040 | C148: 4 | D148: Commune140404 | E148: H2401 | F148: 1
A149: Commune | B149: 14040 | C149: 5 | D149: Commune140405 | E149: K1303 | F149: 1
A150: Commune | B150: 14041 | C150: 1 | D150: Commune140411 | E150: K2204 | F150: 2
A151: Commune | B151: 14041 | C151: 2 | D151: Commune140412 | E151: G1403 | F151: 1
A152: Commune | B152: 14041 | C152: 3 | D152: Commune140413 | E152: G1502 | F152: 1
A153: Commune | B153: 14041 | C153: 4 | D153: Commune140414 | E153: K2106 | F153: 1
A154: Commune | B154: 14041 | C154: 5 | D154: Commune140415 | E154: N1105 | F154: 1
A155: Commune | B155: 14042 | C155: 1 | D155: Commune140421 | E155: M1607 | F155: 3
A156: Commune | B156: 14042 | C156: 2 | D156: Commune140422 | E156: D1402 | F156: 2
A157: Commune | B157: 14042 | C157: 3 | D157: Commune140423 | E157: J1501 | F157: 2
A158: Commune | B158: 14042 | C158: 4 | D158: Commune140424 | E158: K1303 | F158: 2
A159: Commune | B159: 14042 | C159: 5 | D159: Commune140425 | E159: K2204 | F159: 2
A160: Commune | B160: 14043 | C160: 1 | D160: Commune140431 | E160: H3302 | F160: 2
A161: Commune | B161: 14043 | C161: 2 | D161: Commune140432 | E161: K1303 | F161: 2
A162: Commune | B162: 14043 | C162: 3 | D162: Commune140433 | E162: D1507 | F162: 1
A163: Commune | B163: 14043 | C163: 4 | D163: Commune140434 | E163: G1202 | F163: 1
A164: Commune | B164: 14043 | C164: 5 | D164: Commune140435 | E164: K1207 | F164: 0
A165: Commune | B165: 14044 | C165: 1 | D165: Commune140441 | E165: K1303 | F165: 4
A166: Commune | B166: 14044 | C166: 2 | D166: Commune140442 | E166: M1602 | F166: 4
A167: Commune | B167: 14044 | C167: 3 | D167: Commune140443 | E167: M1604 | F167: 3
A168: Commune | B168: 14044 | C168: 4 | D168: Commune140444 | E168: H2206 | F168: 2
A169: Commune | B169: 14044 | C169: 5 | D169: Commune140445 | E169: A1402 | F169: 1
A170: Commune | B170: 14045 | C170: 1 | D170: Commune140451 | E170: K1303 | F170: 2
A171: Commune | B171: 14045 | C171: 2 | D171: Commune140452 | E171: D1402 | F171: 1
A172: Commune | B172: 14045 | C172: 3 | D172: Commune140453 | E172: F1108 | F172: 1
A173: Commune | B173: 14045 | C173: 4 | D173: Commune140454 | E173: G1605 | F173: 1
A174: Commune | B174: 14045 | C174: 5 | D174: Commune140455 | E174: G1701 | F174: 1
A175: Commune | B175: 14046 | C175: 1 | D175: Commune140461 | E175: K1303 | F175: 8
A176: Commune | B176: 14046 | C176: 2 | D176: Commune140462 | E176: K2204 | F176: 6
A177: Commune | B177: 14046 | C177: 3 | D177: Commune140463 | E177: D1214 | F177: 5
A178: Commune | B178: 14046 | C178: 4 | D178: Commune140464 | E178: D1507 | F178: 4
A179: Commune | B179: 14046 | C179: 5 | D179: Commune140465 | E179: K1304 | F179: 4
A180: Commune | B180: 14047 | C180: 1 | D180: Commune140471 | E180: K2204 | F180: 46
A181: Commune | B181: 14047 | C181: 2 | D181: Commune140472 | E181: A1203 | F181: 45
A182: Commune | B182: 14047 | C182: 3 | D182: Commune140473 | E182: K1303 | F182: 45
A183: Commune | B183: 14047 | C183: 4 | D183: Commune140474 | E183: D1507 | F183: 27
A184: Commune | B184: 14047 | C184: 5 | D184: Commune140475 | E184: G1803 | F184: 25
A185: Commune | B185: 14049 | C185: 1 | D185: Commune140491 | E185: D1214 | F185: 1
A186: Commune | B186: 14049 | C186: 2 | D186: Commune140492 | E186: D1506 | F186: 1
A187: Commune | B187: 14049 | C187: 3 | D187: Commune140493 | E187: D1507 | F187: 1
A188: Commune | B188: 14049 | C188: 4 | D188: Commune140494 | E188: E1104 | F188: 1
A189: Commune | B189: 14049 | C189: 5 | D189: Commune140495 | E189: F1106 | F189: 1
A190: Commune | B190: 14050 | C190: 1 | D190: Commune140501 | E190: F1202 | F190: 2
A191: Commune | B191: 14050 | C191: 2 | D191: Commune140502 | E191: K1302 | F191: 2
A192: Commune | B192: 14050 | C192: 3 | D192: Commune140503 | E192: A1202 | F192: 1
A193: Commune | B193: 14050 | C193: 4 | D193: Commune140504 | E193: A1407 | F193: 1
A194: Commune | B194: 14050 | C194: 5 | D194: Commune140505 | E194: A1416 | F194: 1
A195: Commune | B195: 14053 | C195: 1 | D195: Commune140531 | E195: D1505 | F195: 2
A196: Commune | B196: 14053 | C196: 2 | D196: Commune140532 | E196: K1303 | F196: 2
A197: Commune | B197: 14053 | C197: 3 | D197: Commune140533 | E197: D1208 | F197: 1
A198: Commune | B198: 14053 | C198: 4 | D198: Commune140534 | E198: D1502 | F198: 1
A199: Commune | B199: 14053 | C199: 5 | D199: Commune140535 | E199: F1302 | F199: 1
A200: Commune | B200: 14054 | C200: 1 | D200: Commune140541 | E200: D1502 | F200: 1
... 12949 more rows

Sheet export_aco3 (hidden)
A1: type | B1: code | C1: libelle | D1: aco3_a | E1: detld_a
A2: Commune | B2: 14001 | C2: Ablon | D2: 5 | E2: 1
A3: Commune | B3: 14003 | C3: Agy | D3: 1 | E3: 0
A4: Commune | B4: 14005 | C4: Valambray | D4: 9 | E4: 3
A5: Commune | B5: 14006 | C5: Amayé-sur-Orne | D5: 6 | E5: 4
A6: Commune | B6: 14007 | C6: Amayé-sur-Seulles | D6: 0 | E6: 0
A7: Commune | B7: 14009 | C7: Amfreville | D7: 10 | E7: 5
A8: Commune | B8: 14011 | C8: Aurseulles | D8: 14 | E8: 4
A9: Commune | B9: 14012 | C9: Angerville | D9: 0 | E9: 0
A10: Commune | B10: 14014 | C10: Colomby-Anguerny | D10: 7 | E10: 2
A11: Commune | B11: 14015 | C11: Anisy | D11: 5 | E11: 1
A12: Commune | B12: 14016 | C12: Annebault | D12: 2 | E12: 0
A13: Commune | B13: 14019 | C13: Arganchy | D13: 1 | E13: 1
A14: Commune | B14: 14020 | C14: Argences | D14: 42 | E14: 19
A15: Commune | B15: 14021 | C15: Arromanches-les-Bains | D15: 3 | E15: 0
A16: Commune | B16: 14022 | C16: Asnelles | D16: 4 | E16: 0
A17: Commune | B17: 14023 | C17: Asnières-en-Bessin | D17: 2 | E17: 2
A18: Commune | B18: 14024 | C18: Auberville | D18: 3 | E18: 3
A19: Commune | B19: 14025 | C19: Aubigny | D19: 4 | E19: 2
A20: Commune | B20: 14026 | C20: Audrieu | D20: 13 | E20: 5
A21: Commune | B21: 14027 | C21: Les Monts d'Aunay | D21: 51 | E21: 24
A22: Commune | B22: 14030 | C22: Authie | D22: 13 | E22: 6
A23: Commune | B23: 14032 | C23: Les Authieux-sur-Calonne | D23: 2 | E23: 0
A24: Commune | B24: 14033 | C24: Auvillars | D24: 2 | E24: 2
A25: Commune | B25: 14034 | C25: Avenay | D25: 5 | E25: 3
A26: Commune | B26: 14035 | C26: Balleroy-sur-Drôme | D26: 14 | E26: 4
A27: Commune | B27: 14036 | C27: Banneville-la-Campagne | D27: 0 | E27: 0
A28: Commune | B28: 14037 | C28: Malherbe-sur-Ajon | D28: 2 | E28: 1
A29: Commune | B29: 14038 | C29: Banville | D29: 3 | E29: 1
A30: Commune | B30: 14039 | C30: Barbery | D30: 3 | E30: 2
A31: Commune | B31: 14040 | C31: Barbeville | D31: 0 | E31: 0
A32: Commune | B32: 14041 | C32: Barneville-la-Bertran | D32: 0 | E32: 0
A33: Commune | B33: 14042 | C33: Baron-sur-Odon | D33: 6 | E33: 2
A34: Commune | B34: 14043 | C34: Barou-en-Auge | D34: 0 | E34: 0
A35: Commune | B35: 14044 | C35: Basly | D35: 5 | E35: 2
A36: Commune | B36: 14045 | C36: Basseneville | D36: 1 | E36: 0
A37: Commune | B37: 14046 | C37: Bavent | D37: 20 | E37: 9
A38: Commune | B38: 14047 | C38: Bayeux | D38: 179 | E38: 75
A39: Commune | B39: 14049 | C39: Bazenville | D39: 1 | E39: 0
A40: Commune | B40: 14050 | C40: La Bazoque | D40: 0 | E40: 0
A41: Commune | B41: 14053 | C41: Beaumais | D41: 1 | E41: 0
A42: Commune | B42: 14054 | C42: Beaumesnil | D42: 4 | E42: 2
A43: Commune | B43: 14055 | C43: Beaumont-en-Auge | D43: 2 | E43: 0
A44: Commune | B44: 14057 | C44: Bellengreville | D44: 13 | E44: 6
A45: Commune | B45: 14059 | C45: Benerville-sur-Mer | D45: 5 | E45: 3
A46: Commune | B46: 14060 | C46: Bénouville | D46: 15 | E46: 6
A47: Commune | B47: 14061 | C47: Souleuvre-en-Bocage | D47: 74 | E47: 30
A48: Commune | B48: 14062 | C48: Bény-sur-Mer | D48: 3 | E48: 1
A49: Commune | B49: 14063 | C49: Bernesq | D49: 5 | E49: 1
A50: Commune | B50: 14064 | C50: Bernières-d'Ailly | D50: 1 | E50: 0
A51: Commune | B51: 14066 | C51: Bernières-sur-Mer | D51: 21 | E51: 5
A52: Commune | B52: 14068 | C52: Biéville-Beuville | D52: 25 | E52: 7
A53: Commune | B53: 14069 | C53: Beuvillers | D53: 6 | E53: 5
A54: Commune | B54: 14070 | C54: Beuvron-en-Auge | D54: 1 | E54: 1
A55: Commune | B55: 14076 | C55: Blainville-sur-Orne | D55: 80 | E55: 32
A56: Commune | B56: 14077 | C56: Blangy-le-Château | D56: 4 | E56: 3
A57: Commune | B57: 14078 | C57: Blay | D57: 1 | E57: 1
A58: Commune | B58: 14079 | C58: Blonville-sur-Mer | D58: 16 | E58: 7
A59: Commune | B59: 14080 | C59: Le Bô | D59: 1 | E59: 1
A60: Commune | B60: 14082 | C60: La Boissière | D60: 0 | E60: 0
A61: Commune | B61: 14083 | C61: Bonnebosq | D61: 7 | E61: 2
A62: Commune | B62: 14084 | C62: Bonnemaison | D62: 3 | E62: 1
A63: Commune | B63: 14085 | C63: Bonneville-la-Louvet | D63: 9 | E63: 5
A64: Commune | B64: 14086 | C64: Bonneville-sur-Touques | D64: 5 | E64: 2
A65: Commune | B65: 14087 | C65: Bonnoeil | D65: 1 | E65: 0
A66: Commune | B66: 14088 | C66: Bons-Tassilly | D66: 2 | E66: 1
A67: Commune | B67: 14089 | C67: Bougy | D67: 4 | E67: 3
A68: Commune | B68: 14090 | C68: Boulon | D68: 4 | E68: 1
A69: Commune | B69: 14091 | C69: Bourgeauville | D69: 2 | E69: 1
A70: Commune | B70: 14092 | C70: Bourguébus | D70: 13 | E70: 6
A71: Commune | B71: 14093 | C71: Branville | D71: 2 | E71: 0
A72: Commune | B72: 14096 | C72: Brémoy | D72: 1 | E72: 1
A73: Commune | B73: 14097 | C73: Bretteville-le-Rabet | D73: 1 | E73: 0
A74: Commune | B74: 14098 | C74: Thue et Mue | D74: 37 | E74: 13
A75: Commune | B75: 14100 | C75: Bretteville-sur-Laize | D75: 10 | E75: 5
A76: Commune | B76: 14101 | C76: Bretteville-sur-Odon | D76: 53 | E76: 28
A77: Commune | B77: 14102 | C77: Le Breuil-en-Auge | D77: 2 | E77: 1
A78: Commune | B78: 14103 | C78: Le Breuil-en-Bessin | D78: 3 | E78: 0
A79: Commune | B79: 14104 | C79: Le Brévedent | D79: 3 | E79: 1
A80: Commune | B80: 14106 | C80: Bréville-les-Monts | D80: 5 | E80: 1
A81: Commune | B81: 14107 | C81: Bricqueville | D81: 1 | E81: 1
A82: Commune | B82: 14110 | C82: Brucourt | D82: 2 | E82: 1
A83: Commune | B83: 14111 | C83: Bucéels | D83: 2 | E83: 0
A84: Commune | B84: 14116 | C84: Le Bû-sur-Rouvres | D84: 2 | E84: 1
A85: Commune | B85: 14117 | C85: Cabourg | D85: 47 | E85: 26
A86: Commune | B86: 14118 | C86: Caen | D86: 2198 | E86: 1066
A87: Commune | B87: 14119 | C87: Cagny | D87: 20 | E87: 11
A88: Commune | B88: 14120 | C88: Cahagnes | D88: 11 | E88: 5
A89: Commune | B89: 14121 | C89: Cahagnolles | D89: 1 | E89: 1
A90: Commune | B90: 14122 | C90: La Caine | D90: 1 | E90: 0
A91: Commune | B91: 14123 | C91: Cairon | D91: 12 | E91: 6
A92: Commune | B92: 14124 | C92: La Cambe | D92: 1 | E92: 1
A93: Commune | B93: 14125 | C93: Cambes-en-Plaine | D93: 17 | E93: 5
A94: Commune | B94: 14126 | C94: Cambremer | D94: 8 | E94: 4
A95: Commune | B95: 14127 | C95: Campagnolles | D95: 4 | E95: 1
A96: Commune | B96: 14130 | C96: Campigny | D96: 0 | E96: 0
A97: Commune | B97: 14131 | C97: Canapville | D97: 2 | E97: 0
A98: Commune | B98: 14132 | C98: Canchy | D98: 0 | E98: 0
A99: Commune | B99: 14134 | C99: Canteloup | D99: 1 | E99: 1
A100: Commune | B100: 14135 | C100: Carcagny | D100: 2 | E100: 2
A101: Commune | B101: 14136 | C101: Cardonville | D101: 0 | E101: 0
A102: Commune | B102: 14137 | C102: Carpiquet | D102: 44 | E102: 17
A103: Commune | B103: 14138 | C103: Cartigny-l'Épinay | D103: 2 | E103: 1
A104: Commune | B104: 14140 | C104: Castillon | D104: 0 | E104: 0
A105: Commune | B105: 14141 | C105: Castillon-en-Auge | D105: 3 | E105: 1
A106: Commune | B106: 14143 | C106: Caumont-sur-Aure | D106: 27 | E106: 17
A107: Commune | B107: 14145 | C107: Cauvicourt | D107: 2 | E107: 0
A108: Commune | B108: 14146 | C108: Cauville | D108: 3 | E108: 1
A109: Commune | B109: 14147 | C109: Cernay | D109: 0 | E109: 0
A110: Commune | B110: 14149 | C110: Cesny-aux-Vignes | D110: 3 | E110: 1
A111: Commune | B111: 14150 | C111: Cesny-les-Sources | D111: 12 | E111: 8
A112: Commune | B112: 14159 | C112: Chouain | D112: 0 | E112: 0
A113: Commune | B113: 14160 | C113: Cintheaux | D113: 0 | E113: 0
A114: Commune | B114: 14161 | C114: Clarbec | D114: 1 | E114: 0
A115: Commune | B115: 14162 | C115: Clécy | D115: 15 | E115: 6
A116: Commune | B116: 14163 | C116: Cléville | D116: 4 | E116: 0
A117: Commune | B117: 14165 | C117: Colleville-sur-Mer | D117: 8 | E117: 3
A118: Commune | B118: 14166 | C118: Colleville-Montgomery | D118: 26 | E118: 11
A119: Commune | B119: 14167 | C119: Colombelles | D119: 146 | E119: 67
A120: Commune | B120: 14168 | C120: Colombières | D120: 3 | E120: 1
A121: Commune | B121: 14169 | C121: Colombiers-sur-Seulles | D121: 4 | E121: 2
A122: Commune | B122: 14171 | C122: Combray | D122: 2 | E122: 1
A123: Commune | B123: 14172 | C123: Commes | D123: 2 | E123: 1
A124: Commune | B124: 14173 | C124: Condé-sur-Ifs | D124: 5 | E124: 3
A125: Commune | B125: 14174 | C125: Condé-en-Normandie | D125: 114 | E125: 55
A126: Commune | B126: 14175 | C126: Condé-sur-Seulles | D126: 3 | E126: 3
A127: Commune | B127: 14177 | C127: Coquainvilliers | D127: 4 | E127: 0
A128: Commune | B128: 14179 | C128: Cordebugle | D128: 2 | E128: 1
A129: Commune | B129: 14180 | C129: Cordey | D129: 1 | E129: 0
A130: Commune | B130: 14181 | C130: Cormelles-le-Royal | D130: 61 | E130: 33
A131: Commune | B131: 14182 | C131: Cormolain | D131: 1 | E131: 0
A132: Commune | B132: 14183 | C132: Cossesseville | D132: 0 | E132: 0
A133: Commune | B133: 14184 | C133: Cottun | D133: 1 | E133: 0
A134: Commune | B134: 14190 | C134: Courcy | D134: 2 | E134: 1
A135: Commune | B135: 14191 | C135: Courseulles-sur-Mer | D135: 54 | E135: 25
A136: Commune | B136: 14193 | C136: Courtonne-la-Meurdrac | D136: 4 | E136: 1
A137: Commune | B137: 14194 | C137: Courtonne-les-Deux-Églises | D137: 5 | E137: 0
A138: Commune | B138: 14195 | C138: Courvaudon | D138: 2 | E138: 0
A139: Commune | B139: 14196 | C139: Crépon | D139: 2 | E139: 0
A140: Commune | B140: 14197 | C140: Cresserons | D140: 9 | E140: 2
A141: Commune | B141: 14198 | C141: Cresseveuille | D141: 1 | E141: 0
A142: Commune | B142: 14200 | C142: Creully sur Seulles | D142: 16 | E142: 7
A143: Commune | B143: 14202 | C143: Cricqueboeuf | D143: 1 | E143: 0
A144: Commune | B144: 14203 | C144: Cricqueville-en-Auge | D144: 1 | E144: 0
A145: Commune | B145: 14204 | C145: Cricqueville-en-Bessin | D145: 2 | E145: 0
A146: Commune | B146: 14205 | C146: Cristot | D146: 0 | E146: 0
A147: Commune | B147: 14206 | C147: Crocy | D147: 2 | E147: 0
A148: Commune | B148: 14207 | C148: Croisilles | D148: 6 | E148: 1
A149: Commune | B149: 14209 | C149: Crouay | D149: 3 | E149: 1
A150: Commune | B150: 14211 | C150: Culey-le-Patry | D150: 4 | E150: 3
A151: Commune | B151: 14214 | C151: Cussy | D151: 0 | E151: 0
A152: Commune | B152: 14215 | C152: Cuverville | D152: 11 | E152: 4
A153: Commune | B153: 14216 | C153: Damblainville | D153: 0 | E153: 0
A154: Commune | B154: 14218 | C154: Danestal | D154: 1 | E154: 0
A155: Commune | B155: 14220 | C155: Deauville | D155: 43 | E155: 19
A156: Commune | B156: 14221 | C156: Démouville | D156: 38 | E156: 24
A157: Commune | B157: 14223 | C157: Le Détroit | D157: 3 | E157: 0
A158: Commune | B158: 14224 | C158: Deux-Jumeaux | D158: 1 | E158: 1
A159: Commune | B159: 14225 | C159: Dives-sur-Mer | D159: 92 | E159: 45
A160: Commune | B160: 14226 | C160: Donnay | D160: 5 | E160: 3
A161: Commune | B161: 14227 | C161: Douville-en-Auge | D161: 0 | E161: 0
A162: Commune | B162: 14228 | C162: Douvres-la-Délivrande | D162: 44 | E162: 25
A163: Commune | B163: 14229 | C163: Dozulé | D163: 14 | E163: 7
A164: Commune | B164: 14230 | C164: Drubec | D164: 2 | E164: 0
A165: Commune | B165: 14231 | C165: Beaufour-Druval | D165: 2 | E165: 1
A166: Commune | B166: 14232 | C166: Ducy-Sainte-Marguerite | D166: 0 | E166: 0
A167: Commune | B167: 14236 | C167: Ellon | D167: 1 | E167: 1
A168: Commune | B168: 14237 | C168: Émiéville | D168: 7 | E168: 3
A169: Commune | B169: 14238 | C169: Englesqueville-en-Auge | D169: 1 | E169: 1
A170: Commune | B170: 14239 | C170: Englesqueville-la-Percée | D170: 0 | E170: 0
A171: Commune | B171: 14240 | C171: Épaney | D171: 8 | E171: 7
A172: Commune | B172: 14241 | C172: Épinay-sur-Odon | D172: 5 | E172: 1
A173: Commune | B173: 14242 | C173: Épron | D173: 17 | E173: 10
A174: Commune | B174: 14243 | C174: Équemauville | D174: 5 | E174: 3
A175: Commune | B175: 14244 | C175: Eraines | D175: 6 | E175: 4
A176: Commune | B176: 14245 | C176: Ernes | D176: 2 | E176: 0
A177: Commune | B177: 14246 | C177: Escoville | D177: 3 | E177: 1
A178: Commune | B178: 14248 | C178: Espins | D178: 0 | E178: 0
A179: Commune | B179: 14249 | C179: Esquay-Notre-Dame | D179: 8 | E179: 3
A180: Commune | B180: 14250 | C180: Esquay-sur-Seulles | D180: 4 | E180: 2
A181: Commune | B181: 14251 | C181: Esson | D181: 3 | E181: 1
A182: Commune | B182: 14252 | C182: Estrées-la-Campagne | D182: 2 | E182: 0
A183: Commune | B183: 14254 | C183: Éterville | D183: 6 | E183: 2
A184: Commune | B184: 14256 | C184: Étréham | D184: 3 | E184: 1
A185: Commune | B185: 14257 | C185: Évrecy | D185: 3 | E185: 1
A186: Commune | B186: 14258 | C186: Falaise | D186: 127 | E186: 53
A187: Commune | B187: 14260 | C187: Fauguernon | D187: 0 | E187: 0
A188: Commune | B188: 14261 | C188: Le Faulq | D188: 4 | E188: 1
A189: Commune | B189: 14266 | C189: Feuguerolles-Bully | D189: 6 | E189: 1
A190: Commune | B190: 14269 | C190: Fierville-les-Parcs | D190: 3 | E190: 2
A191: Commune | B191: 14270 | C191: Firfol | D191: 2 | E191: 1
A192: Commune | B192: 14271 | C192: Fleury-sur-Orne | D192: 112 | E192: 50
A193: Commune | B193: 14272 | C193: La Folie | D193: 2 | E193: 0
A194: Commune | B194: 14273 | C194: La Folletière-Abenon | D194: 3 | E194: 2
A195: Commune | B195: 14274 | C195: Fontaine-Étoupefour | D195: 7 | E195: 3
A196: Commune | B196: 14275 | C196: Fontaine-Henry | D196: 4 | E196: 2
A197: Commune | B197: 14276 | C197: Fontaine-le-Pin | D197: 4 | E197: 1
A198: Commune | B198: 14277 | C198: Fontenay-le-Marmion | D198: 17 | E198: 10
A199: Commune | B199: 14278 | C199: Fontenay-le-Pesnel | D199: 3 | E199: 1
A200: Commune | B200: 14280 | C200: Formentin | D200: 2 | E200: 0
... 2604 more rows

Sheet export_ent (hidden)
A1: type | B1: code | C1: libelle | D1: fin_ctt | E1: demis | F1: rupt_conv | G1: lic_eco | H1: aut_lic | I1: prem_ent | J1: ret_inact | K1: aut_motif | L1: indeter | M1: fin_ctt_p | N1: demis_p | O1: rupt_conv_p | P1: lic_eco_p | Q1: aut_lic_p | R1: prem_ent_p | S1: ret_inact_p | T1: aut_motif_p | U1: indeter_p
A2: Commune | B2: 14001 | C2: Ablon | D2: 30 | E2: 4 | F2: 9 | G2: 1 | H2: 5 | I2: 1 | J2: 15 | K2: 6 | L2: 5 | M2: 22 | N2: 8 | O2: 12 | P2: 0 | Q2: 9 | R2: 2 | S2: 10 | T2: 2 | U2: 8
A3: Commune | B3: 14003 | C3: Agy | D3: 0 | E3: 4 | F3: 3 | G3: 0 | H3: 1 | I3: 2 | J3: 0 | K3: 1 | L3: 5 | M3: 2 | N3: 2 | O3: 3 | P3: 0 | Q3: 1 | R3: 0 | S3: 3 | T3: 1 | U3: 1
A4: Commune | B4: 14005 | C4: Valambray | D4: 26 | E4: 9 | F4: 12 | G4: 0 | H4: 12 | I4: 4 | J4: 28 | K4: 9 | L4: 12 | M4: 21 | N4: 7 | O4: 8 | P4: 1 | Q4: 9 | R4: 6 | S4: 13 | T4: 10 | U4: 6
A5: Commune | B5: 14006 | C5: Amayé-sur-Orne | D5: 19 | E5: 6 | F5: 9 | G5: 2 | H5: 8 | I5: 0 | J5: 7 | K5: 1 | L5: 4 | M5: 17 | N5: 6 | O5: 9 | P5: 0 | Q5: 5 | R5: 4 | S5: 7 | T5: 2 | U5: 2
A6: Commune | B6: 14007 | C6: Amayé-sur-Seulles | D6: 3 | E6: 1 | F6: 2 | G6: 0 | H6: 0 | I6: 0 | J6: 2 | K6: 2 | L6: 1 | M6: 2 | N6: 0 | O6: 1 | P6: 1 | Q6: 2 | R6: 0 | S6: 1 | T6: 1 | U6: 2
A7: Commune | B7: 14009 | C7: Amfreville | D7: 23 | E7: 9 | F7: 7 | G7: 0 | H7: 6 | I7: 4 | J7: 9 | K7: 11 | L7: 14 | M7: 28 | N7: 8 | O7: 12 | P7: 2 | Q7: 5 | R7: 3 | S7: 23 | T7: 4 | U7: 5
A8: Commune | B8: 14011 | C8: Aurseulles | D8: 30 | E8: 11 | F8: 14 | G8: 1 | H8: 9 | I8: 6 | J8: 23 | K8: 7 | L8: 9 | M8: 39 | N8: 18 | O8: 11 | P8: 1 | Q8: 13 | R8: 7 | S8: 11 | T8: 3 | U8: 8
A9: Commune | B9: 14012 | C9: Angerville | D9: 8 | E9: 1 | F9: 4 | G9: 0 | H9: 3 | I9: 0 | J9: 2 | K9: 2 | L9: 2 | M9: 8 | N9: 0 | O9: 3 | P9: 0 | Q9: 0 | R9: 0 | S9: 3 | T9: 1 | U9: 4
A10: Commune | B10: 14014 | C10: Colomby-Anguerny | D10: 15 | E10: 7 | F10: 6 | G10: 3 | H10: 4 | I10: 3 | J10: 17 | K10: 3 | L10: 5 | M10: 25 | N10: 11 | O10: 11 | P10: 0 | Q10: 7 | R10: 6 | S10: 15 | T10: 3 | U10: 8
A11: Commune | B11: 14015 | C11: Anisy | D11: 13 | E11: 4 | F11: 9 | G11: 1 | H11: 3 | I11: 1 | J11: 8 | K11: 0 | L11: 2 | M11: 16 | N11: 6 | O11: 10 | P11: 0 | Q11: 1 | R11: 4 | S11: 6 | T11: 1 | U11: 5
A12: Commune | B12: 14016 | C12: Annebault | D12: 3 | E12: 0 | F12: 3 | G12: 1 | H12: 4 | I12: 4 | J12: 1 | K12: 2 | L12: 1 | M12: 7 | N12: 2 | O12: 3 | P12: 1 | Q12: 3 | R12: 0 | S12: 8 | T12: 2 | U12: 7
A13: Commune | B13: 14019 | C13: Arganchy | D13: 6 | E13: 0 | F13: 2 | G13: 0 | H13: 1 | I13: 0 | J13: 1 | K13: 0 | L13: 0 | M13: 7 | N13: 1 | O13: 2 | P13: 0 | Q13: 2 | R13: 0 | S13: 1 | T13: 3 | U13: 1
A14: Commune | B14: 14020 | C14: Argences | D14: 92 | E14: 26 | F14: 28 | G14: 6 | H14: 19 | I14: 21 | J14: 58 | K14: 19 | L14: 33 | M14: 82 | N14: 25 | O14: 24 | P14: 7 | Q14: 23 | R14: 22 | S14: 59 | T14: 25 | U14: 40
A15: Commune | B15: 14021 | C15: Arromanches-les-Bains | D15: 26 | E15: 4 | F15: 3 | G15: 1 | H15: 2 | I15: 0 | J15: 5 | K15: 5 | L15: 9 | M15: 19 | N15: 3 | O15: 5 | P15: 2 | Q15: 1 | R15: 0 | S15: 6 | T15: 2 | U15: 5
A16: Commune | B16: 14022 | C16: Asnelles | D16: 25 | E16: 2 | F16: 2 | G16: 1 | H16: 4 | I16: 2 | J16: 6 | K16: 1 | L16: 9 | M16: 9 | N16: 1 | O16: 3 | P16: 0 | Q16: 7 | R16: 1 | S16: 5 | T16: 5 | U16: 9
A17: Commune | B17: 14023 | C17: Asnières-en-Bessin | D17: 0 | E17: 0 | F17: 1 | G17: 0 | H17: 0 | I17: 0 | J17: 1 | K17: 0 | L17: 0 | M17: 1 | N17: 0 | O17: 0 | P17: 0 | Q17: 0 | R17: 0 | S17: 0 | T17: 0 | U17: 1
A18: Commune | B18: 14024 | C18: Auberville | D18: 9 | E18: 3 | F18: 2 | G18: 0 | H18: 2 | I18: 2 | J18: 7 | K18: 0 | L18: 4 | M18: 19 | N18: 6 | O18: 4 | P18: 0 | Q18: 4 | R18: 3 | S18: 0 | T18: 1 | U18: 11
A19: Commune | B19: 14025 | C19: Aubigny | D19: 7 | E19: 0 | F19: 1 | G19: 0 | H19: 1 | I19: 0 | J19: 1 | K19: 3 | L19: 0 | M19: 5 | N19: 2 | O19: 1 | P19: 0 | Q19: 0 | R19: 3 | S19: 2 | T19: 1 | U19: 1
A20: Commune | B20: 14026 | C20: Audrieu | D20: 18 | E20: 2 | F20: 6 | G20: 1 | H20: 5 | I20: 3 | J20: 22 | K20: 4 | L20: 4 | M20: 23 | N20: 9 | O20: 6 | P20: 0 | Q20: 9 | R20: 3 | S20: 14 | T20: 2 | U20: 6
A21: Commune | B21: 14027 | C21: Les Monts d'Aunay | D21: 138 | E21: 27 | F21: 33 | G21: 5 | H21: 21 | I21: 20 | J21: 74 | K21: 22 | L21: 35 | M21: 121 | N21: 20 | O21: 34 | P21: 2 | Q21: 33 | R21: 15 | S21: 60 | T21: 18 | U21: 30
A22: Commune | B22: 14030 | C22: Authie | D22: 25 | E22: 5 | F22: 16 | G22: 2 | H22: 8 | I22: 8 | J22: 16 | K22: 7 | L22: 11 | M22: 32 | N22: 5 | O22: 7 | P22: 1 | Q22: 6 | R22: 6 | S22: 14 | T22: 2 | U22: 7
A23: Commune | B23: 14032 | C23: Les Authieux-sur-Calonne | D23: 3 | E23: 1 | F23: 5 | G23: 1 | H23: 2 | I23: 1 | J23: 5 | K23: 4 | L23: 7 | M23: 4 | N23: 1 | O23: 2 | P23: 1 | Q23: 3 | R23: 0 | S23: 4 | T23: 2 | U23: 2
A24: Commune | B24: 14033 | C24: Auvillars | D24: 2 | E24: 0 | F24: 2 | G24: 0 | H24: 0 | I24: 1 | J24: 1 | K24: 0 | L24: 3 | M24: 6 | N24: 2 | O24: 1 | P24: 0 | Q24: 1 | R24: 0 | S24: 1 | T24: 1 | U24: 2
A25: Commune | B25: 14034 | C25: Avenay | D25: 12 | E25: 1 | F25: 7 | G25: 1 | H25: 0 | I25: 1 | J25: 8 | K25: 5 | L25: 3 | M25: 7 | N25: 2 | O25: 3 | P25: 1 | Q25: 2 | R25: 3 | S25: 3 | T25: 5 | U25: 3
A26: Commune | B26: 14035 | C26: Balleroy-sur-Drôme | D26: 32 | E26: 10 | F26: 6 | G26: 2 | H26: 10 | I26: 7 | J26: 24 | K26: 9 | L26: 17 | M26: 43 | N26: 11 | O26: 13 | P26: 1 | Q26: 5 | R26: 7 | S26: 20 | T26: 6 | U26: 18
A27: Commune | B27: 14036 | C27: Banneville-la-Campagne | D27: 9 | E27: 0 | F27: 1 | G27: 0 | H27: 1 | I27: 0 | J27: 1 | K27: 2 | L27: 1 | M27: 9 | N27: 4 | O27: 1 | P27: 0 | Q27: 3 | R27: 0 | S27: 4 | T27: 2 | U27: 4
A28: Commune | B28: 14037 | C28: Malherbe-sur-Ajon | D28: 9 | E28: 7 | F28: 7 | G28: 0 | H28: 5 | I28: 1 | J28: 8 | K28: 7 | L28: 1 | M28: 14 | N28: 2 | O28: 1 | P28: 1 | Q28: 4 | R28: 0 | S28: 16 | T28: 2 | U28: 0
A29: Commune | B29: 14038 | C29: Banville | D29: 17 | E29: 2 | F29: 2 | G29: 0 | H29: 2 | I29: 3 | J29: 13 | K29: 1 | L29: 0 | M29: 8 | N29: 4 | O29: 11 | P29: 1 | Q29: 2 | R29: 5 | S29: 11 | T29: 1 | U29: 3
A30: Commune | B30: 14039 | C30: Barbery | D30: 11 | E30: 7 | F30: 9 | G30: 0 | H30: 3 | I30: 3 | J30: 9 | K30: 5 | L30: 4 | M30: 10 | N30: 1 | O30: 9 | P30: 1 | Q30: 3 | R30: 3 | S30: 6 | T30: 2 | U30: 7
A31: Commune | B31: 14040 | C31: Barbeville | D31: 6 | E31: 1 | F31: 1 | G31: 0 | H31: 3 | I31: 0 | J31: 0 | K31: 0 | L31: 2 | M31: 7 | N31: 2 | O31: 3 | P31: 1 | Q31: 1 | R31: 2 | S31: 3 | T31: 0 | U31: 2
A32: Commune | B32: 14041 | C32: Barneville-la-Bertran | D32: 2 | E32: 0 | F32: 1 | G32: 0 | H32: 0 | I32: 0 | J32: 0 | K32: 1 | L32: 1 | M32: 0 | N32: 0 | O32: 0 | P32: 0 | Q32: 1 | R32: 0 | S32: 0 | T32: 0 | U32: 0
A33: Commune | B33: 14042 | C33: Baron-sur-Odon | D33: 19 | E33: 0 | F33: 6 | G33: 2 | H33: 1 | I33: 2 | J33: 6 | K33: 2 | L33: 4 | M33: 16 | N33: 8 | O33: 6 | P33: 0 | Q33: 6 | R33: 2 | S33: 10 | T33: 3 | U33: 2
A34: Commune | B34: 14043 | C34: Barou-en-Auge | D34: 0 | E34: 1 | F34: 0 | G34: 0 | H34: 3 | I34: 1 | J34: 2 | K34: 0 | L34: 1 | M34: 0 | N34: 0 | O34: 0 | P34: 0 | Q34: 0 | R34: 0 | S34: 0 | T34: 0 | U34: 1
A35: Commune | B35: 14044 | C35: Basly | D35: 14 | E35: 6 | F35: 7 | G35: 0 | H35: 4 | I35: 4 | J35: 8 | K35: 2 | L35: 5 | M35: 12 | N35: 3 | O35: 7 | P35: 0 | Q35: 6 | R35: 4 | S35: 3 | T35: 3 | U35: 6
A36: Commune | B36: 14045 | C36: Basseneville | D36: 2 | E36: 0 | F36: 1 | G36: 2 | H36: 1 | I36: 1 | J36: 3 | K36: 0 | L36: 0 | M36: 2 | N36: 3 | O36: 0 | P36: 0 | Q36: 2 | R36: 1 | S36: 1 | T36: 1 | U36: 3
A37: Commune | B37: 14046 | C37: Bavent | D37: 41 | E37: 10 | F37: 20 | G37: 1 | H37: 9 | I37: 7 | J37: 29 | K37: 8 | L37: 17 | M37: 35 | N37: 16 | O37: 12 | P37: 1 | Q37: 13 | R37: 8 | S37: 23 | T37: 7 | U37: 9
A38: Commune | B38: 14047 | C38: Bayeux | D38: 474 | E38: 82 | F38: 87 | G38: 4 | H38: 65 | I38: 71 | J38: 253 | K38: 89 | L38: 174 | M38: 506 | N38: 87 | O38: 91 | P38: 5 | Q38: 81 | R38: 58 | S38: 322 | T38: 100 | U38: 218
A39: Commune | B39: 14049 | C39: Bazenville | D39: 4 | E39: 1 | F39: 3 | G39: 0 | H39: 3 | I39: 0 | J39: 0 | K39: 0 | L39: 0 | M39: 6 | N39: 0 | O39: 3 | P39: 0 | Q39: 1 | R39: 0 | S39: 3 | T39: 0 | U39: 0
A40: Commune | B40: 14050 | C40: La Bazoque | D40: 6 | E40: 3 | F40: 0 | G40: 1 | H40: 1 | I40: 0 | J40: 4 | K40: 0 | L40: 1 | M40: 2 | N40: 4 | O40: 2 | P40: 1 | Q40: 2 | R40: 0 | S40: 0 | T40: 2 | U40: 2
A41: Commune | B41: 14053 | C41: Beaumais | D41: 6 | E41: 3 | F41: 1 | G41: 0 | H41: 2 | I41: 0 | J41: 5 | K41: 1 | L41: 1 | M41: 4 | N41: 2 | O41: 2 | P41: 1 | Q41: 2 | R41: 0 | S41: 1 | T41: 0 | U41: 2
A42: Commune | B42: 14054 | C42: Beaumesnil | D42: 5 | E42: 1 | F42: 0 | G42: 0 | H42: 2 | I42: 0 | J42: 1 | K42: 2 | L42: 3 | M42: 5 | N42: 0 | O42: 3 | P42: 0 | Q42: 1 | R42: 2 | S42: 2 | T42: 1 | U42: 4
A43: Commune | B43: 14055 | C43: Beaumont-en-Auge | D43: 8 | E43: 1 | F43: 1 | G43: 2 | H43: 0 | I43: 0 | J43: 5 | K43: 3 | L43: 1 | M43: 8 | N43: 1 | O43: 2 | P43: 2 | Q43: 5 | R43: 1 | S43: 0 | T43: 3 | U43: 3
A44: Commune | B44: 14057 | C44: Bellengreville | D44: 40 | E44: 12 | F44: 17 | G44: 2 | H44: 5 | I44: 7 | J44: 19 | K44: 6 | L44: 11 | M44: 44 | N44: 10 | O44: 7 | P44: 1 | Q44: 12 | R44: 8 | S44: 14 | T44: 6 | U44: 8
A45: Commune | B45: 14059 | C45: Benerville-sur-Mer | D45: 14 | E45: 5 | F45: 4 | G45: 1 | H45: 1 | I45: 2 | J45: 6 | K45: 4 | L45: 3 | M45: 16 | N45: 2 | O45: 4 | P45: 2 | Q45: 5 | R45: 2 | S45: 10 | T45: 2 | U45: 7
A46: Commune | B46: 14060 | C46: Bénouville | D46: 36 | E46: 13 | F46: 17 | G46: 1 | H46: 9 | I46: 5 | J46: 20 | K46: 9 | L46: 11 | M46: 30 | N46: 3 | O46: 10 | P46: 5 | Q46: 11 | R46: 9 | S46: 22 | T46: 11 | U46: 18
A47: Commune | B47: 14061 | C47: Souleuvre-en-Bocage | D47: 197 | E47: 55 | F47: 55 | G47: 4 | H47: 42 | I47: 27 | J47: 127 | K47: 49 | L47: 56 | M47: 181 | N47: 56 | O47: 58 | P47: 4 | Q47: 48 | R47: 37 | S47: 123 | T47: 48 | U47: 66
A48: Commune | B48: 14062 | C48: Bény-sur-Mer | D48: 14 | E48: 0 | F48: 3 | G48: 0 | H48: 1 | I48: 1 | J48: 5 | K48: 5 | L48: 3 | M48: 9 | N48: 2 | O48: 5 | P48: 1 | Q48: 0 | R48: 0 | S48: 2 | T48: 2 | U48: 5
A49: Commune | B49: 14063 | C49: Bernesq | D49: 3 | E49: 2 | F49: 1 | G49: 1 | H49: 1 | I49: 0 | J49: 1 | K49: 2 | L49: 6 | M49: 8 | N49: 1 | O49: 0 | P49: 0 | Q49: 2 | R49: 1 | S49: 1 | T49: 2 | U49: 1
A50: Commune | B50: 14064 | C50: Bernières-d'Ailly | D50: 7 | E50: 1 | F50: 3 | G50: 0 | H50: 3 | I50: 1 | J50: 3 | K50: 1 | L50: 1 | M50: 4 | N50: 1 | O50: 2 | P50: 0 | Q50: 2 | R50: 1 | S50: 5 | T50: 3 | U50: 1
A51: Commune | B51: 14066 | C51: Bernières-sur-Mer | D51: 58 | E51: 14 | F51: 24 | G51: 1 | H51: 16 | I51: 17 | J51: 26 | K51: 10 | L51: 11 | M51: 55 | N51: 10 | O51: 30 | P51: 4 | Q51: 14 | R51: 3 | S51: 20 | T51: 7 | U51: 24
A52: Commune | B52: 14068 | C52: Biéville-Beuville | D52: 71 | E52: 22 | F52: 20 | G52: 1 | H52: 16 | I52: 12 | J52: 49 | K52: 12 | L52: 24 | M52: 60 | N52: 19 | O52: 28 | P52: 2 | Q52: 18 | R52: 13 | S52: 51 | T52: 11 | U52: 21
A53: Commune | B53: 14069 | C53: Beuvillers | D53: 26 | E53: 3 | F53: 11 | G53: 1 | H53: 11 | I53: 4 | J53: 28 | K53: 7 | L53: 15 | M53: 37 | N53: 8 | O53: 7 | P53: 0 | Q53: 6 | R53: 4 | S53: 19 | T53: 9 | U53: 3
A54: Commune | B54: 14070 | C54: Beuvron-en-Auge | D54: 4 | E54: 0 | F54: 1 | G54: 0 | H54: 1 | I54: 0 | J54: 2 | K54: 1 | L54: 2 | M54: 5 | N54: 1 | O54: 1 | P54: 0 | Q54: 1 | R54: 0 | S54: 1 | T54: 0 | U54: 2
A55: Commune | B55: 14076 | C55: Blainville-sur-Orne | D55: 191 | E55: 43 | F55: 53 | G55: 2 | H55: 35 | I55: 32 | J55: 112 | K55: 51 | L55: 85 | M55: 170 | N55: 33 | O55: 47 | P55: 5 | Q55: 40 | R55: 27 | S55: 100 | T55: 50 | U55: 75
A56: Commune | B56: 14077 | C56: Blangy-le-Château | D56: 16 | E56: 1 | F56: 3 | G56: 1 | H56: 2 | I56: 0 | J56: 14 | K56: 2 | L56: 10 | M56: 19 | N56: 3 | O56: 3 | P56: 2 | Q56: 4 | R56: 0 | S56: 9 | T56: 11 | U56: 4
A57: Commune | B57: 14078 | C57: Blay | D57: 7 | E57: 3 | F57: 1 | G57: 0 | H57: 1 | I57: 1 | J57: 3 | K57: 0 | L57: 3 | M57: 8 | N57: 3 | O57: 1 | P57: 0 | Q57: 1 | R57: 1 | S57: 3 | T57: 0 | U57: 2
A58: Commune | B58: 14079 | C58: Blonville-sur-Mer | D58: 39 | E58: 7 | F58: 27 | G58: 1 | H58: 8 | I58: 3 | J58: 22 | K58: 12 | L58: 8 | M58: 54 | N58: 8 | O58: 14 | P58: 2 | Q58: 15 | R58: 1 | S58: 15 | T58: 8 | U58: 9
A59: Commune | B59: 14080 | C59: Le Bô | D59: 1 | E59: 0 | F59: 0 | G59: 0 | H59: 1 | I59: 0 | J59: 4 | K59: 1 | L59: 0 | M59: 1 | N59: 2 | O59: 1 | P59: 0 | Q59: 1 | R59: 0 | S59: 0 | T59: 0 | U59: 0
A60: Commune | B60: 14082 | C60: La Boissière | D60: 1 | E60: 1 | F60: 0 | G60: 0 | H60: 2 | I60: 1 | J60: 6 | K60: 1 | L60: 2 | M60: 4 | N60: 1 | O60: 1 | P60: 0 | Q60: 2 | R60: 0 | S60: 5 | T60: 1 | U60: 0
A61: Commune | B61: 14083 | C61: Bonnebosq | D61: 12 | E61: 5 | F61: 5 | G61: 2 | H61: 1 | I61: 0 | J61: 6 | K61: 2 | L61: 4 | M61: 24 | N61: 2 | O61: 3 | P61: 0 | Q61: 8 | R61: 0 | S61: 5 | T61: 1 | U61: 5
A62: Commune | B62: 14084 | C62: Bonnemaison | D62: 7 | E62: 6 | F62: 4 | G62: 0 | H62: 4 | I62: 0 | J62: 5 | K62: 1 | L62: 2 | M62: 5 | N62: 2 | O62: 6 | P62: 0 | Q62: 5 | R62: 0 | S62: 3 | T62: 3 | U62: 4
A63: Commune | B63: 14085 | C63: Bonneville-la-Louvet | D63: 10 | E63: 3 | F63: 8 | G63: 1 | H63: 2 | I63: 0 | J63: 4 | K63: 1 | L63: 1 | M63: 11 | N63: 3 | O63: 4 | P63: 3 | Q63: 1 | R63: 3 | S63: 11 | T63: 0 | U63: 3
A64: Commune | B64: 14086 | C64: Bonneville-sur-Touques | D64: 4 | E64: 1 | F64: 5 | G64: 0 | H64: 0 | I64: 1 | J64: 1 | K64: 3 | L64: 3 | M64: 8 | N64: 1 | O64: 0 | P64: 1 | Q64: 2 | R64: 0 | S64: 3 | T64: 1 | U64: 5
A65: Commune | B65: 14087 | C65: Bonnoeil | D65: 1 | E65: 0 | F65: 0 | G65: 0 | H65: 1 | I65: 0 | J65: 2 | K65: 1 | L65: 0 | M65: 0 | N65: 0 | O65: 3 | P65: 0 | Q65: 0 | R65: 0 | S65: 4 | T65: 2 | U65: 0
A66: Commune | B66: 14088 | C66: Bons-Tassilly | D66: 16 | E66: 1 | F66: 1 | G66: 0 | H66: 3 | I66: 1 | J66: 4 | K66: 1 | L66: 4 | M66: 15 | N66: 2 | O66: 7 | P66: 0 | Q66: 2 | R66: 1 | S66: 3 | T66: 2 | U66: 2
A67: Commune | B67: 14089 | C67: Bougy | D67: 12 | E67: 0 | F67: 1 | G67: 1 | H67: 1 | I67: 1 | J67: 7 | K67: 3 | L67: 4 | M67: 7 | N67: 3 | O67: 4 | P67: 0 | Q67: 0 | R67: 1 | S67: 6 | T67: 1 | U67: 4
A68: Commune | B68: 14090 | C68: Boulon | D68: 7 | E68: 1 | F68: 5 | G68: 2 | H68: 10 | I68: 4 | J68: 10 | K68: 6 | L68: 4 | M68: 15 | N68: 3 | O68: 7 | P68: 0 | Q68: 8 | R68: 2 | S68: 10 | T68: 0 | U68: 5
A69: Commune | B69: 14091 | C69: Bourgeauville | D69: 2 | E69: 0 | F69: 1 | G69: 0 | H69: 0 | I69: 0 | J69: 1 | K69: 0 | L69: 1 | M69: 2 | N69: 0 | O69: 0 | P69: 0 | Q69: 0 | R69: 0 | S69: 2 | T69: 0 | U69: 0
A70: Commune | B70: 14092 | C70: Bourguébus | D70: 48 | E70: 12 | F70: 22 | G70: 3 | H70: 14 | I70: 16 | J70: 33 | K70: 11 | L70: 14 | M70: 39 | N70: 10 | O70: 20 | P70: 3 | Q70: 14 | R70: 9 | S70: 28 | T70: 10 | U70: 18
A71: Commune | B71: 14093 | C71: Branville | D71: 5 | E71: 1 | F71: 2 | G71: 1 | H71: 1 | I71: 1 | J71: 6 | K71: 2 | L71: 3 | M71: 3 | N71: 3 | O71: 0 | P71: 1 | Q71: 0 | R71: 1 | S71: 8 | T71: 1 | U71: 1
A72: Commune | B72: 14096 | C72: Brémoy | D72: 5 | E72: 0 | F72: 0 | G72: 0 | H72: 0 | I72: 1 | J72: 6 | K72: 1 | L72: 0 | M72: 4 | N72: 0 | O72: 1 | P72: 0 | Q72: 2 | R72: 1 | S72: 1 | T72: 1 | U72: 1
A73: Commune | B73: 14097 | C73: Bretteville-le-Rabet | D73: 2 | E73: 1 | F73: 2 | G73: 0 | H73: 0 | I73: 0 | J73: 6 | K73: 2 | L73: 2 | M73: 4 | N73: 2 | O73: 2 | P73: 0 | Q73: 7 | R73: 0 | S73: 1 | T73: 4 | U73: 4
A74: Commune | B74: 14098 | C74: Thue et Mue | D74: 113 | E74: 37 | F74: 39 | G74: 5 | H74: 21 | I74: 24 | J74: 73 | K74: 29 | L74: 32 | M74: 106 | N74: 34 | O74: 45 | P74: 5 | Q74: 30 | R74: 25 | S74: 58 | T74: 21 | U74: 33
A75: Commune | B75: 14100 | C75: Bretteville-sur-Laize | D75: 53 | E75: 16 | F75: 15 | G75: 1 | H75: 10 | I75: 4 | J75: 46 | K75: 13 | L75: 17 | M75: 33 | N75: 6 | O75: 13 | P75: 2 | Q75: 10 | R75: 26 | S75: 21 | T75: 11 | U75: 23
A76: Commune | B76: 14101 | C76: Bretteville-sur-Odon | D76: 133 | E76: 28 | F76: 37 | G76: 2 | H76: 19 | I76: 21 | J76: 97 | K76: 45 | L76: 57 | M76: 136 | N76: 19 | O76: 42 | P76: 5 | Q76: 26 | R76: 43 | S76: 57 | T76: 35 | U76: 76
A77: Commune | B77: 14102 | C77: Le Breuil-en-Auge | D77: 20 | E77: 7 | F77: 10 | G77: 0 | H77: 1 | I77: 2 | J77: 6 | K77: 1 | L77: 2 | M77: 19 | N77: 4 | O77: 5 | P77: 1 | Q77: 2 | R77: 1 | S77: 10 | T77: 0 | U77: 4
A78: Commune | B78: 14103 | C78: Le Breuil-en-Bessin | D78: 11 | E78: 5 | F78: 2 | G78: 0 | H78: 0 | I78: 2 | J78: 4 | K78: 2 | L78: 3 | M78: 7 | N78: 3 | O78: 1 | P78: 1 | Q78: 5 | R78: 3 | S78: 3 | T78: 1 | U78: 4
A79: Commune | B79: 14104 | C79: Le Brévedent | D79: 3 | E79: 2 | F79: 3 | G79: 2 | H79: 0 | I79: 0 | J79: 4 | K79: 0 | L79: 4 | M79: 7 | N79: 0 | O79: 1 | P79: 0 | Q79: 4 | R79: 2 | S79: 6 | T79: 3 | U79: 4
A80: Commune | B80: 14106 | C80: Bréville-les-Monts | D80: 12 | E80: 1 | F80: 4 | G80: 0 | H80: 2 | I80: 2 | J80: 2 | K80: 1 | L80: 4 | M80: 7 | N80: 3 | O80: 6 | P80: 0 | Q80: 1 | R80: 5 | S80: 7 | T80: 2 | U80: 7
A81: Commune | B81: 14107 | C81: Bricqueville | D81: 2 | E81: 0 | F81: 0 | G81: 0 | H81: 2 | I81: 0 | J81: 1 | K81: 3 | L81: 0 | M81: 3 | N81: 2 | O81: 2 | P81: 0 | Q81: 1 | R81: 0 | S81: 2 | T81: 2 | U81: 0
A82: Commune | B82: 14110 | C82: Brucourt | D82: 1 | E82: 3 | F82: 2 | G82: 0 | H82: 0 | I82: 0 | J82: 1 | K82: 2 | L82: 1 | M82: 1 | N82: 1 | O82: 1 | P82: 0 | Q82: 0 | R82: 0 | S82: 2 | T82: 3 | U82: 2
A83: Commune | B83: 14111 | C83: Bucéels | D83: 7 | E83: 3 | F83: 2 | G83: 0 | H83: 1 | I83: 0 | J83: 4 | K83: 2 | L83: 5 | M83: 9 | N83: 2 | O83: 3 | P83: 0 | Q83: 0 | R83: 1 | S83: 8 | T83: 1 | U83: 3
A84: Commune | B84: 14116 | C84: Le Bû-sur-Rouvres | D84: 3 | E84: 0 | F84: 1 | G84: 0 | H84: 1 | I84: 1 | J84: 2 | K84: 0 | L84: 1 | M84: 1 | N84: 0 | O84: 0 | P84: 0 | Q84: 0 | R84: 0 | S84: 5 | T84: 1 | U84: 1
A85: Commune | B85: 14117 | C85: Cabourg | D85: 77 | E85: 14 | F85: 20 | G85: 3 | H85: 19 | I85: 5 | J85: 58 | K85: 21 | L85: 28 | M85: 89 | N85: 15 | O85: 20 | P85: 4 | Q85: 17 | R85: 11 | S85: 55 | T85: 26 | U85: 31
A86: Commune | B86: 14118 | C86: Caen | D86: 4593 | E86: 780 | F86: 956 | G86: 121 | H86: 602 | I86: 1446 | J86: 3679 | K86: 1550 | L86: 2798 | M86: 4255 | N86: 692 | O86: 880 | P86: 101 | Q86: 699 | R86: 1523 | S86: 2857 | T86: 1635 | U86: 2792
A87: Commune | B87: 14119 | C87: Cagny | D87: 53 | E87: 9 | F87: 14 | G87: 0 | H87: 19 | I87: 2 | J87: 48 | K87: 10 | L87: 16 | M87: 38 | N87: 11 | O87: 15 | P87: 1 | Q87: 13 | R87: 8 | S87: 37 | T87: 8 | U87: 15
A88: Commune | B88: 14120 | C88: Cahagnes | D88: 39 | E88: 13 | F88: 11 | G88: 1 | H88: 12 | I88: 7 | J88: 25 | K88: 7 | L88: 3 | M88: 22 | N88: 7 | O88: 15 | P88: 1 | Q88: 13 | R88: 4 | S88: 12 | T88: 7 | U88: 11
A89: Commune | B89: 14121 | C89: Cahagnolles | D89: 6 | E89: 1 | F89: 2 | G89: 0 | H89: 1 | I89: 1 | J89: 4 | K89: 1 | L89: 1 | M89: 4 | N89: 1 | O89: 2 | P89: 0 | Q89: 0 | R89: 1 | S89: 3 | T89: 3 | U89: 1
A90: Commune | B90: 14122 | C90: La Caine | D90: 1 | E90: 0 | F90: 0 | G90: 0 | H90: 3 | I90: 1 | J90: 3 | K90: 0 | L90: 1 | M90: 2 | N90: 0 | O90: 0 | P90: 1 | Q90: 0 | R90: 3 | S90: 3 | T90: 0 | U90: 3
A91: Commune | B91: 14123 | C91: Cairon | D91: 33 | E91: 5 | F91: 15 | G91: 1 | H91: 8 | I91: 7 | J91: 20 | K91: 10 | L91: 11 | M91: 37 | N91: 4 | O91: 8 | P91: 2 | Q91: 9 | R91: 7 | S91: 13 | T91: 2 | U91: 8
A92: Commune | B92: 14124 | C92: La Cambe | D92: 7 | E92: 2 | F92: 5 | G92: 0 | H92: 5 | I92: 1 | J92: 8 | K92: 1 | L92: 2 | M92: 12 | N92: 4 | O92: 6 | P92: 0 | Q92: 1 | R92: 3 | S92: 5 | T92: 1 | U92: 4
A93: Commune | B93: 14125 | C93: Cambes-en-Plaine | D93: 41 | E93: 15 | F93: 16 | G93: 2 | H93: 16 | I93: 5 | J93: 30 | K93: 10 | L93: 9 | M93: 36 | N93: 5 | O93: 12 | P93: 1 | Q93: 9 | R93: 2 | S93: 30 | T93: 6 | U93: 12
A94: Commune | B94: 14126 | C94: Cambremer | D94: 27 | E94: 7 | F94: 14 | G94: 2 | H94: 2 | I94: 1 | J94: 15 | K94: 10 | L94: 6 | M94: 26 | N94: 5 | O94: 13 | P94: 2 | Q94: 7 | R94: 0 | S94: 13 | T94: 5 | U94: 8
A95: Commune | B95: 14127 | C95: Campagnolles | D95: 13 | E95: 3 | F95: 2 | G95: 0 | H95: 0 | I95: 0 | J95: 5 | K95: 1 | L95: 1 | M95: 11 | N95: 6 | O95: 2 | P95: 1 | Q95: 5 | R95: 0 | S95: 6 | T95: 0 | U95: 3
A96: Commune | B96: 14130 | C96: Campigny | D96: 4 | E96: 0 | F96: 0 | G96: 0 | H96: 0 | I96: 2 | J96: 0 | K96: 2 | L96: 2 | M96: 2 | N96: 2 | O96: 2 | P96: 0 | Q96: 0 | R96: 1 | S96: 3 | T96: 2 | U96: 1
A97: Commune | B97: 14131 | C97: Canapville | D97: 5 | E97: 1 | F97: 5 | G97: 2 | H97: 2 | I97: 1 | J97: 2 | K97: 2 | L97: 1 | M97: 10 | N97: 2 | O97: 4 | P97: 0 | Q97: 2 | R97: 0 | S97: 2 | T97: 1 | U97: 4
A98: Commune | B98: 14132 | C98: Canchy | D98: 5 | E98: 0 | F98: 4 | G98: 0 | H98: 1 | I98: 2 | J98: 5 | K98: 0 | L98: 0 | M98: 3 | N98: 0 | O98: 0 | P98: 0 | Q98: 0 | R98: 0 | S98: 5 | T98: 0 | U98: 0
A99: Commune | B99: 14134 | C99: Canteloup | D99: 2 | E99: 0 | F99: 0 | G99: 0 | H99: 1 | I99: 1 | J99: 1 | K99: 0 | L99: 1 | M99: 4 | N99: 0 | O99: 1 | P99: 0 | Q99: 0 | R99: 0 | S99: 3 | T99: 0 | U99: 1
A100: Commune | B100: 14135 | C100: Carcagny | D100: 3 | E100: 2 | F100: 0 | G100: 0 | H100: 0 | I100: 2 | J100: 2 | K100: 1 | L100: 0 | M100: 3 | N100: 0 | O100: 2 | P100: 0 | Q100: 2 | R100: 0 | S100: 4 | T100: 0 | U100: 0
A101: Commune | B101: 14136 | C101: Cardonville | D101: 2 | E101: 2 | F101: 0 | G101: 0 | H101: 0 | I101: 0 | J101: 1 | K101: 0 | L101: 2 | M101: 4 | N101: 0 | O101: 0 | P101: 0 | Q101: 0 | R101: 0 | S101: 1 | T101: 1 | U101: 1
A102: Commune | B102: 14137 | C102: Carpiquet | D102: 139 | E102: 26 | F102: 35 | G102: 1 | H102: 26 | I102: 26 | J102: 80 | K102: 29 | L102: 40 | M102: 105 | N102: 20 | O102: 32 | P102: 2 | Q102: 27 | R102: 20 | S102: 73 | T102: 21 | U102: 37
A103: Commune | B103: 14138 | C103: Cartigny-l'Épinay | D103: 6 | E103: 1 | F103: 4 | G103: 0 | H103: 0 | I103: 2 | J103: 5 | K103: 2 | L103: 2 | M103: 14 | N103: 0 | O103: 5 | P103: 0 | Q103: 4 | R103: 1 | S103: 7 | T103: 1 | U103: 3
A104: Commune | B104: 14140 | C104: Castillon | D104: 7 | E104: 3 | F104: 3 | G104: 1 | H104: 1 | I104: 0 | J104: 3 | K104: 6 | L104: 1 | M104: 6 | N104: 1 | O104: 3 | P104: 0 | Q104: 1 | R104: 0 | S104: 3 | T104: 0 | U104: 3
A105: Commune | B105: 14141 | C105: Castillon-en-Auge | D105: 3 | E105: 0 | F105: 0 | G105: 0 | H105: 0 | I105: 1 | J105: 0 | K105: 2 | L105: 1 | M105: 2 | N105: 2 | O105: 3 | P105: 1 | Q105: 1 | R105: 2 | S105: 2 | T105: 1 | U105: 2
A106: Commune | B106: 14143 | C106: Caumont-sur-Aure | D106: 70 | E106: 18 | F106: 24 | G106: 3 | H106: 19 | I106: 3 | J106: 42 | K106: 21 | L106: 29 | M106: 56 | N106: 10 | O106: 19 | P106: 5 | Q106: 14 | R106: 13 | S106: 51 | T106: 21 | U106: 33
A107: Commune | B107: 14145 | C107: Cauvicourt | D107: 14 | E107: 5 | F107: 3 | G107: 1 | H107: 2 | I107: 1 | J107: 5 | K107: 1 | L107: 2 | M107: 13 | N107: 6 | O107: 6 | P107: 0 | Q107: 7 | R107: 1 | S107: 11 | T107: 3 | U107: 3
A108: Commune | B108: 14146 | C108: Cauville | D108: 4 | E108: 0 | F108: 4 | G108: 0 | H108: 0 | I108: 0 | J108: 4 | K108: 0 | L108: 2 | M108: 3 | N108: 2 | O108: 3 | P108: 0 | Q108: 1 | R108: 0 | S108: 0 | T108: 1 | U108: 0
A109: Commune | B109: 14147 | C109: Cernay | D109: 0 | E109: 0 | F109: 1 | G109: 0 | H109: 2 | I109: 0 | J109: 1 | K109: 2 | L109: 1 | M109: 2 | N109: 2 | O109: 4 | P109: 0 | Q109: 0 | R109: 2 | S109: 0 | T109: 0 | U109: 1
A110: Commune | B110: 14149 | C110: Cesny-aux-Vignes | D110: 9 | E110: 2 | F110: 3 | G110: 1 | H110: 2 | I110: 0 | J110: 8 | K110: 1 | L110: 4 | M110: 12 | N110: 3 | O110: 7 | P110: 0 | Q110: 1 | R110: 0 | S110: 5 | T110: 2 | U110: 1
A111: Commune | B111: 14150 | C111: Cesny-les-Sources | D111: 23 | E111: 12 | F111: 11 | G111: 2 | H111: 9 | I111: 4 | J111: 11 | K111: 5 | L111: 2 | M111: 32 | N111: 12 | O111: 15 | P111: 1 | Q111: 7 | R111: 6 | S111: 19 | T111: 10 | U111: 4
A112: Commune | B112: 14159 | C112: Chouain | D112: 8 | E112: 2 | F112: 1 | G112: 0 | H112: 1 | I112: 1 | J112: 2 | K112: 0 | L112: 1 | M112: 4 | N112: 1 | O112: 1 | P112: 1 | Q112: 1 | R112: 0 | S112: 0 | T112: 2 | U112: 0
A113: Commune | B113: 14160 | C113: Cintheaux | D113: 6 | E113: 0 | F113: 0 | G113: 0 | H113: 1 | I113: 0 | J113: 1 | K113: 0 | L113: 0 | M113: 4 | N113: 0 | O113: 1 | P113: 1 | Q113: 1 | R113: 0 | S113: 2 | T113: 1 | U113: 1
A114: Commune | B114: 14161 | C114: Clarbec | D114: 4 | E114: 3 | F114: 1 | G114: 0 | H114: 1 | I114: 1 | J114: 2 | K114: 2 | L114: 0 | M114: 5 | N114: 4 | O114: 1 | P114: 1 | Q114: 4 | R114: 0 | S114: 1 | T114: 0 | U114: 0
A115: Commune | B115: 14162 | C115: Clécy | D115: 31 | E115: 6 | F115: 7 | G115: 3 | H115: 4 | I115: 4 | J115: 25 | K115: 8 | L115: 9 | M115: 44 | N115: 4 | O115: 10 | P115: 5 | Q115: 5 | R115: 1 | S115: 25 | T115: 4 | U115: 12
A116: Commune | B116: 14163 | C116: Cléville | D116: 3 | E116: 2 | F116: 4 | G116: 0 | H116: 0 | I116: 0 | J116: 7 | K116: 2 | L116: 3 | M116: 9 | N116: 3 | O116: 4 | P116: 2 | Q116: 3 | R116: 1 | S116: 7 | T116: 1 | U116: 2
A117: Commune | B117: 14165 | C117: Colleville-sur-Mer | D117: 4 | E117: 0 | F117: 1 | G117: 0 | H117: 0 | I117: 1 | J117: 2 | K117: 0 | L117: 0 | M117: 7 | N117: 3 | O117: 2 | P117: 0 | Q117: 0 | R117: 1 | S117: 4 | T117: 0 | U117: 1
